Workbook

Sheet 2014legmax.xls
B1: 10-6-14 Revised LM - Transfers | F1: Col 1 | I1: Col 2 | K1: Col 3 | L1: Col 4 | M1: Col 4(a) | O1: Col 4(b) | S1: Col 4(c) | T1: Col 5 | U1: Col 6 | X1: Col 7 | Y1: Col 7(a) | Z1: Col 8 | AA1: Col 8(a) | AB1: Col 9 | AC1: Col 9(a) | AD1: Col 9(b) | AE1: Col 10 | AF1: Col 10(a) | AG1: Col 11 | AH1: Col 11(a) | AI1: Col 12 | AJ1: Col 12(a) | AK1: Col 13 | AL1: Col 14 | AM1: Col 15 | AN1: Col 16 | AO1: Col 17 | AP1: Col 18 | AQ1: Col 18(a) | AT1: Col 19 | AU1: Col 20 | AZ1: Col 21 | BA1: Col 21(a) | BB1: Col 21(b) | BF1: Col 21(c) | BG1: Col 21(d) | BH1: Col 22 | BI1: Col 22(a) | BJ1: Col 22(b) | BK1: Col 22(c) | BL1: Col 22(d)
B2: 2014-06-16 | BN2: Table I Low & High Enrollment | BX2: Table II Transportation | CC2: Table III Tax Appeal Amounts | CI2: Table IV High Density At Risk | CN2: Table V Virtual Weighting | CW2: Table VI Authorized Transfers
A3: USD # | B3: County | C3: District Name | D3: FTE Enroll (exc 4 yr old at-risk & virtual) 9/20/2011 | E3: FTE Enroll (exc 4 yr old at-risk & virtual) 2/20/2012 | F3: FTE Enroll (exc 4 yr old at-risk exc virtual) 9/20/2011 2/20/2012 | G3: FTE Enroll (exc 4 yr old at-risk & virtual) 9/20/2012 | H3: FTE Enroll (exc 4 yr old at-risk & virtual) 2/20/2013 | I3: FTE Enroll (exc 4 yr old at-risk exc virtual) 9/20/2012 2/20/2013 | J3: FTE Enroll (exc 4 yr old at-risk inc virtual) 9/20/2013 | K3: FTE Enroll (exc 4 yr old at-risk exc virtual) 9/20/2013 | L3: Declining Enrollment Provision | M3: FTE Enroll (exc 4 yr old at-risk) 2/20/2014 | N3: Adjusted Enrollment (inc 2/20 exc virtual) | O3: 4 yr old at-risk (inc 9/20 inc 2/20) | P3: FTE Enroll (inc 4 yr old at-risk exc virtual) 9/20/2013 | Q3: FTE Enroll (inc 4 yr old at-risk inc virtual) 9/20/2013 | R3: FTE Enroll (inc 4 yr old at-risk inc virtual inc 2/20) 9/20/2013 | S3: Total Adjusted Enrollment | T3: Virtual FTE (Info Only) 9/20/13 | U3: Low and High Enroll Weighted FTE | V3: Low Enroll | W3: High Enroll | X3: CTE Contact Hrs | Y3: CTE Weighted FTE | Z3: Bilingual Contact Hrs | AA3: Bilingual Weighted FTE | AB3: At-Risk Headcount | AC3: At-Risk Weighted FTE | AD3: High At-Risk Weighted FTE | AE3: 2012-13 Non-Proficient Headcount | AF3: Non-Proficient Weighted FTE | AG3: New Facilities FTE | AH3: New Facilities Weighted FTE | AI3: Transp Over 2.5 Current Year | AJ3: Transp Weighted FTE | AK3: Ancillary Weighted FTE | AL3: Declining Enroll Weighted FTE | AM3: Cost of Living FTE | AN3: Virtual Weighted FTE | AO3: KAMS FTE | AP3: FY 14 Spec Ed State Aid | AQ3: Spec Ed Weighted FTE | AR3: 2013-14 Subtotal Weighted FTE (exc Spec Ed) | AS3: 2013-14 Subtotal Weighted FTE (exc COL) | AT3: 2013-14 Total Weighted FTE | AU3: Authorized Transfers | AV3: Sequence Number | AW3: Audit | AX3: Republished | AY3: Computed General Fund (exc Spec Ed) | AZ3: Computed General Fund (inc Spec Ed) | BA3: Adopted General Fund | BB3: 2013-14 General Fund (Before reductions) | BC3: Budget Law Violation | BD3: 2012-13 Trans Audit Adjust | BE3: 2012-13 Bilingual Vocational At-Risk Audit Adj | BF3: 2012-13 Total Reduction | BG3: 2013-14 Adjusted Legal General Fund Budget | BH3: LOB Base General Fund | BI3: 2013-14 LOB Authorized Percent | BJ3: Max Computed LOB Authorized | BK3: Adopted LOB | BL3: Legal LOB | BM3: LOB Percent Used | BN3: 0-99.9 | BR3: 100-299.9 | BV3: 300-1621.9 | BW3: 1622 and higher | BX3: Area in Square Miles | BY3: Index | BZ3: Density Cost Per Pupil | CA3: Transp Weighting Factor | CB3: Trans Weighted FTE | CC3: Board of Tax Appeals (Ancillary) | CD3: Board of Tax Appeals (Declining Enrollment) | CE3: Board of Tax Appeals (Cost of Living) | CF3: Cost of Living Authorized Percent | CG3: Max Computed Cost of Living | CH3: Cost of Living Authority | CI3: 2013-14 Percent of Free Lunch (Current Year) | CJ3: Students Per Square mile | CK3: Ftee Lunch >=50% | CL3: Free Lunch >35.1% and >212 per square mile | CM3: Free Lunch >=35% <50% | CN3: Virtual FTE 9/20/2013 | CO3: 9/10/2013 Weighting | CP3: Virtual Non Proficient Headcount | CQ3: Virtual Non Proficient Weighting | CR3: Virtual AP Course 1st Semester | CS3: 1st Semester Weighting | CT3: Virtual AP Course 2nd Semester | CU3: 2nd Semester Weighting | CV3: Estimated Virtual FTE | CW3: Total Transfers | CX3: Max Balance ($250 * Subtotal Weighted FTE exc Spec Ed) | CY3: Authorized Transfers | CZ3: D0 #
A4: Total | C4: STATE TOTALS | D4: =SUM(D5:D290) -> 446223.2 | E4: 1082.4 | F4: =SUM(F5:F290) -> 447305.6 | G4: =SUM(G5:G290) -> 447961.7 | H4: 914.8 | I4: 448876.5 | J4: =SUM(J5:J290) -> 456698.9 | K4: =SUM(K5:K290) -> 450333.5 | L4: =SUM(L5:L290) -> 453934.8 | M4: =SUM(M5:M290) -> 834.9 | N4: =SUM(N5:N290) -> 454769.7 | O4: =SUM(O5:O290) -> 3554.5 | P4: =SUM(P5:P290) -> 453888 | Q4: =SUM(Q5:Q290) -> 460253.4 | R4: =SUM(R5:R290) -> 461088.3 | S4: =SUM(S5:S290) -> 458324.2 | T4: =SUM(T5:T290) -> 6365.4 | U4: =SUM(U5:U290) -> 54431.4 | V4: =SUM(V5:V290) -> 42552.3 | W4: =SUM(W5:W290) -> 11879.1 | X4: =SUM(X5:X290) -> 91560.8 | Y4: =SUM(Y5:Y290) -> 7631.8 | Z4: =SUM(Z5:Z290) -> 152987.7 | AA4: =SUM(AA5:AA290) -> 10071.8 | AB4: =SUM(AB5:AB290) -> 196050 | AC4: =SUM(AC5:AC290) -> 89399.3 | AD4: =SUM(AD5:AD290) -> 13500.6 | AE4: =SUM(AE5:AE290) -> 27246 | AF4: =SUM(AF5:AF290) -> 1268.3 | AG4: =SUM(AG5:AG290) -> 14194.9 | AH4: =SUM(AH5:AH290) -> 3549.2 | AI4: =SUM(AI5:AI290) -> 133529.7 | AJ4: =SUM(AJ5:AJ290) -> 25910.7 | AK4: =SUM(AK5:AK290) -> 6093.6 | AL4: =SUM(AL5:AL290) -> 956.4 | AM4: =SUM(AM5:AM290) -> 5270.8 | AN4: =SUM(AN5:AN290) -> 6863.1 | AO4: =SUM(AO5:AO290) -> 46 | AP4: =SUM(AP5:AP290) -> 420494809 | AQ4: =SUM(AQ5:AQ290) -> 109560.9 | AR4: =SUM(AR5:AR290) -> 683317.2 | AS4: =SUM(AS5:AS290) -> 787607.3 | AT4: =SUM(AT5:AT290) -> 792878.1 | AU4: =SUM(AU5:AU290) -> 6257531 | AY4: =SUM(AY5:AY290) -> 2634448827 | AZ4: =SUM(AZ5:AZ290) -> 3054943550 | BA4: =SUM(BA5:BA290) -> 3111809326 | BB4: =SUM(BB5:BB290) -> 3054943550 | BC4: =SUM(BC5:BC290) -> 0 | BD4: =SUM(BD5:BD290) -> -198432 | BE4: =SUM(BE5:BE290) -> 0 | BF4: =SUM(BF5:BF290) -> -198432 | BG4: =SUM(BG5:BG290) -> 3054745118 | BH4: =SUM(BH5:BH290) -> 3470655142 | BI4: =SUM(BI5:BI290) -> 85.94 | BJ4: =SUM(BJ5:BJ290) -> 1048272941 | BK4: =SUM(BK5:BK290) -> 1019925000 | BL4: =SUM(BL5:BL290) -> 1010020200 | BM4: =SUM(BM5:BM290)/296 -> 0.2757 | BN4: =SUM(BN5:BN290) -> 555.7 | BR4: =SUM(BR5:BR290) -> 9257.2 | BV4: =SUM(BV5:BV290) -> 32739.4 | BW4: =SUM(BW5:BW290) -> 11879.1 | BX4: =SUM(BX5:BX290) -> 82019.7 | BY4: =SUM(BY5:BY290) -> 1367.44 | BZ4: =SUM(BZ5:BZ290) -> 318534.75 | CA4: =SUM(CA5:CA290) -> 82.9941 | CB4: =SUM(CB5:CB290) -> 25910.7 | CC4: =SUM(CC5:CC290) -> 23387298 | CD4: =SUM(CD5:CD290) -> 3670673 | CE4: =SUM(CE5:CE290) -> 20390230 | CH4: 20229026 | CK4: =SUM(CK5:CK290) -> 11499.3 | CL4: 7050.8 | CM4: 2001.3 | CN4: =SUM(CN5:CN290) -> 6365.4 | CO4: =SUM(CO5:CO290) -> 6684 | CP4: =SUM(CP5:CP290) -> 702 | CQ4: =SUM(CQ5:CQ290) -> 175.8 | CR4: =SUM(CR5:CR290) -> 15 | CS4: =SUM(CS5:CS290) -> 1.1 | CT4: =SUM(CT5:CT290) -> 28 | CU4: =SUM(CU5:CU290) -> 2.2 | CV4: =SUM(CV5:CV290) -> 6863.1 | CW4: =SUM(CW5:CW290) -> 6434492 | CX4: =SUM(CX5:CX290) -> 29631050 | CY4: =SUM(CY5:CY290) -> 6434492
A5: 101 | B5: Neosho | C5: Erie-Galesburg | D5: 499.5 | E5: 0 | F5: =D5+E5 -> 499.5 | G5: 520 | H5: 0 | I5: =G5+H5 -> 520 | J5: =K5+T5 -> 509 | K5: =IF(ISNA(VLOOKUP($CZ5,'Audit Values'!$A$2:$AE$439,2,FALSE)),'Preliminary SO66'!B2,VLOOKUP($CZ5,'Audit Values'!$A$2:$AE$439,31,FALSE)) -> 509 | L5: =MAX(K5, I5,AVERAGE(F5, I5, K5)) -> 520 | M5: =IF(ISNA(VLOOKUP($CZ5,'Audit Values'!$A$2:$AE$439,2,FALSE)),'Preliminary SO66'!Z2,VLOOKUP($CZ5,'Audit Values'!$A$2:$AE$439,26,FALSE)) -> 0 | N5: =L5+M5 -> 520 | O5: =IF(ISNA(VLOOKUP($CZ5,'Audit Values'!$A$2:$AE$439,2,FALSE)),'Preliminary SO66'!C2,IF(VLOOKUP($CZ5,'Audit Values'!$A$2:$AE$439,28,FALSE)="",VLOOKUP($CZ5,'Audit Values'!$A$2:$AE$439,3,FALSE),VLOOKUP($CZ5,'Audit Values'!$A$2:$AE$439,28,FALSE))) -> 6 | P5: =K5+O5 -> 515 | Q5: =J5+O5 -> 515 | R5: =J5+O5+M5 -> 515 | S5: =L5+M5+O5 -> 526 | T5: =CN5 -> 0 | U5: =IF(L5>0,MAX(BN5,BR5,BV5,BW5),0) -> 214.3 | V5: =MAX(BN5,BR5,BV5) -> 214.3 | W5: =BW5 -> 0 | X5: =IF(ISNA(VLOOKUP($CZ5,'Audit Values'!$A$2:$AE$439,2,FALSE)),'Preliminary SO66'!D2,VLOOKUP($CZ5,'Audit Values'!$A$2:$AE$439,4,FALSE)) -> 105.8 | Y5: =ROUND((X5/6)*Weightings!$M$6,1) -> 8.8 | Z5: =IF(ISNA(VLOOKUP($CZ5,'Audit Values'!$A$2:$AE$439,2,FALSE)),'Preliminary SO66'!F2,VLOOKUP($CZ5,'Audit Values'!$A$2:$AE$439,6,FALSE)) -> 12.6 | AA5: =ROUND((Z5/6)*Weightings!$M$7,1) -> 0.8 | AB5: =IF(ISNA(VLOOKUP($CZ5,'Audit Values'!$A$2:$AE$439,2,FALSE)),'Preliminary SO66'!H2,VLOOKUP($CZ5,'Audit Values'!$A$2:$AE$439,8,FALSE)) -> 259 | AC5: =ROUND(AB5*Weightings!$M$8,1) -> 118.1 | AD5: =MAX(CK5,CL5,CM5) -> 25.7 | AE5: 34 | AF5: =AE5*Weightings!$M$9 -> 1.6 | AG5: =IF(ISNA(VLOOKUP($CZ5,'Audit Values'!$A$2:$AE$439,2,FALSE)),'Preliminary SO66'!L2,VLOOKUP($CZ5,'Audit Values'!$A$2:$AE$439,12,FALSE)) -> 16.2 | AH5: =ROUND(AG5*Weightings!$M$10,1) -> 4.1 | AI5: =IF(ISNA(VLOOKUP($CZ5,'Audit Values'!$A$2:$AE$439,2,FALSE)),'Preliminary SO66'!O2,VLOOKUP($CZ5,'Audit Values'!$A$2:$AE$439,15,FALSE)) -> 266 | AJ5: =CB5 -> 72.7 | AK5: =CC5/Weightings!$M$5 -> 0 | AL5: =CD5/Weightings!$M$5 -> 0 | AM5: =CH5/Weightings!$M$5 -> 0 | AN5: =CV5 -> 0 | AO5: =IF(ISNA(VLOOKUP($CZ5,'Audit Values'!$A$2:$AE$439,2,FALSE)),'Preliminary SO66'!X2,VLOOKUP($CZ5,'Audit Values'!$A$2:$AE$439,24,FALSE)) -> 0 | AP5: 646321 | AQ5: =AP5/Weightings!$M$5 -> 168.4 | AR5: =SUM(S5+ U5+ Y5+ AA5+ AC5+ AH5+ AJ5+ AK5+ AL5+ AD5+AF5+AM5+AN5+AO5) -> 972.1 | AS5: =SUM(S5+U5+Y5+AA5+AC5+AH5+AJ5+AK5+AL5+AD5+AF5+AQ5+AN5+AO5) -> 1140.5 | AT5: =SUM(S5+U5+Y5+AA5+AC5+AH5+AJ5+AK5+AL5+AQ5+AD5+AF5+AM5+AN5+AO5) -> 1140.5 | AU5: =CY5 -> 45740 | AV5: =IF(ISNA(VLOOKUP($CZ5,'Audit Values'!$A$2:$AC$360,2,FALSE)),"",IF(AND(Weightings!H5>0,VLOOKUP($CZ5,'Audit Values'!$A$2:$AC$360,29,FALSE)<Weightings!H5),Weightings!H5,VLOOKUP($CZ5,'Audit Values'!$A$2:$AC$360,29,FALSE))) -> 1 | AW5: =IF(ISNA(VLOOKUP($CZ5,'Audit Values'!$A$2:$AD$360,2,FALSE)),"",VLOOKUP($CZ5,'Audit Values'!$A$2:$AD$360,30,FALSE)) -> A | AX5: =IF(Weightings!G5="","",IF(Weightings!I5="Pending","PX","R")) ->  | AY5: =AR5*Weightings!$M$5+AU5 -> 3776660 | AZ5: =AT5*Weightings!$M$5+AU5 -> 4422979 | BA5: =IF(Weightings!G5>0,Weightings!G5,'Preliminary SO66'!AB2) -> 4754198 | BB5: =MIN(AZ5,BA5) -> 4422979 | BD5: =Weightings!E5 -> 0 | BE5: =Weightings!F5 -> 0 | BF5: =SUM(BC5:BE5) -> 0 | BG5: =BB5+BF5 -> 4422979 | BH5: =MAX(ROUND(((AR5-AO5)*4433)+AP5,0),ROUND(((AR5-AO5)*4433)+Weightings!B5,0)) -> 5040486 | BI5: 0.3 | BJ5: =BH5*BI5 -> 1512146 | BK5: 1595830 | BL5: =MIN(BJ5,BK5) -> 1512146 | BM5: =BL5/BH5 -> 0.3 | BN5: =ROUND(IF(S5<=99.9,(S5*1.014331),0),1) -> 0 | BO5: =AND(S5>99.9,S5<=299.9) -> FALSE | BP5: =IF(BO5=TRUE,ROUND((S5-100)*9.655,3),0) -> 0 | BQ5: =IF(BO5=TRUE,ROUND(((7337-BP5)/3642.4)-1,6),0) -> 0 | BR5: =ROUND(S5*BQ5,1) -> 0 | BS5: =AND(S5>299.9,S5<=1621.9) -> TRUE | BT5: =IF(BS5=TRUE,ROUND((S5-300)*1.2375,4),0) -> 279.675 | BU5: =IF(BS5=TRUE,ROUND(((5406-BT5)/3642.4)-1,6),0) -> 0.407403 | BV5: =ROUND(BU5*S5,1) -> 214.3 | BW5: =ROUND(IF(S5>=1622,(S5*0.03504),0),1) -> 0 | BX5: 325 | BY5: =AI5/BX5 -> 0.82 | BZ5: =IF(ROUND((Weightings!$P$5*BY5^Weightings!$P$6*Weightings!$P$8 ),2)<Weightings!$P$7,Weightings!$P$7,ROUND((Weightings!$P$5*BY5^Weightings!$P$6*Weightings!$P$8 ),2)) -> 1048.66 | CA5: =ROUND(BZ5/Weightings!$M$5,4) -> 0.2732 | CB5: =ROUND(IF(AI5>0,CA5*AI5,0),1) -> 72.7 | CC5: 0 | CD5: 0 | CE5: 0 | CF5: 0 | CG5: =AS5*Weightings!$M$5*CF5 -> 0 | CH5: =IF(CE5>CG5,CG5,CE5) -> 0 | CI5: =ROUND(AB5/S5,3) -> 0.492 | CJ5: =ROUND(S5/BX5,1) -> 1.6 | CK5: =IF(CI5>=50%,AB5*10.5%,0) -> 0 | CL5: =IF(AND(CI5>=35.1%,CJ5>212),AB5*0.105,0) -> 0 | CM5: =IF(AND((CI5-0.35)>0,CI5<0.5),AB5*(CI5-0.35)*0.7,0) -> 25.7 | CN5: =IF(ISNA(VLOOKUP($CZ5,'Audit Values'!$A$2:$AE$439,2,FALSE)),'Preliminary SO66'!T2,VLOOKUP($CZ5,'Audit Values'!$A$2:$AE$439,20,FALSE)) -> 0 | CO5: =CN5*1.05 -> 0 | CP5: 0 | CQ5: =CP5*0.25 -> 0 | CR5: =IF(ISNA(VLOOKUP($CZ5,'Audit Values'!$A$2:$AE$439,2,FALSE)),'Preliminary SO66'!V2,VLOOKUP($CZ5,'Audit Values'!$A$2:$AE$439,22,FALSE)) -> 0 | CS5: =CR5*0.08 -> 0 | CT5: =IF(ISNA(VLOOKUP($CZ5,'Audit Values'!$A$2:$AE$439,2,FALSE)),'Preliminary SO66'!W2,VLOOKUP($CZ5,'Audit Values'!$A$2:$AE$439,23,FALSE)) -> 0 | CU5: =CT5*0.08 -> 0 | CV5: =CO5+CQ5+CS5+CU5 -> 0 | CW5: 45740 | CX5: =IF(CW5>0,Weightings!$M$11*AR5,0) -> 243025 | CY5: =MIN(CW5,CX5) -> 45740 | CZ5: D0101
A6: 102 | B6: Gray | C6: Cimarron-Ensign | D6: 664.4 | E6: 0 | F6: =D6+E6 -> 664.4 | G6: 643.4 | H6: 0 | I6: =G6+H6 -> 643.4 | J6: 644 | K6: =IF(ISNA(VLOOKUP($CZ6,'Audit Values'!$A$2:$AE$439,2,FALSE)),'Preliminary SO66'!B3,VLOOKUP($CZ6,'Audit Values'!$A$2:$AE$439,31,FALSE)) -> 633.4 | L6: 647.1 | M6: =IF(ISNA(VLOOKUP($CZ6,'Audit Values'!$A$2:$AE$439,2,FALSE)),'Preliminary SO66'!Z3,VLOOKUP($CZ6,'Audit Values'!$A$2:$AE$439,26,FALSE)) -> 0 | N6: 647.1 | O6: =IF(ISNA(VLOOKUP($CZ6,'Audit Values'!$A$2:$AE$439,2,FALSE)),'Preliminary SO66'!C3,IF(VLOOKUP($CZ6,'Audit Values'!$A$2:$AE$439,28,FALSE)="",VLOOKUP($CZ6,'Audit Values'!$A$2:$AE$439,3,FALSE),VLOOKUP($CZ6,'Audit Values'!$A$2:$AE$439,28,FALSE))) -> 9 | P6: 642.4 | Q6: 653 | R6: 653 | S6: 656.1 | T6: 10.6 | U6: 238.3 | V6: 238.3 | W6: 0 | X6: =IF(ISNA(VLOOKUP($CZ6,'Audit Values'!$A$2:$AE$439,2,FALSE)),'Preliminary SO66'!D3,VLOOKUP($CZ6,'Audit Values'!$A$2:$AE$439,4,FALSE)) -> 115.3 | Y6: =ROUND((X6/6)*Weightings!$M$6,1) -> 9.6 | Z6: =IF(ISNA(VLOOKUP($CZ6,'Audit Values'!$A$2:$AE$439,2,FALSE)),'Preliminary SO66'!F3,VLOOKUP($CZ6,'Audit Values'!$A$2:$AE$439,6,FALSE)) -> 661.7 | AA6: =ROUND((Z6/6)*Weightings!$M$7,1) -> 43.6 | AB6: =IF(ISNA(VLOOKUP($CZ6,'Audit Values'!$A$2:$AE$439,2,FALSE)),'Preliminary SO66'!H3,VLOOKUP($CZ6,'Audit Values'!$A$2:$AE$439,8,FALSE)) -> 242 | AC6: =ROUND(AB6*Weightings!$M$8,1) -> 110.4 | AD6: =MAX(CK6,CL6,CM6) -> 3.2 | AE6: 26 | AF6: =AE6*Weightings!$M$9 -> 1.2 | AG6: =IF(ISNA(VLOOKUP($CZ6,'Audit Values'!$A$2:$AE$439,2,FALSE)),'Preliminary SO66'!L3,VLOOKUP($CZ6,'Audit Values'!$A$2:$AE$439,12,FALSE)) -> 43 | AH6: =ROUND(AG6*Weightings!$M$10,1) -> 10.8 | AI6: =IF(ISNA(VLOOKUP($CZ6,'Audit Values'!$A$2:$AE$439,2,FALSE)),'Preliminary SO66'!O3,VLOOKUP($CZ6,'Audit Values'!$A$2:$AE$439,15,FALSE)) -> 101 | AJ6: 38.5 | AK6: =CC6/Weightings!$M$5 -> 0 | AL6: =CD6/Weightings!$M$5 -> 0 | AM6: =CH6/Weightings!$M$5 -> 0 | AN6: =CV6 -> 11.1 | AO6: =IF(ISNA(VLOOKUP($CZ6,'Audit Values'!$A$2:$AE$439,2,FALSE)),'Preliminary SO66'!X3,VLOOKUP($CZ6,'Audit Values'!$A$2:$AE$439,24,FALSE)) -> 0 | AP6: 482516 | AQ6: =AP6/Weightings!$M$5 -> 125.7 | AR6: 1122.8 | AS6: 1248.5 | AT6: 1248.5 | AU6: =CY6 -> 0 | AV6: =IF(ISNA(VLOOKUP($CZ6,'Audit Values'!$A$2:$AC$360,2,FALSE)),"",IF(AND(Weightings!H6>0,VLOOKUP($CZ6,'Audit Values'!$A$2:$AC$360,29,FALSE)<Weightings!H6),Weightings!H6,VLOOKUP($CZ6,'Audit Values'!$A$2:$AC$360,29,FALSE))) -> 10 | AW6: =IF(ISNA(VLOOKUP($CZ6,'Audit Values'!$A$2:$AD$360,2,FALSE)),"",VLOOKUP($CZ6,'Audit Values'!$A$2:$AD$360,30,FALSE)) -> A | AX6: =IF(Weightings!G6="","",IF(Weightings!I6="Pending","PX","R")) ->  | AY6: =AR6*Weightings!$M$5+AU6 -> 4309306 | AZ6: =AT6*Weightings!$M$5+AU6 -> 4791743 | BA6: =IF(Weightings!G6>0,Weightings!G6,'Preliminary SO66'!AB3) -> 4858140 | BB6: 4791743 | BD6: =Weightings!E6 -> 0 | BE6: =Weightings!F6 -> 0 | BF6: 0 | BG6: 4791743 | BH6: =MAX(ROUND(((AR6-AO6)*4433)+AP6,0),ROUND(((AR6-AO6)*4433)+Weightings!B6,0)) -> 5515755 | BI6: 0.3 | BJ6: 1654727 | BK6: 1375000 | BL6: 1375000 | BM6: =BL6/BH6 -> 0.2493 | BN6: 0 | BO6: FALSE | BP6: 0 | BQ6: 0 | BR6: 0 | BS6: TRUE | BT6: 440.6738 | BU6: 0.363202 | BV6: 238.3 | BW6: 0 | BX6: 538 | BY6: =AI6/BX6 -> 0.19 | BZ6: =IF(ROUND((Weightings!$P$5*BY6^Weightings!$P$6*Weightings!$P$8 ),2)<Weightings!$P$7,Weightings!$P$7,ROUND((Weightings!$P$5*BY6^Weightings!$P$6*Weightings!$P$8 ),2)) -> 1463.83 | CA6: =ROUND(BZ6/Weightings!$M$5,4) -> 0.3814 | CB6: =ROUND(IF(AI6>0,CA6*AI6,0),1) -> 38.5 | CC6: 0 | CD6: 0 | CE6: 0 | CF6: 0 | CG6: =AS6*Weightings!$M$5*CF6 -> 0 | CH6: =IF(CE6>CG6,CG6,CE6) -> 0 | CI6: 0.369 | CJ6: 1.2 | CK6: =IF(CI6>=50%,AB6*10.5%,0) -> 0 | CL6: =IF(AND(CI6>=35.1%,CJ6>212),AB6*0.105,0) -> 0 | CM6: =IF(AND((CI6-0.35)>0,CI6<0.5),AB6*(CI6-0.35)*0.7,0) -> 3.2 | CN6: =IF(ISNA(VLOOKUP($CZ6,'Audit Values'!$A$2:$AE$439,2,FALSE)),'Preliminary SO66'!T3,VLOOKUP($CZ6,'Audit Values'!$A$2:$AE$439,20,FALSE)) -> 10.6 | CO6: =CN6*1.05 -> 11.1 | CP6: 0 | CQ6: =CP6*0.25 -> 0 | CR6: =IF(ISNA(VLOOKUP($CZ6,'Audit Values'!$A$2:$AE$439,2,FALSE)),'Preliminary SO66'!V3,VLOOKUP($CZ6,'Audit Values'!$A$2:$AE$439,22,FALSE)) -> 0 | CS6: =CR6*0.08 -> 0 | CT6: =IF(ISNA(VLOOKUP($CZ6,'Audit Values'!$A$2:$AE$439,2,FALSE)),'Preliminary SO66'!W3,VLOOKUP($CZ6,'Audit Values'!$A$2:$AE$439,23,FALSE)) -> 0 | CU6: 0 | CV6: 11.1 | CW6: 0 | CX6: =IF(CW6>0,Weightings!$M$11*AR6,0) -> 0 | CY6: =MIN(CW6,CX6) -> 0 | CZ6: D0102
A7: 103 | B7: Cheyenne | C7: Cheylin | D7: 138.5 | E7: 0 | F7: 138.5 | G7: 121.5 | H7: 0 | I7: 121.5 | J7: 127 | K7: =IF(ISNA(VLOOKUP($CZ7,'Audit Values'!$A$2:$AE$439,2,FALSE)),'Preliminary SO66'!B4,VLOOKUP($CZ7,'Audit Values'!$A$2:$AE$439,31,FALSE)) -> 127 | L7: 129 | M7: =IF(ISNA(VLOOKUP($CZ7,'Audit Values'!$A$2:$AE$439,2,FALSE)),'Preliminary SO66'!Z4,VLOOKUP($CZ7,'Audit Values'!$A$2:$AE$439,26,FALSE)) -> 0 | N7: 129 | O7: =IF(ISNA(VLOOKUP($CZ7,'Audit Values'!$A$2:$AE$439,2,FALSE)),'Preliminary SO66'!C4,IF(VLOOKUP($CZ7,'Audit Values'!$A$2:$AE$439,28,FALSE)="",VLOOKUP($CZ7,'Audit Values'!$A$2:$AE$439,3,FALSE),VLOOKUP($CZ7,'Audit Values'!$A$2:$AE$439,28,FALSE))) -> 0 | P7: 127 | Q7: 127 | R7: 127 | S7: 129 | T7: 0 | U7: 120.9 | V7: 120.9 | W7: 0 | X7: =IF(ISNA(VLOOKUP($CZ7,'Audit Values'!$A$2:$AE$439,2,FALSE)),'Preliminary SO66'!D4,VLOOKUP($CZ7,'Audit Values'!$A$2:$AE$439,4,FALSE)) -> 0 | Y7: =ROUND((X7/6)*Weightings!$M$6,1) -> 0 | Z7: =IF(ISNA(VLOOKUP($CZ7,'Audit Values'!$A$2:$AE$439,2,FALSE)),'Preliminary SO66'!F4,VLOOKUP($CZ7,'Audit Values'!$A$2:$AE$439,6,FALSE)) -> 125.4 | AA7: =ROUND((Z7/6)*Weightings!$M$7,1) -> 8.3 | AB7: =IF(ISNA(VLOOKUP($CZ7,'Audit Values'!$A$2:$AE$439,2,FALSE)),'Preliminary SO66'!H4,VLOOKUP($CZ7,'Audit Values'!$A$2:$AE$439,8,FALSE)) -> 54 | AC7: =ROUND(AB7*Weightings!$M$8,1) -> 24.6 | AD7: 2.6 | AE7: 2 | AF7: =AE7*Weightings!$M$9 -> 0.1 | AG7: =IF(ISNA(VLOOKUP($CZ7,'Audit Values'!$A$2:$AE$439,2,FALSE)),'Preliminary SO66'!L4,VLOOKUP($CZ7,'Audit Values'!$A$2:$AE$439,12,FALSE)) -> 1.5 | AH7: =ROUND(AG7*Weightings!$M$10,1) -> 0.4 | AI7: =IF(ISNA(VLOOKUP($CZ7,'Audit Values'!$A$2:$AE$439,2,FALSE)),'Preliminary SO66'!O4,VLOOKUP($CZ7,'Audit Values'!$A$2:$AE$439,15,FALSE)) -> 54 | AJ7: 25.1 | AK7: =CC7/Weightings!$M$5 -> 0 | AL7: =CD7/Weightings!$M$5 -> 0 | AM7: =CH7/Weightings!$M$5 -> 0 | AN7: 0 | AO7: =IF(ISNA(VLOOKUP($CZ7,'Audit Values'!$A$2:$AE$439,2,FALSE)),'Preliminary SO66'!X4,VLOOKUP($CZ7,'Audit Values'!$A$2:$AE$439,24,FALSE)) -> 0 | AP7: 146725 | AQ7: =AP7/Weightings!$M$5 -> 38.2 | AR7: 311 | AS7: 349.2 | AT7: 349.2 | AU7: 0 | AV7: =IF(ISNA(VLOOKUP($CZ7,'Audit Values'!$A$2:$AC$360,2,FALSE)),"",IF(AND(Weightings!H7>0,VLOOKUP($CZ7,'Audit Values'!$A$2:$AC$360,29,FALSE)<Weightings!H7),Weightings!H7,VLOOKUP($CZ7,'Audit Values'!$A$2:$AC$360,29,FALSE))) -> 1 | AW7: =IF(ISNA(VLOOKUP($CZ7,'Audit Values'!$A$2:$AD$360,2,FALSE)),"",VLOOKUP($CZ7,'Audit Values'!$A$2:$AD$360,30,FALSE)) -> A | AX7: =IF(Weightings!G7="","",IF(Weightings!I7="Pending","PX","R")) ->  | AY7: =AR7*Weightings!$M$5+AU7 -> 1193618 | AZ7: =AT7*Weightings!$M$5+AU7 -> 1340230 | BA7: =IF(Weightings!G7>0,Weightings!G7,'Preliminary SO66'!AB4) -> 1374388 | BB7: 1340230 | BD7: =Weightings!E7 -> 0 | BE7: =Weightings!F7 -> 0 | BF7: 0 | BG7: 1340230 | BH7: =MAX(ROUND(((AR7-AO7)*4433)+AP7,0),ROUND(((AR7-AO7)*4433)+Weightings!B7,0)) -> 1568918 | BI7: 0.3 | BJ7: 470675 | BK7: 471739 | BL7: 470675 | BM7: 0.3 | BN7: 0 | BO7: TRUE | BP7: 279.995 | BQ7: 0.93746 | BR7: 120.9 | BS7: FALSE | BT7: 0 | BU7: 0 | BV7: 0 | BW7: 0 | BX7: 688 | BY7: 0.08 | BZ7: =IF(ROUND((Weightings!$P$5*BY7^Weightings!$P$6*Weightings!$P$8 ),2)<Weightings!$P$7,Weightings!$P$7,ROUND((Weightings!$P$5*BY7^Weightings!$P$6*Weightings!$P$8 ),2)) -> 1783.12 | CA7: =ROUND(BZ7/Weightings!$M$5,4) -> 0.4646 | CB7: 25.1 | CC7: 0 | CD7: 0 | CE7: 0 | CF7: 0 | CG7: =AS7*Weightings!$M$5*CF7 -> 0 | CH7: 0 | CI7: 0.419 | CJ7: 0.2 | CK7: 0 | CL7: 0 | CM7: 2.6 | CN7: =IF(ISNA(VLOOKUP($CZ7,'Audit Values'!$A$2:$AE$439,2,FALSE)),'Preliminary SO66'!T4,VLOOKUP($CZ7,'Audit Values'!$A$2:$AE$439,20,FALSE)) -> 0 | CO7: 0 | CP7: 0 | CQ7: 0 | CR7: =IF(ISNA(VLOOKUP($CZ7,'Audit Values'!$A$2:$AE$439,2,FALSE)),'Preliminary SO66'!V4,VLOOKUP($CZ7,'Audit Values'!$A$2:$AE$439,22,FALSE)) -> 0 | CS7: 0 | CT7: =IF(ISNA(VLOOKUP($CZ7,'Audit Values'!$A$2:$AE$439,2,FALSE)),'Preliminary SO66'!W4,VLOOKUP($CZ7,'Audit Values'!$A$2:$AE$439,23,FALSE)) -> 0 | CU7: 0 | CV7: 0 | CW7: 0 | CX7: =IF(CW7>0,Weightings!$M$11*AR7,0) -> 0 | CY7: 0 | CZ7: D0103
A8: 105 | B8: Rawlins | C8: Rawlins County | D8: 309 | E8: 0 | F8: 309 | G8: 304.5 | H8: 0 | I8: 304.5 | J8: 310.5 | K8: =IF(ISNA(VLOOKUP($CZ8,'Audit Values'!$A$2:$AE$439,2,FALSE)),'Preliminary SO66'!B5,VLOOKUP($CZ8,'Audit Values'!$A$2:$AE$439,31,FALSE)) -> 310.5 | L8: 310.5 | M8: =IF(ISNA(VLOOKUP($CZ8,'Audit Values'!$A$2:$AE$439,2,FALSE)),'Preliminary SO66'!Z5,VLOOKUP($CZ8,'Audit Values'!$A$2:$AE$439,26,FALSE)) -> 0 | N8: 310.5 | O8: =IF(ISNA(VLOOKUP($CZ8,'Audit Values'!$A$2:$AE$439,2,FALSE)),'Preliminary SO66'!C5,IF(VLOOKUP($CZ8,'Audit Values'!$A$2:$AE$439,28,FALSE)="",VLOOKUP($CZ8,'Audit Values'!$A$2:$AE$439,3,FALSE),VLOOKUP($CZ8,'Audit Values'!$A$2:$AE$439,28,FALSE))) -> 0 | P8: 310.5 | Q8: 310.5 | R8: 310.5 | S8: 310.5 | T8: 0 | U8: 149.2 | V8: 149.2 | W8: 0 | X8: =IF(ISNA(VLOOKUP($CZ8,'Audit Values'!$A$2:$AE$439,2,FALSE)),'Preliminary SO66'!D5,VLOOKUP($CZ8,'Audit Values'!$A$2:$AE$439,4,FALSE)) -> 76.3 | Y8: =ROUND((X8/6)*Weightings!$M$6,1) -> 6.4 | Z8: =IF(ISNA(VLOOKUP($CZ8,'Audit Values'!$A$2:$AE$439,2,FALSE)),'Preliminary SO66'!F5,VLOOKUP($CZ8,'Audit Values'!$A$2:$AE$439,6,FALSE)) -> 66.7 | AA8: =ROUND((Z8/6)*Weightings!$M$7,1) -> 4.4 | AB8: =IF(ISNA(VLOOKUP($CZ8,'Audit Values'!$A$2:$AE$439,2,FALSE)),'Preliminary SO66'!H5,VLOOKUP($CZ8,'Audit Values'!$A$2:$AE$439,8,FALSE)) -> 121 | AC8: =ROUND(AB8*Weightings!$M$8,1) -> 55.2 | AD8: 3.4 | AE8: 18 | AF8: =AE8*Weightings!$M$9 -> 0.8 | AG8: =IF(ISNA(VLOOKUP($CZ8,'Audit Values'!$A$2:$AE$439,2,FALSE)),'Preliminary SO66'!L5,VLOOKUP($CZ8,'Audit Values'!$A$2:$AE$439,12,FALSE)) -> 0 | AH8: =ROUND(AG8*Weightings!$M$10,1) -> 0 | AI8: =IF(ISNA(VLOOKUP($CZ8,'Audit Values'!$A$2:$AE$439,2,FALSE)),'Preliminary SO66'!O5,VLOOKUP($CZ8,'Audit Values'!$A$2:$AE$439,15,FALSE)) -> 92.5 | AJ8: 39.2 | AK8: =CC8/Weightings!$M$5 -> 0 | AL8: =CD8/Weightings!$M$5 -> 0 | AM8: =CH8/Weightings!$M$5 -> 0 | AN8: 0 | AO8: =IF(ISNA(VLOOKUP($CZ8,'Audit Values'!$A$2:$AE$439,2,FALSE)),'Preliminary SO66'!X5,VLOOKUP($CZ8,'Audit Values'!$A$2:$AE$439,24,FALSE)) -> 0 | AP8: 259046 | AQ8: =AP8/Weightings!$M$5 -> 67.5 | AR8: 569.1 | AS8: 636.6 | AT8: 636.6 | AU8: 0 | AV8: =IF(ISNA(VLOOKUP($CZ8,'Audit Values'!$A$2:$AC$360,2,FALSE)),"",IF(AND(Weightings!H8>0,VLOOKUP($CZ8,'Audit Values'!$A$2:$AC$360,29,FALSE)<Weightings!H8),Weightings!H8,VLOOKUP($CZ8,'Audit Values'!$A$2:$AC$360,29,FALSE))) -> 9 | AW8: =IF(ISNA(VLOOKUP($CZ8,'Audit Values'!$A$2:$AD$360,2,FALSE)),"",VLOOKUP($CZ8,'Audit Values'!$A$2:$AD$360,30,FALSE)) -> A | AX8: =IF(Weightings!G8="","",IF(Weightings!I8="Pending","PX","R")) ->  | AY8: =AR8*Weightings!$M$5+AU8 -> 2184206 | AZ8: =AT8*Weightings!$M$5+AU8 -> 2443271 | BA8: =IF(Weightings!G8>0,Weightings!G8,'Preliminary SO66'!AB5) -> 2473207 | BB8: 2443271 | BD8: =Weightings!E8 -> 0 | BE8: =Weightings!F8 -> 0 | BF8: 0 | BG8: 2443271 | BH8: =MAX(ROUND(((AR8-AO8)*4433)+AP8,0),ROUND(((AR8-AO8)*4433)+Weightings!B8,0)) -> 2856423 | BI8: 0.3 | BJ8: 856927 | BK8: 855996 | BL8: 855996 | BM8: 0.2997 | BN8: 0 | BO8: FALSE | BP8: 0 | BQ8: 0 | BR8: 0 | BS8: TRUE | BT8: 12.9938 | BU8: 0.480619 | BV8: 149.2 | BW8: 0 | BX8: 740.1 | BY8: 0.12 | BZ8: =IF(ROUND((Weightings!$P$5*BY8^Weightings!$P$6*Weightings!$P$8 ),2)<Weightings!$P$7,Weightings!$P$7,ROUND((Weightings!$P$5*BY8^Weightings!$P$6*Weightings!$P$8 ),2)) -> 1625.6 | CA8: =ROUND(BZ8/Weightings!$M$5,4) -> 0.4236 | CB8: 39.2 | CC8: 0 | CD8: 0 | CE8: 0 | CF8: 0 | CG8: =AS8*Weightings!$M$5*CF8 -> 0 | CH8: 0 | CI8: 0.39 | CJ8: 0.4 | CK8: 0 | CL8: 0 | CM8: 3.4 | CN8: =IF(ISNA(VLOOKUP($CZ8,'Audit Values'!$A$2:$AE$439,2,FALSE)),'Preliminary SO66'!T5,VLOOKUP($CZ8,'Audit Values'!$A$2:$AE$439,20,FALSE)) -> 0 | CO8: 0 | CP8: 0 | CQ8: 0 | CR8: =IF(ISNA(VLOOKUP($CZ8,'Audit Values'!$A$2:$AE$439,2,FALSE)),'Preliminary SO66'!V5,VLOOKUP($CZ8,'Audit Values'!$A$2:$AE$439,22,FALSE)) -> 0 | CS8: 0 | CT8: =IF(ISNA(VLOOKUP($CZ8,'Audit Values'!$A$2:$AE$439,2,FALSE)),'Preliminary SO66'!W5,VLOOKUP($CZ8,'Audit Values'!$A$2:$AE$439,23,FALSE)) -> 0 | CU8: 0 | CV8: 0 | CW8: 0 | CX8: =IF(CW8>0,Weightings!$M$11*AR8,0) -> 0 | CY8: 0 | CZ8: D0105
A9: 106 | B9: Ness | C9: Western Plains | D9: 146.5 | E9: 0 | F9: 146.5 | G9: 148 | H9: 0 | I9: 148 | J9: 129 | K9: =IF(ISNA(VLOOKUP($CZ9,'Audit Values'!$A$2:$AE$439,2,FALSE)),'Preliminary SO66'!B6,VLOOKUP($CZ9,'Audit Values'!$A$2:$AE$439,31,FALSE)) -> 129 | L9: 148 | M9: =IF(ISNA(VLOOKUP($CZ9,'Audit Values'!$A$2:$AE$439,2,FALSE)),'Preliminary SO66'!Z6,VLOOKUP($CZ9,'Audit Values'!$A$2:$AE$439,26,FALSE)) -> 0 | N9: 148 | O9: =IF(ISNA(VLOOKUP($CZ9,'Audit Values'!$A$2:$AE$439,2,FALSE)),'Preliminary SO66'!C6,IF(VLOOKUP($CZ9,'Audit Values'!$A$2:$AE$439,28,FALSE)="",VLOOKUP($CZ9,'Audit Values'!$A$2:$AE$439,3,FALSE),VLOOKUP($CZ9,'Audit Values'!$A$2:$AE$439,28,FALSE))) -> 0 | P9: 129 | Q9: 129 | R9: 129 | S9: 148 | T9: 0 | U9: 131.3 | V9: 131.3 | W9: 0 | X9: =IF(ISNA(VLOOKUP($CZ9,'Audit Values'!$A$2:$AE$439,2,FALSE)),'Preliminary SO66'!D6,VLOOKUP($CZ9,'Audit Values'!$A$2:$AE$439,4,FALSE)) -> 9 | Y9: =ROUND((X9/6)*Weightings!$M$6,1) -> 0.8 | Z9: =IF(ISNA(VLOOKUP($CZ9,'Audit Values'!$A$2:$AE$439,2,FALSE)),'Preliminary SO66'!F6,VLOOKUP($CZ9,'Audit Values'!$A$2:$AE$439,6,FALSE)) -> 57 | AA9: =ROUND((Z9/6)*Weightings!$M$7,1) -> 3.8 | AB9: =IF(ISNA(VLOOKUP($CZ9,'Audit Values'!$A$2:$AE$439,2,FALSE)),'Preliminary SO66'!H6,VLOOKUP($CZ9,'Audit Values'!$A$2:$AE$439,8,FALSE)) -> 71 | AC9: =ROUND(AB9*Weightings!$M$8,1) -> 32.4 | AD9: 6.5 | AE9: 14 | AF9: =AE9*Weightings!$M$9 -> 0.7 | AG9: =IF(ISNA(VLOOKUP($CZ9,'Audit Values'!$A$2:$AE$439,2,FALSE)),'Preliminary SO66'!L6,VLOOKUP($CZ9,'Audit Values'!$A$2:$AE$439,12,FALSE)) -> 0 | AH9: =ROUND(AG9*Weightings!$M$10,1) -> 0 | AI9: =IF(ISNA(VLOOKUP($CZ9,'Audit Values'!$A$2:$AE$439,2,FALSE)),'Preliminary SO66'!O6,VLOOKUP($CZ9,'Audit Values'!$A$2:$AE$439,15,FALSE)) -> 59 | AJ9: 26 | AK9: =CC9/Weightings!$M$5 -> 0 | AL9: =CD9/Weightings!$M$5 -> 0 | AM9: =CH9/Weightings!$M$5 -> 0 | AN9: 0 | AO9: =IF(ISNA(VLOOKUP($CZ9,'Audit Values'!$A$2:$AE$439,2,FALSE)),'Preliminary SO66'!X6,VLOOKUP($CZ9,'Audit Values'!$A$2:$AE$439,24,FALSE)) -> 0 | AP9: 108436 | AQ9: =AP9/Weightings!$M$5 -> 28.3 | AR9: 349.5 | AS9: 377.8 | AT9: 377.8 | AU9: 0 | AV9: =IF(ISNA(VLOOKUP($CZ9,'Audit Values'!$A$2:$AC$360,2,FALSE)),"",IF(AND(Weightings!H9>0,VLOOKUP($CZ9,'Audit Values'!$A$2:$AC$360,29,FALSE)<Weightings!H9),Weightings!H9,VLOOKUP($CZ9,'Audit Values'!$A$2:$AC$360,29,FALSE))) -> 8 | AW9: =IF(ISNA(VLOOKUP($CZ9,'Audit Values'!$A$2:$AD$360,2,FALSE)),"",VLOOKUP($CZ9,'Audit Values'!$A$2:$AD$360,30,FALSE)) -> A | AX9: =IF(Weightings!G9="","",IF(Weightings!I9="Pending","PX","R")) ->  | AY9: =AR9*Weightings!$M$5+AU9 -> 1341381 | AZ9: =AT9*Weightings!$M$5+AU9 -> 1449996 | BA9: =IF(Weightings!G9>0,Weightings!G9,'Preliminary SO66'!AB6) -> 1484538 | BB9: 1449996 | BD9: =Weightings!E9 -> 0 | BE9: =Weightings!F9 -> 0 | BF9: 0 | BG9: 1449996 | BH9: =MAX(ROUND(((AR9-AO9)*4433)+AP9,0),ROUND(((AR9-AO9)*4433)+Weightings!B9,0)) -> 1700676 | BI9: 0.3 | BJ9: 510203 | BK9: 513395 | BL9: 510203 | BM9: 0.3 | BN9: 0 | BO9: TRUE | BP9: 463.44 | BQ9: 0.887096 | BR9: 131.3 | BS9: FALSE | BT9: 0 | BU9: 0 | BV9: 0 | BW9: 0 | BX9: 601.2 | BY9: 0.1 | BZ9: =IF(ROUND((Weightings!$P$5*BY9^Weightings!$P$6*Weightings!$P$8 ),2)<Weightings!$P$7,Weightings!$P$7,ROUND((Weightings!$P$5*BY9^Weightings!$P$6*Weightings!$P$8 ),2)) -> 1694.63 | CA9: =ROUND(BZ9/Weightings!$M$5,4) -> 0.4415 | CB9: 26 | CC9: 0 | CD9: 0 | CE9: 0 | CF9: 0 | CG9: =AS9*Weightings!$M$5*CF9 -> 0 | CH9: 0 | CI9: 0.48 | CJ9: 0.2 | CK9: 0 | CL9: 0 | CM9: 6.5 | CN9: =IF(ISNA(VLOOKUP($CZ9,'Audit Values'!$A$2:$AE$439,2,FALSE)),'Preliminary SO66'!T6,VLOOKUP($CZ9,'Audit Values'!$A$2:$AE$439,20,FALSE)) -> 0 | CO9: 0 | CP9: 0 | CQ9: 0 | CR9: =IF(ISNA(VLOOKUP($CZ9,'Audit Values'!$A$2:$AE$439,2,FALSE)),'Preliminary SO66'!V6,VLOOKUP($CZ9,'Audit Values'!$A$2:$AE$439,22,FALSE)) -> 0 | CS9: 0 | CT9: =IF(ISNA(VLOOKUP($CZ9,'Audit Values'!$A$2:$AE$439,2,FALSE)),'Preliminary SO66'!W6,VLOOKUP($CZ9,'Audit Values'!$A$2:$AE$439,23,FALSE)) -> 0 | CU9: 0 | CV9: 0 | CW9: 0 | CX9: =IF(CW9>0,Weightings!$M$11*AR9,0) -> 0 | CY9: 0 | CZ9: D0106
A10: 107 | B10: Jewell | C10: Rock Hills | D10: 286 | E10: 0 | F10: 286 | G10: 295.5 | H10: 0 | I10: 295.5 | J10: 277 | K10: =IF(ISNA(VLOOKUP($CZ10,'Audit Values'!$A$2:$AE$439,2,FALSE)),'Preliminary SO66'!B7,VLOOKUP($CZ10,'Audit Values'!$A$2:$AE$439,31,FALSE)) -> 277 | L10: 295.5 | M10: =IF(ISNA(VLOOKUP($CZ10,'Audit Values'!$A$2:$AE$439,2,FALSE)),'Preliminary SO66'!Z7,VLOOKUP($CZ10,'Audit Values'!$A$2:$AE$439,26,FALSE)) -> 0 | N10: 295.5 | O10: =IF(ISNA(VLOOKUP($CZ10,'Audit Values'!$A$2:$AE$439,2,FALSE)),'Preliminary SO66'!C7,IF(VLOOKUP($CZ10,'Audit Values'!$A$2:$AE$439,28,FALSE)="",VLOOKUP($CZ10,'Audit Values'!$A$2:$AE$439,3,FALSE),VLOOKUP($CZ10,'Audit Values'!$A$2:$AE$439,28,FALSE))) -> 2 | P10: 279 | Q10: 279 | R10: 279 | S10: 297.5 | T10: 0 | U10: 146 | V10: 146 | W10: 0 | X10: =IF(ISNA(VLOOKUP($CZ10,'Audit Values'!$A$2:$AE$439,2,FALSE)),'Preliminary SO66'!D7,VLOOKUP($CZ10,'Audit Values'!$A$2:$AE$439,4,FALSE)) -> 107.5 | Y10: =ROUND((X10/6)*Weightings!$M$6,1) -> 9 | Z10: =IF(ISNA(VLOOKUP($CZ10,'Audit Values'!$A$2:$AE$439,2,FALSE)),'Preliminary SO66'!F7,VLOOKUP($CZ10,'Audit Values'!$A$2:$AE$439,6,FALSE)) -> 0 | AA10: =ROUND((Z10/6)*Weightings!$M$7,1) -> 0 | AB10: =IF(ISNA(VLOOKUP($CZ10,'Audit Values'!$A$2:$AE$439,2,FALSE)),'Preliminary SO66'!H7,VLOOKUP($CZ10,'Audit Values'!$A$2:$AE$439,8,FALSE)) -> 123 | AC10: =ROUND(AB10*Weightings!$M$8,1) -> 56.1 | AD10: 5.4 | AE10: 14 | AF10: =AE10*Weightings!$M$9 -> 0.7 | AG10: =IF(ISNA(VLOOKUP($CZ10,'Audit Values'!$A$2:$AE$439,2,FALSE)),'Preliminary SO66'!L7,VLOOKUP($CZ10,'Audit Values'!$A$2:$AE$439,12,FALSE)) -> 0 | AH10: =ROUND(AG10*Weightings!$M$10,1) -> 0 | AI10: =IF(ISNA(VLOOKUP($CZ10,'Audit Values'!$A$2:$AE$439,2,FALSE)),'Preliminary SO66'!O7,VLOOKUP($CZ10,'Audit Values'!$A$2:$AE$439,15,FALSE)) -> 148 | AJ10: 56.4 | AK10: =CC10/Weightings!$M$5 -> 0 | AL10: =CD10/Weightings!$M$5 -> 0 | AM10: =CH10/Weightings!$M$5 -> 0 | AN10: 0 | AO10: =IF(ISNA(VLOOKUP($CZ10,'Audit Values'!$A$2:$AE$439,2,FALSE)),'Preliminary SO66'!X7,VLOOKUP($CZ10,'Audit Values'!$A$2:$AE$439,24,FALSE)) -> 0 | AP10: 382342 | AQ10: =AP10/Weightings!$M$5 -> 99.6 | AR10: 571.1 | AS10: 670.7 | AT10: 670.7 | AU10: 0 | AV10: =IF(ISNA(VLOOKUP($CZ10,'Audit Values'!$A$2:$AC$360,2,FALSE)),"",IF(AND(Weightings!H10>0,VLOOKUP($CZ10,'Audit Values'!$A$2:$AC$360,29,FALSE)<Weightings!H10),Weightings!H10,VLOOKUP($CZ10,'Audit Values'!$A$2:$AC$360,29,FALSE))) -> 18 | AW10: =IF(ISNA(VLOOKUP($CZ10,'Audit Values'!$A$2:$AD$360,2,FALSE)),"",VLOOKUP($CZ10,'Audit Values'!$A$2:$AD$360,30,FALSE)) -> A | AX10: =IF(Weightings!G10="","",IF(Weightings!I10="Pending","PX","R")) ->  | AY10: =AR10*Weightings!$M$5+AU10 -> 2191882 | AZ10: =AT10*Weightings!$M$5+AU10 -> 2574147 | BA10: =IF(Weightings!G10>0,Weightings!G10,'Preliminary SO66'!AB7) -> 2678540 | BB10: 2574147 | BD10: =Weightings!E10 -> 0 | BE10: =Weightings!F10 -> 0 | BF10: 0 | BG10: 2574147 | BH10: =MAX(ROUND(((AR10-AO10)*4433)+AP10,0),ROUND(((AR10-AO10)*4433)+Weightings!B10,0)) -> 2914028 | BI10: 0.3 | BJ10: 874208 | BK10: 700000 | BL10: 700000 | BM10: 0.2402 | BN10: 0 | BO10: TRUE | BP10: 1906.863 | BQ10: 0.490813 | BR10: 146 | BS10: FALSE | BT10: 0 | BU10: 0 | BV10: 0 | BW10: 0 | BX10: 762 | BY10: 0.19 | BZ10: =IF(ROUND((Weightings!$P$5*BY10^Weightings!$P$6*Weightings!$P$8 ),2)<Weightings!$P$7,Weightings!$P$7,ROUND((Weightings!$P$5*BY10^Weightings!$P$6*Weightings!$P$8 ),2)) -> 1463.83 | CA10: =ROUND(BZ10/Weightings!$M$5,4) -> 0.3814 | CB10: 56.4 | CC10: 0 | CD10: 0 | CE10: 0 | CF10: 0 | CG10: =AS10*Weightings!$M$5*CF10 -> 0 | CH10: 0 | CI10: 0.413 | CJ10: 0.4 | CK10: 0 | CL10: 0 | CM10: 5.4 | CN10: =IF(ISNA(VLOOKUP($CZ10,'Audit Values'!$A$2:$AE$439,2,FALSE)),'Preliminary SO66'!T7,VLOOKUP($CZ10,'Audit Values'!$A$2:$AE$439,20,FALSE)) -> 0 | CO10: 0 | CP10: 0 | CQ10: 0 | CR10: =IF(ISNA(VLOOKUP($CZ10,'Audit Values'!$A$2:$AE$439,2,FALSE)),'Preliminary SO66'!V7,VLOOKUP($CZ10,'Audit Values'!$A$2:$AE$439,22,FALSE)) -> 0 | CS10: 0 | CT10: =IF(ISNA(VLOOKUP($CZ10,'Audit Values'!$A$2:$AE$439,2,FALSE)),'Preliminary SO66'!W7,VLOOKUP($CZ10,'Audit Values'!$A$2:$AE$439,23,FALSE)) -> 0 | CU10: 0 | CV10: 0 | CW10: 0 | CX10: =IF(CW10>0,Weightings!$M$11*AR10,0) -> 0 | CY10: 0 | CZ10: D0107
A11: 108 | B11: Washington | C11: Washington Co. Schools | D11: 393 | E11: 0 | F11: 393 | G11: 359.5 | H11: 0 | I11: 359.5 | J11: 346 | K11: =IF(ISNA(VLOOKUP($CZ11,'Audit Values'!$A$2:$AE$439,2,FALSE)),'Preliminary SO66'!B8,VLOOKUP($CZ11,'Audit Values'!$A$2:$AE$439,31,FALSE)) -> 346 | L11: 366.2 | M11: =IF(ISNA(VLOOKUP($CZ11,'Audit Values'!$A$2:$AE$439,2,FALSE)),'Preliminary SO66'!Z8,VLOOKUP($CZ11,'Audit Values'!$A$2:$AE$439,26,FALSE)) -> 0 | N11: 366.2 | O11: =IF(ISNA(VLOOKUP($CZ11,'Audit Values'!$A$2:$AE$439,2,FALSE)),'Preliminary SO66'!C8,IF(VLOOKUP($CZ11,'Audit Values'!$A$2:$AE$439,28,FALSE)="",VLOOKUP($CZ11,'Audit Values'!$A$2:$AE$439,3,FALSE),VLOOKUP($CZ11,'Audit Values'!$A$2:$AE$439,28,FALSE))) -> 0 | P11: 346 | Q11: 346 | R11: 346 | S11: 366.2 | T11: 0 | U11: 169.1 | V11: 169.1 | W11: 0 | X11: =IF(ISNA(VLOOKUP($CZ11,'Audit Values'!$A$2:$AE$439,2,FALSE)),'Preliminary SO66'!D8,VLOOKUP($CZ11,'Audit Values'!$A$2:$AE$439,4,FALSE)) -> 128 | Y11: =ROUND((X11/6)*Weightings!$M$6,1) -> 10.7 | Z11: =IF(ISNA(VLOOKUP($CZ11,'Audit Values'!$A$2:$AE$439,2,FALSE)),'Preliminary SO66'!F8,VLOOKUP($CZ11,'Audit Values'!$A$2:$AE$439,6,FALSE)) -> 0 | AA11: =ROUND((Z11/6)*Weightings!$M$7,1) -> 0 | AB11: =IF(ISNA(VLOOKUP($CZ11,'Audit Values'!$A$2:$AE$439,2,FALSE)),'Preliminary SO66'!H8,VLOOKUP($CZ11,'Audit Values'!$A$2:$AE$439,8,FALSE)) -> 110 | AC11: =ROUND(AB11*Weightings!$M$8,1) -> 50.2 | AD11: 0 | AE11: 34 | AF11: =AE11*Weightings!$M$9 -> 1.6 | AG11: =IF(ISNA(VLOOKUP($CZ11,'Audit Values'!$A$2:$AE$439,2,FALSE)),'Preliminary SO66'!L8,VLOOKUP($CZ11,'Audit Values'!$A$2:$AE$439,12,FALSE)) -> 0 | AH11: =ROUND(AG11*Weightings!$M$10,1) -> 0 | AI11: =IF(ISNA(VLOOKUP($CZ11,'Audit Values'!$A$2:$AE$439,2,FALSE)),'Preliminary SO66'!O8,VLOOKUP($CZ11,'Audit Values'!$A$2:$AE$439,15,FALSE)) -> 147.5 | AJ11: 48 | AK11: =CC11/Weightings!$M$5 -> 0 | AL11: =CD11/Weightings!$M$5 -> 0 | AM11: =CH11/Weightings!$M$5 -> 0 | AN11: 0 | AO11: =IF(ISNA(VLOOKUP($CZ11,'Audit Values'!$A$2:$AE$439,2,FALSE)),'Preliminary SO66'!X8,VLOOKUP($CZ11,'Audit Values'!$A$2:$AE$439,24,FALSE)) -> 0 | AP11: 356687 | AQ11: =AP11/Weightings!$M$5 -> 92.9 | AR11: 645.8 | AS11: 738.7 | AT11: 738.7 | AU11: 0 | AV11: =IF(ISNA(VLOOKUP($CZ11,'Audit Values'!$A$2:$AC$360,2,FALSE)),"",IF(AND(Weightings!H11>0,VLOOKUP($CZ11,'Audit Values'!$A$2:$AC$360,29,FALSE)<Weightings!H11),Weightings!H11,VLOOKUP($CZ11,'Audit Values'!$A$2:$AC$360,29,FALSE))) -> 2 | AW11: =IF(ISNA(VLOOKUP($CZ11,'Audit Values'!$A$2:$AD$360,2,FALSE)),"",VLOOKUP($CZ11,'Audit Values'!$A$2:$AD$360,30,FALSE)) -> A | AX11: =IF(Weightings!G11="","",IF(Weightings!I11="Pending","PX","R")) ->  | AY11: =AR11*Weightings!$M$5+AU11 -> 2478580 | AZ11: =AT11*Weightings!$M$5+AU11 -> 2835131 | BA11: =IF(Weightings!G11>0,Weightings!G11,'Preliminary SO66'!AB8) -> 3023309 | BB11: 2835131 | BD11: =Weightings!E11 -> 0 | BE11: =Weightings!F11 -> 0 | BF11: 0 | BG11: 2835131 | BH11: =MAX(ROUND(((AR11-AO11)*4433)+AP11,0),ROUND(((AR11-AO11)*4433)+Weightings!B11,0)) -> 3411162 | BI11: 0.3 | BJ11: 1023349 | BK11: 1045691 | BL11: 1023349 | BM11: 0.3 | BN11: 0 | BO11: FALSE | BP11: 0 | BQ11: 0 | BR11: 0 | BS11: TRUE | BT11: 81.9225 | BU11: 0.461695 | BV11: 169.1 | BW11: 0 | BX11: 389 | BY11: 0.38 | BZ11: =IF(ROUND((Weightings!$P$5*BY11^Weightings!$P$6*Weightings!$P$8 ),2)<Weightings!$P$7,Weightings!$P$7,ROUND((Weightings!$P$5*BY11^Weightings!$P$6*Weightings!$P$8 ),2)) -> 1249.76 | CA11: =ROUND(BZ11/Weightings!$M$5,4) -> 0.3256 | CB11: 48 | CC11: 0 | CD11: 0 | CE11: 0 | CF11: 0 | CG11: =AS11*Weightings!$M$5*CF11 -> 0 | CH11: 0 | CI11: 0.3 | CJ11: 0.9 | CK11: 0 | CL11: 0 | CM11: 0 | CN11: =IF(ISNA(VLOOKUP($CZ11,'Audit Values'!$A$2:$AE$439,2,FALSE)),'Preliminary SO66'!T8,VLOOKUP($CZ11,'Audit Values'!$A$2:$AE$439,20,FALSE)) -> 0 | CO11: 0 | CP11: 0 | CQ11: 0 | CR11: =IF(ISNA(VLOOKUP($CZ11,'Audit Values'!$A$2:$AE$439,2,FALSE)),'Preliminary SO66'!V8,VLOOKUP($CZ11,'Audit Values'!$A$2:$AE$439,22,FALSE)) -> 0 | CS11: 0 | CT11: =IF(ISNA(VLOOKUP($CZ11,'Audit Values'!$A$2:$AE$439,2,FALSE)),'Preliminary SO66'!W8,VLOOKUP($CZ11,'Audit Values'!$A$2:$AE$439,23,FALSE)) -> 0 | CU11: 0 | CV11: 0 | CW11: 0 | CX11: =IF(CW11>0,Weightings!$M$11*AR11,0) -> 0 | CY11: 0 | CZ11: D0108
A12: 109 | B12: Republic | C12: Republic County | D12: 464.5 | E12: 0 | F12: 464.5 | G12: 463.5 | H12: 0 | I12: 463.5 | J12: 460 | K12: =IF(ISNA(VLOOKUP($CZ12,'Audit Values'!$A$2:$AE$439,2,FALSE)),'Preliminary SO66'!B9,VLOOKUP($CZ12,'Audit Values'!$A$2:$AE$439,31,FALSE)) -> 460 | L12: 463.5 | M12: =IF(ISNA(VLOOKUP($CZ12,'Audit Values'!$A$2:$AE$439,2,FALSE)),'Preliminary SO66'!Z9,VLOOKUP($CZ12,'Audit Values'!$A$2:$AE$439,26,FALSE)) -> 0 | N12: 463.5 | O12: =IF(ISNA(VLOOKUP($CZ12,'Audit Values'!$A$2:$AE$439,2,FALSE)),'Preliminary SO66'!C9,IF(VLOOKUP($CZ12,'Audit Values'!$A$2:$AE$439,28,FALSE)="",VLOOKUP($CZ12,'Audit Values'!$A$2:$AE$439,3,FALSE),VLOOKUP($CZ12,'Audit Values'!$A$2:$AE$439,28,FALSE))) -> 0 | P12: 460 | Q12: 460 | R12: 460 | S12: 463.5 | T12: 0 | U12: 198.7 | V12: 198.7 | W12: 0 | X12: =IF(ISNA(VLOOKUP($CZ12,'Audit Values'!$A$2:$AE$439,2,FALSE)),'Preliminary SO66'!D9,VLOOKUP($CZ12,'Audit Values'!$A$2:$AE$439,4,FALSE)) -> 90.9 | Y12: =ROUND((X12/6)*Weightings!$M$6,1) -> 7.6 | Z12: =IF(ISNA(VLOOKUP($CZ12,'Audit Values'!$A$2:$AE$439,2,FALSE)),'Preliminary SO66'!F9,VLOOKUP($CZ12,'Audit Values'!$A$2:$AE$439,6,FALSE)) -> 0 | AA12: =ROUND((Z12/6)*Weightings!$M$7,1) -> 0 | AB12: =IF(ISNA(VLOOKUP($CZ12,'Audit Values'!$A$2:$AE$439,2,FALSE)),'Preliminary SO66'!H9,VLOOKUP($CZ12,'Audit Values'!$A$2:$AE$439,8,FALSE)) -> 177 | AC12: =ROUND(AB12*Weightings!$M$8,1) -> 80.7 | AD12: 4 | AE12: 34 | AF12: =AE12*Weightings!$M$9 -> 1.6 | AG12: =IF(ISNA(VLOOKUP($CZ12,'Audit Values'!$A$2:$AE$439,2,FALSE)),'Preliminary SO66'!L9,VLOOKUP($CZ12,'Audit Values'!$A$2:$AE$439,12,FALSE)) -> 0 | AH12: =ROUND(AG12*Weightings!$M$10,1) -> 0 | AI12: =IF(ISNA(VLOOKUP($CZ12,'Audit Values'!$A$2:$AE$439,2,FALSE)),'Preliminary SO66'!O9,VLOOKUP($CZ12,'Audit Values'!$A$2:$AE$439,15,FALSE)) -> 189.5 | AJ12: 63.3 | AK12: =CC12/Weightings!$M$5 -> 0 | AL12: =CD12/Weightings!$M$5 -> 0 | AM12: =CH12/Weightings!$M$5 -> 0 | AN12: 0 | AO12: =IF(ISNA(VLOOKUP($CZ12,'Audit Values'!$A$2:$AE$439,2,FALSE)),'Preliminary SO66'!X9,VLOOKUP($CZ12,'Audit Values'!$A$2:$AE$439,24,FALSE)) -> 0 | AP12: 455795 | AQ12: =AP12/Weightings!$M$5 -> 118.8 | AR12: 819.4 | AS12: 938.2 | AT12: 938.2 | AU12: 0 | AV12: =IF(ISNA(VLOOKUP($CZ12,'Audit Values'!$A$2:$AC$360,2,FALSE)),"",IF(AND(Weightings!H12>0,VLOOKUP($CZ12,'Audit Values'!$A$2:$AC$360,29,FALSE)<Weightings!H12),Weightings!H12,VLOOKUP($CZ12,'Audit Values'!$A$2:$AC$360,29,FALSE))) -> 21 | AW12: =IF(ISNA(VLOOKUP($CZ12,'Audit Values'!$A$2:$AD$360,2,FALSE)),"",VLOOKUP($CZ12,'Audit Values'!$A$2:$AD$360,30,FALSE)) -> A | AX12: =IF(Weightings!G12="","",IF(Weightings!I12="Pending","PX","R")) ->  | AY12: =AR12*Weightings!$M$5+AU12 -> 3144857 | AZ12: =AT12*Weightings!$M$5+AU12 -> 3600812 | BA12: =IF(Weightings!G12>0,Weightings!G12,'Preliminary SO66'!AB9) -> 3719406 | BB12: 3600812 | BD12: =Weightings!E12 -> 0 | BE12: =Weightings!F12 -> 0 | BF12: 0 | BG12: 3600812 | BH12: =MAX(ROUND(((AR12-AO12)*4433)+AP12,0),ROUND(((AR12-AO12)*4433)+Weightings!B12,0)) -> 4247660 | BI12: 0.3 | BJ12: 1274298 | BK12: 1260000 | BL12: 1260000 | BM12: 0.2966 | BN12: 0 | BO12: FALSE | BP12: 0 | BQ12: 0 | BR12: 0 | BS12: TRUE | BT12: 202.3313 | BU12: 0.428637 | BV12: 198.7 | BW12: 0 | BX12: 560 | BY12: 0.34 | BZ12: =IF(ROUND((Weightings!$P$5*BY12^Weightings!$P$6*Weightings!$P$8 ),2)<Weightings!$P$7,Weightings!$P$7,ROUND((Weightings!$P$5*BY12^Weightings!$P$6*Weightings!$P$8 ),2)) -> 1281.87 | CA12: =ROUND(BZ12/Weightings!$M$5,4) -> 0.334 | CB12: 63.3 | CC12: 0 | CD12: 0 | CE12: 0 | CF12: 0 | CG12: =AS12*Weightings!$M$5*CF12 -> 0 | CH12: 0 | CI12: 0.382 | CJ12: 0.8 | CK12: 0 | CL12: 0 | CM12: 4 | CN12: =IF(ISNA(VLOOKUP($CZ12,'Audit Values'!$A$2:$AE$439,2,FALSE)),'Preliminary SO66'!T9,VLOOKUP($CZ12,'Audit Values'!$A$2:$AE$439,20,FALSE)) -> 0 | CO12: 0 | CP12: 0 | CQ12: 0 | CR12: =IF(ISNA(VLOOKUP($CZ12,'Audit Values'!$A$2:$AE$439,2,FALSE)),'Preliminary SO66'!V9,VLOOKUP($CZ12,'Audit Values'!$A$2:$AE$439,22,FALSE)) -> 0 | CS12: 0 | CT12: =IF(ISNA(VLOOKUP($CZ12,'Audit Values'!$A$2:$AE$439,2,FALSE)),'Preliminary SO66'!W9,VLOOKUP($CZ12,'Audit Values'!$A$2:$AE$439,23,FALSE)) -> 0 | CU12: 0 | CV12: 0 | CW12: 0 | CX12: =IF(CW12>0,Weightings!$M$11*AR12,0) -> 0 | CY12: 0 | CZ12: D0109
A13: 110 | B13: Phillips | C13: Thunder Ridge Schools | D13: 237 | E13: 0 | F13: 237 | G13: 235 | H13: 0 | I13: 235 | J13: 226 | K13: =IF(ISNA(VLOOKUP($CZ13,'Audit Values'!$A$2:$AE$439,2,FALSE)),'Preliminary SO66'!B10,VLOOKUP($CZ13,'Audit Values'!$A$2:$AE$439,31,FALSE)) -> 226 | L13: 235 | M13: =IF(ISNA(VLOOKUP($CZ13,'Audit Values'!$A$2:$AE$439,2,FALSE)),'Preliminary SO66'!Z10,VLOOKUP($CZ13,'Audit Values'!$A$2:$AE$439,26,FALSE)) -> 0 | N13: 235 | O13: =IF(ISNA(VLOOKUP($CZ13,'Audit Values'!$A$2:$AE$439,2,FALSE)),'Preliminary SO66'!C10,IF(VLOOKUP($CZ13,'Audit Values'!$A$2:$AE$439,28,FALSE)="",VLOOKUP($CZ13,'Audit Values'!$A$2:$AE$439,3,FALSE),VLOOKUP($CZ13,'Audit Values'!$A$2:$AE$439,28,FALSE))) -> 1.5 | P13: 227.5 | Q13: 227.5 | R13: 227.5 | S13: 236.5 | T13: 0 | U13: 154.3 | V13: 154.3 | W13: 0 | X13: =IF(ISNA(VLOOKUP($CZ13,'Audit Values'!$A$2:$AE$439,2,FALSE)),'Preliminary SO66'!D10,VLOOKUP($CZ13,'Audit Values'!$A$2:$AE$439,4,FALSE)) -> 58.8 | Y13: =ROUND((X13/6)*Weightings!$M$6,1) -> 4.9 | Z13: =IF(ISNA(VLOOKUP($CZ13,'Audit Values'!$A$2:$AE$439,2,FALSE)),'Preliminary SO66'!F10,VLOOKUP($CZ13,'Audit Values'!$A$2:$AE$439,6,FALSE)) -> 0 | AA13: =ROUND((Z13/6)*Weightings!$M$7,1) -> 0 | AB13: =IF(ISNA(VLOOKUP($CZ13,'Audit Values'!$A$2:$AE$439,2,FALSE)),'Preliminary SO66'!H10,VLOOKUP($CZ13,'Audit Values'!$A$2:$AE$439,8,FALSE)) -> 94 | AC13: =ROUND(AB13*Weightings!$M$8,1) -> 42.9 | AD13: 3.1 | AE13: 27 | AF13: =AE13*Weightings!$M$9 -> 1.3 | AG13: =IF(ISNA(VLOOKUP($CZ13,'Audit Values'!$A$2:$AE$439,2,FALSE)),'Preliminary SO66'!L10,VLOOKUP($CZ13,'Audit Values'!$A$2:$AE$439,12,FALSE)) -> 0 | AH13: =ROUND(AG13*Weightings!$M$10,1) -> 0 | AI13: =IF(ISNA(VLOOKUP($CZ13,'Audit Values'!$A$2:$AE$439,2,FALSE)),'Preliminary SO66'!O10,VLOOKUP($CZ13,'Audit Values'!$A$2:$AE$439,15,FALSE)) -> 148 | AJ13: 50.9 | AK13: =CC13/Weightings!$M$5 -> 0 | AL13: =CD13/Weightings!$M$5 -> 0 | AM13: =CH13/Weightings!$M$5 -> 0 | AN13: 0 | AO13: =IF(ISNA(VLOOKUP($CZ13,'Audit Values'!$A$2:$AE$439,2,FALSE)),'Preliminary SO66'!X10,VLOOKUP($CZ13,'Audit Values'!$A$2:$AE$439,24,FALSE)) -> 0 | AP13: 297838 | AQ13: =AP13/Weightings!$M$5 -> 77.6 | AR13: 493.9 | AS13: 571.5 | AT13: 571.5 | AU13: 0 | AV13: =IF(ISNA(VLOOKUP($CZ13,'Audit Values'!$A$2:$AC$360,2,FALSE)),"",IF(AND(Weightings!H13>0,VLOOKUP($CZ13,'Audit Values'!$A$2:$AC$360,29,FALSE)<Weightings!H13),Weightings!H13,VLOOKUP($CZ13,'Audit Values'!$A$2:$AC$360,29,FALSE))) -> 11 | AW13: =IF(ISNA(VLOOKUP($CZ13,'Audit Values'!$A$2:$AD$360,2,FALSE)),"",VLOOKUP($CZ13,'Audit Values'!$A$2:$AD$360,30,FALSE)) -> A | AX13: =IF(Weightings!G13="","",IF(Weightings!I13="Pending","PX","R")) ->  | AY13: =AR13*Weightings!$M$5+AU13 -> 1895588 | AZ13: =AT13*Weightings!$M$5+AU13 -> 2193417 | BA13: =IF(Weightings!G13>0,Weightings!G13,'Preliminary SO66'!AB10) -> 2310476 | BB13: 2193417 | BD13: =Weightings!E13 -> 0 | BE13: =Weightings!F13 -> 0 | BF13: 0 | BG13: 2193417 | BH13: =MAX(ROUND(((AR13-AO13)*4433)+AP13,0),ROUND(((AR13-AO13)*4433)+Weightings!B13,0)) -> 2523390 | BI13: 0.3 | BJ13: 757017 | BK13: 790397 | BL13: =MIN(BJ13,BK13) -> 757017 | BM13: 0.3 | BN13: 0 | BO13: TRUE | BP13: 1317.908 | BQ13: 0.652507 | BR13: 154.3 | BS13: FALSE | BT13: 0 | BU13: 0 | BV13: 0 | BW13: 0 | BX13: 491 | BY13: 0.3 | BZ13: =IF(ROUND((Weightings!$P$5*BY13^Weightings!$P$6*Weightings!$P$8 ),2)<Weightings!$P$7,Weightings!$P$7,ROUND((Weightings!$P$5*BY13^Weightings!$P$6*Weightings!$P$8 ),2)) -> 1318.99 | CA13: =ROUND(BZ13/Weightings!$M$5,4) -> 0.3437 | CB13: 50.9 | CC13: 0 | CD13: 0 | CE13: 0 | CF13: 0 | CG13: =AS13*Weightings!$M$5*CF13 -> 0 | CH13: =IF(CE13>CG13,CG13,CE13) -> 0 | CI13: 0.397 | CJ13: 0.5 | CK13: 0 | CL13: 0 | CM13: 3.1 | CN13: =IF(ISNA(VLOOKUP($CZ13,'Audit Values'!$A$2:$AE$439,2,FALSE)),'Preliminary SO66'!T10,VLOOKUP($CZ13,'Audit Values'!$A$2:$AE$439,20,FALSE)) -> 0 | CO13: 0 | CP13: 0 | CQ13: 0 | CR13: =IF(ISNA(VLOOKUP($CZ13,'Audit Values'!$A$2:$AE$439,2,FALSE)),'Preliminary SO66'!V10,VLOOKUP($CZ13,'Audit Values'!$A$2:$AE$439,22,FALSE)) -> 0 | CS13: 0 | CT13: =IF(ISNA(VLOOKUP($CZ13,'Audit Values'!$A$2:$AE$439,2,FALSE)),'Preliminary SO66'!W10,VLOOKUP($CZ13,'Audit Values'!$A$2:$AE$439,23,FALSE)) -> 0 | CU13: 0 | CV13: 0 | CW13: 0 | CX13: =IF(CW13>0,Weightings!$M$11*AR13,0) -> 0 | CY13: 0 | CZ13: D0110
A14: 111 | B14: Doniphan | C14: Doniphan West Schools | D14: 340 | E14: 0 | F14: 340 | G14: 307.5 | H14: 0 | I14: 307.5 | J14: 318 | K14: =IF(ISNA(VLOOKUP($CZ14,'Audit Values'!$A$2:$AE$439,2,FALSE)),'Preliminary SO66'!B11,VLOOKUP($CZ14,'Audit Values'!$A$2:$AE$439,31,FALSE)) -> 318 | L14: 321.8 | M14: =IF(ISNA(VLOOKUP($CZ14,'Audit Values'!$A$2:$AE$439,2,FALSE)),'Preliminary SO66'!Z11,VLOOKUP($CZ14,'Audit Values'!$A$2:$AE$439,26,FALSE)) -> 0 | N14: 321.8 | O14: =IF(ISNA(VLOOKUP($CZ14,'Audit Values'!$A$2:$AE$439,2,FALSE)),'Preliminary SO66'!C11,IF(VLOOKUP($CZ14,'Audit Values'!$A$2:$AE$439,28,FALSE)="",VLOOKUP($CZ14,'Audit Values'!$A$2:$AE$439,3,FALSE),VLOOKUP($CZ14,'Audit Values'!$A$2:$AE$439,28,FALSE))) -> 4.5 | P14: 322.5 | Q14: 322.5 | R14: 322.5 | S14: 326.3 | T14: 0 | U14: 155.1 | V14: =MAX(BN14,BR14,BV14) -> 155.1 | W14: =BW14 -> 0 | X14: =IF(ISNA(VLOOKUP($CZ14,'Audit Values'!$A$2:$AE$439,2,FALSE)),'Preliminary SO66'!D11,VLOOKUP($CZ14,'Audit Values'!$A$2:$AE$439,4,FALSE)) -> 66.7 | Y14: =ROUND((X14/6)*Weightings!$M$6,1) -> 5.6 | Z14: =IF(ISNA(VLOOKUP($CZ14,'Audit Values'!$A$2:$AE$439,2,FALSE)),'Preliminary SO66'!F11,VLOOKUP($CZ14,'Audit Values'!$A$2:$AE$439,6,FALSE)) -> 0 | AA14: =ROUND((Z14/6)*Weightings!$M$7,1) -> 0 | AB14: =IF(ISNA(VLOOKUP($CZ14,'Audit Values'!$A$2:$AE$439,2,FALSE)),'Preliminary SO66'!H11,VLOOKUP($CZ14,'Audit Values'!$A$2:$AE$439,8,FALSE)) -> 125 | AC14: =ROUND(AB14*Weightings!$M$8,1) -> 57 | AD14: 2.9 | AE14: 24 | AF14: =AE14*Weightings!$M$9 -> 1.1 | AG14: =IF(ISNA(VLOOKUP($CZ14,'Audit Values'!$A$2:$AE$439,2,FALSE)),'Preliminary SO66'!L11,VLOOKUP($CZ14,'Audit Values'!$A$2:$AE$439,12,FALSE)) -> 0 | AH14: =ROUND(AG14*Weightings!$M$10,1) -> 0 | AI14: =IF(ISNA(VLOOKUP($CZ14,'Audit Values'!$A$2:$AE$439,2,FALSE)),'Preliminary SO66'!O11,VLOOKUP($CZ14,'Audit Values'!$A$2:$AE$439,15,FALSE)) -> 248 | AJ14: 63.6 | AK14: =CC14/Weightings!$M$5 -> 0 | AL14: =CD14/Weightings!$M$5 -> 0 | AM14: =CH14/Weightings!$M$5 -> 0 | AN14: 0 | AO14: =IF(ISNA(VLOOKUP($CZ14,'Audit Values'!$A$2:$AE$439,2,FALSE)),'Preliminary SO66'!X11,VLOOKUP($CZ14,'Audit Values'!$A$2:$AE$439,24,FALSE)) -> 0 | AP14: 350108 | AQ14: =AP14/Weightings!$M$5 -> 91.2 | AR14: 611.6 | AS14: 702.8 | AT14: 702.8 | AU14: 0 | AV14: =IF(ISNA(VLOOKUP($CZ14,'Audit Values'!$A$2:$AC$360,2,FALSE)),"",IF(AND(Weightings!H14>0,VLOOKUP($CZ14,'Audit Values'!$A$2:$AC$360,29,FALSE)<Weightings!H14),Weightings!H14,VLOOKUP($CZ14,'Audit Values'!$A$2:$AC$360,29,FALSE))) -> 18 | AW14: =IF(ISNA(VLOOKUP($CZ14,'Audit Values'!$A$2:$AD$360,2,FALSE)),"",VLOOKUP($CZ14,'Audit Values'!$A$2:$AD$360,30,FALSE)) -> A | AX14: =IF(Weightings!G14="","",IF(Weightings!I14="Pending","PX","R")) ->  | AY14: =AR14*Weightings!$M$5+AU14 -> 2347321 | AZ14: =AT14*Weightings!$M$5+AU14 -> 2697346 | BA14: =IF(Weightings!G14>0,Weightings!G14,'Preliminary SO66'!AB11) -> 3017819 | BB14: 2697346 | BD14: =Weightings!E14 -> 0 | BE14: =Weightings!F14 -> 0 | BF14: 0 | BG14: 2697346 | BH14: =MAX(ROUND(((AR14-AO14)*4433)+AP14,0),ROUND(((AR14-AO14)*4433)+Weightings!B14,0)) -> 3266444 | BI14: 0.3 | BJ14: 979933 | BK14: 1000000 | BL14: 979933 | BM14: 0.3 | BN14: 0 | BO14: FALSE | BP14: 0 | BQ14: =IF(BO14=TRUE,ROUND(((7337-BP14)/3642.4)-1,6),0) -> 0 | BR14: 0 | BS14: TRUE | BT14: 32.5463 | BU14: =IF(BS14=TRUE,ROUND(((5406-BT14)/3642.4)-1,6),0) -> 0.475251 | BV14: 155.1 | BW14: 0 | BX14: 229 | BY14: 1.08 | BZ14: =IF(ROUND((Weightings!$P$5*BY14^Weightings!$P$6*Weightings!$P$8 ),2)<Weightings!$P$7,Weightings!$P$7,ROUND((Weightings!$P$5*BY14^Weightings!$P$6*Weightings!$P$8 ),2)) -> 984.8 | CA14: =ROUND(BZ14/Weightings!$M$5,4) -> 0.2566 | CB14: 63.6 | CC14: 0 | CD14: 0 | CE14: 0 | CF14: 0 | CG14: =AS14*Weightings!$M$5*CF14 -> 0 | CH14: 0 | CI14: 0.383 | CJ14: 1.4 | CK14: 0 | CL14: 0 | CM14: 2.9 | CN14: =IF(ISNA(VLOOKUP($CZ14,'Audit Values'!$A$2:$AE$439,2,FALSE)),'Preliminary SO66'!T11,VLOOKUP($CZ14,'Audit Values'!$A$2:$AE$439,20,FALSE)) -> 0 | CO14: =CN14*1.05 -> 0 | CP14: 0 | CQ14: =CP14*0.25 -> 0 | CR14: =IF(ISNA(VLOOKUP($CZ14,'Audit Values'!$A$2:$AE$439,2,FALSE)),'Preliminary SO66'!V11,VLOOKUP($CZ14,'Audit Values'!$A$2:$AE$439,22,FALSE)) -> 0 | CS14: =CR14*0.08 -> 0 | CT14: =IF(ISNA(VLOOKUP($CZ14,'Audit Values'!$A$2:$AE$439,2,FALSE)),'Preliminary SO66'!W11,VLOOKUP($CZ14,'Audit Values'!$A$2:$AE$439,23,FALSE)) -> 0 | CU14: 0 | CV14: 0 | CW14: 0 | CX14: =IF(CW14>0,Weightings!$M$11*AR14,0) -> 0 | CY14: 0 | CZ14: D0111
A15: 112 | B15: Ellsworth | C15: Central Plains | D15: 479 | E15: 0 | F15: 479 | G15: 454.5 | H15: 0 | I15: 454.5 | J15: 509.7 | K15: =IF(ISNA(VLOOKUP($CZ15,'Audit Values'!$A$2:$AE$439,2,FALSE)),'Preliminary SO66'!B12,VLOOKUP($CZ15,'Audit Values'!$A$2:$AE$439,31,FALSE)) -> 450.9 | L15: 461.5 | M15: =IF(ISNA(VLOOKUP($CZ15,'Audit Values'!$A$2:$AE$439,2,FALSE)),'Preliminary SO66'!Z12,VLOOKUP($CZ15,'Audit Values'!$A$2:$AE$439,26,FALSE)) -> 0 | N15: 461.5 | O15: =IF(ISNA(VLOOKUP($CZ15,'Audit Values'!$A$2:$AE$439,2,FALSE)),'Preliminary SO66'!C12,IF(VLOOKUP($CZ15,'Audit Values'!$A$2:$AE$439,28,FALSE)="",VLOOKUP($CZ15,'Audit Values'!$A$2:$AE$439,3,FALSE),VLOOKUP($CZ15,'Audit Values'!$A$2:$AE$439,28,FALSE))) -> 6.5 | P15: 457.4 | Q15: 516.2 | R15: 516.2 | S15: 468 | T15: =CN15 -> 58.8 | U15: 199.9 | V15: =MAX(BN15,BR15,BV15) -> 199.9 | W15: =BW15 -> 0 | X15: =IF(ISNA(VLOOKUP($CZ15,'Audit Values'!$A$2:$AE$439,2,FALSE)),'Preliminary SO66'!D12,VLOOKUP($CZ15,'Audit Values'!$A$2:$AE$439,4,FALSE)) -> 178.6 | Y15: =ROUND((X15/6)*Weightings!$M$6,1) -> 14.9 | Z15: =IF(ISNA(VLOOKUP($CZ15,'Audit Values'!$A$2:$AE$439,2,FALSE)),'Preliminary SO66'!F12,VLOOKUP($CZ15,'Audit Values'!$A$2:$AE$439,6,FALSE)) -> 0 | AA15: =ROUND((Z15/6)*Weightings!$M$7,1) -> 0 | AB15: =IF(ISNA(VLOOKUP($CZ15,'Audit Values'!$A$2:$AE$439,2,FALSE)),'Preliminary SO66'!H12,VLOOKUP($CZ15,'Audit Values'!$A$2:$AE$439,8,FALSE)) -> 163 | AC15: =ROUND(AB15*Weightings!$M$8,1) -> 74.3 | AD15: =MAX(CK15,CL15,CM15) -> 0 | AE15: 28 | AF15: =AE15*Weightings!$M$9 -> 1.3 | AG15: =IF(ISNA(VLOOKUP($CZ15,'Audit Values'!$A$2:$AE$439,2,FALSE)),'Preliminary SO66'!L12,VLOOKUP($CZ15,'Audit Values'!$A$2:$AE$439,12,FALSE)) -> 0 | AH15: =ROUND(AG15*Weightings!$M$10,1) -> 0 | AI15: =IF(ISNA(VLOOKUP($CZ15,'Audit Values'!$A$2:$AE$439,2,FALSE)),'Preliminary SO66'!O12,VLOOKUP($CZ15,'Audit Values'!$A$2:$AE$439,15,FALSE)) -> 226 | AJ15: 73.2 | AK15: =CC15/Weightings!$M$5 -> 0 | AL15: =CD15/Weightings!$M$5 -> 0 | AM15: =CH15/Weightings!$M$5 -> 0 | AN15: =CV15 -> 61.7 | AO15: =IF(ISNA(VLOOKUP($CZ15,'Audit Values'!$A$2:$AE$439,2,FALSE)),'Preliminary SO66'!X12,VLOOKUP($CZ15,'Audit Values'!$A$2:$AE$439,24,FALSE)) -> 0 | AP15: 437692 | AQ15: =AP15/Weightings!$M$5 -> 114 | AR15: 893.3 | AS15: 1007.3 | AT15: 1007.3 | AU15: 0 | AV15: =IF(ISNA(VLOOKUP($CZ15,'Audit Values'!$A$2:$AC$360,2,FALSE)),"",IF(AND(Weightings!H15>0,VLOOKUP($CZ15,'Audit Values'!$A$2:$AC$360,29,FALSE)<Weightings!H15),Weightings!H15,VLOOKUP($CZ15,'Audit Values'!$A$2:$AC$360,29,FALSE))) -> 26 | AW15: =IF(ISNA(VLOOKUP($CZ15,'Audit Values'!$A$2:$AD$360,2,FALSE)),"",VLOOKUP($CZ15,'Audit Values'!$A$2:$AD$360,30,FALSE)) -> A | AX15: =IF(Weightings!G15="","",IF(Weightings!I15="Pending","PX","R")) ->  | AY15: =Exceptions!E50+AU15 -> 4998037 | AZ15: =Exceptions!E52+AU15 -> 5435569 | BA15: =IF(Weightings!G15>0,Weightings!G15,'Preliminary SO66'!AB12) -> 5629868 | BB15: 5435569 | BD15: =Weightings!E15 -> -6016 | BE15: =Weightings!F15 -> 0 | BF15: -6016 | BG15: 5429553 | BH15: =MAX(ROUND(((AR15-AO15)*4433)+AP15,0),ROUND(((AR15-AO15)*4433)+Weightings!B15,0)) -> 4645975 | BI15: 0.3 | BJ15: 1393793 | BK15: 1410948 | BL15: 1393793 | BM15: 0.3 | BN15: 0 | BO15: FALSE | BP15: 0 | BQ15: =IF(BO15=TRUE,ROUND(((7337-BP15)/3642.4)-1,6),0) -> 0 | BR15: 0 | BS15: TRUE | BT15: 207.9 | BU15: =IF(BS15=TRUE,ROUND(((5406-BT15)/3642.4)-1,6),0) -> 0.427108 | BV15: 199.9 | BW15: 0 | BX15: 582.8 | BY15: 0.39 | BZ15: =IF(ROUND((Weightings!$P$5*BY15^Weightings!$P$6*Weightings!$P$8 ),2)<Weightings!$P$7,Weightings!$P$7,ROUND((Weightings!$P$5*BY15^Weightings!$P$6*Weightings!$P$8 ),2)) -> 1242.37 | CA15: =ROUND(BZ15/Weightings!$M$5,4) -> 0.3237 | CB15: 73.2 | CC15: 0 | CD15: 0 | CE15: 0 | CF15: 0 | CG15: =AS15*Weightings!$M$5*CF15 -> 0 | CH15: 0 | CI15: 0.348 | CJ15: 0.8 | CK15: 0 | CL15: 0 | CM15: 0 | CN15: =IF(ISNA(VLOOKUP($CZ15,'Audit Values'!$A$2:$AE$439,2,FALSE)),'Preliminary SO66'!T12,VLOOKUP($CZ15,'Audit Values'!$A$2:$AE$439,20,FALSE)) -> 58.8 | CO15: =CN15*1.05 -> 61.7 | CP15: 0 | CQ15: =CP15*0.25 -> 0 | CR15: =IF(ISNA(VLOOKUP($CZ15,'Audit Values'!$A$2:$AE$439,2,FALSE)),'Preliminary SO66'!V12,VLOOKUP($CZ15,'Audit Values'!$A$2:$AE$439,22,FALSE)) -> 0 | CS15: =CR15*0.08 -> 0 | CT15: =IF(ISNA(VLOOKUP($CZ15,'Audit Values'!$A$2:$AE$439,2,FALSE)),'Preliminary SO66'!W12,VLOOKUP($CZ15,'Audit Values'!$A$2:$AE$439,23,FALSE)) -> 0 | CU15: 0 | CV15: 61.7 | CW15: 0 | CX15: =IF(CW15>0,Weightings!$M$11*AR15,0) -> 0 | CY15: 0 | CZ15: D0112
A16: 113 | B16: Nemaha | C16: Prairie Hills | D16: 1178.9 | E16: 0 | F16: 1178.9 | G16: 1105.8 | H16: 0 | I16: 1105.8 | J16: 1071.7 | K16: =IF(ISNA(VLOOKUP($CZ16,'Audit Values'!$A$2:$AE$439,2,FALSE)),'Preliminary SO66'!B13,VLOOKUP($CZ16,'Audit Values'!$A$2:$AE$439,31,FALSE)) -> 1071.7 | L16: 1118.8 | M16: =IF(ISNA(VLOOKUP($CZ16,'Audit Values'!$A$2:$AE$439,2,FALSE)),'Preliminary SO66'!Z13,VLOOKUP($CZ16,'Audit Values'!$A$2:$AE$439,26,FALSE)) -> 0 | N16: 1118.8 | O16: =IF(ISNA(VLOOKUP($CZ16,'Audit Values'!$A$2:$AE$439,2,FALSE)),'Preliminary SO66'!C13,IF(VLOOKUP($CZ16,'Audit Values'!$A$2:$AE$439,28,FALSE)="",VLOOKUP($CZ16,'Audit Values'!$A$2:$AE$439,3,FALSE),VLOOKUP($CZ16,'Audit Values'!$A$2:$AE$439,28,FALSE))) -> 6.5 | P16: 1078.2 | Q16: 1078.2 | R16: 1078.2 | S16: 1125.3 | T16: 0 | U16: 229.3 | V16: =MAX(BN16,BR16,BV16) -> 229.3 | W16: =BW16 -> 0 | X16: =IF(ISNA(VLOOKUP($CZ16,'Audit Values'!$A$2:$AE$439,2,FALSE)),'Preliminary SO66'!D13,VLOOKUP($CZ16,'Audit Values'!$A$2:$AE$439,4,FALSE)) -> 288.7 | Y16: =ROUND((X16/6)*Weightings!$M$6,1) -> 24.1 | Z16: =IF(ISNA(VLOOKUP($CZ16,'Audit Values'!$A$2:$AE$439,2,FALSE)),'Preliminary SO66'!F13,VLOOKUP($CZ16,'Audit Values'!$A$2:$AE$439,6,FALSE)) -> 3.6 | AA16: =ROUND((Z16/6)*Weightings!$M$7,1) -> 0.2 | AB16: =IF(ISNA(VLOOKUP($CZ16,'Audit Values'!$A$2:$AE$439,2,FALSE)),'Preliminary SO66'!H13,VLOOKUP($CZ16,'Audit Values'!$A$2:$AE$439,8,FALSE)) -> 267 | AC16: =ROUND(AB16*Weightings!$M$8,1) -> 121.8 | AD16: =MAX(CK16,CL16,CM16) -> 0 | AE16: 54 | AF16: =AE16*Weightings!$M$9 -> 2.5 | AG16: =IF(ISNA(VLOOKUP($CZ16,'Audit Values'!$A$2:$AE$439,2,FALSE)),'Preliminary SO66'!L13,VLOOKUP($CZ16,'Audit Values'!$A$2:$AE$439,12,FALSE)) -> 0 | AH16: =ROUND(AG16*Weightings!$M$10,1) -> 0 | AI16: =IF(ISNA(VLOOKUP($CZ16,'Audit Values'!$A$2:$AE$439,2,FALSE)),'Preliminary SO66'!O13,VLOOKUP($CZ16,'Audit Values'!$A$2:$AE$439,15,FALSE)) -> 429.4 | AJ16: 118.3 | AK16: =CC16/Weightings!$M$5 -> 0 | AL16: =CD16/Weightings!$M$5 -> 0 | AM16: =CH16/Weightings!$M$5 -> 0 | AN16: =CV16 -> 0 | AO16: =IF(ISNA(VLOOKUP($CZ16,'Audit Values'!$A$2:$AE$439,2,FALSE)),'Preliminary SO66'!X13,VLOOKUP($CZ16,'Audit Values'!$A$2:$AE$439,24,FALSE)) -> 0 | AP16: 878220 | AQ16: =AP16/Weightings!$M$5 -> 228.8 | AR16: 1621.5 | AS16: 1850.3 | AT16: 1850.3 | AU16: 0 | AV16: =IF(ISNA(VLOOKUP($CZ16,'Audit Values'!$A$2:$AC$360,2,FALSE)),"",IF(AND(Weightings!H16>0,VLOOKUP($CZ16,'Audit Values'!$A$2:$AC$360,29,FALSE)<Weightings!H16),Weightings!H16,VLOOKUP($CZ16,'Audit Values'!$A$2:$AC$360,29,FALSE))) -> 6 | AW16: =IF(ISNA(VLOOKUP($CZ16,'Audit Values'!$A$2:$AD$360,2,FALSE)),"",VLOOKUP($CZ16,'Audit Values'!$A$2:$AD$360,30,FALSE)) -> A | AX16: =IF(Weightings!G16="","",IF(Weightings!I16="Pending","PX","R")) ->  | AY16: =Exceptions!H50+AU16 -> 7638511 | AZ16: =Exceptions!H52+AU16 -> 8516645 | BA16: =IF(Weightings!G16>0,Weightings!G16,'Preliminary SO66'!AB13) -> 8556177 | BB16: 8516645 | BD16: =Weightings!E16 -> 0 | BE16: =Weightings!F16 -> 0 | BF16: 0 | BG16: 8516645 | BH16: =MAX(ROUND(((AR16-AO16)*4433)+AP16,0),ROUND(((AR16-AO16)*4433)+Weightings!B16,0)) -> 8288903 | BI16: 0.3 | BJ16: 2486671 | BK16: 2509944 | BL16: 2486671 | BM16: 0.3 | BN16: 0 | BO16: FALSE | BP16: 0 | BQ16: =IF(BO16=TRUE,ROUND(((7337-BP16)/3642.4)-1,6),0) -> 0 | BR16: 0 | BS16: TRUE | BT16: 1021.3088 | BU16: =IF(BS16=TRUE,ROUND(((5406-BT16)/3642.4)-1,6),0) -> 0.203792 | BV16: 229.3 | BW16: 0 | BX16: 543 | BY16: 0.79 | BZ16: =IF(ROUND((Weightings!$P$5*BY16^Weightings!$P$6*Weightings!$P$8 ),2)<Weightings!$P$7,Weightings!$P$7,ROUND((Weightings!$P$5*BY16^Weightings!$P$6*Weightings!$P$8 ),2)) -> 1057.61 | CA16: =ROUND(BZ16/Weightings!$M$5,4) -> 0.2756 | CB16: 118.3 | CC16: 0 | CD16: 0 | CE16: 0 | CF16: 0 | CG16: =AS16*Weightings!$M$5*CF16 -> 0 | CH16: 0 | CI16: 0.237 | CJ16: 2.1 | CK16: 0 | CL16: 0 | CM16: 0 | CN16: =IF(ISNA(VLOOKUP($CZ16,'Audit Values'!$A$2:$AE$439,2,FALSE)),'Preliminary SO66'!T13,VLOOKUP($CZ16,'Audit Values'!$A$2:$AE$439,20,FALSE)) -> 0 | CO16: =CN16*1.05 -> 0 | CP16: 0 | CQ16: =CP16*0.25 -> 0 | CR16: =IF(ISNA(VLOOKUP($CZ16,'Audit Values'!$A$2:$AE$439,2,FALSE)),'Preliminary SO66'!V13,VLOOKUP($CZ16,'Audit Values'!$A$2:$AE$439,22,FALSE)) -> 0 | CS16: =CR16*0.08 -> 0 | CT16: =IF(ISNA(VLOOKUP($CZ16,'Audit Values'!$A$2:$AE$439,2,FALSE)),'Preliminary SO66'!W13,VLOOKUP($CZ16,'Audit Values'!$A$2:$AE$439,23,FALSE)) -> 0 | CU16: 0 | CV16: 0 | CW16: 0 | CX16: =IF(CW16>0,Weightings!$M$11*AR16,0) -> 0 | CY16: 0 | CZ16: D0113
A17: 114 | B17: Doniphan | C17: Riverside | D17: 647.5 | E17: 0 | F17: 647.5 | G17: 646.9 | H17: 0 | I17: 646.9 | J17: 640.5 | K17: =IF(ISNA(VLOOKUP($CZ17,'Audit Values'!$A$2:$AE$439,2,FALSE)),'Preliminary SO66'!B14,VLOOKUP($CZ17,'Audit Values'!$A$2:$AE$439,31,FALSE)) -> 640.5 | L17: 646.9 | M17: =IF(ISNA(VLOOKUP($CZ17,'Audit Values'!$A$2:$AE$439,2,FALSE)),'Preliminary SO66'!Z14,VLOOKUP($CZ17,'Audit Values'!$A$2:$AE$439,26,FALSE)) -> 0 | N17: 646.9 | O17: =IF(ISNA(VLOOKUP($CZ17,'Audit Values'!$A$2:$AE$439,2,FALSE)),'Preliminary SO66'!C14,IF(VLOOKUP($CZ17,'Audit Values'!$A$2:$AE$439,28,FALSE)="",VLOOKUP($CZ17,'Audit Values'!$A$2:$AE$439,3,FALSE),VLOOKUP($CZ17,'Audit Values'!$A$2:$AE$439,28,FALSE))) -> 7 | P17: 647.5 | Q17: 647.5 | R17: 647.5 | S17: 653.9 | T17: 0 | U17: 238 | V17: =MAX(BN17,BR17,BV17) -> 238 | W17: =BW17 -> 0 | X17: =IF(ISNA(VLOOKUP($CZ17,'Audit Values'!$A$2:$AE$439,2,FALSE)),'Preliminary SO66'!D14,VLOOKUP($CZ17,'Audit Values'!$A$2:$AE$439,4,FALSE)) -> 150.7 | Y17: =ROUND((X17/6)*Weightings!$M$6,1) -> 12.6 | Z17: =IF(ISNA(VLOOKUP($CZ17,'Audit Values'!$A$2:$AE$439,2,FALSE)),'Preliminary SO66'!F14,VLOOKUP($CZ17,'Audit Values'!$A$2:$AE$439,6,FALSE)) -> 0 | AA17: =ROUND((Z17/6)*Weightings!$M$7,1) -> 0 | AB17: =IF(ISNA(VLOOKUP($CZ17,'Audit Values'!$A$2:$AE$439,2,FALSE)),'Preliminary SO66'!H14,VLOOKUP($CZ17,'Audit Values'!$A$2:$AE$439,8,FALSE)) -> 307 | AC17: =ROUND(AB17*Weightings!$M$8,1) -> 140 | AD17: =MAX(CK17,CL17,CM17) -> 25.6 | AE17: 73 | AF17: =AE17*Weightings!$M$9 -> 3.4 | AG17: =IF(ISNA(VLOOKUP($CZ17,'Audit Values'!$A$2:$AE$439,2,FALSE)),'Preliminary SO66'!L14,VLOOKUP($CZ17,'Audit Values'!$A$2:$AE$439,12,FALSE)) -> 0 | AH17: =ROUND(AG17*Weightings!$M$10,1) -> 0 | AI17: =IF(ISNA(VLOOKUP($CZ17,'Audit Values'!$A$2:$AE$439,2,FALSE)),'Preliminary SO66'!O14,VLOOKUP($CZ17,'Audit Values'!$A$2:$AE$439,15,FALSE)) -> 267 | AJ17: 54.1 | AK17: =CC17/Weightings!$M$5 -> 0 | AL17: =CD17/Weightings!$M$5 -> 0 | AM17: =CH17/Weightings!$M$5 -> 0 | AN17: =CV17 -> 0 | AO17: =IF(ISNA(VLOOKUP($CZ17,'Audit Values'!$A$2:$AE$439,2,FALSE)),'Preliminary SO66'!X14,VLOOKUP($CZ17,'Audit Values'!$A$2:$AE$439,24,FALSE)) -> 0 | AP17: 664664 | AQ17: =AP17/Weightings!$M$5 -> 173.2 | AR17: 1127.6 | AS17: 1300.8 | AT17: 1300.8 | AU17: 0 | AV17: =IF(ISNA(VLOOKUP($CZ17,'Audit Values'!$A$2:$AC$360,2,FALSE)),"",IF(AND(Weightings!H17>0,VLOOKUP($CZ17,'Audit Values'!$A$2:$AC$360,29,FALSE)<Weightings!H17),Weightings!H17,VLOOKUP($CZ17,'Audit Values'!$A$2:$AC$360,29,FALSE))) -> 18 | AW17: =IF(ISNA(VLOOKUP($CZ17,'Audit Values'!$A$2:$AD$360,2,FALSE)),"",VLOOKUP($CZ17,'Audit Values'!$A$2:$AD$360,30,FALSE)) -> A | AX17: =IF(Weightings!G17="","",IF(Weightings!I17="Pending","PX","R")) ->  | AY17: =Exceptions!B63+AU17 -> 4955854 | AZ17: =Exceptions!B65+AU17 -> 5620596 | BA17: =IF(Weightings!G17>0,Weightings!G17,'Preliminary SO66'!AB14) -> 5735736 | BB17: 5620596 | BD17: =Weightings!E17 -> 0 | BE17: =Weightings!F17 -> 0 | BF17: 0 | BG17: 5620596 | BH17: =MAX(ROUND(((AR17-AO17)*4433)+AP17,0),ROUND(((AR17-AO17)*4433)+Weightings!B17,0)) -> 5663315 | BI17: 0.3 | BJ17: 1698995 | BK17: 1232750 | BL17: 1232750 | BM17: 0.2177 | BN17: 0 | BO17: FALSE | BP17: 0 | BQ17: =IF(BO17=TRUE,ROUND(((7337-BP17)/3642.4)-1,6),0) -> 0 | BR17: 0 | BS17: TRUE | BT17: 437.9513 | BU17: =IF(BS17=TRUE,ROUND(((5406-BT17)/3642.4)-1,6),0) -> 0.363949 | BV17: 238 | BW17: 0 | BX17: 88 | BY17: 3.03 | BZ17: =IF(ROUND((Weightings!$P$5*BY17^Weightings!$P$6*Weightings!$P$8 ),2)<Weightings!$P$7,Weightings!$P$7,ROUND((Weightings!$P$5*BY17^Weightings!$P$6*Weightings!$P$8 ),2)) -> 778.32 | CA17: =ROUND(BZ17/Weightings!$M$5,4) -> 0.2028 | CB17: 54.1 | CC17: 0 | CD17: 0 | CE17: 0 | CF17: 0 | CG17: =AS17*Weightings!$M$5*CF17 -> 0 | CH17: 0 | CI17: 0.469 | CJ17: 7.4 | CK17: 0 | CL17: 0 | CM17: 25.6 | CN17: =IF(ISNA(VLOOKUP($CZ17,'Audit Values'!$A$2:$AE$439,2,FALSE)),'Preliminary SO66'!T14,VLOOKUP($CZ17,'Audit Values'!$A$2:$AE$439,20,FALSE)) -> 0 | CO17: =CN17*1.05 -> 0 | CP17: 0 | CQ17: =CP17*0.25 -> 0 | CR17: =IF(ISNA(VLOOKUP($CZ17,'Audit Values'!$A$2:$AE$439,2,FALSE)),'Preliminary SO66'!V14,VLOOKUP($CZ17,'Audit Values'!$A$2:$AE$439,22,FALSE)) -> 0 | CS17: =CR17*0.08 -> 0 | CT17: =IF(ISNA(VLOOKUP($CZ17,'Audit Values'!$A$2:$AE$439,2,FALSE)),'Preliminary SO66'!W14,VLOOKUP($CZ17,'Audit Values'!$A$2:$AE$439,23,FALSE)) -> 0 | CU17: 0 | CV17: 0 | CW17: 0 | CX17: =IF(CW17>0,Weightings!$M$11*AR17,0) -> 0 | CY17: 0 | CZ17: D0114
A18: 115 | B18: Nemaha | C18: Nemaha Central | D18: 564.8 | E18: 0 | F18: 564.8 | G18: 578.3 | H18: 0 | I18: 578.3 | J18: 548 | K18: =IF(ISNA(VLOOKUP($CZ18,'Audit Values'!$A$2:$AE$439,2,FALSE)),'Preliminary SO66'!B15,VLOOKUP($CZ18,'Audit Values'!$A$2:$AE$439,31,FALSE)) -> 548 | L18: 578.3 | M18: =IF(ISNA(VLOOKUP($CZ18,'Audit Values'!$A$2:$AE$439,2,FALSE)),'Preliminary SO66'!Z15,VLOOKUP($CZ18,'Audit Values'!$A$2:$AE$439,26,FALSE)) -> 0 | N18: 578.3 | O18: =IF(ISNA(VLOOKUP($CZ18,'Audit Values'!$A$2:$AE$439,2,FALSE)),'Preliminary SO66'!C15,IF(VLOOKUP($CZ18,'Audit Values'!$A$2:$AE$439,28,FALSE)="",VLOOKUP($CZ18,'Audit Values'!$A$2:$AE$439,3,FALSE),VLOOKUP($CZ18,'Audit Values'!$A$2:$AE$439,28,FALSE))) -> 9 | P18: 557 | Q18: 557 | R18: 557 | S18: 587.3 | T18: =CN18 -> 0 | U18: 227 | V18: =MAX(BN18,BR18,BV18) -> 227 | W18: =BW18 -> 0 | X18: =IF(ISNA(VLOOKUP($CZ18,'Audit Values'!$A$2:$AE$439,2,FALSE)),'Preliminary SO66'!D15,VLOOKUP($CZ18,'Audit Values'!$A$2:$AE$439,4,FALSE)) -> 320.5 | Y18: =ROUND((X18/6)*Weightings!$M$6,1) -> 26.7 | Z18: =IF(ISNA(VLOOKUP($CZ18,'Audit Values'!$A$2:$AE$439,2,FALSE)),'Preliminary SO66'!F15,VLOOKUP($CZ18,'Audit Values'!$A$2:$AE$439,6,FALSE)) -> 0 | AA18: =ROUND((Z18/6)*Weightings!$M$7,1) -> 0 | AB18: =IF(ISNA(VLOOKUP($CZ18,'Audit Values'!$A$2:$AE$439,2,FALSE)),'Preliminary SO66'!H15,VLOOKUP($CZ18,'Audit Values'!$A$2:$AE$439,8,FALSE)) -> 92 | AC18: =ROUND(AB18*Weightings!$M$8,1) -> 42 | AD18: =MAX(CK18,CL18,CM18) -> 0 | AE18: 30 | AF18: =AE18*Weightings!$M$9 -> 1.4 | AG18: =IF(ISNA(VLOOKUP($CZ18,'Audit Values'!$A$2:$AE$439,2,FALSE)),'Preliminary SO66'!L15,VLOOKUP($CZ18,'Audit Values'!$A$2:$AE$439,12,FALSE)) -> 0 | AH18: =ROUND(AG18*Weightings!$M$10,1) -> 0 | AI18: =IF(ISNA(VLOOKUP($CZ18,'Audit Values'!$A$2:$AE$439,2,FALSE)),'Preliminary SO66'!O15,VLOOKUP($CZ18,'Audit Values'!$A$2:$AE$439,15,FALSE)) -> 216.5 | AJ18: 56.8 | AK18: =CC18/Weightings!$M$5 -> 0 | AL18: =CD18/Weightings!$M$5 -> 0 | AM18: =CH18/Weightings!$M$5 -> 0 | AN18: =CV18 -> 0 | AO18: =IF(ISNA(VLOOKUP($CZ18,'Audit Values'!$A$2:$AE$439,2,FALSE)),'Preliminary SO66'!X15,VLOOKUP($CZ18,'Audit Values'!$A$2:$AE$439,24,FALSE)) -> 1 | AP18: 460554 | AQ18: =AP18/Weightings!$M$5 -> 120 | AR18: 942.2 | AS18: 1062.2 | AT18: 1062.2 | AU18: 0 | AV18: =IF(ISNA(VLOOKUP($CZ18,'Audit Values'!$A$2:$AC$360,2,FALSE)),"",IF(AND(Weightings!H18>0,VLOOKUP($CZ18,'Audit Values'!$A$2:$AC$360,29,FALSE)<Weightings!H18),Weightings!H18,VLOOKUP($CZ18,'Audit Values'!$A$2:$AC$360,29,FALSE))) -> 21 | AW18: =IF(ISNA(VLOOKUP($CZ18,'Audit Values'!$A$2:$AD$360,2,FALSE)),"",VLOOKUP($CZ18,'Audit Values'!$A$2:$AD$360,30,FALSE)) -> A | AX18: =IF(Weightings!G18="","",IF(Weightings!I18="Pending","PX","R")) ->  | AY18: =Exceptions!H63+AU18 -> 4507363 | AZ18: =Exceptions!H65+AU18 -> 4967923 | BA18: =IF(Weightings!G18>0,Weightings!G18,'Preliminary SO66'!AB15) -> 5127968 | BB18: 4967923 | BD18: =Weightings!E18 -> 0 | BE18: =Weightings!F18 -> 0 | BF18: 0 | BG18: 4967923 | BH18: =MAX(ROUND(((AR18-AO18)*4433)+AP18,0),ROUND(((AR18-AO18)*4433)+Weightings!B18,0)) -> 4749573 | BI18: 0.3 | BJ18: 1424872 | BK18: 1112250 | BL18: 1112250 | BM18: =BL18/BH18 -> 0.2342 | BN18: 0 | BO18: FALSE | BP18: 0 | BQ18: =IF(BO18=TRUE,ROUND(((7337-BP18)/3642.4)-1,6),0) -> 0 | BR18: 0 | BS18: TRUE | BT18: 355.5338 | BU18: =IF(BS18=TRUE,ROUND(((5406-BT18)/3642.4)-1,6),0) -> 0.386576 | BV18: 227 | BW18: 0 | BX18: 222 | BY18: 0.98 | BZ18: =IF(ROUND((Weightings!$P$5*BY18^Weightings!$P$6*Weightings!$P$8 ),2)<Weightings!$P$7,Weightings!$P$7,ROUND((Weightings!$P$5*BY18^Weightings!$P$6*Weightings!$P$8 ),2)) -> 1006.87 | CA18: =ROUND(BZ18/Weightings!$M$5,4) -> 0.2623 | CB18: 56.8 | CC18: 0 | CD18: 0 | CE18: 0 | CF18: 0 | CG18: =AS18*Weightings!$M$5*CF18 -> 0 | CH18: 0 | CI18: 0.157 | CJ18: 2.6 | CK18: 0 | CL18: 0 | CM18: 0 | CN18: =IF(ISNA(VLOOKUP($CZ18,'Audit Values'!$A$2:$AE$439,2,FALSE)),'Preliminary SO66'!T15,VLOOKUP($CZ18,'Audit Values'!$A$2:$AE$439,20,FALSE)) -> 0 | CO18: =CN18*1.05 -> 0 | CP18: 0 | CQ18: =CP18*0.25 -> 0 | CR18: =IF(ISNA(VLOOKUP($CZ18,'Audit Values'!$A$2:$AE$439,2,FALSE)),'Preliminary SO66'!V15,VLOOKUP($CZ18,'Audit Values'!$A$2:$AE$439,22,FALSE)) -> 0 | CS18: =CR18*0.08 -> 0 | CT18: =IF(ISNA(VLOOKUP($CZ18,'Audit Values'!$A$2:$AE$439,2,FALSE)),'Preliminary SO66'!W15,VLOOKUP($CZ18,'Audit Values'!$A$2:$AE$439,23,FALSE)) -> 0 | CU18: =CT18*0.08 -> 0 | CV18: =CO18+CQ18+CS18+CU18 -> 0 | CW18: 0 | CX18: =IF(CW18>0,Weightings!$M$11*AR18,0) -> 0 | CY18: 0 | CZ18: D0115
A19: 200 | B19: Greeley | C19: Greeley County Schools | D19: 195 | E19: 0 | F19: =D19+E19 -> 195 | G19: 193.5 | H19: 0 | I19: 193.5 | J19: 206.6 | K19: =IF(ISNA(VLOOKUP($CZ19,'Audit Values'!$A$2:$AE$439,2,FALSE)),'Preliminary SO66'!B16,VLOOKUP($CZ19,'Audit Values'!$A$2:$AE$439,31,FALSE)) -> 205.3 | L19: 205.3 | M19: =IF(ISNA(VLOOKUP($CZ19,'Audit Values'!$A$2:$AE$439,2,FALSE)),'Preliminary SO66'!Z16,VLOOKUP($CZ19,'Audit Values'!$A$2:$AE$439,26,FALSE)) -> 0 | N19: 205.3 | O19: =IF(ISNA(VLOOKUP($CZ19,'Audit Values'!$A$2:$AE$439,2,FALSE)),'Preliminary SO66'!C16,IF(VLOOKUP($CZ19,'Audit Values'!$A$2:$AE$439,28,FALSE)="",VLOOKUP($CZ19,'Audit Values'!$A$2:$AE$439,3,FALSE),VLOOKUP($CZ19,'Audit Values'!$A$2:$AE$439,28,FALSE))) -> 4 | P19: 209.3 | Q19: 210.6 | R19: 210.6 | S19: 209.3 | T19: 1.3 | U19: 151.7 | V19: 151.7 | W19: 0 | X19: =IF(ISNA(VLOOKUP($CZ19,'Audit Values'!$A$2:$AE$439,2,FALSE)),'Preliminary SO66'!D16,VLOOKUP($CZ19,'Audit Values'!$A$2:$AE$439,4,FALSE)) -> 39.9 | Y19: =ROUND((X19/6)*Weightings!$M$6,1) -> 3.3 | Z19: =IF(ISNA(VLOOKUP($CZ19,'Audit Values'!$A$2:$AE$439,2,FALSE)),'Preliminary SO66'!F16,VLOOKUP($CZ19,'Audit Values'!$A$2:$AE$439,6,FALSE)) -> 190.2 | AA19: =ROUND((Z19/6)*Weightings!$M$7,1) -> 12.5 | AB19: =IF(ISNA(VLOOKUP($CZ19,'Audit Values'!$A$2:$AE$439,2,FALSE)),'Preliminary SO66'!H16,VLOOKUP($CZ19,'Audit Values'!$A$2:$AE$439,8,FALSE)) -> 105 | AC19: =ROUND(AB19*Weightings!$M$8,1) -> 47.9 | AD19: 11 | AE19: 21 | AF19: =AE19*Weightings!$M$9 -> 1 | AG19: =IF(ISNA(VLOOKUP($CZ19,'Audit Values'!$A$2:$AE$439,2,FALSE)),'Preliminary SO66'!L16,VLOOKUP($CZ19,'Audit Values'!$A$2:$AE$439,12,FALSE)) -> 0 | AH19: =ROUND(AG19*Weightings!$M$10,1) -> 0 | AI19: =IF(ISNA(VLOOKUP($CZ19,'Audit Values'!$A$2:$AE$439,2,FALSE)),'Preliminary SO66'!O16,VLOOKUP($CZ19,'Audit Values'!$A$2:$AE$439,15,FALSE)) -> 55 | AJ19: 26.3 | AK19: =CC19/Weightings!$M$5 -> 0 | AL19: =CD19/Weightings!$M$5 -> 0 | AM19: =CH19/Weightings!$M$5 -> 0 | AN19: 1.4 | AO19: =IF(ISNA(VLOOKUP($CZ19,'Audit Values'!$A$2:$AE$439,2,FALSE)),'Preliminary SO66'!X16,VLOOKUP($CZ19,'Audit Values'!$A$2:$AE$439,24,FALSE)) -> 0 | AP19: 126515 | AQ19: =AP19/Weightings!$M$5 -> 33 | AR19: 464.4 | AS19: 497.4 | AT19: 497.4 | AU19: 0 | AV19: =IF(ISNA(VLOOKUP($CZ19,'Audit Values'!$A$2:$AC$360,2,FALSE)),"",IF(AND(Weightings!H19>0,VLOOKUP($CZ19,'Audit Values'!$A$2:$AC$360,29,FALSE)<Weightings!H19),Weightings!H19,VLOOKUP($CZ19,'Audit Values'!$A$2:$AC$360,29,FALSE))) -> 10 | AW19: =IF(ISNA(VLOOKUP($CZ19,'Audit Values'!$A$2:$AD$360,2,FALSE)),"",VLOOKUP($CZ19,'Audit Values'!$A$2:$AD$360,30,FALSE)) -> A | AX19: =IF(Weightings!G19="","",IF(Weightings!I19="Pending","PX","R")) -> R | AY19: =AR19*Weightings!$M$5+AU19 -> 1782367 | AZ19: =AT19*Weightings!$M$5+AU19 -> 1909021 | BA19: =IF(Weightings!G19>0,Weightings!G19,'Preliminary SO66'!AB16) -> 1915175 | BB19: 1909021 | BD19: =Weightings!E19 -> 0 | BE19: =Weightings!F19 -> 0 | BF19: 0 | BG19: 1909021 | BH19: =MAX(ROUND(((AR19-AO19)*4433)+AP19,0),ROUND(((AR19-AO19)*4433)+Weightings!B19,0)) -> 2224536 | BI19: 0.3 | BJ19: =BH19*BI19 -> 667361 | BK19: 662972 | BL19: 662972 | BM19: 0.298 | BN19: 0 | BO19: TRUE | BP19: 1055.292 | BQ19: 0.724607 | BR19: 151.7 | BS19: FALSE | BT19: 0 | BU19: 0 | BV19: 0 | BW19: 0 | BX19: 780 | BY19: 0.07 | BZ19: =IF(ROUND((Weightings!$P$5*BY19^Weightings!$P$6*Weightings!$P$8 ),2)<Weightings!$P$7,Weightings!$P$7,ROUND((Weightings!$P$5*BY19^Weightings!$P$6*Weightings!$P$8 ),2)) -> 1838.27 | CA19: =ROUND(BZ19/Weightings!$M$5,4) -> 0.479 | CB19: 26.3 | CC19: 0 | CD19: 0 | CE19: 0 | CF19: 0 | CG19: =AS19*Weightings!$M$5*CF19 -> 0 | CH19: 0 | CI19: 0.502 | CJ19: 0.3 | CK19: 11 | CL19: 0 | CM19: 0 | CN19: =IF(ISNA(VLOOKUP($CZ19,'Audit Values'!$A$2:$AE$439,2,FALSE)),'Preliminary SO66'!T16,VLOOKUP($CZ19,'Audit Values'!$A$2:$AE$439,20,FALSE)) -> 1.3 | CO19: 1.4 | CP19: 0 | CQ19: 0 | CR19: =IF(ISNA(VLOOKUP($CZ19,'Audit Values'!$A$2:$AE$439,2,FALSE)),'Preliminary SO66'!V16,VLOOKUP($CZ19,'Audit Values'!$A$2:$AE$439,22,FALSE)) -> 0 | CS19: 0 | CT19: =IF(ISNA(VLOOKUP($CZ19,'Audit Values'!$A$2:$AE$439,2,FALSE)),'Preliminary SO66'!W16,VLOOKUP($CZ19,'Audit Values'!$A$2:$AE$439,23,FALSE)) -> 0 | CU19: 0 | CV19: 1.4 | CW19: 0 | CX19: =IF(CW19>0,Weightings!$M$11*AR19,0) -> 0 | CY19: 0 | CZ19: D0200
A20: 202 | B20: Wyandotte | C20: Turner-Kansas City | D20: 3754.9 | E20: 0 | F20: =D20+E20 -> 3754.9 | G20: 3801 | H20: 0 | I20: 3801 | J20: 3854 | K20: =IF(ISNA(VLOOKUP($CZ20,'Audit Values'!$A$2:$AE$439,2,FALSE)),'Preliminary SO66'!B17,VLOOKUP($CZ20,'Audit Values'!$A$2:$AE$439,31,FALSE)) -> 3854 | L20: 3854 | M20: =IF(ISNA(VLOOKUP($CZ20,'Audit Values'!$A$2:$AE$439,2,FALSE)),'Preliminary SO66'!Z17,VLOOKUP($CZ20,'Audit Values'!$A$2:$AE$439,26,FALSE)) -> 0 | N20: 3854 | O20: =IF(ISNA(VLOOKUP($CZ20,'Audit Values'!$A$2:$AE$439,2,FALSE)),'Preliminary SO66'!C17,IF(VLOOKUP($CZ20,'Audit Values'!$A$2:$AE$439,28,FALSE)="",VLOOKUP($CZ20,'Audit Values'!$A$2:$AE$439,3,FALSE),VLOOKUP($CZ20,'Audit Values'!$A$2:$AE$439,28,FALSE))) -> 76.5 | P20: 3930.5 | Q20: 3930.5 | R20: 3930.5 | S20: 3930.5 | T20: 0 | U20: 137.7 | V20: 0 | W20: 137.7 | X20: =IF(ISNA(VLOOKUP($CZ20,'Audit Values'!$A$2:$AE$439,2,FALSE)),'Preliminary SO66'!D17,VLOOKUP($CZ20,'Audit Values'!$A$2:$AE$439,4,FALSE)) -> 879.4 | Y20: =ROUND((X20/6)*Weightings!$M$6,1) -> 73.3 | Z20: =IF(ISNA(VLOOKUP($CZ20,'Audit Values'!$A$2:$AE$439,2,FALSE)),'Preliminary SO66'!F17,VLOOKUP($CZ20,'Audit Values'!$A$2:$AE$439,6,FALSE)) -> 1812.9 | AA20: =ROUND((Z20/6)*Weightings!$M$7,1) -> 119.3 | AB20: =IF(ISNA(VLOOKUP($CZ20,'Audit Values'!$A$2:$AE$439,2,FALSE)),'Preliminary SO66'!H17,VLOOKUP($CZ20,'Audit Values'!$A$2:$AE$439,8,FALSE)) -> 2691 | AC20: =ROUND(AB20*Weightings!$M$8,1) -> 1227.1 | AD20: 282.6 | AE20: 301 | AF20: =AE20*Weightings!$M$9 -> 14 | AG20: =IF(ISNA(VLOOKUP($CZ20,'Audit Values'!$A$2:$AE$439,2,FALSE)),'Preliminary SO66'!L17,VLOOKUP($CZ20,'Audit Values'!$A$2:$AE$439,12,FALSE)) -> 0 | AH20: =ROUND(AG20*Weightings!$M$10,1) -> 0 | AI20: =IF(ISNA(VLOOKUP($CZ20,'Audit Values'!$A$2:$AE$439,2,FALSE)),'Preliminary SO66'!O17,VLOOKUP($CZ20,'Audit Values'!$A$2:$AE$439,15,FALSE)) -> 1148 | AJ20: 175 | AK20: =CC20/Weightings!$M$5 -> 0 | AL20: =CD20/Weightings!$M$5 -> 0 | AM20: =CH20/Weightings!$M$5 -> 0 | AN20: 0 | AO20: =IF(ISNA(VLOOKUP($CZ20,'Audit Values'!$A$2:$AE$439,2,FALSE)),'Preliminary SO66'!X17,VLOOKUP($CZ20,'Audit Values'!$A$2:$AE$439,24,FALSE)) -> 0 | AP20: 2910720 | AQ20: =AP20/Weightings!$M$5 -> 758.4 | AR20: 5959.5 | AS20: 6717.9 | AT20: 6717.9 | AU20: 0 | AV20: =IF(ISNA(VLOOKUP($CZ20,'Audit Values'!$A$2:$AC$360,2,FALSE)),"",IF(AND(Weightings!H20>0,VLOOKUP($CZ20,'Audit Values'!$A$2:$AC$360,29,FALSE)<Weightings!H20),Weightings!H20,VLOOKUP($CZ20,'Audit Values'!$A$2:$AC$360,29,FALSE))) -> 8 | AW20: =IF(ISNA(VLOOKUP($CZ20,'Audit Values'!$A$2:$AD$360,2,FALSE)),"",VLOOKUP($CZ20,'Audit Values'!$A$2:$AD$360,30,FALSE)) -> A | AX20: =IF(Weightings!G20="","",IF(Weightings!I20="Pending","PX","R")) ->  | AY20: =AR20*Weightings!$M$5+AU20 -> 22872561 | AZ20: =AT20*Weightings!$M$5+AU20 -> 25783300 | BA20: =IF(Weightings!G20>0,Weightings!G20,'Preliminary SO66'!AB17) -> 26329831 | BB20: 25783300 | BD20: =Weightings!E20 -> 0 | BE20: =Weightings!F20 -> 0 | BF20: 0 | BG20: 25783300 | BH20: =MAX(ROUND(((AR20-AO20)*4433)+AP20,0),ROUND(((AR20-AO20)*4433)+Weightings!B20,0)) -> 29652466 | BI20: 0.3 | BJ20: 8895740 | BK20: 8964011 | BL20: 8895740 | BM20: 0.3 | BN20: 0 | BO20: FALSE | BP20: 0 | BQ20: 0 | BR20: 0 | BS20: FALSE | BT20: 0 | BU20: 0 | BV20: 0 | BW20: 137.7 | BX20: 17 | BY20: 67.53 | BZ20: =IF(ROUND((Weightings!$P$5*BY20^Weightings!$P$6*Weightings!$P$8 ),2)<Weightings!$P$7,Weightings!$P$7,ROUND((Weightings!$P$5*BY20^Weightings!$P$6*Weightings!$P$8 ),2)) -> 585 | CA20: =ROUND(BZ20/Weightings!$M$5,4) -> 0.1524 | CB20: 175 | CC20: 0 | CD20: 0 | CE20: 0 | CF20: 0 | CG20: =AS20*Weightings!$M$5*CF20 -> 0 | CH20: 0 | CI20: 0.685 | CJ20: 231.2 | CK20: 282.6 | CL20: 282.6 | CM20: 0 | CN20: =IF(ISNA(VLOOKUP($CZ20,'Audit Values'!$A$2:$AE$439,2,FALSE)),'Preliminary SO66'!T17,VLOOKUP($CZ20,'Audit Values'!$A$2:$AE$439,20,FALSE)) -> 0 | CO20: 0 | CP20: 0 | CQ20: 0 | CR20: =IF(ISNA(VLOOKUP($CZ20,'Audit Values'!$A$2:$AE$439,2,FALSE)),'Preliminary SO66'!V17,VLOOKUP($CZ20,'Audit Values'!$A$2:$AE$439,22,FALSE)) -> 0 | CS20: 0 | CT20: =IF(ISNA(VLOOKUP($CZ20,'Audit Values'!$A$2:$AE$439,2,FALSE)),'Preliminary SO66'!W17,VLOOKUP($CZ20,'Audit Values'!$A$2:$AE$439,23,FALSE)) -> 0 | CU20: 0 | CV20: 0 | CW20: 0 | CX20: =IF(CW20>0,Weightings!$M$11*AR20,0) -> 0 | CY20: 0 | CZ20: D0202
A21: 203 | B21: Wyandotte | C21: Piper-Kansas City | D21: 1718 | E21: 0 | F21: 1718 | G21: 1770.7 | H21: 0 | I21: 1770.7 | J21: 1799.6 | K21: =IF(ISNA(VLOOKUP($CZ21,'Audit Values'!$A$2:$AE$439,2,FALSE)),'Preliminary SO66'!B18,VLOOKUP($CZ21,'Audit Values'!$A$2:$AE$439,31,FALSE)) -> 1799.6 | L21: 1799.6 | M21: =IF(ISNA(VLOOKUP($CZ21,'Audit Values'!$A$2:$AE$439,2,FALSE)),'Preliminary SO66'!Z18,VLOOKUP($CZ21,'Audit Values'!$A$2:$AE$439,26,FALSE)) -> 0 | N21: 1799.6 | O21: =IF(ISNA(VLOOKUP($CZ21,'Audit Values'!$A$2:$AE$439,2,FALSE)),'Preliminary SO66'!C18,IF(VLOOKUP($CZ21,'Audit Values'!$A$2:$AE$439,28,FALSE)="",VLOOKUP($CZ21,'Audit Values'!$A$2:$AE$439,3,FALSE),VLOOKUP($CZ21,'Audit Values'!$A$2:$AE$439,28,FALSE))) -> 4 | P21: 1803.6 | Q21: 1803.6 | R21: 1803.6 | S21: 1803.6 | T21: 0 | U21: 63.2 | V21: 0 | W21: 63.2 | X21: =IF(ISNA(VLOOKUP($CZ21,'Audit Values'!$A$2:$AE$439,2,FALSE)),'Preliminary SO66'!D18,VLOOKUP($CZ21,'Audit Values'!$A$2:$AE$439,4,FALSE)) -> 315.7 | Y21: =ROUND((X21/6)*Weightings!$M$6,1) -> 26.3 | Z21: =IF(ISNA(VLOOKUP($CZ21,'Audit Values'!$A$2:$AE$439,2,FALSE)),'Preliminary SO66'!F18,VLOOKUP($CZ21,'Audit Values'!$A$2:$AE$439,6,FALSE)) -> 52.6 | AA21: =ROUND((Z21/6)*Weightings!$M$7,1) -> 3.5 | AB21: =IF(ISNA(VLOOKUP($CZ21,'Audit Values'!$A$2:$AE$439,2,FALSE)),'Preliminary SO66'!H18,VLOOKUP($CZ21,'Audit Values'!$A$2:$AE$439,8,FALSE)) -> 255 | AC21: =ROUND(AB21*Weightings!$M$8,1) -> 116.3 | AD21: 0 | AE21: 96 | AF21: =AE21*Weightings!$M$9 -> 4.5 | AG21: =IF(ISNA(VLOOKUP($CZ21,'Audit Values'!$A$2:$AE$439,2,FALSE)),'Preliminary SO66'!L18,VLOOKUP($CZ21,'Audit Values'!$A$2:$AE$439,12,FALSE)) -> 120.4 | AH21: =ROUND(AG21*Weightings!$M$10,1) -> 30.1 | AI21: =IF(ISNA(VLOOKUP($CZ21,'Audit Values'!$A$2:$AE$439,2,FALSE)),'Preliminary SO66'!O18,VLOOKUP($CZ21,'Audit Values'!$A$2:$AE$439,15,FALSE)) -> 1002 | AJ21: 152.7 | AK21: =CC21/Weightings!$M$5 -> 0 | AL21: =CD21/Weightings!$M$5 -> 0 | AM21: =CH21/Weightings!$M$5 -> 0 | AN21: 0 | AO21: =IF(ISNA(VLOOKUP($CZ21,'Audit Values'!$A$2:$AE$439,2,FALSE)),'Preliminary SO66'!X18,VLOOKUP($CZ21,'Audit Values'!$A$2:$AE$439,24,FALSE)) -> 0 | AP21: 1470100 | AQ21: =AP21/Weightings!$M$5 -> 383 | AR21: 2200.2 | AS21: 2583.2 | AT21: 2583.2 | AU21: 29725 | AV21: =IF(ISNA(VLOOKUP($CZ21,'Audit Values'!$A$2:$AC$360,2,FALSE)),"",IF(AND(Weightings!H21>0,VLOOKUP($CZ21,'Audit Values'!$A$2:$AC$360,29,FALSE)<Weightings!H21),Weightings!H21,VLOOKUP($CZ21,'Audit Values'!$A$2:$AC$360,29,FALSE))) -> 7 | AW21: =IF(ISNA(VLOOKUP($CZ21,'Audit Values'!$A$2:$AD$360,2,FALSE)),"",VLOOKUP($CZ21,'Audit Values'!$A$2:$AD$360,30,FALSE)) -> A | AX21: =IF(Weightings!G21="","",IF(Weightings!I21="Pending","PX","R")) ->  | AY21: =AR21*Weightings!$M$5+AU21 -> 8474093 | AZ21: =AT21*Weightings!$M$5+AU21 -> 9944047 | BA21: =IF(Weightings!G21>0,Weightings!G21,'Preliminary SO66'!AB18) -> 10382174 | BB21: 9944047 | BD21: =Weightings!E21 -> 0 | BE21: =Weightings!F21 -> 0 | BF21: 0 | BG21: 9944047 | BH21: =MAX(ROUND(((AR21-AO21)*4433)+AP21,0),ROUND(((AR21-AO21)*4433)+Weightings!B21,0)) -> 11223587 | BI21: 0.3 | BJ21: 3367076 | BK21: 3522536 | BL21: 3367076 | BM21: 0.3 | BN21: 0 | BO21: FALSE | BP21: 0 | BQ21: 0 | BR21: 0 | BS21: FALSE | BT21: 0 | BU21: 0 | BV21: 0 | BW21: 63.2 | BX21: 31.4 | BY21: 31.91 | BZ21: =IF(ROUND((Weightings!$P$5*BY21^Weightings!$P$6*Weightings!$P$8 ),2)<Weightings!$P$7,Weightings!$P$7,ROUND((Weightings!$P$5*BY21^Weightings!$P$6*Weightings!$P$8 ),2)) -> 585 | CA21: =ROUND(BZ21/Weightings!$M$5,4) -> 0.1524 | CB21: 152.7 | CC21: 0 | CD21: 0 | CE21: 0 | CF21: 0.0285 | CG21: =AS21*Weightings!$M$5*CF21 -> 282558 | CH21: 0 | CI21: 0.141 | CJ21: 57.4 | CK21: 0 | CL21: 0 | CM21: 0 | CN21: =IF(ISNA(VLOOKUP($CZ21,'Audit Values'!$A$2:$AE$439,2,FALSE)),'Preliminary SO66'!T18,VLOOKUP($CZ21,'Audit Values'!$A$2:$AE$439,20,FALSE)) -> 0 | CO21: 0 | CP21: 0 | CQ21: 0 | CR21: =IF(ISNA(VLOOKUP($CZ21,'Audit Values'!$A$2:$AE$439,2,FALSE)),'Preliminary SO66'!V18,VLOOKUP($CZ21,'Audit Values'!$A$2:$AE$439,22,FALSE)) -> 0 | CS21: 0 | CT21: =IF(ISNA(VLOOKUP($CZ21,'Audit Values'!$A$2:$AE$439,2,FALSE)),'Preliminary SO66'!W18,VLOOKUP($CZ21,'Audit Values'!$A$2:$AE$439,23,FALSE)) -> 0 | CU21: 0 | CV21: 0 | CW21: 29725 | CX21: =IF(CW21>0,Weightings!$M$11*AR21,0) -> 550050 | CY21: 29725 | CZ21: D0203
A22: 204 | B22: Wyandotte | C22: Bonner Springs | D22: 2404 | E22: 0 | F22: 2404 | G22: 2388.2 | H22: 0 | I22: 2388.2 | J22: 2421.8 | K22: =IF(ISNA(VLOOKUP($CZ22,'Audit Values'!$A$2:$AE$439,2,FALSE)),'Preliminary SO66'!B19,VLOOKUP($CZ22,'Audit Values'!$A$2:$AE$439,31,FALSE)) -> 2421.8 | L22: 2421.8 | M22: =IF(ISNA(VLOOKUP($CZ22,'Audit Values'!$A$2:$AE$439,2,FALSE)),'Preliminary SO66'!Z19,VLOOKUP($CZ22,'Audit Values'!$A$2:$AE$439,26,FALSE)) -> 0 | N22: 2421.8 | O22: =IF(ISNA(VLOOKUP($CZ22,'Audit Values'!$A$2:$AE$439,2,FALSE)),'Preliminary SO66'!C19,IF(VLOOKUP($CZ22,'Audit Values'!$A$2:$AE$439,28,FALSE)="",VLOOKUP($CZ22,'Audit Values'!$A$2:$AE$439,3,FALSE),VLOOKUP($CZ22,'Audit Values'!$A$2:$AE$439,28,FALSE))) -> 19 | P22: 2440.8 | Q22: 2440.8 | R22: 2440.8 | S22: 2440.8 | T22: 0 | U22: 85.5 | V22: 0 | W22: 85.5 | X22: =IF(ISNA(VLOOKUP($CZ22,'Audit Values'!$A$2:$AE$439,2,FALSE)),'Preliminary SO66'!D19,VLOOKUP($CZ22,'Audit Values'!$A$2:$AE$439,4,FALSE)) -> 436.7 | Y22: =ROUND((X22/6)*Weightings!$M$6,1) -> 36.4 | Z22: =IF(ISNA(VLOOKUP($CZ22,'Audit Values'!$A$2:$AE$439,2,FALSE)),'Preliminary SO66'!F19,VLOOKUP($CZ22,'Audit Values'!$A$2:$AE$439,6,FALSE)) -> 459.8 | AA22: =ROUND((Z22/6)*Weightings!$M$7,1) -> 30.3 | AB22: =IF(ISNA(VLOOKUP($CZ22,'Audit Values'!$A$2:$AE$439,2,FALSE)),'Preliminary SO66'!H19,VLOOKUP($CZ22,'Audit Values'!$A$2:$AE$439,8,FALSE)) -> 1069 | AC22: =ROUND(AB22*Weightings!$M$8,1) -> 487.5 | AD22: 65.9 | AE22: 221 | AF22: =AE22*Weightings!$M$9 -> 10.3 | AG22: =IF(ISNA(VLOOKUP($CZ22,'Audit Values'!$A$2:$AE$439,2,FALSE)),'Preliminary SO66'!L19,VLOOKUP($CZ22,'Audit Values'!$A$2:$AE$439,12,FALSE)) -> 0 | AH22: =ROUND(AG22*Weightings!$M$10,1) -> 0 | AI22: =IF(ISNA(VLOOKUP($CZ22,'Audit Values'!$A$2:$AE$439,2,FALSE)),'Preliminary SO66'!O19,VLOOKUP($CZ22,'Audit Values'!$A$2:$AE$439,15,FALSE)) -> 861 | AJ22: 131.2 | AK22: =CC22/Weightings!$M$5 -> 0 | AL22: =CD22/Weightings!$M$5 -> 0 | AM22: =CH22/Weightings!$M$5 -> 0 | AN22: 0 | AO22: =IF(ISNA(VLOOKUP($CZ22,'Audit Values'!$A$2:$AE$439,2,FALSE)),'Preliminary SO66'!X19,VLOOKUP($CZ22,'Audit Values'!$A$2:$AE$439,24,FALSE)) -> 0 | AP22: 2369991 | AQ22: =AP22/Weightings!$M$5 -> 617.5 | AR22: 3287.9 | AS22: 3905.4 | AT22: 3905.4 | AU22: 0 | AV22: =IF(ISNA(VLOOKUP($CZ22,'Audit Values'!$A$2:$AC$360,2,FALSE)),"",IF(AND(Weightings!H22>0,VLOOKUP($CZ22,'Audit Values'!$A$2:$AC$360,29,FALSE)<Weightings!H22),Weightings!H22,VLOOKUP($CZ22,'Audit Values'!$A$2:$AC$360,29,FALSE))) -> 21 | AW22: =IF(ISNA(VLOOKUP($CZ22,'Audit Values'!$A$2:$AD$360,2,FALSE)),"",VLOOKUP($CZ22,'Audit Values'!$A$2:$AD$360,30,FALSE)) -> A | AX22: =IF(Weightings!G22="","",IF(Weightings!I22="Pending","PX","R")) ->  | AY22: =AR22*Weightings!$M$5+AU22 -> 12618960 | AZ22: =AT22*Weightings!$M$5+AU22 -> 14988925 | BA22: =IF(Weightings!G22>0,Weightings!G22,'Preliminary SO66'!AB19) -> 15239930 | BB22: 14988925 | BD22: =Weightings!E22 -> -1725 | BE22: =Weightings!F22 -> 0 | BF22: -1725 | BG22: 14987200 | BH22: =MAX(ROUND(((AR22-AO22)*4433)+AP22,0),ROUND(((AR22-AO22)*4433)+Weightings!B22,0)) -> 16945252 | BI22: 0.3 | BJ22: 5083576 | BK22: 5157821 | BL22: 5083576 | BM22: 0.3 | BN22: 0 | BO22: FALSE | BP22: 0 | BQ22: 0 | BR22: 0 | BS22: FALSE | BT22: 0 | BU22: 0 | BV22: 0 | BW22: 85.5 | BX22: 38 | BY22: 22.66 | BZ22: =IF(ROUND((Weightings!$P$5*BY22^Weightings!$P$6*Weightings!$P$8 ),2)<Weightings!$P$7,Weightings!$P$7,ROUND((Weightings!$P$5*BY22^Weightings!$P$6*Weightings!$P$8 ),2)) -> 585 | CA22: =ROUND(BZ22/Weightings!$M$5,4) -> 0.1524 | CB22: 131.2 | CC22: 0 | CD22: 0 | CE22: 0 | CF22: 0 | CG22: =AS22*Weightings!$M$5*CF22 -> 0 | CH22: 0 | CI22: 0.438 | CJ22: 64.2 | CK22: 0 | CL22: 0 | CM22: 65.9 | CN22: =IF(ISNA(VLOOKUP($CZ22,'Audit Values'!$A$2:$AE$439,2,FALSE)),'Preliminary SO66'!T19,VLOOKUP($CZ22,'Audit Values'!$A$2:$AE$439,20,FALSE)) -> 0 | CO22: 0 | CP22: 0 | CQ22: 0 | CR22: =IF(ISNA(VLOOKUP($CZ22,'Audit Values'!$A$2:$AE$439,2,FALSE)),'Preliminary SO66'!V19,VLOOKUP($CZ22,'Audit Values'!$A$2:$AE$439,22,FALSE)) -> 0 | CS22: 0 | CT22: =IF(ISNA(VLOOKUP($CZ22,'Audit Values'!$A$2:$AE$439,2,FALSE)),'Preliminary SO66'!W19,VLOOKUP($CZ22,'Audit Values'!$A$2:$AE$439,23,FALSE)) -> 0 | CU22: 0 | CV22: 0 | CW22: 0 | CX22: =IF(CW22>0,Weightings!$M$11*AR22,0) -> 0 | CY22: 0 | CZ22: D0204
A23: 205 | B23: Butler | C23: Bluestem | D23: 495.7 | E23: 0 | F23: 495.7 | G23: 501.6 | H23: 0 | I23: 501.6 | J23: 502.2 | K23: =IF(ISNA(VLOOKUP($CZ23,'Audit Values'!$A$2:$AE$439,2,FALSE)),'Preliminary SO66'!B20,VLOOKUP($CZ23,'Audit Values'!$A$2:$AE$439,31,FALSE)) -> 502.2 | L23: 502.2 | M23: =IF(ISNA(VLOOKUP($CZ23,'Audit Values'!$A$2:$AE$439,2,FALSE)),'Preliminary SO66'!Z20,VLOOKUP($CZ23,'Audit Values'!$A$2:$AE$439,26,FALSE)) -> 0 | N23: 502.2 | O23: =IF(ISNA(VLOOKUP($CZ23,'Audit Values'!$A$2:$AE$439,2,FALSE)),'Preliminary SO66'!C20,IF(VLOOKUP($CZ23,'Audit Values'!$A$2:$AE$439,28,FALSE)="",VLOOKUP($CZ23,'Audit Values'!$A$2:$AE$439,3,FALSE),VLOOKUP($CZ23,'Audit Values'!$A$2:$AE$439,28,FALSE))) -> 0 | P23: 502.2 | Q23: 502.2 | R23: 502.2 | S23: 502.2 | T23: 0 | U23: 208.7 | V23: 208.7 | W23: 0 | X23: =IF(ISNA(VLOOKUP($CZ23,'Audit Values'!$A$2:$AE$439,2,FALSE)),'Preliminary SO66'!D20,VLOOKUP($CZ23,'Audit Values'!$A$2:$AE$439,4,FALSE)) -> 98 | Y23: =ROUND((X23/6)*Weightings!$M$6,1) -> 8.2 | Z23: =IF(ISNA(VLOOKUP($CZ23,'Audit Values'!$A$2:$AE$439,2,FALSE)),'Preliminary SO66'!F20,VLOOKUP($CZ23,'Audit Values'!$A$2:$AE$439,6,FALSE)) -> 0 | AA23: =ROUND((Z23/6)*Weightings!$M$7,1) -> 0 | AB23: =IF(ISNA(VLOOKUP($CZ23,'Audit Values'!$A$2:$AE$439,2,FALSE)),'Preliminary SO66'!H20,VLOOKUP($CZ23,'Audit Values'!$A$2:$AE$439,8,FALSE)) -> 239 | AC23: =ROUND(AB23*Weightings!$M$8,1) -> 109 | AD23: 21.1 | AE23: 35 | AF23: =AE23*Weightings!$M$9 -> 1.6 | AG23: =IF(ISNA(VLOOKUP($CZ23,'Audit Values'!$A$2:$AE$439,2,FALSE)),'Preliminary SO66'!L20,VLOOKUP($CZ23,'Audit Values'!$A$2:$AE$439,12,FALSE)) -> 0 | AH23: =ROUND(AG23*Weightings!$M$10,1) -> 0 | AI23: =IF(ISNA(VLOOKUP($CZ23,'Audit Values'!$A$2:$AE$439,2,FALSE)),'Preliminary SO66'!O20,VLOOKUP($CZ23,'Audit Values'!$A$2:$AE$439,15,FALSE)) -> 276 | AJ23: 76.1 | AK23: =CC23/Weightings!$M$5 -> 0 | AL23: =CD23/Weightings!$M$5 -> 0 | AM23: =CH23/Weightings!$M$5 -> 0 | AN23: 0 | AO23: =IF(ISNA(VLOOKUP($CZ23,'Audit Values'!$A$2:$AE$439,2,FALSE)),'Preliminary SO66'!X20,VLOOKUP($CZ23,'Audit Values'!$A$2:$AE$439,24,FALSE)) -> 0 | AP23: 604334 | AQ23: =AP23/Weightings!$M$5 -> 157.5 | AR23: 926.9 | AS23: 1084.4 | AT23: 1084.4 | AU23: 0 | AV23: =IF(ISNA(VLOOKUP($CZ23,'Audit Values'!$A$2:$AC$360,2,FALSE)),"",IF(AND(Weightings!H23>0,VLOOKUP($CZ23,'Audit Values'!$A$2:$AC$360,29,FALSE)<Weightings!H23),Weightings!H23,VLOOKUP($CZ23,'Audit Values'!$A$2:$AC$360,29,FALSE))) -> 15 | AW23: =IF(ISNA(VLOOKUP($CZ23,'Audit Values'!$A$2:$AD$360,2,FALSE)),"",VLOOKUP($CZ23,'Audit Values'!$A$2:$AD$360,30,FALSE)) -> A | AX23: =IF(Weightings!G23="","",IF(Weightings!I23="Pending","PX","R")) ->  | AY23: =AR23*Weightings!$M$5+AU23 -> 3557442 | AZ23: =AT23*Weightings!$M$5+AU23 -> 4161927 | BA23: =IF(Weightings!G23>0,Weightings!G23,'Preliminary SO66'!AB20) -> 4333486 | BB23: 4161927 | BD23: =Weightings!E23 -> 0 | BE23: =Weightings!F23 -> 0 | BF23: 0 | BG23: 4161927 | BH23: =MAX(ROUND(((AR23-AO23)*4433)+AP23,0),ROUND(((AR23-AO23)*4433)+Weightings!B23,0)) -> 4715422 | BI23: 0.3 | BJ23: 1414627 | BK23: 1465648 | BL23: 1414627 | BM23: 0.3 | BN23: 0 | BO23: FALSE | BP23: 0 | BQ23: 0 | BR23: 0 | BS23: TRUE | BT23: 250.2225 | BU23: 0.415489 | BV23: 208.7 | BW23: 0 | BX23: 348.6 | BY23: 0.79 | BZ23: =IF(ROUND((Weightings!$P$5*BY23^Weightings!$P$6*Weightings!$P$8 ),2)<Weightings!$P$7,Weightings!$P$7,ROUND((Weightings!$P$5*BY23^Weightings!$P$6*Weightings!$P$8 ),2)) -> 1057.61 | CA23: =ROUND(BZ23/Weightings!$M$5,4) -> 0.2756 | CB23: 76.1 | CC23: 0 | CD23: 0 | CE23: 0 | CF23: 0 | CG23: =AS23*Weightings!$M$5*CF23 -> 0 | CH23: 0 | CI23: 0.476 | CJ23: 1.4 | CK23: 0 | CL23: 0 | CM23: 21.1 | CN23: =IF(ISNA(VLOOKUP($CZ23,'Audit Values'!$A$2:$AE$439,2,FALSE)),'Preliminary SO66'!T20,VLOOKUP($CZ23,'Audit Values'!$A$2:$AE$439,20,FALSE)) -> 0 | CO23: 0 | CP23: 0 | CQ23: 0 | CR23: =IF(ISNA(VLOOKUP($CZ23,'Audit Values'!$A$2:$AE$439,2,FALSE)),'Preliminary SO66'!V20,VLOOKUP($CZ23,'Audit Values'!$A$2:$AE$439,22,FALSE)) -> 0 | CS23: 0 | CT23: =IF(ISNA(VLOOKUP($CZ23,'Audit Values'!$A$2:$AE$439,2,FALSE)),'Preliminary SO66'!W20,VLOOKUP($CZ23,'Audit Values'!$A$2:$AE$439,23,FALSE)) -> 0 | CU23: 0 | CV23: 0 | CW23: 0 | CX23: =IF(CW23>0,Weightings!$M$11*AR23,0) -> 0 | CY23: 0 | CZ23: D0205
A24: 206 | B24: Butler | C24: Remington-Whitewater | D24: 487 | E24: 0 | F24: 487 | G24: 491.1 | H24: 0 | I24: 491.1 | J24: 508.7 | K24: =IF(ISNA(VLOOKUP($CZ24,'Audit Values'!$A$2:$AE$439,2,FALSE)),'Preliminary SO66'!B21,VLOOKUP($CZ24,'Audit Values'!$A$2:$AE$439,31,FALSE)) -> 490.1 | L24: 491.1 | M24: =IF(ISNA(VLOOKUP($CZ24,'Audit Values'!$A$2:$AE$439,2,FALSE)),'Preliminary SO66'!Z21,VLOOKUP($CZ24,'Audit Values'!$A$2:$AE$439,26,FALSE)) -> 0 | N24: 491.1 | O24: =IF(ISNA(VLOOKUP($CZ24,'Audit Values'!$A$2:$AE$439,2,FALSE)),'Preliminary SO66'!C21,IF(VLOOKUP($CZ24,'Audit Values'!$A$2:$AE$439,28,FALSE)="",VLOOKUP($CZ24,'Audit Values'!$A$2:$AE$439,3,FALSE),VLOOKUP($CZ24,'Audit Values'!$A$2:$AE$439,28,FALSE))) -> 5 | P24: 495.1 | Q24: 513.7 | R24: 513.7 | S24: 496.1 | T24: 18.6 | U24: 207.2 | V24: 207.2 | W24: 0 | X24: =IF(ISNA(VLOOKUP($CZ24,'Audit Values'!$A$2:$AE$439,2,FALSE)),'Preliminary SO66'!D21,VLOOKUP($CZ24,'Audit Values'!$A$2:$AE$439,4,FALSE)) -> 52.6 | Y24: =ROUND((X24/6)*Weightings!$M$6,1) -> 4.4 | Z24: =IF(ISNA(VLOOKUP($CZ24,'Audit Values'!$A$2:$AE$439,2,FALSE)),'Preliminary SO66'!F21,VLOOKUP($CZ24,'Audit Values'!$A$2:$AE$439,6,FALSE)) -> 94.7 | AA24: =ROUND((Z24/6)*Weightings!$M$7,1) -> 6.2 | AB24: =IF(ISNA(VLOOKUP($CZ24,'Audit Values'!$A$2:$AE$439,2,FALSE)),'Preliminary SO66'!H21,VLOOKUP($CZ24,'Audit Values'!$A$2:$AE$439,8,FALSE)) -> 154 | AC24: =ROUND(AB24*Weightings!$M$8,1) -> 70.2 | AD24: 0 | AE24: 32 | AF24: =AE24*Weightings!$M$9 -> 1.5 | AG24: =IF(ISNA(VLOOKUP($CZ24,'Audit Values'!$A$2:$AE$439,2,FALSE)),'Preliminary SO66'!L21,VLOOKUP($CZ24,'Audit Values'!$A$2:$AE$439,12,FALSE)) -> 0 | AH24: =ROUND(AG24*Weightings!$M$10,1) -> 0 | AI24: =IF(ISNA(VLOOKUP($CZ24,'Audit Values'!$A$2:$AE$439,2,FALSE)),'Preliminary SO66'!O21,VLOOKUP($CZ24,'Audit Values'!$A$2:$AE$439,15,FALSE)) -> 370.5 | AJ24: 88.7 | AK24: =CC24/Weightings!$M$5 -> 0 | AL24: =CD24/Weightings!$M$5 -> 0 | AM24: =CH24/Weightings!$M$5 -> 0 | AN24: 19.5 | AO24: =IF(ISNA(VLOOKUP($CZ24,'Audit Values'!$A$2:$AE$439,2,FALSE)),'Preliminary SO66'!X21,VLOOKUP($CZ24,'Audit Values'!$A$2:$AE$439,24,FALSE)) -> 0 | AP24: 643969 | AQ24: =AP24/Weightings!$M$5 -> 167.8 | AR24: 893.8 | AS24: 1061.6 | AT24: 1061.6 | AU24: 0 | AV24: =IF(ISNA(VLOOKUP($CZ24,'Audit Values'!$A$2:$AC$360,2,FALSE)),"",IF(AND(Weightings!H24>0,VLOOKUP($CZ24,'Audit Values'!$A$2:$AC$360,29,FALSE)<Weightings!H24),Weightings!H24,VLOOKUP($CZ24,'Audit Values'!$A$2:$AC$360,29,FALSE))) -> 26 | AW24: =IF(ISNA(VLOOKUP($CZ24,'Audit Values'!$A$2:$AD$360,2,FALSE)),"",VLOOKUP($CZ24,'Audit Values'!$A$2:$AD$360,30,FALSE)) -> A | AX24: =IF(Weightings!G24="","",IF(Weightings!I24="Pending","PX","R")) ->  | AY24: =AR24*Weightings!$M$5+AU24 -> 3430404 | AZ24: =AT24*Weightings!$M$5+AU24 -> 4074421 | BA24: =IF(Weightings!G24>0,Weightings!G24,'Preliminary SO66'!AB21) -> 4274764 | BB24: 4074421 | BD24: =Weightings!E24 -> 0 | BE24: =Weightings!F24 -> 0 | BF24: 0 | BG24: 4074421 | BH24: =MAX(ROUND(((AR24-AO24)*4433)+AP24,0),ROUND(((AR24-AO24)*4433)+Weightings!B24,0)) -> 4606184 | BI24: 0.3 | BJ24: 1381855 | BK24: 1375000 | BL24: 1375000 | BM24: 0.2985 | BN24: 0 | BO24: FALSE | BP24: 0 | BQ24: 0 | BR24: 0 | BS24: TRUE | BT24: 242.6738 | BU24: 0.417562 | BV24: 207.2 | BW24: 0 | BX24: 253 | BY24: 1.46 | BZ24: =IF(ROUND((Weightings!$P$5*BY24^Weightings!$P$6*Weightings!$P$8 ),2)<Weightings!$P$7,Weightings!$P$7,ROUND((Weightings!$P$5*BY24^Weightings!$P$6*Weightings!$P$8 ),2)) -> 919.36 | CA24: =ROUND(BZ24/Weightings!$M$5,4) -> 0.2395 | CB24: 88.7 | CC24: 0 | CD24: 0 | CE24: 0 | CF24: 0 | CG24: =AS24*Weightings!$M$5*CF24 -> 0 | CH24: 0 | CI24: 0.31 | CJ24: 2 | CK24: 0 | CL24: 0 | CM24: 0 | CN24: =IF(ISNA(VLOOKUP($CZ24,'Audit Values'!$A$2:$AE$439,2,FALSE)),'Preliminary SO66'!T21,VLOOKUP($CZ24,'Audit Values'!$A$2:$AE$439,20,FALSE)) -> 18.6 | CO24: 19.5 | CP24: 0 | CQ24: 0 | CR24: =IF(ISNA(VLOOKUP($CZ24,'Audit Values'!$A$2:$AE$439,2,FALSE)),'Preliminary SO66'!V21,VLOOKUP($CZ24,'Audit Values'!$A$2:$AE$439,22,FALSE)) -> 0 | CS24: 0 | CT24: =IF(ISNA(VLOOKUP($CZ24,'Audit Values'!$A$2:$AE$439,2,FALSE)),'Preliminary SO66'!W21,VLOOKUP($CZ24,'Audit Values'!$A$2:$AE$439,23,FALSE)) -> 0 | CU24: 0 | CV24: 19.5 | CW24: 0 | CX24: =IF(CW24>0,Weightings!$M$11*AR24,0) -> 0 | CY24: 0 | CZ24: D0206
A25: 207 | B25: Leavenworth | C25: Ft Leavenworth | D25: 1802 | E25: 177 | F25: 1979 | G25: 1791.1 | H25: 192.4 | I25: 1983.5 | J25: 1741.6 | K25: =IF(ISNA(VLOOKUP($CZ25,'Audit Values'!$A$2:$AE$439,2,FALSE)),'Preliminary SO66'!B22,VLOOKUP($CZ25,'Audit Values'!$A$2:$AE$439,31,FALSE)) -> 1741.6 | L25: 1983.5 | M25: =IF(ISNA(VLOOKUP($CZ25,'Audit Values'!$A$2:$AE$439,2,FALSE)),'Preliminary SO66'!Z22,VLOOKUP($CZ25,'Audit Values'!$A$2:$AE$439,26,FALSE)) -> 146 | N25: 2129.5 | O25: =IF(ISNA(VLOOKUP($CZ25,'Audit Values'!$A$2:$AE$439,2,FALSE)),'Preliminary SO66'!C22,IF(VLOOKUP($CZ25,'Audit Values'!$A$2:$AE$439,28,FALSE)="",VLOOKUP($CZ25,'Audit Values'!$A$2:$AE$439,3,FALSE),VLOOKUP($CZ25,'Audit Values'!$A$2:$AE$439,28,FALSE))) -> 0 | P25: 1741.6 | Q25: 1741.6 | R25: 1887.6 | S25: 2129.5 | T25: 0 | U25: 74.6 | V25: 0 | W25: 74.6 | X25: =IF(ISNA(VLOOKUP($CZ25,'Audit Values'!$A$2:$AE$439,2,FALSE)),'Preliminary SO66'!D22,VLOOKUP($CZ25,'Audit Values'!$A$2:$AE$439,4,FALSE)) -> 0 | Y25: =ROUND((X25/6)*Weightings!$M$6,1) -> 0 | Z25: =IF(ISNA(VLOOKUP($CZ25,'Audit Values'!$A$2:$AE$439,2,FALSE)),'Preliminary SO66'!F22,VLOOKUP($CZ25,'Audit Values'!$A$2:$AE$439,6,FALSE)) -> 160.1 | AA25: =ROUND((Z25/6)*Weightings!$M$7,1) -> 10.5 | AB25: =IF(ISNA(VLOOKUP($CZ25,'Audit Values'!$A$2:$AE$439,2,FALSE)),'Preliminary SO66'!H22,VLOOKUP($CZ25,'Audit Values'!$A$2:$AE$439,8,FALSE)) -> 116 | AC25: =ROUND(AB25*Weightings!$M$8,1) -> 52.9 | AD25: 0 | AE25: 142 | AF25: =AE25*Weightings!$M$9 -> 6.6 | AG25: =IF(ISNA(VLOOKUP($CZ25,'Audit Values'!$A$2:$AE$439,2,FALSE)),'Preliminary SO66'!L22,VLOOKUP($CZ25,'Audit Values'!$A$2:$AE$439,12,FALSE)) -> 0 | AH25: =ROUND(AG25*Weightings!$M$10,1) -> 0 | AI25: =IF(ISNA(VLOOKUP($CZ25,'Audit Values'!$A$2:$AE$439,2,FALSE)),'Preliminary SO66'!O22,VLOOKUP($CZ25,'Audit Values'!$A$2:$AE$439,15,FALSE)) -> 143 | AJ25: 21.8 | AK25: =CC25/Weightings!$M$5 -> 0 | AL25: =CD25/Weightings!$M$5 -> 0 | AM25: =CH25/Weightings!$M$5 -> 0 | AN25: 0 | AO25: =IF(ISNA(VLOOKUP($CZ25,'Audit Values'!$A$2:$AE$439,2,FALSE)),'Preliminary SO66'!X22,VLOOKUP($CZ25,'Audit Values'!$A$2:$AE$439,24,FALSE)) -> 0 | AP25: 1533808 | AQ25: =AP25/Weightings!$M$5 -> 399.6 | AR25: 2295.9 | AS25: 2695.5 | AT25: 2695.5 | AU25: 0 | AV25: =IF(ISNA(VLOOKUP($CZ25,'Audit Values'!$A$2:$AC$360,2,FALSE)),"",IF(AND(Weightings!H25>0,VLOOKUP($CZ25,'Audit Values'!$A$2:$AC$360,29,FALSE)<Weightings!H25),Weightings!H25,VLOOKUP($CZ25,'Audit Values'!$A$2:$AC$360,29,FALSE))) -> 28 | AW25: =IF(ISNA(VLOOKUP($CZ25,'Audit Values'!$A$2:$AD$360,2,FALSE)),"",VLOOKUP($CZ25,'Audit Values'!$A$2:$AD$360,30,FALSE)) -> AM | AX25: =IF(Weightings!G25="","",IF(Weightings!I25="Pending","PX","R")) ->  | AY25: =AR25*Weightings!$M$5+AU25 -> 8811664 | AZ25: =AT25*Weightings!$M$5+AU25 -> 10345329 | BA25: =IF(Weightings!G25>0,Weightings!G25,'Preliminary SO66'!AB22) -> 11507475 | BB25: 10345329 | BD25: =Weightings!E25 -> 0 | BE25: =Weightings!F25 -> 0 | BF25: 0 | BG25: 10345329 | BH25: =MAX(ROUND(((AR25-AO25)*4433)+AP25,0),ROUND(((AR25-AO25)*4433)+Weightings!B25,0)) -> 11711533 | BI25: 0.3 | BJ25: 3513460 | BK25: 3914912 | BL25: 3513460 | BM25: 0.3 | BN25: 0 | BO25: FALSE | BP25: 0 | BQ25: 0 | BR25: 0 | BS25: FALSE | BT25: 0 | BU25: 0 | BV25: 0 | BW25: 74.6 | BX25: 8.5 | BY25: 16.82 | BZ25: =IF(ROUND((Weightings!$P$5*BY25^Weightings!$P$6*Weightings!$P$8 ),2)<Weightings!$P$7,Weightings!$P$7,ROUND((Weightings!$P$5*BY25^Weightings!$P$6*Weightings!$P$8 ),2)) -> 585 | CA25: =ROUND(BZ25/Weightings!$M$5,4) -> 0.1524 | CB25: 21.8 | CC25: 0 | CD25: 0 | CE25: 0 | CF25: 0 | CG25: =AS25*Weightings!$M$5*CF25 -> 0 | CH25: 0 | CI25: 0.054 | CJ25: 250.5 | CK25: 0 | CL25: 0 | CM25: 0 | CN25: =IF(ISNA(VLOOKUP($CZ25,'Audit Values'!$A$2:$AE$439,2,FALSE)),'Preliminary SO66'!T22,VLOOKUP($CZ25,'Audit Values'!$A$2:$AE$439,20,FALSE)) -> 0 | CO25: 0 | CP25: 0 | CQ25: 0 | CR25: =IF(ISNA(VLOOKUP($CZ25,'Audit Values'!$A$2:$AE$439,2,FALSE)),'Preliminary SO66'!V22,VLOOKUP($CZ25,'Audit Values'!$A$2:$AE$439,22,FALSE)) -> 0 | CS25: 0 | CT25: =IF(ISNA(VLOOKUP($CZ25,'Audit Values'!$A$2:$AE$439,2,FALSE)),'Preliminary SO66'!W22,VLOOKUP($CZ25,'Audit Values'!$A$2:$AE$439,23,FALSE)) -> 0 | CU25: 0 | CV25: 0 | CW25: 0 | CX25: =IF(CW25>0,Weightings!$M$11*AR25,0) -> 0 | CY25: 0 | CZ25: D0207
A26: 208 | B26: Trego | C26: Wakeeney | D26: 365.3 | E26: 0 | F26: 365.3 | G26: 359.3 | H26: 0 | I26: 359.3 | J26: 375 | K26: =IF(ISNA(VLOOKUP($CZ26,'Audit Values'!$A$2:$AE$439,2,FALSE)),'Preliminary SO66'!B23,VLOOKUP($CZ26,'Audit Values'!$A$2:$AE$439,31,FALSE)) -> 375 | L26: 375 | M26: =IF(ISNA(VLOOKUP($CZ26,'Audit Values'!$A$2:$AE$439,2,FALSE)),'Preliminary SO66'!Z23,VLOOKUP($CZ26,'Audit Values'!$A$2:$AE$439,26,FALSE)) -> 0 | N26: 375 | O26: =IF(ISNA(VLOOKUP($CZ26,'Audit Values'!$A$2:$AE$439,2,FALSE)),'Preliminary SO66'!C23,IF(VLOOKUP($CZ26,'Audit Values'!$A$2:$AE$439,28,FALSE)="",VLOOKUP($CZ26,'Audit Values'!$A$2:$AE$439,3,FALSE),VLOOKUP($CZ26,'Audit Values'!$A$2:$AE$439,28,FALSE))) -> 0 | P26: 375 | Q26: 375 | R26: 375 | S26: 375 | T26: 0 | U26: 172 | V26: 172 | W26: 0 | X26: =IF(ISNA(VLOOKUP($CZ26,'Audit Values'!$A$2:$AE$439,2,FALSE)),'Preliminary SO66'!D23,VLOOKUP($CZ26,'Audit Values'!$A$2:$AE$439,4,FALSE)) -> 53.1 | Y26: =ROUND((X26/6)*Weightings!$M$6,1) -> 4.4 | Z26: =IF(ISNA(VLOOKUP($CZ26,'Audit Values'!$A$2:$AE$439,2,FALSE)),'Preliminary SO66'!F23,VLOOKUP($CZ26,'Audit Values'!$A$2:$AE$439,6,FALSE)) -> 0 | AA26: =ROUND((Z26/6)*Weightings!$M$7,1) -> 0 | AB26: =IF(ISNA(VLOOKUP($CZ26,'Audit Values'!$A$2:$AE$439,2,FALSE)),'Preliminary SO66'!H23,VLOOKUP($CZ26,'Audit Values'!$A$2:$AE$439,8,FALSE)) -> 71 | AC26: =ROUND(AB26*Weightings!$M$8,1) -> 32.4 | AD26: 0 | AE26: 36 | AF26: =AE26*Weightings!$M$9 -> 1.7 | AG26: =IF(ISNA(VLOOKUP($CZ26,'Audit Values'!$A$2:$AE$439,2,FALSE)),'Preliminary SO66'!L23,VLOOKUP($CZ26,'Audit Values'!$A$2:$AE$439,12,FALSE)) -> 0 | AH26: =ROUND(AG26*Weightings!$M$10,1) -> 0 | AI26: =IF(ISNA(VLOOKUP($CZ26,'Audit Values'!$A$2:$AE$439,2,FALSE)),'Preliminary SO66'!O23,VLOOKUP($CZ26,'Audit Values'!$A$2:$AE$439,15,FALSE)) -> 86 | AJ26: 36.4 | AK26: =CC26/Weightings!$M$5 -> 0 | AL26: =CD26/Weightings!$M$5 -> 0 | AM26: =CH26/Weightings!$M$5 -> 0 | AN26: 0 | AO26: =IF(ISNA(VLOOKUP($CZ26,'Audit Values'!$A$2:$AE$439,2,FALSE)),'Preliminary SO66'!X23,VLOOKUP($CZ26,'Audit Values'!$A$2:$AE$439,24,FALSE)) -> 0 | AP26: 331200 | AQ26: =AP26/Weightings!$M$5 -> 86.3 | AR26: 621.9 | AS26: 708.2 | AT26: 708.2 | AU26: 0 | AV26: =IF(ISNA(VLOOKUP($CZ26,'Audit Values'!$A$2:$AC$360,2,FALSE)),"",IF(AND(Weightings!H26>0,VLOOKUP($CZ26,'Audit Values'!$A$2:$AC$360,29,FALSE)<Weightings!H26),Weightings!H26,VLOOKUP($CZ26,'Audit Values'!$A$2:$AC$360,29,FALSE))) -> 2 | AW26: =IF(ISNA(VLOOKUP($CZ26,'Audit Values'!$A$2:$AD$360,2,FALSE)),"",VLOOKUP($CZ26,'Audit Values'!$A$2:$AD$360,30,FALSE)) -> A | AX26: =IF(Weightings!G26="","",IF(Weightings!I26="Pending","PX","R")) ->  | AY26: =AR26*Weightings!$M$5+AU26 -> 2386852 | AZ26: =AT26*Weightings!$M$5+AU26 -> 2718072 | BA26: =IF(Weightings!G26>0,Weightings!G26,'Preliminary SO66'!AB23) -> 2777561 | BB26: 2718072 | BD26: =Weightings!E26 -> -3217 | BE26: =Weightings!F26 -> 0 | BF26: -3217 | BG26: 2714855 | BH26: =MAX(ROUND(((AR26-AO26)*4433)+AP26,0),ROUND(((AR26-AO26)*4433)+Weightings!B26,0)) -> 3266881 | BI26: 0.3 | BJ26: 980064 | BK26: 979399 | BL26: 979399 | BM26: 0.2998 | BN26: 0 | BO26: FALSE | BP26: 0 | BQ26: 0 | BR26: 0 | BS26: TRUE | BT26: 92.8125 | BU26: 0.458705 | BV26: 172 | BW26: 0 | BX26: 706.7 | BY26: 0.12 | BZ26: =IF(ROUND((Weightings!$P$5*BY26^Weightings!$P$6*Weightings!$P$8 ),2)<Weightings!$P$7,Weightings!$P$7,ROUND((Weightings!$P$5*BY26^Weightings!$P$6*Weightings!$P$8 ),2)) -> 1625.6 | CA26: =ROUND(BZ26/Weightings!$M$5,4) -> 0.4236 | CB26: 36.4 | CC26: 0 | CD26: 0 | CE26: 0 | CF26: 0 | CG26: =AS26*Weightings!$M$5*CF26 -> 0 | CH26: 0 | CI26: 0.189 | CJ26: 0.5 | CK26: 0 | CL26: 0 | CM26: 0 | CN26: =IF(ISNA(VLOOKUP($CZ26,'Audit Values'!$A$2:$AE$439,2,FALSE)),'Preliminary SO66'!T23,VLOOKUP($CZ26,'Audit Values'!$A$2:$AE$439,20,FALSE)) -> 0 | CO26: 0 | CP26: 0 | CQ26: 0 | CR26: =IF(ISNA(VLOOKUP($CZ26,'Audit Values'!$A$2:$AE$439,2,FALSE)),'Preliminary SO66'!V23,VLOOKUP($CZ26,'Audit Values'!$A$2:$AE$439,22,FALSE)) -> 0 | CS26: 0 | CT26: =IF(ISNA(VLOOKUP($CZ26,'Audit Values'!$A$2:$AE$439,2,FALSE)),'Preliminary SO66'!W23,VLOOKUP($CZ26,'Audit Values'!$A$2:$AE$439,23,FALSE)) -> 0 | CU26: 0 | CV26: 0 | CW26: 0 | CX26: =IF(CW26>0,Weightings!$M$11*AR26,0) -> 0 | CY26: 0 | CZ26: D0208
A27: 209 | B27: Stevens | C27: Moscow Public Schools | D27: 176.6 | E27: 0 | F27: 176.6 | G27: 159.3 | H27: 0 | I27: 159.3 | J27: 184.9 | K27: =IF(ISNA(VLOOKUP($CZ27,'Audit Values'!$A$2:$AE$439,2,FALSE)),'Preliminary SO66'!B24,VLOOKUP($CZ27,'Audit Values'!$A$2:$AE$439,31,FALSE)) -> 184.9 | L27: 184.9 | M27: =IF(ISNA(VLOOKUP($CZ27,'Audit Values'!$A$2:$AE$439,2,FALSE)),'Preliminary SO66'!Z24,VLOOKUP($CZ27,'Audit Values'!$A$2:$AE$439,26,FALSE)) -> 0 | N27: 184.9 | O27: =IF(ISNA(VLOOKUP($CZ27,'Audit Values'!$A$2:$AE$439,2,FALSE)),'Preliminary SO66'!C24,IF(VLOOKUP($CZ27,'Audit Values'!$A$2:$AE$439,28,FALSE)="",VLOOKUP($CZ27,'Audit Values'!$A$2:$AE$439,3,FALSE),VLOOKUP($CZ27,'Audit Values'!$A$2:$AE$439,28,FALSE))) -> 4.5 | P27: 189.4 | Q27: 189.4 | R27: 189.4 | S27: 189.4 | T27: 0 | U27: 147.2 | V27: 147.2 | W27: 0 | X27: =IF(ISNA(VLOOKUP($CZ27,'Audit Values'!$A$2:$AE$439,2,FALSE)),'Preliminary SO66'!D24,VLOOKUP($CZ27,'Audit Values'!$A$2:$AE$439,4,FALSE)) -> 0 | Y27: =ROUND((X27/6)*Weightings!$M$6,1) -> 0 | Z27: =IF(ISNA(VLOOKUP($CZ27,'Audit Values'!$A$2:$AE$439,2,FALSE)),'Preliminary SO66'!F24,VLOOKUP($CZ27,'Audit Values'!$A$2:$AE$439,6,FALSE)) -> 333.2 | AA27: =ROUND((Z27/6)*Weightings!$M$7,1) -> 21.9 | AB27: =IF(ISNA(VLOOKUP($CZ27,'Audit Values'!$A$2:$AE$439,2,FALSE)),'Preliminary SO66'!H24,VLOOKUP($CZ27,'Audit Values'!$A$2:$AE$439,8,FALSE)) -> 102 | AC27: =ROUND(AB27*Weightings!$M$8,1) -> 46.5 | AD27: 10.7 | AE27: 14 | AF27: =AE27*Weightings!$M$9 -> 0.7 | AG27: =IF(ISNA(VLOOKUP($CZ27,'Audit Values'!$A$2:$AE$439,2,FALSE)),'Preliminary SO66'!L24,VLOOKUP($CZ27,'Audit Values'!$A$2:$AE$439,12,FALSE)) -> 0 | AH27: =ROUND(AG27*Weightings!$M$10,1) -> 0 | AI27: =IF(ISNA(VLOOKUP($CZ27,'Audit Values'!$A$2:$AE$439,2,FALSE)),'Preliminary SO66'!O24,VLOOKUP($CZ27,'Audit Values'!$A$2:$AE$439,15,FALSE)) -> 46 | AJ27: 17.1 | AK27: =CC27/Weightings!$M$5 -> 0 | AL27: =CD27/Weightings!$M$5 -> 0 | AM27: =CH27/Weightings!$M$5 -> 0 | AN27: 0 | AO27: =IF(ISNA(VLOOKUP($CZ27,'Audit Values'!$A$2:$AE$439,2,FALSE)),'Preliminary SO66'!X24,VLOOKUP($CZ27,'Audit Values'!$A$2:$AE$439,24,FALSE)) -> 0 | AP27: 107361 | AQ27: =AP27/Weightings!$M$5 -> 28 | AR27: 433.5 | AS27: 461.5 | AT27: 461.5 | AU27: 0 | AV27: =IF(ISNA(VLOOKUP($CZ27,'Audit Values'!$A$2:$AC$360,2,FALSE)),"",IF(AND(Weightings!H27>0,VLOOKUP($CZ27,'Audit Values'!$A$2:$AC$360,29,FALSE)<Weightings!H27),Weightings!H27,VLOOKUP($CZ27,'Audit Values'!$A$2:$AC$360,29,FALSE))) -> 2 | AW27: =IF(ISNA(VLOOKUP($CZ27,'Audit Values'!$A$2:$AD$360,2,FALSE)),"",VLOOKUP($CZ27,'Audit Values'!$A$2:$AD$360,30,FALSE)) -> A | AX27: =IF(Weightings!G27="","",IF(Weightings!I27="Pending","PX","R")) -> R | AY27: =AR27*Weightings!$M$5+AU27 -> 1663773 | AZ27: =AT27*Weightings!$M$5+AU27 -> 1771237 | BA27: =IF(Weightings!G27>0,Weightings!G27,'Preliminary SO66'!AB24) -> 1782367 | BB27: 1771237 | BD27: =Weightings!E27 -> 0 | BE27: =Weightings!F27 -> 0 | BF27: 0 | BG27: 1771237 | BH27: =MAX(ROUND(((AR27-AO27)*4433)+AP27,0),ROUND(((AR27-AO27)*4433)+Weightings!B27,0)) -> 2059867 | BI27: 0.31 | BJ27: 638559 | BK27: 610112 | BL27: 610112 | BM27: 0.2962 | BN27: 0 | BO27: TRUE | BP27: 863.157 | BQ27: 0.777356 | BR27: 147.2 | BS27: FALSE | BT27: 0 | BU27: 0 | BV27: 0 | BW27: 0 | BX27: 223 | BY27: 0.21 | BZ27: =IF(ROUND((Weightings!$P$5*BY27^Weightings!$P$6*Weightings!$P$8 ),2)<Weightings!$P$7,Weightings!$P$7,ROUND((Weightings!$P$5*BY27^Weightings!$P$6*Weightings!$P$8 ),2)) -> 1430.79 | CA27: =ROUND(BZ27/Weightings!$M$5,4) -> 0.3728 | CB27: 17.1 | CC27: 0 | CD27: 0 | CE27: 0 | CF27: 0 | CG27: =AS27*Weightings!$M$5*CF27 -> 0 | CH27: 0 | CI27: 0.539 | CJ27: 0.8 | CK27: 10.7 | CL27: 0 | CM27: 0 | CN27: =IF(ISNA(VLOOKUP($CZ27,'Audit Values'!$A$2:$AE$439,2,FALSE)),'Preliminary SO66'!T24,VLOOKUP($CZ27,'Audit Values'!$A$2:$AE$439,20,FALSE)) -> 0 | CO27: 0 | CP27: 0 | CQ27: 0 | CR27: =IF(ISNA(VLOOKUP($CZ27,'Audit Values'!$A$2:$AE$439,2,FALSE)),'Preliminary SO66'!V24,VLOOKUP($CZ27,'Audit Values'!$A$2:$AE$439,22,FALSE)) -> 0 | CS27: 0 | CT27: =IF(ISNA(VLOOKUP($CZ27,'Audit Values'!$A$2:$AE$439,2,FALSE)),'Preliminary SO66'!W24,VLOOKUP($CZ27,'Audit Values'!$A$2:$AE$439,23,FALSE)) -> 0 | CU27: 0 | CV27: 0 | CW27: 0 | CX27: =IF(CW27>0,Weightings!$M$11*AR27,0) -> 0 | CY27: 0 | CZ27: D0209
A28: 210 | B28: Stevens | C28: Hugoton Public Schools | D28: 1013.2 | E28: 0 | F28: 1013.2 | G28: 1007.5 | H28: 0 | I28: 1007.5 | J28: 1026.6 | K28: =IF(ISNA(VLOOKUP($CZ28,'Audit Values'!$A$2:$AE$439,2,FALSE)),'Preliminary SO66'!B25,VLOOKUP($CZ28,'Audit Values'!$A$2:$AE$439,31,FALSE)) -> 1020.8 | L28: 1020.8 | M28: =IF(ISNA(VLOOKUP($CZ28,'Audit Values'!$A$2:$AE$439,2,FALSE)),'Preliminary SO66'!Z25,VLOOKUP($CZ28,'Audit Values'!$A$2:$AE$439,26,FALSE)) -> 0 | N28: 1020.8 | O28: =IF(ISNA(VLOOKUP($CZ28,'Audit Values'!$A$2:$AE$439,2,FALSE)),'Preliminary SO66'!C25,IF(VLOOKUP($CZ28,'Audit Values'!$A$2:$AE$439,28,FALSE)="",VLOOKUP($CZ28,'Audit Values'!$A$2:$AE$439,3,FALSE),VLOOKUP($CZ28,'Audit Values'!$A$2:$AE$439,28,FALSE))) -> 23.5 | P28: 1044.3 | Q28: 1050.1 | R28: 1050.1 | S28: 1044.3 | T28: 5.8 | U28: 241.6 | V28: 241.6 | W28: 0 | X28: =IF(ISNA(VLOOKUP($CZ28,'Audit Values'!$A$2:$AE$439,2,FALSE)),'Preliminary SO66'!D25,VLOOKUP($CZ28,'Audit Values'!$A$2:$AE$439,4,FALSE)) -> 283.8 | Y28: =ROUND((X28/6)*Weightings!$M$6,1) -> 23.7 | Z28: =IF(ISNA(VLOOKUP($CZ28,'Audit Values'!$A$2:$AE$439,2,FALSE)),'Preliminary SO66'!F25,VLOOKUP($CZ28,'Audit Values'!$A$2:$AE$439,6,FALSE)) -> 1792.6 | AA28: =ROUND((Z28/6)*Weightings!$M$7,1) -> 118 | AB28: =IF(ISNA(VLOOKUP($CZ28,'Audit Values'!$A$2:$AE$439,2,FALSE)),'Preliminary SO66'!H25,VLOOKUP($CZ28,'Audit Values'!$A$2:$AE$439,8,FALSE)) -> 512 | AC28: =ROUND(AB28*Weightings!$M$8,1) -> 233.5 | AD28: 50.2 | AE28: 144 | AF28: =AE28*Weightings!$M$9 -> 6.7 | AG28: =IF(ISNA(VLOOKUP($CZ28,'Audit Values'!$A$2:$AE$439,2,FALSE)),'Preliminary SO66'!L25,VLOOKUP($CZ28,'Audit Values'!$A$2:$AE$439,12,FALSE)) -> 0 | AH28: =ROUND(AG28*Weightings!$M$10,1) -> 0 | AI28: =IF(ISNA(VLOOKUP($CZ28,'Audit Values'!$A$2:$AE$439,2,FALSE)),'Preliminary SO66'!O25,VLOOKUP($CZ28,'Audit Values'!$A$2:$AE$439,15,FALSE)) -> 175 | AJ28: 60.1 | AK28: =CC28/Weightings!$M$5 -> 0 | AL28: =CD28/Weightings!$M$5 -> 0 | AM28: =CH28/Weightings!$M$5 -> 0 | AN28: 6.1 | AO28: =IF(ISNA(VLOOKUP($CZ28,'Audit Values'!$A$2:$AE$439,2,FALSE)),'Preliminary SO66'!X25,VLOOKUP($CZ28,'Audit Values'!$A$2:$AE$439,24,FALSE)) -> 0 | AP28: 588031 | AQ28: =AP28/Weightings!$M$5 -> 153.2 | AR28: 1784.2 | AS28: 1937.4 | AT28: 1937.4 | AU28: 0 | AV28: =IF(ISNA(VLOOKUP($CZ28,'Audit Values'!$A$2:$AC$360,2,FALSE)),"",IF(AND(Weightings!H28>0,VLOOKUP($CZ28,'Audit Values'!$A$2:$AC$360,29,FALSE)<Weightings!H28),Weightings!H28,VLOOKUP($CZ28,'Audit Values'!$A$2:$AC$360,29,FALSE))) -> 15 | AW28: =IF(ISNA(VLOOKUP($CZ28,'Audit Values'!$A$2:$AD$360,2,FALSE)),"",VLOOKUP($CZ28,'Audit Values'!$A$2:$AD$360,30,FALSE)) -> A | AX28: =IF(Weightings!G28="","",IF(Weightings!I28="Pending","PX","R")) -> R | AY28: =AR28*Weightings!$M$5+AU28 -> 6847760 | AZ28: =AT28*Weightings!$M$5+AU28 -> 7435741 | BA28: =IF(Weightings!G28>0,Weightings!G28,'Preliminary SO66'!AB25) -> 7451477 | BB28: 7435741 | BD28: =Weightings!E28 -> 0 | BE28: =Weightings!F28 -> 0 | BF28: 0 | BG28: 7435741 | BH28: =MAX(ROUND(((AR28-AO28)*4433)+AP28,0),ROUND(((AR28-AO28)*4433)+Weightings!B28,0)) -> 8532138 | BI28: 0.3 | BJ28: 2559641 | BK28: 2560705 | BL28: 2559641 | BM28: 0.3 | BN28: 0 | BO28: FALSE | BP28: 0 | BQ28: 0 | BR28: 0 | BS28: TRUE | BT28: 921.0713 | BU28: 0.231311 | BV28: 241.6 | BW28: 0 | BX28: 575 | BY28: 0.3 | BZ28: =IF(ROUND((Weightings!$P$5*BY28^Weightings!$P$6*Weightings!$P$8 ),2)<Weightings!$P$7,Weightings!$P$7,ROUND((Weightings!$P$5*BY28^Weightings!$P$6*Weightings!$P$8 ),2)) -> 1318.99 | CA28: =ROUND(BZ28/Weightings!$M$5,4) -> 0.3437 | CB28: 60.1 | CC28: 0 | CD28: 0 | CE28: 0 | CF28: 0 | CG28: =AS28*Weightings!$M$5*CF28 -> 0 | CH28: 0 | CI28: 0.49 | CJ28: 1.8 | CK28: 0 | CL28: 0 | CM28: 50.2 | CN28: =IF(ISNA(VLOOKUP($CZ28,'Audit Values'!$A$2:$AE$439,2,FALSE)),'Preliminary SO66'!T25,VLOOKUP($CZ28,'Audit Values'!$A$2:$AE$439,20,FALSE)) -> 5.8 | CO28: 6.1 | CP28: 0 | CQ28: 0 | CR28: =IF(ISNA(VLOOKUP($CZ28,'Audit Values'!$A$2:$AE$439,2,FALSE)),'Preliminary SO66'!V25,VLOOKUP($CZ28,'Audit Values'!$A$2:$AE$439,22,FALSE)) -> 0 | CS28: 0 | CT28: =IF(ISNA(VLOOKUP($CZ28,'Audit Values'!$A$2:$AE$439,2,FALSE)),'Preliminary SO66'!W25,VLOOKUP($CZ28,'Audit Values'!$A$2:$AE$439,23,FALSE)) -> 0 | CU28: 0 | CV28: 6.1 | CW28: 0 | CX28: =IF(CW28>0,Weightings!$M$11*AR28,0) -> 0 | CY28: 0 | CZ28: D0210
A29: 211 | B29: Norton | C29: Norton Community Schools | D29: 713.6 | E29: 0 | F29: 713.6 | G29: 704.9 | H29: 0 | I29: 704.9 | J29: 695 | K29: =IF(ISNA(VLOOKUP($CZ29,'Audit Values'!$A$2:$AE$439,2,FALSE)),'Preliminary SO66'!B26,VLOOKUP($CZ29,'Audit Values'!$A$2:$AE$439,31,FALSE)) -> 695 | L29: 704.9 | M29: =IF(ISNA(VLOOKUP($CZ29,'Audit Values'!$A$2:$AE$439,2,FALSE)),'Preliminary SO66'!Z26,VLOOKUP($CZ29,'Audit Values'!$A$2:$AE$439,26,FALSE)) -> 0 | N29: 704.9 | O29: =IF(ISNA(VLOOKUP($CZ29,'Audit Values'!$A$2:$AE$439,2,FALSE)),'Preliminary SO66'!C26,IF(VLOOKUP($CZ29,'Audit Values'!$A$2:$AE$439,28,FALSE)="",VLOOKUP($CZ29,'Audit Values'!$A$2:$AE$439,3,FALSE),VLOOKUP($CZ29,'Audit Values'!$A$2:$AE$439,28,FALSE))) -> 0 | P29: 695 | Q29: 695 | R29: 695 | S29: 704.9 | T29: 0 | U29: 244.3 | V29: 244.3 | W29: 0 | X29: =IF(ISNA(VLOOKUP($CZ29,'Audit Values'!$A$2:$AE$439,2,FALSE)),'Preliminary SO66'!D26,VLOOKUP($CZ29,'Audit Values'!$A$2:$AE$439,4,FALSE)) -> 175.3 | Y29: =ROUND((X29/6)*Weightings!$M$6,1) -> 14.6 | Z29: =IF(ISNA(VLOOKUP($CZ29,'Audit Values'!$A$2:$AE$439,2,FALSE)),'Preliminary SO66'!F26,VLOOKUP($CZ29,'Audit Values'!$A$2:$AE$439,6,FALSE)) -> 0.5 | AA29: =ROUND((Z29/6)*Weightings!$M$7,1) -> 0 | AB29: =IF(ISNA(VLOOKUP($CZ29,'Audit Values'!$A$2:$AE$439,2,FALSE)),'Preliminary SO66'!H26,VLOOKUP($CZ29,'Audit Values'!$A$2:$AE$439,8,FALSE)) -> 236 | AC29: =ROUND(AB29*Weightings!$M$8,1) -> 107.6 | AD29: 0 | AE29: 47 | AF29: =AE29*Weightings!$M$9 -> 2.2 | AG29: =IF(ISNA(VLOOKUP($CZ29,'Audit Values'!$A$2:$AE$439,2,FALSE)),'Preliminary SO66'!L26,VLOOKUP($CZ29,'Audit Values'!$A$2:$AE$439,12,FALSE)) -> 0 | AH29: =ROUND(AG29*Weightings!$M$10,1) -> 0 | AI29: =IF(ISNA(VLOOKUP($CZ29,'Audit Values'!$A$2:$AE$439,2,FALSE)),'Preliminary SO66'!O26,VLOOKUP($CZ29,'Audit Values'!$A$2:$AE$439,15,FALSE)) -> 142.5 | AJ29: 53.1 | AK29: =CC29/Weightings!$M$5 -> 0 | AL29: =CD29/Weightings!$M$5 -> 0 | AM29: =CH29/Weightings!$M$5 -> 0 | AN29: 0 | AO29: =IF(ISNA(VLOOKUP($CZ29,'Audit Values'!$A$2:$AE$439,2,FALSE)),'Preliminary SO66'!X26,VLOOKUP($CZ29,'Audit Values'!$A$2:$AE$439,24,FALSE)) -> 0 | AP29: 872660 | AQ29: =AP29/Weightings!$M$5 -> 227.4 | AR29: 1126.7 | AS29: 1354.1 | AT29: 1354.1 | AU29: 220000 | AV29: =IF(ISNA(VLOOKUP($CZ29,'Audit Values'!$A$2:$AC$360,2,FALSE)),"",IF(AND(Weightings!H29>0,VLOOKUP($CZ29,'Audit Values'!$A$2:$AC$360,29,FALSE)<Weightings!H29),Weightings!H29,VLOOKUP($CZ29,'Audit Values'!$A$2:$AC$360,29,FALSE))) -> 8 | AW29: =IF(ISNA(VLOOKUP($CZ29,'Audit Values'!$A$2:$AD$360,2,FALSE)),"",VLOOKUP($CZ29,'Audit Values'!$A$2:$AD$360,30,FALSE)) -> A | AX29: =IF(Weightings!G29="","",IF(Weightings!I29="Pending","PX","R")) ->  | AY29: =AR29*Weightings!$M$5+AU29 -> 4544275 | AZ29: =AT29*Weightings!$M$5+AU29 -> 5417036 | BA29: =IF(Weightings!G29>0,Weightings!G29,'Preliminary SO66'!AB26) -> 5576981 | BB29: 5417036 | BD29: =Weightings!E29 -> 0 | BE29: =Weightings!F29 -> 0 | BF29: 0 | BG29: 5417036 | BH29: =MAX(ROUND(((AR29-AO29)*4433)+AP29,0),ROUND(((AR29-AO29)*4433)+Weightings!B29,0)) -> 5867321 | BI29: 0.3 | BJ29: 1760196 | BK29: 1460500 | BL29: 1460500 | BM29: 0.2489 | BN29: 0 | BO29: FALSE | BP29: 0 | BQ29: 0 | BR29: 0 | BS29: TRUE | BT29: 501.0638 | BU29: 0.346622 | BV29: 244.3 | BW29: 0 | BX29: 678 | BY29: 0.21 | BZ29: =IF(ROUND((Weightings!$P$5*BY29^Weightings!$P$6*Weightings!$P$8 ),2)<Weightings!$P$7,Weightings!$P$7,ROUND((Weightings!$P$5*BY29^Weightings!$P$6*Weightings!$P$8 ),2)) -> 1430.79 | CA29: =ROUND(BZ29/Weightings!$M$5,4) -> 0.3728 | CB29: 53.1 | CC29: 0 | CD29: 0 | CE29: 0 | CF29: 0 | CG29: =AS29*Weightings!$M$5*CF29 -> 0 | CH29: 0 | CI29: 0.335 | CJ29: 1 | CK29: 0 | CL29: 0 | CM29: 0 | CN29: =IF(ISNA(VLOOKUP($CZ29,'Audit Values'!$A$2:$AE$439,2,FALSE)),'Preliminary SO66'!T26,VLOOKUP($CZ29,'Audit Values'!$A$2:$AE$439,20,FALSE)) -> 0 | CO29: 0 | CP29: 0 | CQ29: 0 | CR29: =IF(ISNA(VLOOKUP($CZ29,'Audit Values'!$A$2:$AE$439,2,FALSE)),'Preliminary SO66'!V26,VLOOKUP($CZ29,'Audit Values'!$A$2:$AE$439,22,FALSE)) -> 0 | CS29: 0 | CT29: =IF(ISNA(VLOOKUP($CZ29,'Audit Values'!$A$2:$AE$439,2,FALSE)),'Preliminary SO66'!W26,VLOOKUP($CZ29,'Audit Values'!$A$2:$AE$439,23,FALSE)) -> 0 | CU29: 0 | CV29: 0 | CW29: 220000 | CX29: =IF(CW29>0,Weightings!$M$11*AR29,0) -> 281675 | CY29: 220000 | CZ29: D0211
A30: 212 | B30: Norton | C30: Northern Valley | D30: 186 | E30: 0 | F30: 186 | G30: 168.5 | H30: 0 | I30: 168.5 | J30: 170 | K30: =IF(ISNA(VLOOKUP($CZ30,'Audit Values'!$A$2:$AE$439,2,FALSE)),'Preliminary SO66'!B27,VLOOKUP($CZ30,'Audit Values'!$A$2:$AE$439,31,FALSE)) -> 170 | L30: 174.8 | M30: =IF(ISNA(VLOOKUP($CZ30,'Audit Values'!$A$2:$AE$439,2,FALSE)),'Preliminary SO66'!Z27,VLOOKUP($CZ30,'Audit Values'!$A$2:$AE$439,26,FALSE)) -> 0 | N30: 174.8 | O30: =IF(ISNA(VLOOKUP($CZ30,'Audit Values'!$A$2:$AE$439,2,FALSE)),'Preliminary SO66'!C27,IF(VLOOKUP($CZ30,'Audit Values'!$A$2:$AE$439,28,FALSE)="",VLOOKUP($CZ30,'Audit Values'!$A$2:$AE$439,3,FALSE),VLOOKUP($CZ30,'Audit Values'!$A$2:$AE$439,28,FALSE))) -> 2.5 | P30: 172.5 | Q30: 172.5 | R30: 172.5 | S30: 177.3 | T30: 0 | U30: 143.5 | V30: 143.5 | W30: 0 | X30: =IF(ISNA(VLOOKUP($CZ30,'Audit Values'!$A$2:$AE$439,2,FALSE)),'Preliminary SO66'!D27,VLOOKUP($CZ30,'Audit Values'!$A$2:$AE$439,4,FALSE)) -> 59 | Y30: =ROUND((X30/6)*Weightings!$M$6,1) -> 4.9 | Z30: =IF(ISNA(VLOOKUP($CZ30,'Audit Values'!$A$2:$AE$439,2,FALSE)),'Preliminary SO66'!F27,VLOOKUP($CZ30,'Audit Values'!$A$2:$AE$439,6,FALSE)) -> 0 | AA30: =ROUND((Z30/6)*Weightings!$M$7,1) -> 0 | AB30: =IF(ISNA(VLOOKUP($CZ30,'Audit Values'!$A$2:$AE$439,2,FALSE)),'Preliminary SO66'!H27,VLOOKUP($CZ30,'Audit Values'!$A$2:$AE$439,8,FALSE)) -> 65 | AC30: =ROUND(AB30*Weightings!$M$8,1) -> 29.6 | AD30: 0.8 | AE30: 9 | AF30: =AE30*Weightings!$M$9 -> 0.4 | AG30: =IF(ISNA(VLOOKUP($CZ30,'Audit Values'!$A$2:$AE$439,2,FALSE)),'Preliminary SO66'!L27,VLOOKUP($CZ30,'Audit Values'!$A$2:$AE$439,12,FALSE)) -> 0 | AH30: =ROUND(AG30*Weightings!$M$10,1) -> 0 | AI30: =IF(ISNA(VLOOKUP($CZ30,'Audit Values'!$A$2:$AE$439,2,FALSE)),'Preliminary SO66'!O27,VLOOKUP($CZ30,'Audit Values'!$A$2:$AE$439,15,FALSE)) -> 88 | AJ30: 29.6 | AK30: =CC30/Weightings!$M$5 -> 0 | AL30: =CD30/Weightings!$M$5 -> 0 | AM30: =CH30/Weightings!$M$5 -> 0 | AN30: 0 | AO30: =IF(ISNA(VLOOKUP($CZ30,'Audit Values'!$A$2:$AE$439,2,FALSE)),'Preliminary SO66'!X27,VLOOKUP($CZ30,'Audit Values'!$A$2:$AE$439,24,FALSE)) -> 0 | AP30: 208108 | AQ30: =AP30/Weightings!$M$5 -> 54.2 | AR30: 386.1 | AS30: 440.3 | AT30: 440.3 | AU30: 0 | AV30: =IF(ISNA(VLOOKUP($CZ30,'Audit Values'!$A$2:$AC$360,2,FALSE)),"",IF(AND(Weightings!H30>0,VLOOKUP($CZ30,'Audit Values'!$A$2:$AC$360,29,FALSE)<Weightings!H30),Weightings!H30,VLOOKUP($CZ30,'Audit Values'!$A$2:$AC$360,29,FALSE))) -> 22 | AW30: =IF(ISNA(VLOOKUP($CZ30,'Audit Values'!$A$2:$AD$360,2,FALSE)),"",VLOOKUP($CZ30,'Audit Values'!$A$2:$AD$360,30,FALSE)) -> A | AX30: =IF(Weightings!G30="","",IF(Weightings!I30="Pending","PX","R")) ->  | AY30: =AR30*Weightings!$M$5+AU30 -> 1481852 | AZ30: =AT30*Weightings!$M$5+AU30 -> 1689871 | BA30: =IF(Weightings!G30>0,Weightings!G30,'Preliminary SO66'!AB27) -> 1808656 | BB30: 1689871 | BD30: =Weightings!E30 -> 0 | BE30: =Weightings!F30 -> 0 | BF30: 0 | BG30: 1689871 | BH30: =MAX(ROUND(((AR30-AO30)*4433)+AP30,0),ROUND(((AR30-AO30)*4433)+Weightings!B30,0)) -> 1958681 | BI30: 0.3 | BJ30: 587604 | BK30: 586009 | BL30: 586009 | BM30: 0.2992 | BN30: 0 | BO30: TRUE | BP30: 746.332 | BQ30: 0.80943 | BR30: 143.5 | BS30: FALSE | BT30: 0 | BU30: 0 | BV30: 0 | BW30: 0 | BX30: 263 | BY30: 0.33 | BZ30: =IF(ROUND((Weightings!$P$5*BY30^Weightings!$P$6*Weightings!$P$8 ),2)<Weightings!$P$7,Weightings!$P$7,ROUND((Weightings!$P$5*BY30^Weightings!$P$6*Weightings!$P$8 ),2)) -> 1290.63 | CA30: =ROUND(BZ30/Weightings!$M$5,4) -> 0.3363 | CB30: 29.6 | CC30: 0 | CD30: 0 | CE30: 0 | CF30: 0 | CG30: =AS30*Weightings!$M$5*CF30 -> 0 | CH30: 0 | CI30: 0.367 | CJ30: 0.7 | CK30: 0 | CL30: 0 | CM30: 0.8 | CN30: =IF(ISNA(VLOOKUP($CZ30,'Audit Values'!$A$2:$AE$439,2,FALSE)),'Preliminary SO66'!T27,VLOOKUP($CZ30,'Audit Values'!$A$2:$AE$439,20,FALSE)) -> 0 | CO30: 0 | CP30: 0 | CQ30: 0 | CR30: =IF(ISNA(VLOOKUP($CZ30,'Audit Values'!$A$2:$AE$439,2,FALSE)),'Preliminary SO66'!V27,VLOOKUP($CZ30,'Audit Values'!$A$2:$AE$439,22,FALSE)) -> 0 | CS30: 0 | CT30: =IF(ISNA(VLOOKUP($CZ30,'Audit Values'!$A$2:$AE$439,2,FALSE)),'Preliminary SO66'!W27,VLOOKUP($CZ30,'Audit Values'!$A$2:$AE$439,23,FALSE)) -> 0 | CU30: 0 | CV30: 0 | CW30: 0 | CX30: =IF(CW30>0,Weightings!$M$11*AR30,0) -> 0 | CY30: 0 | CZ30: D0212
A31: 214 | B31: Grant | C31: Ulysses | D31: 1559.8 | E31: 0 | F31: 1559.8 | G31: 1588.6 | H31: 0 | I31: 1588.6 | J31: 1640.5 | K31: =IF(ISNA(VLOOKUP($CZ31,'Audit Values'!$A$2:$AE$439,2,FALSE)),'Preliminary SO66'!B28,VLOOKUP($CZ31,'Audit Values'!$A$2:$AE$439,31,FALSE)) -> 1640.5 | L31: 1640.5 | M31: =IF(ISNA(VLOOKUP($CZ31,'Audit Values'!$A$2:$AE$439,2,FALSE)),'Preliminary SO66'!Z28,VLOOKUP($CZ31,'Audit Values'!$A$2:$AE$439,26,FALSE)) -> 0 | N31: 1640.5 | O31: =IF(ISNA(VLOOKUP($CZ31,'Audit Values'!$A$2:$AE$439,2,FALSE)),'Preliminary SO66'!C28,IF(VLOOKUP($CZ31,'Audit Values'!$A$2:$AE$439,28,FALSE)="",VLOOKUP($CZ31,'Audit Values'!$A$2:$AE$439,3,FALSE),VLOOKUP($CZ31,'Audit Values'!$A$2:$AE$439,28,FALSE))) -> 31 | P31: 1671.5 | Q31: 1671.5 | R31: 1671.5 | S31: 1671.5 | T31: 0 | U31: 58.6 | V31: 0 | W31: 58.6 | X31: =IF(ISNA(VLOOKUP($CZ31,'Audit Values'!$A$2:$AE$439,2,FALSE)),'Preliminary SO66'!D28,VLOOKUP($CZ31,'Audit Values'!$A$2:$AE$439,4,FALSE)) -> 238 | Y31: =ROUND((X31/6)*Weightings!$M$6,1) -> 19.8 | Z31: =IF(ISNA(VLOOKUP($CZ31,'Audit Values'!$A$2:$AE$439,2,FALSE)),'Preliminary SO66'!F28,VLOOKUP($CZ31,'Audit Values'!$A$2:$AE$439,6,FALSE)) -> 1417.9 | AA31: =ROUND((Z31/6)*Weightings!$M$7,1) -> 93.3 | AB31: =IF(ISNA(VLOOKUP($CZ31,'Audit Values'!$A$2:$AE$439,2,FALSE)),'Preliminary SO66'!H28,VLOOKUP($CZ31,'Audit Values'!$A$2:$AE$439,8,FALSE)) -> 867 | AC31: =ROUND(AB31*Weightings!$M$8,1) -> 395.4 | AD31: 91 | AE31: 153 | AF31: =AE31*Weightings!$M$9 -> 7.1 | AG31: =IF(ISNA(VLOOKUP($CZ31,'Audit Values'!$A$2:$AE$439,2,FALSE)),'Preliminary SO66'!L28,VLOOKUP($CZ31,'Audit Values'!$A$2:$AE$439,12,FALSE)) -> 0 | AH31: =ROUND(AG31*Weightings!$M$10,1) -> 0 | AI31: =IF(ISNA(VLOOKUP($CZ31,'Audit Values'!$A$2:$AE$439,2,FALSE)),'Preliminary SO66'!O28,VLOOKUP($CZ31,'Audit Values'!$A$2:$AE$439,15,FALSE)) -> 237 | AJ31: 73.9 | AK31: =CC31/Weightings!$M$5 -> 0 | AL31: =CD31/Weightings!$M$5 -> 0 | AM31: =CH31/Weightings!$M$5 -> 0 | AN31: 0 | AO31: =IF(ISNA(VLOOKUP($CZ31,'Audit Values'!$A$2:$AE$439,2,FALSE)),'Preliminary SO66'!X28,VLOOKUP($CZ31,'Audit Values'!$A$2:$AE$439,24,FALSE)) -> 1 | AP31: 892505 | AQ31: =AP31/Weightings!$M$5 -> 232.5 | AR31: 2411.6 | AS31: 2644.1 | AT31: 2644.1 | AU31: 0 | AV31: =IF(ISNA(VLOOKUP($CZ31,'Audit Values'!$A$2:$AC$360,2,FALSE)),"",IF(AND(Weightings!H31>0,VLOOKUP($CZ31,'Audit Values'!$A$2:$AC$360,29,FALSE)<Weightings!H31),Weightings!H31,VLOOKUP($CZ31,'Audit Values'!$A$2:$AC$360,29,FALSE))) -> 16 | AW31: =IF(ISNA(VLOOKUP($CZ31,'Audit Values'!$A$2:$AD$360,2,FALSE)),"",VLOOKUP($CZ31,'Audit Values'!$A$2:$AD$360,30,FALSE)) -> A | AX31: =IF(Weightings!G31="","",IF(Weightings!I31="Pending","PX","R")) -> R | AY31: =AR31*Weightings!$M$5+AU31 -> 9255721 | AZ31: =AT31*Weightings!$M$5+AU31 -> 10148056 | BA31: =IF(Weightings!G31>0,Weightings!G31,'Preliminary SO66'!AB28) -> 10151126 | BB31: 10148056 | BD31: =Weightings!E31 -> 0 | BE31: =Weightings!F31 -> 0 | BF31: 0 | BG31: 10148056 | BH31: =MAX(ROUND(((AR31-AO31)*4433)+AP31,0),ROUND(((AR31-AO31)*4433)+Weightings!B31,0)) -> 11680420 | BI31: 0.3 | BJ31: 3504126 | BK31: 3420475 | BL31: 3420475 | BM31: 0.2928 | BN31: 0 | BO31: FALSE | BP31: 0 | BQ31: 0 | BR31: 0 | BS31: FALSE | BT31: 0 | BU31: 0 | BV31: 0 | BW31: 58.6 | BX31: 517 | BY31: 0.46 | BZ31: =IF(ROUND((Weightings!$P$5*BY31^Weightings!$P$6*Weightings!$P$8 ),2)<Weightings!$P$7,Weightings!$P$7,ROUND((Weightings!$P$5*BY31^Weightings!$P$6*Weightings!$P$8 ),2)) -> 1196.46 | CA31: =ROUND(BZ31/Weightings!$M$5,4) -> 0.3117 | CB31: 73.9 | CC31: 0 | CD31: 0 | CE31: 0 | CF31: 0 | CG31: =AS31*Weightings!$M$5*CF31 -> 0 | CH31: 0 | CI31: 0.519 | CJ31: 3.2 | CK31: 91 | CL31: 0 | CM31: 0 | CN31: =IF(ISNA(VLOOKUP($CZ31,'Audit Values'!$A$2:$AE$439,2,FALSE)),'Preliminary SO66'!T28,VLOOKUP($CZ31,'Audit Values'!$A$2:$AE$439,20,FALSE)) -> 0 | CO31: 0 | CP31: 0 | CQ31: 0 | CR31: =IF(ISNA(VLOOKUP($CZ31,'Audit Values'!$A$2:$AE$439,2,FALSE)),'Preliminary SO66'!V28,VLOOKUP($CZ31,'Audit Values'!$A$2:$AE$439,22,FALSE)) -> 0 | CS31: 0 | CT31: =IF(ISNA(VLOOKUP($CZ31,'Audit Values'!$A$2:$AE$439,2,FALSE)),'Preliminary SO66'!W28,VLOOKUP($CZ31,'Audit Values'!$A$2:$AE$439,23,FALSE)) -> 0 | CU31: =CT31*0.08 -> 0 | CV31: =CO31+CQ31+CS31+CU31 -> 0 | CW31: 0 | CX31: =IF(CW31>0,Weightings!$M$11*AR31,0) -> 0 | CY31: 0 | CZ31: D0214
A32: 215 | B32: Kearny | C32: Lakin | D32: 617.5 | E32: 0 | F32: 617.5 | G32: 604.4 | H32: 0 | I32: 604.4 | J32: 631.4 | K32: =IF(ISNA(VLOOKUP($CZ32,'Audit Values'!$A$2:$AE$439,2,FALSE)),'Preliminary SO66'!B29,VLOOKUP($CZ32,'Audit Values'!$A$2:$AE$439,31,FALSE)) -> 631.4 | L32: 631.4 | M32: =IF(ISNA(VLOOKUP($CZ32,'Audit Values'!$A$2:$AE$439,2,FALSE)),'Preliminary SO66'!Z29,VLOOKUP($CZ32,'Audit Values'!$A$2:$AE$439,26,FALSE)) -> 0 | N32: 631.4 | O32: =IF(ISNA(VLOOKUP($CZ32,'Audit Values'!$A$2:$AE$439,2,FALSE)),'Preliminary SO66'!C29,IF(VLOOKUP($CZ32,'Audit Values'!$A$2:$AE$439,28,FALSE)="",VLOOKUP($CZ32,'Audit Values'!$A$2:$AE$439,3,FALSE),VLOOKUP($CZ32,'Audit Values'!$A$2:$AE$439,28,FALSE))) -> 6.5 | P32: 637.9 | Q32: 637.9 | R32: 637.9 | S32: 637.9 | T32: 0 | U32: 235.6 | V32: 235.6 | W32: 0 | X32: =IF(ISNA(VLOOKUP($CZ32,'Audit Values'!$A$2:$AE$439,2,FALSE)),'Preliminary SO66'!D29,VLOOKUP($CZ32,'Audit Values'!$A$2:$AE$439,4,FALSE)) -> 35.2 | Y32: =ROUND((X32/6)*Weightings!$M$6,1) -> 2.9 | Z32: =IF(ISNA(VLOOKUP($CZ32,'Audit Values'!$A$2:$AE$439,2,FALSE)),'Preliminary SO66'!F29,VLOOKUP($CZ32,'Audit Values'!$A$2:$AE$439,6,FALSE)) -> 798.5 | AA32: =ROUND((Z32/6)*Weightings!$M$7,1) -> 52.6 | AB32: =IF(ISNA(VLOOKUP($CZ32,'Audit Values'!$A$2:$AE$439,2,FALSE)),'Preliminary SO66'!H29,VLOOKUP($CZ32,'Audit Values'!$A$2:$AE$439,8,FALSE)) -> 291 | AC32: =ROUND(AB32*Weightings!$M$8,1) -> 132.7 | AD32: 21.6 | AE32: 33 | AF32: =AE32*Weightings!$M$9 -> 1.5 | AG32: =IF(ISNA(VLOOKUP($CZ32,'Audit Values'!$A$2:$AE$439,2,FALSE)),'Preliminary SO66'!L29,VLOOKUP($CZ32,'Audit Values'!$A$2:$AE$439,12,FALSE)) -> 0 | AH32: =ROUND(AG32*Weightings!$M$10,1) -> 0 | AI32: =IF(ISNA(VLOOKUP($CZ32,'Audit Values'!$A$2:$AE$439,2,FALSE)),'Preliminary SO66'!O29,VLOOKUP($CZ32,'Audit Values'!$A$2:$AE$439,15,FALSE)) -> 88 | AJ32: 36 | AK32: =CC32/Weightings!$M$5 -> 0 | AL32: =CD32/Weightings!$M$5 -> 0 | AM32: =CH32/Weightings!$M$5 -> 0 | AN32: 0 | AO32: =IF(ISNA(VLOOKUP($CZ32,'Audit Values'!$A$2:$AE$439,2,FALSE)),'Preliminary SO66'!X29,VLOOKUP($CZ32,'Audit Values'!$A$2:$AE$439,24,FALSE)) -> 0 | AP32: 349809 | AQ32: =AP32/Weightings!$M$5 -> 91.1 | AR32: 1120.8 | AS32: 1211.9 | AT32: 1211.9 | AU32: 0 | AV32: =IF(ISNA(VLOOKUP($CZ32,'Audit Values'!$A$2:$AC$360,2,FALSE)),"",IF(AND(Weightings!H32>0,VLOOKUP($CZ32,'Audit Values'!$A$2:$AC$360,29,FALSE)<Weightings!H32),Weightings!H32,VLOOKUP($CZ32,'Audit Values'!$A$2:$AC$360,29,FALSE))) -> 23 | AW32: =IF(ISNA(VLOOKUP($CZ32,'Audit Values'!$A$2:$AD$360,2,FALSE)),"",VLOOKUP($CZ32,'Audit Values'!$A$2:$AD$360,30,FALSE)) -> A | AX32: =IF(Weightings!G32="","",IF(Weightings!I32="Pending","PX","R")) -> R | AY32: =AR32*Weightings!$M$5+AU32 -> 4301630 | AZ32: =AT32*Weightings!$M$5+AU32 -> 4651272 | BA32: =IF(Weightings!G32>0,Weightings!G32,'Preliminary SO66'!AB29) -> 4665089 | BB32: 4651272 | BD32: =Weightings!E32 -> -3105 | BE32: =Weightings!F32 -> 0 | BF32: -3105 | BG32: 4648167 | BH32: =MAX(ROUND(((AR32-AO32)*4433)+AP32,0),ROUND(((AR32-AO32)*4433)+Weightings!B32,0)) -> 5365057 | BI32: 0.3 | BJ32: 1609517 | BK32: 1578265 | BL32: 1578265 | BM32: 0.2942 | BN32: 0 | BO32: FALSE | BP32: 0 | BQ32: 0 | BR32: 0 | BS32: TRUE | BT32: 418.1513 | BU32: 0.369385 | BV32: 235.6 | BW32: 0 | BX32: 646 | BY32: 0.14 | BZ32: =IF(ROUND((Weightings!$P$5*BY32^Weightings!$P$6*Weightings!$P$8 ),2)<Weightings!$P$7,Weightings!$P$7,ROUND((Weightings!$P$5*BY32^Weightings!$P$6*Weightings!$P$8 ),2)) -> 1569.43 | CA32: =ROUND(BZ32/Weightings!$M$5,4) -> 0.4089 | CB32: 36 | CC32: 0 | CD32: 0 | CE32: 0 | CF32: 0 | CG32: =AS32*Weightings!$M$5*CF32 -> 0 | CH32: 0 | CI32: 0.456 | CJ32: 1 | CK32: 0 | CL32: 0 | CM32: 21.6 | CN32: =IF(ISNA(VLOOKUP($CZ32,'Audit Values'!$A$2:$AE$439,2,FALSE)),'Preliminary SO66'!T29,VLOOKUP($CZ32,'Audit Values'!$A$2:$AE$439,20,FALSE)) -> 0 | CO32: 0 | CP32: 0 | CQ32: 0 | CR32: =IF(ISNA(VLOOKUP($CZ32,'Audit Values'!$A$2:$AE$439,2,FALSE)),'Preliminary SO66'!V29,VLOOKUP($CZ32,'Audit Values'!$A$2:$AE$439,22,FALSE)) -> 0 | CS32: 0 | CT32: =IF(ISNA(VLOOKUP($CZ32,'Audit Values'!$A$2:$AE$439,2,FALSE)),'Preliminary SO66'!W29,VLOOKUP($CZ32,'Audit Values'!$A$2:$AE$439,23,FALSE)) -> 0 | CU32: 0 | CV32: 0 | CW32: 0 | CX32: =IF(CW32>0,Weightings!$M$11*AR32,0) -> 0 | CY32: 0 | CZ32: D0215
A33: 216 | B33: Kearny | C33: Deerfield | D33: 243 | E33: 0 | F33: 243 | G33: 214 | H33: 0 | I33: 214 | J33: 235.3 | K33: =IF(ISNA(VLOOKUP($CZ33,'Audit Values'!$A$2:$AE$439,2,FALSE)),'Preliminary SO66'!B30,VLOOKUP($CZ33,'Audit Values'!$A$2:$AE$439,31,FALSE)) -> 231.5 | L33: 231.5 | M33: =IF(ISNA(VLOOKUP($CZ33,'Audit Values'!$A$2:$AE$439,2,FALSE)),'Preliminary SO66'!Z30,VLOOKUP($CZ33,'Audit Values'!$A$2:$AE$439,26,FALSE)) -> 0 | N33: 231.5 | O33: =IF(ISNA(VLOOKUP($CZ33,'Audit Values'!$A$2:$AE$439,2,FALSE)),'Preliminary SO66'!C30,IF(VLOOKUP($CZ33,'Audit Values'!$A$2:$AE$439,28,FALSE)="",VLOOKUP($CZ33,'Audit Values'!$A$2:$AE$439,3,FALSE),VLOOKUP($CZ33,'Audit Values'!$A$2:$AE$439,28,FALSE))) -> 6 | P33: 237.5 | Q33: 241.3 | R33: 241.3 | S33: 237.5 | T33: 3.8 | U33: 154.3 | V33: 154.3 | W33: 0 | X33: =IF(ISNA(VLOOKUP($CZ33,'Audit Values'!$A$2:$AE$439,2,FALSE)),'Preliminary SO66'!D30,VLOOKUP($CZ33,'Audit Values'!$A$2:$AE$439,4,FALSE)) -> 63.4 | Y33: =ROUND((X33/6)*Weightings!$M$6,1) -> 5.3 | Z33: =IF(ISNA(VLOOKUP($CZ33,'Audit Values'!$A$2:$AE$439,2,FALSE)),'Preliminary SO66'!F30,VLOOKUP($CZ33,'Audit Values'!$A$2:$AE$439,6,FALSE)) -> 491.5 | AA33: =ROUND((Z33/6)*Weightings!$M$7,1) -> 32.4 | AB33: =IF(ISNA(VLOOKUP($CZ33,'Audit Values'!$A$2:$AE$439,2,FALSE)),'Preliminary SO66'!H30,VLOOKUP($CZ33,'Audit Values'!$A$2:$AE$439,8,FALSE)) -> 167 | AC33: =ROUND(AB33*Weightings!$M$8,1) -> 76.2 | AD33: 17.5 | AE33: 19 | AF33: =AE33*Weightings!$M$9 -> 0.9 | AG33: =IF(ISNA(VLOOKUP($CZ33,'Audit Values'!$A$2:$AE$439,2,FALSE)),'Preliminary SO66'!L30,VLOOKUP($CZ33,'Audit Values'!$A$2:$AE$439,12,FALSE)) -> 0 | AH33: =ROUND(AG33*Weightings!$M$10,1) -> 0 | AI33: =IF(ISNA(VLOOKUP($CZ33,'Audit Values'!$A$2:$AE$439,2,FALSE)),'Preliminary SO66'!O30,VLOOKUP($CZ33,'Audit Values'!$A$2:$AE$439,15,FALSE)) -> 22 | AJ33: 9.7 | AK33: =CC33/Weightings!$M$5 -> 0 | AL33: =CD33/Weightings!$M$5 -> 0 | AM33: =CH33/Weightings!$M$5 -> 0 | AN33: 4 | AO33: =IF(ISNA(VLOOKUP($CZ33,'Audit Values'!$A$2:$AE$439,2,FALSE)),'Preliminary SO66'!X30,VLOOKUP($CZ33,'Audit Values'!$A$2:$AE$439,24,FALSE)) -> 0 | AP33: 140779 | AQ33: =AP33/Weightings!$M$5 -> 36.7 | AR33: 537.8 | AS33: 574.5 | AT33: 574.5 | AU33: 0 | AV33: =IF(ISNA(VLOOKUP($CZ33,'Audit Values'!$A$2:$AC$360,2,FALSE)),"",IF(AND(Weightings!H33>0,VLOOKUP($CZ33,'Audit Values'!$A$2:$AC$360,29,FALSE)<Weightings!H33),Weightings!H33,VLOOKUP($CZ33,'Audit Values'!$A$2:$AC$360,29,FALSE))) -> 22 | AW33: =IF(ISNA(VLOOKUP($CZ33,'Audit Values'!$A$2:$AD$360,2,FALSE)),"",VLOOKUP($CZ33,'Audit Values'!$A$2:$AD$360,30,FALSE)) -> A | AX33: =IF(Weightings!G33="","",IF(Weightings!I33="Pending","PX","R")) ->  | AY33: =AR33*Weightings!$M$5+AU33 -> 2064076 | AZ33: =AT33*Weightings!$M$5+AU33 -> 2204931 | BA33: =IF(Weightings!G33>0,Weightings!G33,'Preliminary SO66'!AB30) -> 2279772 | BB33: 2204931 | BD33: =Weightings!E33 -> 0 | BE33: =Weightings!F33 -> 0 | BF33: 0 | BG33: 2204931 | BH33: =MAX(ROUND(((AR33-AO33)*4433)+AP33,0),ROUND(((AR33-AO33)*4433)+Weightings!B33,0)) -> 2589956 | BI33: 0.3 | BJ33: 776987 | BK33: 803186 | BL33: 776987 | BM33: 0.3 | BN33: 0 | BO33: TRUE | BP33: 1327.563 | BQ33: 0.649856 | BR33: 154.3 | BS33: FALSE | BT33: 0 | BU33: 0 | BV33: 0 | BW33: 0 | BX33: 216 | BY33: 0.1 | BZ33: =IF(ROUND((Weightings!$P$5*BY33^Weightings!$P$6*Weightings!$P$8 ),2)<Weightings!$P$7,Weightings!$P$7,ROUND((Weightings!$P$5*BY33^Weightings!$P$6*Weightings!$P$8 ),2)) -> 1694.63 | CA33: =ROUND(BZ33/Weightings!$M$5,4) -> 0.4415 | CB33: 9.7 | CC33: 0 | CD33: 0 | CE33: 0 | CF33: 0 | CG33: =AS33*Weightings!$M$5*CF33 -> 0 | CH33: 0 | CI33: 0.703 | CJ33: 1.1 | CK33: 17.5 | CL33: 0 | CM33: 0 | CN33: =IF(ISNA(VLOOKUP($CZ33,'Audit Values'!$A$2:$AE$439,2,FALSE)),'Preliminary SO66'!T30,VLOOKUP($CZ33,'Audit Values'!$A$2:$AE$439,20,FALSE)) -> 3.8 | CO33: 4 | CP33: 0 | CQ33: 0 | CR33: =IF(ISNA(VLOOKUP($CZ33,'Audit Values'!$A$2:$AE$439,2,FALSE)),'Preliminary SO66'!V30,VLOOKUP($CZ33,'Audit Values'!$A$2:$AE$439,22,FALSE)) -> 0 | CS33: 0 | CT33: =IF(ISNA(VLOOKUP($CZ33,'Audit Values'!$A$2:$AE$439,2,FALSE)),'Preliminary SO66'!W30,VLOOKUP($CZ33,'Audit Values'!$A$2:$AE$439,23,FALSE)) -> 0 | CU33: 0 | CV33: 4 | CW33: 0 | CX33: =IF(CW33>0,Weightings!$M$11*AR33,0) -> 0 | CY33: 0 | CZ33: D0216
A34: 217 | B34: Morton | C34: Rolla | D34: 171.5 | E34: 0 | F34: 171.5 | G34: 182.4 | H34: 0 | I34: 182.4 | J34: 177.8 | K34: =IF(ISNA(VLOOKUP($CZ34,'Audit Values'!$A$2:$AE$439,2,FALSE)),'Preliminary SO66'!B31,VLOOKUP($CZ34,'Audit Values'!$A$2:$AE$439,31,FALSE)) -> 176.4 | L34: 182.4 | M34: =IF(ISNA(VLOOKUP($CZ34,'Audit Values'!$A$2:$AE$439,2,FALSE)),'Preliminary SO66'!Z31,VLOOKUP($CZ34,'Audit Values'!$A$2:$AE$439,26,FALSE)) -> 0 | N34: 182.4 | O34: =IF(ISNA(VLOOKUP($CZ34,'Audit Values'!$A$2:$AE$439,2,FALSE)),'Preliminary SO66'!C31,IF(VLOOKUP($CZ34,'Audit Values'!$A$2:$AE$439,28,FALSE)="",VLOOKUP($CZ34,'Audit Values'!$A$2:$AE$439,3,FALSE),VLOOKUP($CZ34,'Audit Values'!$A$2:$AE$439,28,FALSE))) -> 0 | P34: 176.4 | Q34: 177.8 | R34: 177.8 | S34: 182.4 | T34: 1.4 | U34: 145.2 | V34: 145.2 | W34: 0 | X34: =IF(ISNA(VLOOKUP($CZ34,'Audit Values'!$A$2:$AE$439,2,FALSE)),'Preliminary SO66'!D31,VLOOKUP($CZ34,'Audit Values'!$A$2:$AE$439,4,FALSE)) -> 66.7 | Y34: =ROUND((X34/6)*Weightings!$M$6,1) -> 5.6 | Z34: =IF(ISNA(VLOOKUP($CZ34,'Audit Values'!$A$2:$AE$439,2,FALSE)),'Preliminary SO66'!F31,VLOOKUP($CZ34,'Audit Values'!$A$2:$AE$439,6,FALSE)) -> 194.5 | AA34: =ROUND((Z34/6)*Weightings!$M$7,1) -> 12.8 | AB34: =IF(ISNA(VLOOKUP($CZ34,'Audit Values'!$A$2:$AE$439,2,FALSE)),'Preliminary SO66'!H31,VLOOKUP($CZ34,'Audit Values'!$A$2:$AE$439,8,FALSE)) -> 62 | AC34: =ROUND(AB34*Weightings!$M$8,1) -> 28.3 | AD34: 0 | AE34: 16 | AF34: =AE34*Weightings!$M$9 -> 0.7 | AG34: =IF(ISNA(VLOOKUP($CZ34,'Audit Values'!$A$2:$AE$439,2,FALSE)),'Preliminary SO66'!L31,VLOOKUP($CZ34,'Audit Values'!$A$2:$AE$439,12,FALSE)) -> 0 | AH34: =ROUND(AG34*Weightings!$M$10,1) -> 0 | AI34: =IF(ISNA(VLOOKUP($CZ34,'Audit Values'!$A$2:$AE$439,2,FALSE)),'Preliminary SO66'!O31,VLOOKUP($CZ34,'Audit Values'!$A$2:$AE$439,15,FALSE)) -> 37 | AJ34: 14.9 | AK34: =CC34/Weightings!$M$5 -> 0 | AL34: =CD34/Weightings!$M$5 -> 0 | AM34: =CH34/Weightings!$M$5 -> 0 | AN34: 1.5 | AO34: =IF(ISNA(VLOOKUP($CZ34,'Audit Values'!$A$2:$AE$439,2,FALSE)),'Preliminary SO66'!X31,VLOOKUP($CZ34,'Audit Values'!$A$2:$AE$439,24,FALSE)) -> 0 | AP34: 119459 | AQ34: =AP34/Weightings!$M$5 -> 31.1 | AR34: 391.4 | AS34: 422.5 | AT34: 422.5 | AU34: 0 | AV34: =IF(ISNA(VLOOKUP($CZ34,'Audit Values'!$A$2:$AC$360,2,FALSE)),"",IF(AND(Weightings!H34>0,VLOOKUP($CZ34,'Audit Values'!$A$2:$AC$360,29,FALSE)<Weightings!H34),Weightings!H34,VLOOKUP($CZ34,'Audit Values'!$A$2:$AC$360,29,FALSE))) -> 2 | AW34: =IF(ISNA(VLOOKUP($CZ34,'Audit Values'!$A$2:$AD$360,2,FALSE)),"",VLOOKUP($CZ34,'Audit Values'!$A$2:$AD$360,30,FALSE)) -> A | AX34: =IF(Weightings!G34="","",IF(Weightings!I34="Pending","PX","R")) ->  | AY34: =AR34*Weightings!$M$5+AU34 -> 1502193 | AZ34: =AT34*Weightings!$M$5+AU34 -> 1621555 | BA34: =IF(Weightings!G34>0,Weightings!G34,'Preliminary SO66'!AB31) -> 1633069 | BB34: 1621555 | BD34: =Weightings!E34 -> -2907 | BE34: =Weightings!F34 -> 0 | BF34: -2907 | BG34: 1618648 | BH34: =MAX(ROUND(((AR34-AO34)*4433)+AP34,0),ROUND(((AR34-AO34)*4433)+Weightings!B34,0)) -> 1881416 | BI34: 0.3 | BJ34: 564425 | BK34: 568814 | BL34: 564425 | BM34: 0.3 | BN34: 0 | BO34: TRUE | BP34: 795.572 | BQ34: 0.795911 | BR34: 145.2 | BS34: FALSE | BT34: 0 | BU34: 0 | BV34: 0 | BW34: 0 | BX34: 252 | BY34: 0.15 | BZ34: =IF(ROUND((Weightings!$P$5*BY34^Weightings!$P$6*Weightings!$P$8 ),2)<Weightings!$P$7,Weightings!$P$7,ROUND((Weightings!$P$5*BY34^Weightings!$P$6*Weightings!$P$8 ),2)) -> 1544.93 | CA34: =ROUND(BZ34/Weightings!$M$5,4) -> 0.4025 | CB34: 14.9 | CC34: 0 | CD34: 0 | CE34: 0 | CF34: 0 | CG34: =AS34*Weightings!$M$5*CF34 -> 0 | CH34: 0 | CI34: 0.34 | CJ34: 0.7 | CK34: 0 | CL34: 0 | CM34: 0 | CN34: =IF(ISNA(VLOOKUP($CZ34,'Audit Values'!$A$2:$AE$439,2,FALSE)),'Preliminary SO66'!T31,VLOOKUP($CZ34,'Audit Values'!$A$2:$AE$439,20,FALSE)) -> 1.4 | CO34: 1.5 | CP34: 0 | CQ34: 0 | CR34: =IF(ISNA(VLOOKUP($CZ34,'Audit Values'!$A$2:$AE$439,2,FALSE)),'Preliminary SO66'!V31,VLOOKUP($CZ34,'Audit Values'!$A$2:$AE$439,22,FALSE)) -> 0 | CS34: 0 | CT34: =IF(ISNA(VLOOKUP($CZ34,'Audit Values'!$A$2:$AE$439,2,FALSE)),'Preliminary SO66'!W31,VLOOKUP($CZ34,'Audit Values'!$A$2:$AE$439,23,FALSE)) -> 0 | CU34: 0 | CV34: 1.5 | CW34: 0 | CX34: =IF(CW34>0,Weightings!$M$11*AR34,0) -> 0 | CY34: 0 | CZ34: D0217
A35: 218 | B35: Morton | C35: Elkhart | D35: 497.1 | E35: 0 | F35: 497.1 | G35: 489.4 | H35: 0 | I35: 489.4 | J35: 1128.5 | K35: =IF(ISNA(VLOOKUP($CZ35,'Audit Values'!$A$2:$AE$439,2,FALSE)),'Preliminary SO66'!B32,VLOOKUP($CZ35,'Audit Values'!$A$2:$AE$439,31,FALSE)) -> 494.1 | L35: 494.1 | M35: =IF(ISNA(VLOOKUP($CZ35,'Audit Values'!$A$2:$AE$439,2,FALSE)),'Preliminary SO66'!Z32,VLOOKUP($CZ35,'Audit Values'!$A$2:$AE$439,26,FALSE)) -> 0 | N35: 494.1 | O35: =IF(ISNA(VLOOKUP($CZ35,'Audit Values'!$A$2:$AE$439,2,FALSE)),'Preliminary SO66'!C32,IF(VLOOKUP($CZ35,'Audit Values'!$A$2:$AE$439,28,FALSE)="",VLOOKUP($CZ35,'Audit Values'!$A$2:$AE$439,3,FALSE),VLOOKUP($CZ35,'Audit Values'!$A$2:$AE$439,28,FALSE))) -> 8.5 | P35: 502.6 | Q35: 1137 | R35: 1137 | S35: 502.6 | T35: 634.4 | U35: 208.8 | V35: 208.8 | W35: 0 | X35: =IF(ISNA(VLOOKUP($CZ35,'Audit Values'!$A$2:$AE$439,2,FALSE)),'Preliminary SO66'!D32,VLOOKUP($CZ35,'Audit Values'!$A$2:$AE$439,4,FALSE)) -> 92.7 | Y35: =ROUND((X35/6)*Weightings!$M$6,1) -> 7.7 | Z35: =IF(ISNA(VLOOKUP($CZ35,'Audit Values'!$A$2:$AE$439,2,FALSE)),'Preliminary SO66'!F32,VLOOKUP($CZ35,'Audit Values'!$A$2:$AE$439,6,FALSE)) -> 464.4 | AA35: =ROUND((Z35/6)*Weightings!$M$7,1) -> 30.6 | AB35: =IF(ISNA(VLOOKUP($CZ35,'Audit Values'!$A$2:$AE$439,2,FALSE)),'Preliminary SO66'!H32,VLOOKUP($CZ35,'Audit Values'!$A$2:$AE$439,8,FALSE)) -> 247 | AC35: =ROUND(AB35*Weightings!$M$8,1) -> 112.6 | AD35: 24.4 | AE35: 23 | AF35: =AE35*Weightings!$M$9 -> 1.1 | AG35: =IF(ISNA(VLOOKUP($CZ35,'Audit Values'!$A$2:$AE$439,2,FALSE)),'Preliminary SO66'!L32,VLOOKUP($CZ35,'Audit Values'!$A$2:$AE$439,12,FALSE)) -> 0 | AH35: =ROUND(AG35*Weightings!$M$10,1) -> 0 | AI35: =IF(ISNA(VLOOKUP($CZ35,'Audit Values'!$A$2:$AE$439,2,FALSE)),'Preliminary SO66'!O32,VLOOKUP($CZ35,'Audit Values'!$A$2:$AE$439,15,FALSE)) -> 34 | AJ35: 15.4 | AK35: =CC35/Weightings!$M$5 -> 0 | AL35: =CD35/Weightings!$M$5 -> 0 | AM35: =CH35/Weightings!$M$5 -> 0 | AN35: 688.9 | AO35: =IF(ISNA(VLOOKUP($CZ35,'Audit Values'!$A$2:$AE$439,2,FALSE)),'Preliminary SO66'!X32,VLOOKUP($CZ35,'Audit Values'!$A$2:$AE$439,24,FALSE)) -> 0 | AP35: 292176 | AQ35: =AP35/Weightings!$M$5 -> 76.1 | AR35: 1592.1 | AS35: 1668.2 | AT35: 1668.2 | AU35: 0 | AV35: =IF(ISNA(VLOOKUP($CZ35,'Audit Values'!$A$2:$AC$360,2,FALSE)),"",IF(AND(Weightings!H35>0,VLOOKUP($CZ35,'Audit Values'!$A$2:$AC$360,29,FALSE)<Weightings!H35),Weightings!H35,VLOOKUP($CZ35,'Audit Values'!$A$2:$AC$360,29,FALSE))) -> 24 | AW35: =IF(ISNA(VLOOKUP($CZ35,'Audit Values'!$A$2:$AD$360,2,FALSE)),"",VLOOKUP($CZ35,'Audit Values'!$A$2:$AD$360,30,FALSE)) -> A | AX35: =IF(Weightings!G35="","",IF(Weightings!I35="Pending","PX","R")) ->  | AY35: =AR35*Weightings!$M$5+AU35 -> 6110480 | AZ35: =AT35*Weightings!$M$5+AU35 -> 6402552 | BA35: =IF(Weightings!G35>0,Weightings!G35,'Preliminary SO66'!AB32) -> 6832791 | BB35: 6402552 | BD35: =Weightings!E35 -> 0 | BE35: =Weightings!F35 -> 0 | BF35: 0 | BG35: 6402552 | BH35: =MAX(ROUND(((AR35-AO35)*4433)+AP35,0),ROUND(((AR35-AO35)*4433)+Weightings!B35,0)) -> 7448568 | BI35: 0.3 | BJ35: 2234570 | BK35: 2372747 | BL35: 2234570 | BM35: 0.3 | BN35: 0 | BO35: FALSE | BP35: 0 | BQ35: 0 | BR35: 0 | BS35: TRUE | BT35: 250.7175 | BU35: 0.415353 | BV35: 208.8 | BW35: 0 | BX35: 376 | BY35: 0.09 | BZ35: =IF(ROUND((Weightings!$P$5*BY35^Weightings!$P$6*Weightings!$P$8 ),2)<Weightings!$P$7,Weightings!$P$7,ROUND((Weightings!$P$5*BY35^Weightings!$P$6*Weightings!$P$8 ),2)) -> 1735.85 | CA35: =ROUND(BZ35/Weightings!$M$5,4) -> 0.4523 | CB35: 15.4 | CC35: 0 | CD35: 0 | CE35: 0 | CF35: 0 | CG35: =AS35*Weightings!$M$5*CF35 -> 0 | CH35: 0 | CI35: 0.491 | CJ35: 1.3 | CK35: 0 | CL35: 0 | CM35: 24.4 | CN35: =IF(ISNA(VLOOKUP($CZ35,'Audit Values'!$A$2:$AE$439,2,FALSE)),'Preliminary SO66'!T32,VLOOKUP($CZ35,'Audit Values'!$A$2:$AE$439,20,FALSE)) -> 634.4 | CO35: 666.1 | CP35: 91 | CQ35: 22.8 | CR35: =IF(ISNA(VLOOKUP($CZ35,'Audit Values'!$A$2:$AE$439,2,FALSE)),'Preliminary SO66'!V32,VLOOKUP($CZ35,'Audit Values'!$A$2:$AE$439,22,FALSE)) -> 0 | CS35: 0 | CT35: =IF(ISNA(VLOOKUP($CZ35,'Audit Values'!$A$2:$AE$439,2,FALSE)),'Preliminary SO66'!W32,VLOOKUP($CZ35,'Audit Values'!$A$2:$AE$439,23,FALSE)) -> 0 | CU35: 0 | CV35: 688.9 | CW35: 0 | CX35: =IF(CW35>0,Weightings!$M$11*AR35,0) -> 0 | CY35: 0 | CZ35: D0218
A36: 219 | B36: Clark | C36: Minneola | D36: 263 | E36: 0 | F36: 263 | G36: 255 | H36: 0 | I36: 255 | J36: 249 | K36: =IF(ISNA(VLOOKUP($CZ36,'Audit Values'!$A$2:$AE$439,2,FALSE)),'Preliminary SO66'!B33,VLOOKUP($CZ36,'Audit Values'!$A$2:$AE$439,31,FALSE)) -> 249 | L36: 255.7 | M36: =IF(ISNA(VLOOKUP($CZ36,'Audit Values'!$A$2:$AE$439,2,FALSE)),'Preliminary SO66'!Z33,VLOOKUP($CZ36,'Audit Values'!$A$2:$AE$439,26,FALSE)) -> 0 | N36: 255.7 | O36: =IF(ISNA(VLOOKUP($CZ36,'Audit Values'!$A$2:$AE$439,2,FALSE)),'Preliminary SO66'!C33,IF(VLOOKUP($CZ36,'Audit Values'!$A$2:$AE$439,28,FALSE)="",VLOOKUP($CZ36,'Audit Values'!$A$2:$AE$439,3,FALSE),VLOOKUP($CZ36,'Audit Values'!$A$2:$AE$439,28,FALSE))) -> 0 | P36: 249 | Q36: 249 | R36: 249 | S36: 255.7 | T36: 0 | U36: 153.8 | V36: 153.8 | W36: 0 | X36: =IF(ISNA(VLOOKUP($CZ36,'Audit Values'!$A$2:$AE$439,2,FALSE)),'Preliminary SO66'!D33,VLOOKUP($CZ36,'Audit Values'!$A$2:$AE$439,4,FALSE)) -> 0 | Y36: =ROUND((X36/6)*Weightings!$M$6,1) -> 0 | Z36: =IF(ISNA(VLOOKUP($CZ36,'Audit Values'!$A$2:$AE$439,2,FALSE)),'Preliminary SO66'!F33,VLOOKUP($CZ36,'Audit Values'!$A$2:$AE$439,6,FALSE)) -> 0 | AA36: =ROUND((Z36/6)*Weightings!$M$7,1) -> 0 | AB36: =IF(ISNA(VLOOKUP($CZ36,'Audit Values'!$A$2:$AE$439,2,FALSE)),'Preliminary SO66'!H33,VLOOKUP($CZ36,'Audit Values'!$A$2:$AE$439,8,FALSE)) -> 103 | AC36: =ROUND(AB36*Weightings!$M$8,1) -> 47 | AD36: 3.8 | AE36: 32 | AF36: =AE36*Weightings!$M$9 -> 1.5 | AG36: =IF(ISNA(VLOOKUP($CZ36,'Audit Values'!$A$2:$AE$439,2,FALSE)),'Preliminary SO66'!L33,VLOOKUP($CZ36,'Audit Values'!$A$2:$AE$439,12,FALSE)) -> 0 | AH36: =ROUND(AG36*Weightings!$M$10,1) -> 0 | AI36: =IF(ISNA(VLOOKUP($CZ36,'Audit Values'!$A$2:$AE$439,2,FALSE)),'Preliminary SO66'!O33,VLOOKUP($CZ36,'Audit Values'!$A$2:$AE$439,15,FALSE)) -> 50 | AJ36: 19.6 | AK36: =CC36/Weightings!$M$5 -> 0 | AL36: =CD36/Weightings!$M$5 -> 0 | AM36: =CH36/Weightings!$M$5 -> 0 | AN36: 0 | AO36: =IF(ISNA(VLOOKUP($CZ36,'Audit Values'!$A$2:$AE$439,2,FALSE)),'Preliminary SO66'!X33,VLOOKUP($CZ36,'Audit Values'!$A$2:$AE$439,24,FALSE)) -> 0 | AP36: 180273 | AQ36: =AP36/Weightings!$M$5 -> 47 | AR36: 481.4 | AS36: 528.4 | AT36: 528.4 | AU36: 0 | AV36: =IF(ISNA(VLOOKUP($CZ36,'Audit Values'!$A$2:$AC$360,2,FALSE)),"",IF(AND(Weightings!H36>0,VLOOKUP($CZ36,'Audit Values'!$A$2:$AC$360,29,FALSE)<Weightings!H36),Weightings!H36,VLOOKUP($CZ36,'Audit Values'!$A$2:$AC$360,29,FALSE))) -> 15 | AW36: =IF(ISNA(VLOOKUP($CZ36,'Audit Values'!$A$2:$AD$360,2,FALSE)),"",VLOOKUP($CZ36,'Audit Values'!$A$2:$AD$360,30,FALSE)) -> A | AX36: =IF(Weightings!G36="","",IF(Weightings!I36="Pending","PX","R")) ->  | AY36: =AR36*Weightings!$M$5+AU36 -> 1847613 | AZ36: =AT36*Weightings!$M$5+AU36 -> 2027999 | BA36: =IF(Weightings!G36>0,Weightings!G36,'Preliminary SO66'!AB33) -> 2107446 | BB36: 2027999 | BD36: =Weightings!E36 -> 0 | BE36: =Weightings!F36 -> 0 | BF36: 0 | BG36: 2027999 | BH36: =MAX(ROUND(((AR36-AO36)*4433)+AP36,0),ROUND(((AR36-AO36)*4433)+Weightings!B36,0)) -> 2381869 | BI36: 0.3 | BJ36: 714561 | BK36: 709000 | BL36: 709000 | BM36: 0.2977 | BN36: 0 | BO36: TRUE | BP36: 1503.284 | BQ36: 0.601613 | BR36: 153.8 | BS36: FALSE | BT36: 0 | BU36: 0 | BV36: 0 | BW36: 0 | BX36: 292 | BY36: 0.17 | BZ36: =IF(ROUND((Weightings!$P$5*BY36^Weightings!$P$6*Weightings!$P$8 ),2)<Weightings!$P$7,Weightings!$P$7,ROUND((Weightings!$P$5*BY36^Weightings!$P$6*Weightings!$P$8 ),2)) -> 1501.44 | CA36: =ROUND(BZ36/Weightings!$M$5,4) -> 0.3912 | CB36: 19.6 | CC36: 0 | CD36: 0 | CE36: 0 | CF36: 0 | CG36: =AS36*Weightings!$M$5*CF36 -> 0 | CH36: 0 | CI36: 0.403 | CJ36: 0.9 | CK36: 0 | CL36: 0 | CM36: 3.8 | CN36: =IF(ISNA(VLOOKUP($CZ36,'Audit Values'!$A$2:$AE$439,2,FALSE)),'Preliminary SO66'!T33,VLOOKUP($CZ36,'Audit Values'!$A$2:$AE$439,20,FALSE)) -> 0 | CO36: 0 | CP36: 0 | CQ36: 0 | CR36: =IF(ISNA(VLOOKUP($CZ36,'Audit Values'!$A$2:$AE$439,2,FALSE)),'Preliminary SO66'!V33,VLOOKUP($CZ36,'Audit Values'!$A$2:$AE$439,22,FALSE)) -> 0 | CS36: 0 | CT36: =IF(ISNA(VLOOKUP($CZ36,'Audit Values'!$A$2:$AE$439,2,FALSE)),'Preliminary SO66'!W33,VLOOKUP($CZ36,'Audit Values'!$A$2:$AE$439,23,FALSE)) -> 0 | CU36: 0 | CV36: 0 | CW36: 0 | CX36: =IF(CW36>0,Weightings!$M$11*AR36,0) -> 0 | CY36: 0 | CZ36: D0219
A37: 220 | B37: Clark | C37: Ashland | D37: 206.4 | E37: 0 | F37: 206.4 | G37: 183.6 | H37: 0 | I37: 183.6 | J37: 194.4 | K37: =IF(ISNA(VLOOKUP($CZ37,'Audit Values'!$A$2:$AE$439,2,FALSE)),'Preliminary SO66'!B34,VLOOKUP($CZ37,'Audit Values'!$A$2:$AE$439,31,FALSE)) -> 194.4 | L37: 194.8 | M37: =IF(ISNA(VLOOKUP($CZ37,'Audit Values'!$A$2:$AE$439,2,FALSE)),'Preliminary SO66'!Z34,VLOOKUP($CZ37,'Audit Values'!$A$2:$AE$439,26,FALSE)) -> 0 | N37: 194.8 | O37: =IF(ISNA(VLOOKUP($CZ37,'Audit Values'!$A$2:$AE$439,2,FALSE)),'Preliminary SO66'!C34,IF(VLOOKUP($CZ37,'Audit Values'!$A$2:$AE$439,28,FALSE)="",VLOOKUP($CZ37,'Audit Values'!$A$2:$AE$439,3,FALSE),VLOOKUP($CZ37,'Audit Values'!$A$2:$AE$439,28,FALSE))) -> 1.5 | P37: 195.9 | Q37: 195.9 | R37: 195.9 | S37: 196.3 | T37: 0 | U37: 149 | V37: 149 | W37: 0 | X37: =IF(ISNA(VLOOKUP($CZ37,'Audit Values'!$A$2:$AE$439,2,FALSE)),'Preliminary SO66'!D34,VLOOKUP($CZ37,'Audit Values'!$A$2:$AE$439,4,FALSE)) -> 21.7 | Y37: =ROUND((X37/6)*Weightings!$M$6,1) -> 1.8 | Z37: =IF(ISNA(VLOOKUP($CZ37,'Audit Values'!$A$2:$AE$439,2,FALSE)),'Preliminary SO66'!F34,VLOOKUP($CZ37,'Audit Values'!$A$2:$AE$439,6,FALSE)) -> 32.3 | AA37: =ROUND((Z37/6)*Weightings!$M$7,1) -> 2.1 | AB37: =IF(ISNA(VLOOKUP($CZ37,'Audit Values'!$A$2:$AE$439,2,FALSE)),'Preliminary SO66'!H34,VLOOKUP($CZ37,'Audit Values'!$A$2:$AE$439,8,FALSE)) -> 75 | AC37: =ROUND(AB37*Weightings!$M$8,1) -> 34.2 | AD37: 1.7 | AE37: 12 | AF37: =AE37*Weightings!$M$9 -> 0.6 | AG37: =IF(ISNA(VLOOKUP($CZ37,'Audit Values'!$A$2:$AE$439,2,FALSE)),'Preliminary SO66'!L34,VLOOKUP($CZ37,'Audit Values'!$A$2:$AE$439,12,FALSE)) -> 0 | AH37: =ROUND(AG37*Weightings!$M$10,1) -> 0 | AI37: =IF(ISNA(VLOOKUP($CZ37,'Audit Values'!$A$2:$AE$439,2,FALSE)),'Preliminary SO66'!O34,VLOOKUP($CZ37,'Audit Values'!$A$2:$AE$439,15,FALSE)) -> 45 | AJ37: 21.6 | AK37: =CC37/Weightings!$M$5 -> 0 | AL37: =CD37/Weightings!$M$5 -> 0 | AM37: =CH37/Weightings!$M$5 -> 0 | AN37: 0 | AO37: =IF(ISNA(VLOOKUP($CZ37,'Audit Values'!$A$2:$AE$439,2,FALSE)),'Preliminary SO66'!X34,VLOOKUP($CZ37,'Audit Values'!$A$2:$AE$439,24,FALSE)) -> 0 | AP37: 148233 | AQ37: =AP37/Weightings!$M$5 -> 38.6 | AR37: 407.3 | AS37: 445.9 | AT37: 445.9 | AU37: 0 | AV37: =IF(ISNA(VLOOKUP($CZ37,'Audit Values'!$A$2:$AC$360,2,FALSE)),"",IF(AND(Weightings!H37>0,VLOOKUP($CZ37,'Audit Values'!$A$2:$AC$360,29,FALSE)<Weightings!H37),Weightings!H37,VLOOKUP($CZ37,'Audit Values'!$A$2:$AC$360,29,FALSE))) -> 15 | AW37: =IF(ISNA(VLOOKUP($CZ37,'Audit Values'!$A$2:$AD$360,2,FALSE)),"",VLOOKUP($CZ37,'Audit Values'!$A$2:$AD$360,30,FALSE)) -> A | AX37: =IF(Weightings!G37="","",IF(Weightings!I37="Pending","PX","R")) ->  | AY37: =AR37*Weightings!$M$5+AU37 -> 1563217 | AZ37: =AT37*Weightings!$M$5+AU37 -> 1711364 | BA37: =IF(Weightings!G37>0,Weightings!G37,'Preliminary SO66'!AB34) -> 1805779 | BB37: 1711364 | BD37: =Weightings!E37 -> 0 | BE37: =Weightings!F37 -> 0 | BF37: 0 | BG37: 1711364 | BH37: =MAX(ROUND(((AR37-AO37)*4433)+AP37,0),ROUND(((AR37-AO37)*4433)+Weightings!B37,0)) -> 2004242 | BI37: 0.3 | BJ37: 601273 | BK37: 627073 | BL37: 601273 | BM37: 0.3 | BN37: 0 | BO37: TRUE | BP37: 929.777 | BQ37: 0.759066 | BR37: 149 | BS37: FALSE | BT37: 0 | BU37: 0 | BV37: 0 | BW37: 0 | BX37: 660 | BY37: 0.07 | BZ37: =IF(ROUND((Weightings!$P$5*BY37^Weightings!$P$6*Weightings!$P$8 ),2)<Weightings!$P$7,Weightings!$P$7,ROUND((Weightings!$P$5*BY37^Weightings!$P$6*Weightings!$P$8 ),2)) -> 1838.27 | CA37: =ROUND(BZ37/Weightings!$M$5,4) -> 0.479 | CB37: 21.6 | CC37: 0 | CD37: 0 | CE37: 0 | CF37: 0 | CG37: =AS37*Weightings!$M$5*CF37 -> 0 | CH37: 0 | CI37: 0.382 | CJ37: 0.3 | CK37: 0 | CL37: 0 | CM37: 1.7 | CN37: =IF(ISNA(VLOOKUP($CZ37,'Audit Values'!$A$2:$AE$439,2,FALSE)),'Preliminary SO66'!T34,VLOOKUP($CZ37,'Audit Values'!$A$2:$AE$439,20,FALSE)) -> 0 | CO37: 0 | CP37: 0 | CQ37: 0 | CR37: =IF(ISNA(VLOOKUP($CZ37,'Audit Values'!$A$2:$AE$439,2,FALSE)),'Preliminary SO66'!V34,VLOOKUP($CZ37,'Audit Values'!$A$2:$AE$439,22,FALSE)) -> 0 | CS37: 0 | CT37: =IF(ISNA(VLOOKUP($CZ37,'Audit Values'!$A$2:$AE$439,2,FALSE)),'Preliminary SO66'!W34,VLOOKUP($CZ37,'Audit Values'!$A$2:$AE$439,23,FALSE)) -> 0 | CU37: 0 | CV37: 0 | CW37: 0 | CX37: =IF(CW37>0,Weightings!$M$11*AR37,0) -> 0 | CY37: 0 | CZ37: D0220
A38: 223 | B38: Washington | C38: Barnes | D38: 357.3 | E38: 0 | F38: 357.3 | G38: 373.2 | H38: 0 | I38: 373.2 | J38: 374.8 | K38: =IF(ISNA(VLOOKUP($CZ38,'Audit Values'!$A$2:$AE$439,2,FALSE)),'Preliminary SO66'!B35,VLOOKUP($CZ38,'Audit Values'!$A$2:$AE$439,31,FALSE)) -> 374.8 | L38: 374.8 | M38: =IF(ISNA(VLOOKUP($CZ38,'Audit Values'!$A$2:$AE$439,2,FALSE)),'Preliminary SO66'!Z35,VLOOKUP($CZ38,'Audit Values'!$A$2:$AE$439,26,FALSE)) -> 0 | N38: 374.8 | O38: =IF(ISNA(VLOOKUP($CZ38,'Audit Values'!$A$2:$AE$439,2,FALSE)),'Preliminary SO66'!C35,IF(VLOOKUP($CZ38,'Audit Values'!$A$2:$AE$439,28,FALSE)="",VLOOKUP($CZ38,'Audit Values'!$A$2:$AE$439,3,FALSE),VLOOKUP($CZ38,'Audit Values'!$A$2:$AE$439,28,FALSE))) -> 0 | P38: 374.8 | Q38: 374.8 | R38: 374.8 | S38: 374.8 | T38: 0 | U38: 171.9 | V38: 171.9 | W38: 0 | X38: =IF(ISNA(VLOOKUP($CZ38,'Audit Values'!$A$2:$AE$439,2,FALSE)),'Preliminary SO66'!D35,VLOOKUP($CZ38,'Audit Values'!$A$2:$AE$439,4,FALSE)) -> 160.6 | Y38: =ROUND((X38/6)*Weightings!$M$6,1) -> 13.4 | Z38: =IF(ISNA(VLOOKUP($CZ38,'Audit Values'!$A$2:$AE$439,2,FALSE)),'Preliminary SO66'!F35,VLOOKUP($CZ38,'Audit Values'!$A$2:$AE$439,6,FALSE)) -> 51.6 | AA38: =ROUND((Z38/6)*Weightings!$M$7,1) -> 3.4 | AB38: =IF(ISNA(VLOOKUP($CZ38,'Audit Values'!$A$2:$AE$439,2,FALSE)),'Preliminary SO66'!H35,VLOOKUP($CZ38,'Audit Values'!$A$2:$AE$439,8,FALSE)) -> 138 | AC38: =ROUND(AB38*Weightings!$M$8,1) -> 62.9 | AD38: 1.7 | AE38: 22 | AF38: =AE38*Weightings!$M$9 -> 1 | AG38: =IF(ISNA(VLOOKUP($CZ38,'Audit Values'!$A$2:$AE$439,2,FALSE)),'Preliminary SO66'!L35,VLOOKUP($CZ38,'Audit Values'!$A$2:$AE$439,12,FALSE)) -> 0 | AH38: =ROUND(AG38*Weightings!$M$10,1) -> 0 | AI38: =IF(ISNA(VLOOKUP($CZ38,'Audit Values'!$A$2:$AE$439,2,FALSE)),'Preliminary SO66'!O35,VLOOKUP($CZ38,'Audit Values'!$A$2:$AE$439,15,FALSE)) -> 138.7 | AJ38: 45.4 | AK38: =CC38/Weightings!$M$5 -> 0 | AL38: =CD38/Weightings!$M$5 -> 0 | AM38: =CH38/Weightings!$M$5 -> 0 | AN38: 0 | AO38: =IF(ISNA(VLOOKUP($CZ38,'Audit Values'!$A$2:$AE$439,2,FALSE)),'Preliminary SO66'!X35,VLOOKUP($CZ38,'Audit Values'!$A$2:$AE$439,24,FALSE)) -> 0 | AP38: 450586 | AQ38: =AP38/Weightings!$M$5 -> 117.4 | AR38: 674.5 | AS38: 791.9 | AT38: 791.9 | AU38: 0 | AV38: =IF(ISNA(VLOOKUP($CZ38,'Audit Values'!$A$2:$AC$360,2,FALSE)),"",IF(AND(Weightings!H38>0,VLOOKUP($CZ38,'Audit Values'!$A$2:$AC$360,29,FALSE)<Weightings!H38),Weightings!H38,VLOOKUP($CZ38,'Audit Values'!$A$2:$AC$360,29,FALSE))) -> 2 | AW38: =IF(ISNA(VLOOKUP($CZ38,'Audit Values'!$A$2:$AD$360,2,FALSE)),"",VLOOKUP($CZ38,'Audit Values'!$A$2:$AD$360,30,FALSE)) -> A | AX38: =IF(Weightings!G38="","",IF(Weightings!I38="Pending","PX","R")) ->  | AY38: =AR38*Weightings!$M$5+AU38 -> 2588731 | AZ38: =AT38*Weightings!$M$5+AU38 -> 3039312 | BA38: =IF(Weightings!G38>0,Weightings!G38,'Preliminary SO66'!AB35) -> 3150614 | BB38: 3039312 | BD38: =Weightings!E38 -> 0 | BE38: =Weightings!F38 -> 0 | BF38: 0 | BG38: 3039312 | BH38: =MAX(ROUND(((AR38-AO38)*4433)+AP38,0),ROUND(((AR38-AO38)*4433)+Weightings!B38,0)) -> 3440645 | BI38: 0.3 | BJ38: 1032194 | BK38: 1068108 | BL38: 1032194 | BM38: 0.3 | BN38: 0 | BO38: FALSE | BP38: 0 | BQ38: 0 | BR38: 0 | BS38: TRUE | BT38: 92.565 | BU38: 0.458773 | BV38: 171.9 | BW38: 0 | BX38: 378 | BY38: 0.37 | BZ38: =IF(ROUND((Weightings!$P$5*BY38^Weightings!$P$6*Weightings!$P$8 ),2)<Weightings!$P$7,Weightings!$P$7,ROUND((Weightings!$P$5*BY38^Weightings!$P$6*Weightings!$P$8 ),2)) -> 1257.38 | CA38: =ROUND(BZ38/Weightings!$M$5,4) -> 0.3276 | CB38: 45.4 | CC38: 0 | CD38: 0 | CE38: 0 | CF38: 0 | CG38: =AS38*Weightings!$M$5*CF38 -> 0 | CH38: 0 | CI38: 0.368 | CJ38: 1 | CK38: 0 | CL38: 0 | CM38: 1.7 | CN38: =IF(ISNA(VLOOKUP($CZ38,'Audit Values'!$A$2:$AE$439,2,FALSE)),'Preliminary SO66'!T35,VLOOKUP($CZ38,'Audit Values'!$A$2:$AE$439,20,FALSE)) -> 0 | CO38: 0 | CP38: 0 | CQ38: 0 | CR38: =IF(ISNA(VLOOKUP($CZ38,'Audit Values'!$A$2:$AE$439,2,FALSE)),'Preliminary SO66'!V35,VLOOKUP($CZ38,'Audit Values'!$A$2:$AE$439,22,FALSE)) -> 0 | CS38: 0 | CT38: =IF(ISNA(VLOOKUP($CZ38,'Audit Values'!$A$2:$AE$439,2,FALSE)),'Preliminary SO66'!W35,VLOOKUP($CZ38,'Audit Values'!$A$2:$AE$439,23,FALSE)) -> 0 | CU38: 0 | CV38: 0 | CW38: 0 | CX38: =IF(CW38>0,Weightings!$M$11*AR38,0) -> 0 | CY38: 0 | CZ38: D0223
A39: 224 | B39: Washington | C39: Clifton-Clyde | D39: 288.5 | E39: 0 | F39: 288.5 | G39: 301.5 | H39: 0 | I39: 301.5 | J39: 305.5 | K39: =IF(ISNA(VLOOKUP($CZ39,'Audit Values'!$A$2:$AE$439,2,FALSE)),'Preliminary SO66'!B36,VLOOKUP($CZ39,'Audit Values'!$A$2:$AE$439,31,FALSE)) -> 305.5 | L39: 305.5 | M39: =IF(ISNA(VLOOKUP($CZ39,'Audit Values'!$A$2:$AE$439,2,FALSE)),'Preliminary SO66'!Z36,VLOOKUP($CZ39,'Audit Values'!$A$2:$AE$439,26,FALSE)) -> 0 | N39: 305.5 | O39: =IF(ISNA(VLOOKUP($CZ39,'Audit Values'!$A$2:$AE$439,2,FALSE)),'Preliminary SO66'!C36,IF(VLOOKUP($CZ39,'Audit Values'!$A$2:$AE$439,28,FALSE)="",VLOOKUP($CZ39,'Audit Values'!$A$2:$AE$439,3,FALSE),VLOOKUP($CZ39,'Audit Values'!$A$2:$AE$439,28,FALSE))) -> 1 | P39: 306.5 | Q39: 306.5 | R39: 306.5 | S39: 306.5 | T39: 0 | U39: 147.7 | V39: 147.7 | W39: 0 | X39: =IF(ISNA(VLOOKUP($CZ39,'Audit Values'!$A$2:$AE$439,2,FALSE)),'Preliminary SO66'!D36,VLOOKUP($CZ39,'Audit Values'!$A$2:$AE$439,4,FALSE)) -> 112.8 | Y39: =ROUND((X39/6)*Weightings!$M$6,1) -> 9.4 | Z39: =IF(ISNA(VLOOKUP($CZ39,'Audit Values'!$A$2:$AE$439,2,FALSE)),'Preliminary SO66'!F36,VLOOKUP($CZ39,'Audit Values'!$A$2:$AE$439,6,FALSE)) -> 0 | AA39: =ROUND((Z39/6)*Weightings!$M$7,1) -> 0 | AB39: =IF(ISNA(VLOOKUP($CZ39,'Audit Values'!$A$2:$AE$439,2,FALSE)),'Preliminary SO66'!H36,VLOOKUP($CZ39,'Audit Values'!$A$2:$AE$439,8,FALSE)) -> 73 | AC39: =ROUND(AB39*Weightings!$M$8,1) -> 33.3 | AD39: 0 | AE39: 37 | AF39: =AE39*Weightings!$M$9 -> 1.7 | AG39: =IF(ISNA(VLOOKUP($CZ39,'Audit Values'!$A$2:$AE$439,2,FALSE)),'Preliminary SO66'!L36,VLOOKUP($CZ39,'Audit Values'!$A$2:$AE$439,12,FALSE)) -> 0 | AH39: =ROUND(AG39*Weightings!$M$10,1) -> 0 | AI39: =IF(ISNA(VLOOKUP($CZ39,'Audit Values'!$A$2:$AE$439,2,FALSE)),'Preliminary SO66'!O36,VLOOKUP($CZ39,'Audit Values'!$A$2:$AE$439,15,FALSE)) -> 186 | AJ39: 52.2 | AK39: =CC39/Weightings!$M$5 -> 0 | AL39: =CD39/Weightings!$M$5 -> 0 | AM39: =CH39/Weightings!$M$5 -> 0 | AN39: 0 | AO39: =IF(ISNA(VLOOKUP($CZ39,'Audit Values'!$A$2:$AE$439,2,FALSE)),'Preliminary SO66'!X36,VLOOKUP($CZ39,'Audit Values'!$A$2:$AE$439,24,FALSE)) -> 0 | AP39: 286498 | AQ39: =AP39/Weightings!$M$5 -> 74.6 | AR39: 550.8 | AS39: 625.4 | AT39: 625.4 | AU39: 0 | AV39: =IF(ISNA(VLOOKUP($CZ39,'Audit Values'!$A$2:$AC$360,2,FALSE)),"",IF(AND(Weightings!H39>0,VLOOKUP($CZ39,'Audit Values'!$A$2:$AC$360,29,FALSE)<Weightings!H39),Weightings!H39,VLOOKUP($CZ39,'Audit Values'!$A$2:$AC$360,29,FALSE))) -> 24 | AW39: =IF(ISNA(VLOOKUP($CZ39,'Audit Values'!$A$2:$AD$360,2,FALSE)),"",VLOOKUP($CZ39,'Audit Values'!$A$2:$AD$360,30,FALSE)) -> A | AX39: =IF(Weightings!G39="","",IF(Weightings!I39="Pending","PX","R")) ->  | AY39: =AR39*Weightings!$M$5+AU39 -> 2113970 | AZ39: =AT39*Weightings!$M$5+AU39 -> 2400285 | BA39: =IF(Weightings!G39>0,Weightings!G39,'Preliminary SO66'!AB36) -> 2490094 | BB39: 2400285 | BD39: =Weightings!E39 -> 0 | BE39: =Weightings!F39 -> 0 | BF39: 0 | BG39: 2400285 | BH39: =MAX(ROUND(((AR39-AO39)*4433)+AP39,0),ROUND(((AR39-AO39)*4433)+Weightings!B39,0)) -> 2789554 | BI39: 0.3 | BJ39: 836866 | BK39: 775000 | BL39: 775000 | BM39: 0.2778 | BN39: 0 | BO39: FALSE | BP39: 0 | BQ39: 0 | BR39: 0 | BS39: TRUE | BT39: 8.0438 | BU39: 0.481978 | BV39: 147.7 | BW39: 0 | BX39: 255 | BY39: 0.73 | BZ39: =IF(ROUND((Weightings!$P$5*BY39^Weightings!$P$6*Weightings!$P$8 ),2)<Weightings!$P$7,Weightings!$P$7,ROUND((Weightings!$P$5*BY39^Weightings!$P$6*Weightings!$P$8 ),2)) -> 1076.84 | CA39: =ROUND(BZ39/Weightings!$M$5,4) -> 0.2806 | CB39: 52.2 | CC39: 0 | CD39: 0 | CE39: 0 | CF39: 0 | CG39: =AS39*Weightings!$M$5*CF39 -> 0 | CH39: 0 | CI39: 0.238 | CJ39: 1.2 | CK39: 0 | CL39: 0 | CM39: 0 | CN39: =IF(ISNA(VLOOKUP($CZ39,'Audit Values'!$A$2:$AE$439,2,FALSE)),'Preliminary SO66'!T36,VLOOKUP($CZ39,'Audit Values'!$A$2:$AE$439,20,FALSE)) -> 0 | CO39: 0 | CP39: 0 | CQ39: 0 | CR39: =IF(ISNA(VLOOKUP($CZ39,'Audit Values'!$A$2:$AE$439,2,FALSE)),'Preliminary SO66'!V36,VLOOKUP($CZ39,'Audit Values'!$A$2:$AE$439,22,FALSE)) -> 0 | CS39: 0 | CT39: =IF(ISNA(VLOOKUP($CZ39,'Audit Values'!$A$2:$AE$439,2,FALSE)),'Preliminary SO66'!W36,VLOOKUP($CZ39,'Audit Values'!$A$2:$AE$439,23,FALSE)) -> 0 | CU39: 0 | CV39: 0 | CW39: 0 | CX39: =IF(CW39>0,Weightings!$M$11*AR39,0) -> 0 | CY39: 0 | CZ39: D0224
A40: 225 | B40: Meade | C40: Fowler | D40: 153.5 | E40: 0 | F40: 153.5 | G40: 165 | H40: 0 | I40: 165 | J40: 154 | K40: =IF(ISNA(VLOOKUP($CZ40,'Audit Values'!$A$2:$AE$439,2,FALSE)),'Preliminary SO66'!B37,VLOOKUP($CZ40,'Audit Values'!$A$2:$AE$439,31,FALSE)) -> 154 | L40: 165 | M40: =IF(ISNA(VLOOKUP($CZ40,'Audit Values'!$A$2:$AE$439,2,FALSE)),'Preliminary SO66'!Z37,VLOOKUP($CZ40,'Audit Values'!$A$2:$AE$439,26,FALSE)) -> 0 | N40: 165 | O40: =IF(ISNA(VLOOKUP($CZ40,'Audit Values'!$A$2:$AE$439,2,FALSE)),'Preliminary SO66'!C37,IF(VLOOKUP($CZ40,'Audit Values'!$A$2:$AE$439,28,FALSE)="",VLOOKUP($CZ40,'Audit Values'!$A$2:$AE$439,3,FALSE),VLOOKUP($CZ40,'Audit Values'!$A$2:$AE$439,28,FALSE))) -> 2 | P40: 156 | Q40: 156 | R40: 156 | S40: 167 | T40: 0 | U40: 139.7 | V40: 139.7 | W40: 0 | X40: =IF(ISNA(VLOOKUP($CZ40,'Audit Values'!$A$2:$AE$439,2,FALSE)),'Preliminary SO66'!D37,VLOOKUP($CZ40,'Audit Values'!$A$2:$AE$439,4,FALSE)) -> 0 | Y40: =ROUND((X40/6)*Weightings!$M$6,1) -> 0 | Z40: =IF(ISNA(VLOOKUP($CZ40,'Audit Values'!$A$2:$AE$439,2,FALSE)),'Preliminary SO66'!F37,VLOOKUP($CZ40,'Audit Values'!$A$2:$AE$439,6,FALSE)) -> 28.2 | AA40: =ROUND((Z40/6)*Weightings!$M$7,1) -> 1.9 | AB40: =IF(ISNA(VLOOKUP($CZ40,'Audit Values'!$A$2:$AE$439,2,FALSE)),'Preliminary SO66'!H37,VLOOKUP($CZ40,'Audit Values'!$A$2:$AE$439,8,FALSE)) -> 65 | AC40: =ROUND(AB40*Weightings!$M$8,1) -> 29.6 | AD40: 1.8 | AE40: 10 | AF40: =AE40*Weightings!$M$9 -> 0.5 | AG40: =IF(ISNA(VLOOKUP($CZ40,'Audit Values'!$A$2:$AE$439,2,FALSE)),'Preliminary SO66'!L37,VLOOKUP($CZ40,'Audit Values'!$A$2:$AE$439,12,FALSE)) -> 0 | AH40: =ROUND(AG40*Weightings!$M$10,1) -> 0 | AI40: =IF(ISNA(VLOOKUP($CZ40,'Audit Values'!$A$2:$AE$439,2,FALSE)),'Preliminary SO66'!O37,VLOOKUP($CZ40,'Audit Values'!$A$2:$AE$439,15,FALSE)) -> 30 | AJ40: 13 | AK40: =CC40/Weightings!$M$5 -> 0 | AL40: =CD40/Weightings!$M$5 -> 0 | AM40: =CH40/Weightings!$M$5 -> 0 | AN40: 0 | AO40: =IF(ISNA(VLOOKUP($CZ40,'Audit Values'!$A$2:$AE$439,2,FALSE)),'Preliminary SO66'!X37,VLOOKUP($CZ40,'Audit Values'!$A$2:$AE$439,24,FALSE)) -> 0 | AP40: 117974 | AQ40: =AP40/Weightings!$M$5 -> 30.7 | AR40: 353.5 | AS40: 384.2 | AT40: 384.2 | AU40: 0 | AV40: =IF(ISNA(VLOOKUP($CZ40,'Audit Values'!$A$2:$AC$360,2,FALSE)),"",IF(AND(Weightings!H40>0,VLOOKUP($CZ40,'Audit Values'!$A$2:$AC$360,29,FALSE)<Weightings!H40),Weightings!H40,VLOOKUP($CZ40,'Audit Values'!$A$2:$AC$360,29,FALSE))) -> 15 | AW40: =IF(ISNA(VLOOKUP($CZ40,'Audit Values'!$A$2:$AD$360,2,FALSE)),"",VLOOKUP($CZ40,'Audit Values'!$A$2:$AD$360,30,FALSE)) -> A | AX40: =IF(Weightings!G40="","",IF(Weightings!I40="Pending","PX","R")) ->  | AY40: =AR40*Weightings!$M$5+AU40 -> 1356733 | AZ40: =AT40*Weightings!$M$5+AU40 -> 1474560 | BA40: =IF(Weightings!G40>0,Weightings!G40,'Preliminary SO66'!AB37) -> 1514475 | BB40: 1474560 | BD40: =Weightings!E40 -> 0 | BE40: =Weightings!F40 -> 0 | BF40: 0 | BG40: 1474560 | BH40: =MAX(ROUND(((AR40-AO40)*4433)+AP40,0),ROUND(((AR40-AO40)*4433)+Weightings!B40,0)) -> 1719853 | BI40: 0.3 | BJ40: 515956 | BK40: 524733 | BL40: 515956 | BM40: 0.3 | BN40: 0 | BO40: TRUE | BP40: 646.885 | BQ40: 0.836733 | BR40: 139.7 | BS40: FALSE | BT40: 0 | BU40: 0 | BV40: 0 | BW40: 0 | BX40: 281 | BY40: 0.11 | BZ40: =IF(ROUND((Weightings!$P$5*BY40^Weightings!$P$6*Weightings!$P$8 ),2)<Weightings!$P$7,Weightings!$P$7,ROUND((Weightings!$P$5*BY40^Weightings!$P$6*Weightings!$P$8 ),2)) -> 1658.19 | CA40: =ROUND(BZ40/Weightings!$M$5,4) -> 0.432 | CB40: 13 | CC40: 0 | CD40: 0 | CE40: 0 | CF40: 0 | CG40: =AS40*Weightings!$M$5*CF40 -> 0 | CH40: 0 | CI40: 0.389 | CJ40: 0.6 | CK40: 0 | CL40: 0 | CM40: 1.8 | CN40: =IF(ISNA(VLOOKUP($CZ40,'Audit Values'!$A$2:$AE$439,2,FALSE)),'Preliminary SO66'!T37,VLOOKUP($CZ40,'Audit Values'!$A$2:$AE$439,20,FALSE)) -> 0 | CO40: 0 | CP40: 0 | CQ40: 0 | CR40: =IF(ISNA(VLOOKUP($CZ40,'Audit Values'!$A$2:$AE$439,2,FALSE)),'Preliminary SO66'!V37,VLOOKUP($CZ40,'Audit Values'!$A$2:$AE$439,22,FALSE)) -> 0 | CS40: 0 | CT40: =IF(ISNA(VLOOKUP($CZ40,'Audit Values'!$A$2:$AE$439,2,FALSE)),'Preliminary SO66'!W37,VLOOKUP($CZ40,'Audit Values'!$A$2:$AE$439,23,FALSE)) -> 0 | CU40: 0 | CV40: 0 | CW40: 0 | CX40: =IF(CW40>0,Weightings!$M$11*AR40,0) -> 0 | CY40: 0 | CZ40: D0225
A41: 226 | B41: Meade | C41: Meade | D41: 440.8 | E41: 0 | F41: 440.8 | G41: 416.3 | H41: 0 | I41: 416.3 | J41: 406.1 | K41: =IF(ISNA(VLOOKUP($CZ41,'Audit Values'!$A$2:$AE$439,2,FALSE)),'Preliminary SO66'!B38,VLOOKUP($CZ41,'Audit Values'!$A$2:$AE$439,31,FALSE)) -> 406.1 | L41: 421.1 | M41: =IF(ISNA(VLOOKUP($CZ41,'Audit Values'!$A$2:$AE$439,2,FALSE)),'Preliminary SO66'!Z38,VLOOKUP($CZ41,'Audit Values'!$A$2:$AE$439,26,FALSE)) -> 0 | N41: 421.1 | O41: =IF(ISNA(VLOOKUP($CZ41,'Audit Values'!$A$2:$AE$439,2,FALSE)),'Preliminary SO66'!C38,IF(VLOOKUP($CZ41,'Audit Values'!$A$2:$AE$439,28,FALSE)="",VLOOKUP($CZ41,'Audit Values'!$A$2:$AE$439,3,FALSE),VLOOKUP($CZ41,'Audit Values'!$A$2:$AE$439,28,FALSE))) -> 3 | P41: 409.1 | Q41: 409.1 | R41: 409.1 | S41: 424.1 | T41: 0 | U41: 187.5 | V41: 187.5 | W41: 0 | X41: =IF(ISNA(VLOOKUP($CZ41,'Audit Values'!$A$2:$AE$439,2,FALSE)),'Preliminary SO66'!D38,VLOOKUP($CZ41,'Audit Values'!$A$2:$AE$439,4,FALSE)) -> 67.5 | Y41: =ROUND((X41/6)*Weightings!$M$6,1) -> 5.6 | Z41: =IF(ISNA(VLOOKUP($CZ41,'Audit Values'!$A$2:$AE$439,2,FALSE)),'Preliminary SO66'!F38,VLOOKUP($CZ41,'Audit Values'!$A$2:$AE$439,6,FALSE)) -> 31.6 | AA41: =ROUND((Z41/6)*Weightings!$M$7,1) -> 2.1 | AB41: =IF(ISNA(VLOOKUP($CZ41,'Audit Values'!$A$2:$AE$439,2,FALSE)),'Preliminary SO66'!H38,VLOOKUP($CZ41,'Audit Values'!$A$2:$AE$439,8,FALSE)) -> 142 | AC41: =ROUND(AB41*Weightings!$M$8,1) -> 64.8 | AD41: 0 | AE41: 24 | AF41: =AE41*Weightings!$M$9 -> 1.1 | AG41: =IF(ISNA(VLOOKUP($CZ41,'Audit Values'!$A$2:$AE$439,2,FALSE)),'Preliminary SO66'!L38,VLOOKUP($CZ41,'Audit Values'!$A$2:$AE$439,12,FALSE)) -> 0 | AH41: =ROUND(AG41*Weightings!$M$10,1) -> 0 | AI41: =IF(ISNA(VLOOKUP($CZ41,'Audit Values'!$A$2:$AE$439,2,FALSE)),'Preliminary SO66'!O38,VLOOKUP($CZ41,'Audit Values'!$A$2:$AE$439,15,FALSE)) -> 69.5 | AJ41: 27.6 | AK41: =CC41/Weightings!$M$5 -> 0 | AL41: =CD41/Weightings!$M$5 -> 0 | AM41: =CH41/Weightings!$M$5 -> 0 | AN41: 0 | AO41: =IF(ISNA(VLOOKUP($CZ41,'Audit Values'!$A$2:$AE$439,2,FALSE)),'Preliminary SO66'!X38,VLOOKUP($CZ41,'Audit Values'!$A$2:$AE$439,24,FALSE)) -> 0 | AP41: 313514 | AQ41: =AP41/Weightings!$M$5 -> 81.7 | AR41: 712.8 | AS41: 794.5 | AT41: 794.5 | AU41: 0 | AV41: =IF(ISNA(VLOOKUP($CZ41,'Audit Values'!$A$2:$AC$360,2,FALSE)),"",IF(AND(Weightings!H41>0,VLOOKUP($CZ41,'Audit Values'!$A$2:$AC$360,29,FALSE)<Weightings!H41),Weightings!H41,VLOOKUP($CZ41,'Audit Values'!$A$2:$AC$360,29,FALSE))) -> 15 | AW41: =IF(ISNA(VLOOKUP($CZ41,'Audit Values'!$A$2:$AD$360,2,FALSE)),"",VLOOKUP($CZ41,'Audit Values'!$A$2:$AD$360,30,FALSE)) -> A | AX41: =IF(Weightings!G41="","",IF(Weightings!I41="Pending","PX","R")) ->  | AY41: =AR41*Weightings!$M$5+AU41 -> 2735726 | AZ41: =AT41*Weightings!$M$5+AU41 -> 3049291 | BA41: =IF(Weightings!G41>0,Weightings!G41,'Preliminary SO66'!AB38) -> 3149579 | BB41: 3049291 | BD41: =Weightings!E41 -> 0 | BE41: =Weightings!F41 -> 0 | BF41: 0 | BG41: 3049291 | BH41: =MAX(ROUND(((AR41-AO41)*4433)+AP41,0),ROUND(((AR41-AO41)*4433)+Weightings!B41,0)) -> 3553436 | BI41: 0.3 | BJ41: 1066031 | BK41: 1074276 | BL41: 1066031 | BM41: 0.3 | BN41: 0 | BO41: FALSE | BP41: 0 | BQ41: 0 | BR41: 0 | BS41: TRUE | BT41: 153.5738 | BU41: 0.442023 | BV41: 187.5 | BW41: 0 | BX41: 440 | BY41: 0.16 | BZ41: =IF(ROUND((Weightings!$P$5*BY41^Weightings!$P$6*Weightings!$P$8 ),2)<Weightings!$P$7,Weightings!$P$7,ROUND((Weightings!$P$5*BY41^Weightings!$P$6*Weightings!$P$8 ),2)) -> 1522.35 | CA41: =ROUND(BZ41/Weightings!$M$5,4) -> 0.3967 | CB41: 27.6 | CC41: 0 | CD41: 0 | CE41: 0 | CF41: 0 | CG41: =AS41*Weightings!$M$5*CF41 -> 0 | CH41: 0 | CI41: 0.335 | CJ41: 1 | CK41: 0 | CL41: 0 | CM41: 0 | CN41: =IF(ISNA(VLOOKUP($CZ41,'Audit Values'!$A$2:$AE$439,2,FALSE)),'Preliminary SO66'!T38,VLOOKUP($CZ41,'Audit Values'!$A$2:$AE$439,20,FALSE)) -> 0 | CO41: 0 | CP41: 0 | CQ41: 0 | CR41: =IF(ISNA(VLOOKUP($CZ41,'Audit Values'!$A$2:$AE$439,2,FALSE)),'Preliminary SO66'!V38,VLOOKUP($CZ41,'Audit Values'!$A$2:$AE$439,22,FALSE)) -> 0 | CS41: 0 | CT41: =IF(ISNA(VLOOKUP($CZ41,'Audit Values'!$A$2:$AE$439,2,FALSE)),'Preliminary SO66'!W38,VLOOKUP($CZ41,'Audit Values'!$A$2:$AE$439,23,FALSE)) -> 0 | CU41: 0 | CV41: 0 | CW41: 0 | CX41: =IF(CW41>0,Weightings!$M$11*AR41,0) -> 0 | CY41: 0 | CZ41: D0226
A42: 227 | B42: Hodgeman | C42: Hodgeman County Schools | D42: 302 | E42: 0 | F42: 302 | G42: 311.4 | H42: 0 | I42: 311.4 | J42: 291.5 | K42: =IF(ISNA(VLOOKUP($CZ42,'Audit Values'!$A$2:$AE$439,2,FALSE)),'Preliminary SO66'!B39,VLOOKUP($CZ42,'Audit Values'!$A$2:$AE$439,31,FALSE)) -> 291.5 | L42: 311.4 | M42: =IF(ISNA(VLOOKUP($CZ42,'Audit Values'!$A$2:$AE$439,2,FALSE)),'Preliminary SO66'!Z39,VLOOKUP($CZ42,'Audit Values'!$A$2:$AE$439,26,FALSE)) -> 0 | N42: 311.4 | O42: =IF(ISNA(VLOOKUP($CZ42,'Audit Values'!$A$2:$AE$439,2,FALSE)),'Preliminary SO66'!C39,IF(VLOOKUP($CZ42,'Audit Values'!$A$2:$AE$439,28,FALSE)="",VLOOKUP($CZ42,'Audit Values'!$A$2:$AE$439,3,FALSE),VLOOKUP($CZ42,'Audit Values'!$A$2:$AE$439,28,FALSE))) -> 0 | P42: 291.5 | Q42: 291.5 | R42: 291.5 | S42: 311.4 | T42: 0 | U42: 149.6 | V42: 149.6 | W42: 0 | X42: =IF(ISNA(VLOOKUP($CZ42,'Audit Values'!$A$2:$AE$439,2,FALSE)),'Preliminary SO66'!D39,VLOOKUP($CZ42,'Audit Values'!$A$2:$AE$439,4,FALSE)) -> 52 | Y42: =ROUND((X42/6)*Weightings!$M$6,1) -> 4.3 | Z42: =IF(ISNA(VLOOKUP($CZ42,'Audit Values'!$A$2:$AE$439,2,FALSE)),'Preliminary SO66'!F39,VLOOKUP($CZ42,'Audit Values'!$A$2:$AE$439,6,FALSE)) -> 14.3 | AA42: =ROUND((Z42/6)*Weightings!$M$7,1) -> 0.9 | AB42: =IF(ISNA(VLOOKUP($CZ42,'Audit Values'!$A$2:$AE$439,2,FALSE)),'Preliminary SO66'!H39,VLOOKUP($CZ42,'Audit Values'!$A$2:$AE$439,8,FALSE)) -> 71 | AC42: =ROUND(AB42*Weightings!$M$8,1) -> 32.4 | AD42: 0 | AE42: 23 | AF42: =AE42*Weightings!$M$9 -> 1.1 | AG42: =IF(ISNA(VLOOKUP($CZ42,'Audit Values'!$A$2:$AE$439,2,FALSE)),'Preliminary SO66'!L39,VLOOKUP($CZ42,'Audit Values'!$A$2:$AE$439,12,FALSE)) -> 0 | AH42: =ROUND(AG42*Weightings!$M$10,1) -> 0 | AI42: =IF(ISNA(VLOOKUP($CZ42,'Audit Values'!$A$2:$AE$439,2,FALSE)),'Preliminary SO66'!O39,VLOOKUP($CZ42,'Audit Values'!$A$2:$AE$439,15,FALSE)) -> 126.5 | AJ42: 50.2 | AK42: =CC42/Weightings!$M$5 -> 0 | AL42: =CD42/Weightings!$M$5 -> 0 | AM42: =CH42/Weightings!$M$5 -> 0 | AN42: 0 | AO42: =IF(ISNA(VLOOKUP($CZ42,'Audit Values'!$A$2:$AE$439,2,FALSE)),'Preliminary SO66'!X39,VLOOKUP($CZ42,'Audit Values'!$A$2:$AE$439,24,FALSE)) -> 0 | AP42: 219527 | AQ42: =AP42/Weightings!$M$5 -> 57.2 | AR42: 549.9 | AS42: 607.1 | AT42: 607.1 | AU42: 0 | AV42: =IF(ISNA(VLOOKUP($CZ42,'Audit Values'!$A$2:$AC$360,2,FALSE)),"",IF(AND(Weightings!H42>0,VLOOKUP($CZ42,'Audit Values'!$A$2:$AC$360,29,FALSE)<Weightings!H42),Weightings!H42,VLOOKUP($CZ42,'Audit Values'!$A$2:$AC$360,29,FALSE))) -> 26 | AW42: =IF(ISNA(VLOOKUP($CZ42,'Audit Values'!$A$2:$AD$360,2,FALSE)),"",VLOOKUP($CZ42,'Audit Values'!$A$2:$AD$360,30,FALSE)) -> A | AX42: =IF(Weightings!G42="","",IF(Weightings!I42="Pending","PX","R")) ->  | AY42: =Exceptions!B76+AU42 -> 2598747 | AZ42: =Exceptions!B78+AU42 -> 2818281 | BA42: =IF(Weightings!G42>0,Weightings!G42,'Preliminary SO66'!AB39) -> 2848601 | BB42: 2818281 | BD42: =Weightings!E42 -> 0 | BE42: =Weightings!F42 -> 0 | BF42: 0 | BG42: 2818281 | BH42: =MAX(ROUND(((AR42-AO42)*4433)+AP42,0),ROUND(((AR42-AO42)*4433)+Weightings!B42,0)) -> 2758359 | BI42: 0.3 | BJ42: 827508 | BK42: 834822 | BL42: 827508 | BM42: 0.3 | BN42: 0 | BO42: FALSE | BP42: 0 | BQ42: 0 | BR42: 0 | BS42: TRUE | BT42: 14.1075 | BU42: 0.480313 | BV42: 149.6 | BW42: 0 | BX42: 807.5 | BY42: 0.16 | BZ42: =IF(ROUND((Weightings!$P$5*BY42^Weightings!$P$6*Weightings!$P$8 ),2)<Weightings!$P$7,Weightings!$P$7,ROUND((Weightings!$P$5*BY42^Weightings!$P$6*Weightings!$P$8 ),2)) -> 1522.35 | CA42: =ROUND(BZ42/Weightings!$M$5,4) -> 0.3967 | CB42: 50.2 | CC42: 0 | CD42: 0 | CE42: 0 | CF42: 0 | CG42: =AS42*Weightings!$M$5*CF42 -> 0 | CH42: 0 | CI42: 0.228 | CJ42: 0.4 | CK42: 0 | CL42: 0 | CM42: 0 | CN42: =IF(ISNA(VLOOKUP($CZ42,'Audit Values'!$A$2:$AE$439,2,FALSE)),'Preliminary SO66'!T39,VLOOKUP($CZ42,'Audit Values'!$A$2:$AE$439,20,FALSE)) -> 0 | CO42: 0 | CP42: 0 | CQ42: 0 | CR42: =IF(ISNA(VLOOKUP($CZ42,'Audit Values'!$A$2:$AE$439,2,FALSE)),'Preliminary SO66'!V39,VLOOKUP($CZ42,'Audit Values'!$A$2:$AE$439,22,FALSE)) -> 0 | CS42: 0 | CT42: =IF(ISNA(VLOOKUP($CZ42,'Audit Values'!$A$2:$AE$439,2,FALSE)),'Preliminary SO66'!W39,VLOOKUP($CZ42,'Audit Values'!$A$2:$AE$439,23,FALSE)) -> 0 | CU42: 0 | CV42: 0 | CW42: 0 | CX42: =IF(CW42>0,Weightings!$M$11*AR42,0) -> 0 | CY42: 0 | CZ42: D0227
A43: 229 | B43: Johnson | C43: Blue Valley | D43: 20897.7 | E43: 0 | F43: 20897.7 | G43: 21134.6 | H43: 0 | I43: 21134.6 | J43: 21371.5 | K43: =IF(ISNA(VLOOKUP($CZ43,'Audit Values'!$A$2:$AE$439,2,FALSE)),'Preliminary SO66'!B40,VLOOKUP($CZ43,'Audit Values'!$A$2:$AE$439,31,FALSE)) -> 21371 | L43: 21371 | M43: =IF(ISNA(VLOOKUP($CZ43,'Audit Values'!$A$2:$AE$439,2,FALSE)),'Preliminary SO66'!Z40,VLOOKUP($CZ43,'Audit Values'!$A$2:$AE$439,26,FALSE)) -> 0 | N43: 21371 | O43: =IF(ISNA(VLOOKUP($CZ43,'Audit Values'!$A$2:$AE$439,2,FALSE)),'Preliminary SO66'!C40,IF(VLOOKUP($CZ43,'Audit Values'!$A$2:$AE$439,28,FALSE)="",VLOOKUP($CZ43,'Audit Values'!$A$2:$AE$439,3,FALSE),VLOOKUP($CZ43,'Audit Values'!$A$2:$AE$439,28,FALSE))) -> 0 | P43: 21371 | Q43: 21371.5 | R43: 21371.5 | S43: 21371 | T43: 0.5 | U43: 748.8 | V43: 0 | W43: 748.8 | X43: =IF(ISNA(VLOOKUP($CZ43,'Audit Values'!$A$2:$AE$439,2,FALSE)),'Preliminary SO66'!D40,VLOOKUP($CZ43,'Audit Values'!$A$2:$AE$439,4,FALSE)) -> 4602.4 | Y43: =ROUND((X43/6)*Weightings!$M$6,1) -> 383.5 | Z43: =IF(ISNA(VLOOKUP($CZ43,'Audit Values'!$A$2:$AE$439,2,FALSE)),'Preliminary SO66'!F40,VLOOKUP($CZ43,'Audit Values'!$A$2:$AE$439,6,FALSE)) -> 518.6 | AA43: =ROUND((Z43/6)*Weightings!$M$7,1) -> 34.1 | AB43: =IF(ISNA(VLOOKUP($CZ43,'Audit Values'!$A$2:$AE$439,2,FALSE)),'Preliminary SO66'!H40,VLOOKUP($CZ43,'Audit Values'!$A$2:$AE$439,8,FALSE)) -> 1307 | AC43: =ROUND(AB43*Weightings!$M$8,1) -> 596 | AD43: 0 | AE43: 1131 | AF43: =AE43*Weightings!$M$9 -> 52.6 | AG43: =IF(ISNA(VLOOKUP($CZ43,'Audit Values'!$A$2:$AE$439,2,FALSE)),'Preliminary SO66'!L40,VLOOKUP($CZ43,'Audit Values'!$A$2:$AE$439,12,FALSE)) -> 21.3 | AH43: =ROUND(AG43*Weightings!$M$10,1) -> 5.3 | AI43: =IF(ISNA(VLOOKUP($CZ43,'Audit Values'!$A$2:$AE$439,2,FALSE)),'Preliminary SO66'!O40,VLOOKUP($CZ43,'Audit Values'!$A$2:$AE$439,15,FALSE)) -> 4996.9 | AJ43: 761.5 | AK43: =CC43/Weightings!$M$5 -> 3444.6 | AL43: =CD43/Weightings!$M$5 -> 0 | AM43: =CH43/Weightings!$M$5 -> 1630.9 | AN43: 0.5 | AO43: =IF(ISNA(VLOOKUP($CZ43,'Audit Values'!$A$2:$AE$439,2,FALSE)),'Preliminary SO66'!X40,VLOOKUP($CZ43,'Audit Values'!$A$2:$AE$439,24,FALSE)) -> 0 | AP43: 20033901 | AQ43: =AP43/Weightings!$M$5 -> 5219.9 | AR43: 29028.8 | AS43: 32617.8 | AT43: 34248.7 | AU43: 0 | AV43: =IF(ISNA(VLOOKUP($CZ43,'Audit Values'!$A$2:$AC$360,2,FALSE)),"",IF(AND(Weightings!H43>0,VLOOKUP($CZ43,'Audit Values'!$A$2:$AC$360,29,FALSE)<Weightings!H43),Weightings!H43,VLOOKUP($CZ43,'Audit Values'!$A$2:$AC$360,29,FALSE))) -> 26 | AW43: =IF(ISNA(VLOOKUP($CZ43,'Audit Values'!$A$2:$AD$360,2,FALSE)),"",VLOOKUP($CZ43,'Audit Values'!$A$2:$AD$360,30,FALSE)) -> A | AX43: =IF(Weightings!G43="","",IF(Weightings!I43="Pending","PX","R")) ->  | AY43: =AR43*Weightings!$M$5+AU43 -> 111412534 | AZ43: =AT43*Weightings!$M$5+AU43 -> 131446511 | BA43: =IF(Weightings!G43>0,Weightings!G43,'Preliminary SO66'!AB40) -> 132855440 | BB43: 131446511 | BD43: =Weightings!E43 -> -35645 | BE43: =Weightings!F43 -> 0 | BF43: -35645 | BG43: 131410866 | BH43: =MAX(ROUND(((AR43-AO43)*4433)+AP43,0),ROUND(((AR43-AO43)*4433)+Weightings!B43,0)) -> 148718571 | BI43: 0.31 | BJ43: 46102757 | BK43: 46593194 | BL43: 46102757 | BM43: 0.31 | BN43: 0 | BO43: FALSE | BP43: 0 | BQ43: 0 | BR43: 0 | BS43: FALSE | BT43: 0 | BU43: 0 | BV43: 0 | BW43: 748.8 | BX43: 91 | BY43: 54.91 | BZ43: =IF(ROUND((Weightings!$P$5*BY43^Weightings!$P$6*Weightings!$P$8 ),2)<Weightings!$P$7,Weightings!$P$7,ROUND((Weightings!$P$5*BY43^Weightings!$P$6*Weightings!$P$8 ),2)) -> 585 | CA43: =ROUND(BZ43/Weightings!$M$5,4) -> 0.1524 | CB43: 761.5 | CC43: 13220222 | CD43: 0 | CE43: 6326444 | CF43: 0.05 | CG43: =AS43*Weightings!$M$5*CF43 -> 6259356 | CH43: 6259356 | CI43: 0.061 | CJ43: 234.8 | CK43: 0 | CL43: 0 | CM43: 0 | CN43: =IF(ISNA(VLOOKUP($CZ43,'Audit Values'!$A$2:$AE$439,2,FALSE)),'Preliminary SO66'!T40,VLOOKUP($CZ43,'Audit Values'!$A$2:$AE$439,20,FALSE)) -> 0.5 | CO43: 0.5 | CP43: 0 | CQ43: 0 | CR43: =IF(ISNA(VLOOKUP($CZ43,'Audit Values'!$A$2:$AE$439,2,FALSE)),'Preliminary SO66'!V40,VLOOKUP($CZ43,'Audit Values'!$A$2:$AE$439,22,FALSE)) -> 0 | CS43: 0 | CT43: =IF(ISNA(VLOOKUP($CZ43,'Audit Values'!$A$2:$AE$439,2,FALSE)),'Preliminary SO66'!W40,VLOOKUP($CZ43,'Audit Values'!$A$2:$AE$439,23,FALSE)) -> 0 | CU43: 0 | CV43: 0.5 | CW43: 0 | CX43: =IF(CW43>0,Weightings!$M$11*AR43,0) -> 0 | CY43: 0 | CZ43: D0229
A44: 230 | B44: Johnson | C44: Spring Hill | D44: 2115.7 | E44: 0 | F44: 2115.7 | G44: 2178.9 | H44: 0 | I44: 2178.9 | J44: 2843.2 | K44: =IF(ISNA(VLOOKUP($CZ44,'Audit Values'!$A$2:$AE$439,2,FALSE)),'Preliminary SO66'!B41,VLOOKUP($CZ44,'Audit Values'!$A$2:$AE$439,31,FALSE)) -> 2248.7 | L44: 2248.7 | M44: =IF(ISNA(VLOOKUP($CZ44,'Audit Values'!$A$2:$AE$439,2,FALSE)),'Preliminary SO66'!Z41,VLOOKUP($CZ44,'Audit Values'!$A$2:$AE$439,26,FALSE)) -> 0 | N44: 2248.7 | O44: =IF(ISNA(VLOOKUP($CZ44,'Audit Values'!$A$2:$AE$439,2,FALSE)),'Preliminary SO66'!C41,IF(VLOOKUP($CZ44,'Audit Values'!$A$2:$AE$439,28,FALSE)="",VLOOKUP($CZ44,'Audit Values'!$A$2:$AE$439,3,FALSE),VLOOKUP($CZ44,'Audit Values'!$A$2:$AE$439,28,FALSE))) -> 6.5 | P44: 2255.2 | Q44: 2849.7 | R44: 2849.7 | S44: 2255.2 | T44: 594.5 | U44: 79 | V44: 0 | W44: 79 | X44: =IF(ISNA(VLOOKUP($CZ44,'Audit Values'!$A$2:$AE$439,2,FALSE)),'Preliminary SO66'!D41,VLOOKUP($CZ44,'Audit Values'!$A$2:$AE$439,4,FALSE)) -> 431.2 | Y44: =ROUND((X44/6)*Weightings!$M$6,1) -> 35.9 | Z44: =IF(ISNA(VLOOKUP($CZ44,'Audit Values'!$A$2:$AE$439,2,FALSE)),'Preliminary SO66'!F41,VLOOKUP($CZ44,'Audit Values'!$A$2:$AE$439,6,FALSE)) -> 4.5 | AA44: =ROUND((Z44/6)*Weightings!$M$7,1) -> 0.3 | AB44: =IF(ISNA(VLOOKUP($CZ44,'Audit Values'!$A$2:$AE$439,2,FALSE)),'Preliminary SO66'!H41,VLOOKUP($CZ44,'Audit Values'!$A$2:$AE$439,8,FALSE)) -> 446 | AC44: =ROUND(AB44*Weightings!$M$8,1) -> 203.4 | AD44: 0 | AE44: 190 | AF44: =AE44*Weightings!$M$9 -> 8.8 | AG44: =IF(ISNA(VLOOKUP($CZ44,'Audit Values'!$A$2:$AE$439,2,FALSE)),'Preliminary SO66'!L41,VLOOKUP($CZ44,'Audit Values'!$A$2:$AE$439,12,FALSE)) -> 557.2 | AH44: =ROUND(AG44*Weightings!$M$10,1) -> 139.3 | AI44: =IF(ISNA(VLOOKUP($CZ44,'Audit Values'!$A$2:$AE$439,2,FALSE)),'Preliminary SO66'!O41,VLOOKUP($CZ44,'Audit Values'!$A$2:$AE$439,15,FALSE)) -> 1228 | AJ44: 187.1 | AK44: =CC44/Weightings!$M$5 -> 102.9 | AL44: =CD44/Weightings!$M$5 -> 0 | AM44: =CH44/Weightings!$M$5 -> 0 | AN44: 640.5 | AO44: =IF(ISNA(VLOOKUP($CZ44,'Audit Values'!$A$2:$AE$439,2,FALSE)),'Preliminary SO66'!X41,VLOOKUP($CZ44,'Audit Values'!$A$2:$AE$439,24,FALSE)) -> 0 | AP44: 2258465 | AQ44: =AP44/Weightings!$M$5 -> 588.4 | AR44: 3652.4 | AS44: 4240.8 | AT44: 4240.8 | AU44: 0 | AV44: =IF(ISNA(VLOOKUP($CZ44,'Audit Values'!$A$2:$AC$360,2,FALSE)),"",IF(AND(Weightings!H44>0,VLOOKUP($CZ44,'Audit Values'!$A$2:$AC$360,29,FALSE)<Weightings!H44),Weightings!H44,VLOOKUP($CZ44,'Audit Values'!$A$2:$AC$360,29,FALSE))) -> 30 | AW44: =IF(ISNA(VLOOKUP($CZ44,'Audit Values'!$A$2:$AD$360,2,FALSE)),"",VLOOKUP($CZ44,'Audit Values'!$A$2:$AD$360,30,FALSE)) -> A | AX44: =IF(Weightings!G44="","",IF(Weightings!I44="Pending","PX","R")) ->  | AY44: =AR44*Weightings!$M$5+AU44 -> 14017911 | AZ44: =AT44*Weightings!$M$5+AU44 -> 16276190 | BA44: =IF(Weightings!G44>0,Weightings!G44,'Preliminary SO66'!AB41) -> 17145497 | BB44: 16276190 | BD44: =Weightings!E44 -> -2874 | BE44: =Weightings!F44 -> 0 | BF44: -2874 | BG44: 16273316 | BH44: =MAX(ROUND(((AR44-AO44)*4433)+AP44,0),ROUND(((AR44-AO44)*4433)+Weightings!B44,0)) -> 18449554 | BI44: 0.3 | BJ44: 5534866 | BK44: 5842801 | BL44: 5534866 | BM44: 0.3 | BN44: 0 | BO44: FALSE | BP44: 0 | BQ44: 0 | BR44: 0 | BS44: FALSE | BT44: 0 | BU44: 0 | BV44: 0 | BW44: 79 | BX44: 71 | BY44: 17.3 | BZ44: =IF(ROUND((Weightings!$P$5*BY44^Weightings!$P$6*Weightings!$P$8 ),2)<Weightings!$P$7,Weightings!$P$7,ROUND((Weightings!$P$5*BY44^Weightings!$P$6*Weightings!$P$8 ),2)) -> 585 | CA44: =ROUND(BZ44/Weightings!$M$5,4) -> 0.1524 | CB44: 187.1 | CC44: 395000 | CD44: 0 | CE44: 0 | CF44: 0.0252 | CG44: =AS44*Weightings!$M$5*CF44 -> 410160 | CH44: 0 | CI44: 0.198 | CJ44: 31.8 | CK44: 0 | CL44: 0 | CM44: 0 | CN44: =IF(ISNA(VLOOKUP($CZ44,'Audit Values'!$A$2:$AE$439,2,FALSE)),'Preliminary SO66'!T41,VLOOKUP($CZ44,'Audit Values'!$A$2:$AE$439,20,FALSE)) -> 594.5 | CO44: 624.2 | CP44: 65 | CQ44: 16.3 | CR44: =IF(ISNA(VLOOKUP($CZ44,'Audit Values'!$A$2:$AE$439,2,FALSE)),'Preliminary SO66'!V41,VLOOKUP($CZ44,'Audit Values'!$A$2:$AE$439,22,FALSE)) -> 0 | CS44: 0 | CT44: =IF(ISNA(VLOOKUP($CZ44,'Audit Values'!$A$2:$AE$439,2,FALSE)),'Preliminary SO66'!W41,VLOOKUP($CZ44,'Audit Values'!$A$2:$AE$439,23,FALSE)) -> 0 | CU44: 0 | CV44: 640.5 | CW44: 0 | CX44: =IF(CW44>0,Weightings!$M$11*AR44,0) -> 0 | CY44: 0 | CZ44: D0230
A45: 231 | B45: Johnson | C45: Gardner Edgerton | D45: 4940.2 | E45: 0 | F45: 4940.2 | G45: 5060.1 | H45: 0 | I45: 5060.1 | J45: 5141.9 | K45: =IF(ISNA(VLOOKUP($CZ45,'Audit Values'!$A$2:$AE$439,2,FALSE)),'Preliminary SO66'!B42,VLOOKUP($CZ45,'Audit Values'!$A$2:$AE$439,31,FALSE)) -> 5141.9 | L45: 5141.9 | M45: =IF(ISNA(VLOOKUP($CZ45,'Audit Values'!$A$2:$AE$439,2,FALSE)),'Preliminary SO66'!Z42,VLOOKUP($CZ45,'Audit Values'!$A$2:$AE$439,26,FALSE)) -> 0 | N45: 5141.9 | O45: =IF(ISNA(VLOOKUP($CZ45,'Audit Values'!$A$2:$AE$439,2,FALSE)),'Preliminary SO66'!C42,IF(VLOOKUP($CZ45,'Audit Values'!$A$2:$AE$439,28,FALSE)="",VLOOKUP($CZ45,'Audit Values'!$A$2:$AE$439,3,FALSE),VLOOKUP($CZ45,'Audit Values'!$A$2:$AE$439,28,FALSE))) -> 9 | P45: 5150.9 | Q45: 5150.9 | R45: 5150.9 | S45: 5150.9 | T45: 0 | U45: 180.5 | V45: 0 | W45: 180.5 | X45: =IF(ISNA(VLOOKUP($CZ45,'Audit Values'!$A$2:$AE$439,2,FALSE)),'Preliminary SO66'!D42,VLOOKUP($CZ45,'Audit Values'!$A$2:$AE$439,4,FALSE)) -> 918 | Y45: =ROUND((X45/6)*Weightings!$M$6,1) -> 76.5 | Z45: =IF(ISNA(VLOOKUP($CZ45,'Audit Values'!$A$2:$AE$439,2,FALSE)),'Preliminary SO66'!F42,VLOOKUP($CZ45,'Audit Values'!$A$2:$AE$439,6,FALSE)) -> 206.5 | AA45: =ROUND((Z45/6)*Weightings!$M$7,1) -> 13.6 | AB45: =IF(ISNA(VLOOKUP($CZ45,'Audit Values'!$A$2:$AE$439,2,FALSE)),'Preliminary SO66'!H42,VLOOKUP($CZ45,'Audit Values'!$A$2:$AE$439,8,FALSE)) -> 1300 | AC45: =ROUND(AB45*Weightings!$M$8,1) -> 592.8 | AD45: 0 | AE45: 134 | AF45: =AE45*Weightings!$M$9 -> 6.2 | AG45: =IF(ISNA(VLOOKUP($CZ45,'Audit Values'!$A$2:$AE$439,2,FALSE)),'Preliminary SO66'!L42,VLOOKUP($CZ45,'Audit Values'!$A$2:$AE$439,12,FALSE)) -> 321 | AH45: =ROUND(AG45*Weightings!$M$10,1) -> 80.3 | AI45: =IF(ISNA(VLOOKUP($CZ45,'Audit Values'!$A$2:$AE$439,2,FALSE)),'Preliminary SO66'!O42,VLOOKUP($CZ45,'Audit Values'!$A$2:$AE$439,15,FALSE)) -> 1453 | AJ45: 221.4 | AK45: =CC45/Weightings!$M$5 -> 0 | AL45: =CD45/Weightings!$M$5 -> 0 | AM45: =CH45/Weightings!$M$5 -> 0 | AN45: 0 | AO45: =IF(ISNA(VLOOKUP($CZ45,'Audit Values'!$A$2:$AE$439,2,FALSE)),'Preliminary SO66'!X42,VLOOKUP($CZ45,'Audit Values'!$A$2:$AE$439,24,FALSE)) -> 0 | AP45: 4818137 | AQ45: =AP45/Weightings!$M$5 -> 1255.4 | AR45: 6322.2 | AS45: 7577.6 | AT45: 7577.6 | AU45: 10000 | AV45: =IF(ISNA(VLOOKUP($CZ45,'Audit Values'!$A$2:$AC$360,2,FALSE)),"",IF(AND(Weightings!H45>0,VLOOKUP($CZ45,'Audit Values'!$A$2:$AC$360,29,FALSE)<Weightings!H45),Weightings!H45,VLOOKUP($CZ45,'Audit Values'!$A$2:$AC$360,29,FALSE))) -> 21 | AW45: =IF(ISNA(VLOOKUP($CZ45,'Audit Values'!$A$2:$AD$360,2,FALSE)),"",VLOOKUP($CZ45,'Audit Values'!$A$2:$AD$360,30,FALSE)) -> A | AX45: =IF(Weightings!G45="","",IF(Weightings!I45="Pending","PX","R")) ->  | AY45: =AR45*Weightings!$M$5+AU45 -> 24274604 | AZ45: =AT45*Weightings!$M$5+AU45 -> 29092829 | BA45: =IF(Weightings!G45>0,Weightings!G45,'Preliminary SO66'!AB42) -> 29987467 | BB45: 29092829 | BD45: =Weightings!E45 -> 0 | BE45: =Weightings!F45 -> 0 | BF45: 0 | BG45: 29092829 | BH45: =MAX(ROUND(((AR45-AO45)*4433)+AP45,0),ROUND(((AR45-AO45)*4433)+Weightings!B45,0)) -> 32844450 | BI45: 0.3 | BJ45: 9853335 | BK45: 10157192 | BL45: 9853335 | BM45: 0.3 | BN45: 0 | BO45: FALSE | BP45: 0 | BQ45: 0 | BR45: 0 | BS45: FALSE | BT45: 0 | BU45: 0 | BV45: 0 | BW45: 180.5 | BX45: 103 | BY45: 14.11 | BZ45: =IF(ROUND((Weightings!$P$5*BY45^Weightings!$P$6*Weightings!$P$8 ),2)<Weightings!$P$7,Weightings!$P$7,ROUND((Weightings!$P$5*BY45^Weightings!$P$6*Weightings!$P$8 ),2)) -> 585 | CA45: =ROUND(BZ45/Weightings!$M$5,4) -> 0.1524 | CB45: 221.4 | CC45: 0 | CD45: 0 | CE45: 0 | CF45: 0.0002 | CG45: =AS45*Weightings!$M$5*CF45 -> 5817 | CH45: 0 | CI45: 0.252 | CJ45: 50 | CK45: 0 | CL45: 0 | CM45: 0 | CN45: =IF(ISNA(VLOOKUP($CZ45,'Audit Values'!$A$2:$AE$439,2,FALSE)),'Preliminary SO66'!T42,VLOOKUP($CZ45,'Audit Values'!$A$2:$AE$439,20,FALSE)) -> 0 | CO45: 0 | CP45: 0 | CQ45: 0 | CR45: =IF(ISNA(VLOOKUP($CZ45,'Audit Values'!$A$2:$AE$439,2,FALSE)),'Preliminary SO66'!V42,VLOOKUP($CZ45,'Audit Values'!$A$2:$AE$439,22,FALSE)) -> 0 | CS45: 0 | CT45: =IF(ISNA(VLOOKUP($CZ45,'Audit Values'!$A$2:$AE$439,2,FALSE)),'Preliminary SO66'!W42,VLOOKUP($CZ45,'Audit Values'!$A$2:$AE$439,23,FALSE)) -> 0 | CU45: 0 | CV45: 0 | CW45: 10000 | CX45: =IF(CW45>0,Weightings!$M$11*AR45,0) -> 1580550 | CY45: 10000 | CZ45: D0231
A46: 232 | B46: Johnson | C46: De Soto | D46: 6526.4 | E46: 0 | F46: 6526.4 | G46: 6623.1 | H46: 0 | I46: 6623.1 | J46: 6695.3 | K46: =IF(ISNA(VLOOKUP($CZ46,'Audit Values'!$A$2:$AE$439,2,FALSE)),'Preliminary SO66'!B43,VLOOKUP($CZ46,'Audit Values'!$A$2:$AE$439,31,FALSE)) -> 6695.3 | L46: 6695.3 | M46: =IF(ISNA(VLOOKUP($CZ46,'Audit Values'!$A$2:$AE$439,2,FALSE)),'Preliminary SO66'!Z43,VLOOKUP($CZ46,'Audit Values'!$A$2:$AE$439,26,FALSE)) -> 0 | N46: 6695.3 | O46: =IF(ISNA(VLOOKUP($CZ46,'Audit Values'!$A$2:$AE$439,2,FALSE)),'Preliminary SO66'!C43,IF(VLOOKUP($CZ46,'Audit Values'!$A$2:$AE$439,28,FALSE)="",VLOOKUP($CZ46,'Audit Values'!$A$2:$AE$439,3,FALSE),VLOOKUP($CZ46,'Audit Values'!$A$2:$AE$439,28,FALSE))) -> 11.5 | P46: 6706.8 | Q46: 6706.8 | R46: 6706.8 | S46: 6706.8 | T46: 0 | U46: 235 | V46: 0 | W46: 235 | X46: =IF(ISNA(VLOOKUP($CZ46,'Audit Values'!$A$2:$AE$439,2,FALSE)),'Preliminary SO66'!D43,VLOOKUP($CZ46,'Audit Values'!$A$2:$AE$439,4,FALSE)) -> 1706.2 | Y46: =ROUND((X46/6)*Weightings!$M$6,1) -> 142.2 | Z46: =IF(ISNA(VLOOKUP($CZ46,'Audit Values'!$A$2:$AE$439,2,FALSE)),'Preliminary SO66'!F43,VLOOKUP($CZ46,'Audit Values'!$A$2:$AE$439,6,FALSE)) -> 933 | AA46: =ROUND((Z46/6)*Weightings!$M$7,1) -> 61.4 | AB46: =IF(ISNA(VLOOKUP($CZ46,'Audit Values'!$A$2:$AE$439,2,FALSE)),'Preliminary SO66'!H43,VLOOKUP($CZ46,'Audit Values'!$A$2:$AE$439,8,FALSE)) -> 767 | AC46: =ROUND(AB46*Weightings!$M$8,1) -> 349.8 | AD46: 0 | AE46: 292 | AF46: =AE46*Weightings!$M$9 -> 13.6 | AG46: =IF(ISNA(VLOOKUP($CZ46,'Audit Values'!$A$2:$AE$439,2,FALSE)),'Preliminary SO66'!L43,VLOOKUP($CZ46,'Audit Values'!$A$2:$AE$439,12,FALSE)) -> 106.2 | AH46: =ROUND(AG46*Weightings!$M$10,1) -> 26.6 | AI46: =IF(ISNA(VLOOKUP($CZ46,'Audit Values'!$A$2:$AE$439,2,FALSE)),'Preliminary SO66'!O43,VLOOKUP($CZ46,'Audit Values'!$A$2:$AE$439,15,FALSE)) -> 1802 | AJ46: 274.6 | AK46: =CC46/Weightings!$M$5 -> 73.3 | AL46: =CD46/Weightings!$M$5 -> 0 | AM46: =CH46/Weightings!$M$5 -> 451.1 | AN46: 0 | AO46: =IF(ISNA(VLOOKUP($CZ46,'Audit Values'!$A$2:$AE$439,2,FALSE)),'Preliminary SO66'!X43,VLOOKUP($CZ46,'Audit Values'!$A$2:$AE$439,24,FALSE)) -> 0 | AP46: 4367524 | AQ46: =AP46/Weightings!$M$5 -> 1138 | AR46: 8334.4 | AS46: 9021.3 | AT46: 9472.4 | AU46: 0 | AV46: =IF(ISNA(VLOOKUP($CZ46,'Audit Values'!$A$2:$AC$360,2,FALSE)),"",IF(AND(Weightings!H46>0,VLOOKUP($CZ46,'Audit Values'!$A$2:$AC$360,29,FALSE)<Weightings!H46),Weightings!H46,VLOOKUP($CZ46,'Audit Values'!$A$2:$AC$360,29,FALSE))) -> 15 | AW46: =IF(ISNA(VLOOKUP($CZ46,'Audit Values'!$A$2:$AD$360,2,FALSE)),"",VLOOKUP($CZ46,'Audit Values'!$A$2:$AD$360,30,FALSE)) -> A | AX46: =IF(Weightings!G46="","",IF(Weightings!I46="Pending","PX","R")) ->  | AY46: =AR46*Weightings!$M$5+AU46 -> 31987427 | AZ46: =AT46*Weightings!$M$5+AU46 -> 36355071 | BA46: =IF(Weightings!G46>0,Weightings!G46,'Preliminary SO66'!AB43) -> 37028640 | BB46: 36355071 | BD46: =Weightings!E46 -> 0 | BE46: =Weightings!F46 -> 0 | BF46: 0 | BG46: 36355071 | BH46: =MAX(ROUND(((AR46-AO46)*4433)+AP46,0),ROUND(((AR46-AO46)*4433)+Weightings!B46,0)) -> 41384049 | BI46: 0.31 | BJ46: 12829055 | BK46: 13026049 | BL46: 12829055 | BM46: 0.31 | BN46: 0 | BO46: FALSE | BP46: 0 | BQ46: 0 | BR46: 0 | BS46: FALSE | BT46: 0 | BU46: 0 | BV46: 0 | BW46: 235 | BX46: 100 | BY46: 18.02 | BZ46: =IF(ROUND((Weightings!$P$5*BY46^Weightings!$P$6*Weightings!$P$8 ),2)<Weightings!$P$7,Weightings!$P$7,ROUND((Weightings!$P$5*BY46^Weightings!$P$6*Weightings!$P$8 ),2)) -> 585 | CA46: =ROUND(BZ46/Weightings!$M$5,4) -> 0.1524 | CB46: 274.6 | CC46: 281445 | CD46: 0 | CE46: 1763273 | CF46: 0.05 | CG46: =AS46*Weightings!$M$5*CF46 -> 1731187 | CH46: 1731187 | CI46: 0.114 | CJ46: 67.1 | CK46: 0 | CL46: 0 | CM46: 0 | CN46: =IF(ISNA(VLOOKUP($CZ46,'Audit Values'!$A$2:$AE$439,2,FALSE)),'Preliminary SO66'!T43,VLOOKUP($CZ46,'Audit Values'!$A$2:$AE$439,20,FALSE)) -> 0 | CO46: 0 | CP46: 0 | CQ46: 0 | CR46: =IF(ISNA(VLOOKUP($CZ46,'Audit Values'!$A$2:$AE$439,2,FALSE)),'Preliminary SO66'!V43,VLOOKUP($CZ46,'Audit Values'!$A$2:$AE$439,22,FALSE)) -> 0 | CS46: 0 | CT46: =IF(ISNA(VLOOKUP($CZ46,'Audit Values'!$A$2:$AE$439,2,FALSE)),'Preliminary SO66'!W43,VLOOKUP($CZ46,'Audit Values'!$A$2:$AE$439,23,FALSE)) -> 0 | CU46: 0 | CV46: 0 | CW46: 0 | CX46: =IF(CW46>0,Weightings!$M$11*AR46,0) -> 0 | CY46: 0 | CZ46: D0232
A47: 233 | B47: Johnson | C47: Olathe | D47: 26342.8 | E47: 0 | F47: 26342.8 | G47: 26895.8 | H47: 0 | I47: 26895.8 | J47: 27383.1 | K47: =IF(ISNA(VLOOKUP($CZ47,'Audit Values'!$A$2:$AE$439,2,FALSE)),'Preliminary SO66'!B44,VLOOKUP($CZ47,'Audit Values'!$A$2:$AE$439,31,FALSE)) -> 27383.1 | L47: 27383.1 | M47: =IF(ISNA(VLOOKUP($CZ47,'Audit Values'!$A$2:$AE$439,2,FALSE)),'Preliminary SO66'!Z44,VLOOKUP($CZ47,'Audit Values'!$A$2:$AE$439,26,FALSE)) -> 0 | N47: 27383.1 | O47: =IF(ISNA(VLOOKUP($CZ47,'Audit Values'!$A$2:$AE$439,2,FALSE)),'Preliminary SO66'!C44,IF(VLOOKUP($CZ47,'Audit Values'!$A$2:$AE$439,28,FALSE)="",VLOOKUP($CZ47,'Audit Values'!$A$2:$AE$439,3,FALSE),VLOOKUP($CZ47,'Audit Values'!$A$2:$AE$439,28,FALSE))) -> 30 | P47: 27413.1 | Q47: 27413.1 | R47: 27413.1 | S47: 27413.1 | T47: 0 | U47: 960.6 | V47: 0 | W47: 960.6 | X47: =IF(ISNA(VLOOKUP($CZ47,'Audit Values'!$A$2:$AE$439,2,FALSE)),'Preliminary SO66'!D44,VLOOKUP($CZ47,'Audit Values'!$A$2:$AE$439,4,FALSE)) -> 4613.7 | Y47: =ROUND((X47/6)*Weightings!$M$6,1) -> 384.5 | Z47: =IF(ISNA(VLOOKUP($CZ47,'Audit Values'!$A$2:$AE$439,2,FALSE)),'Preliminary SO66'!F44,VLOOKUP($CZ47,'Audit Values'!$A$2:$AE$439,6,FALSE)) -> 5778 | AA47: =ROUND((Z47/6)*Weightings!$M$7,1) -> 380.4 | AB47: =IF(ISNA(VLOOKUP($CZ47,'Audit Values'!$A$2:$AE$439,2,FALSE)),'Preliminary SO66'!H44,VLOOKUP($CZ47,'Audit Values'!$A$2:$AE$439,8,FALSE)) -> 6214 | AC47: =ROUND(AB47*Weightings!$M$8,1) -> 2833.6 | AD47: 0 | AE47: 1088 | AF47: =AE47*Weightings!$M$9 -> 50.6 | AG47: =IF(ISNA(VLOOKUP($CZ47,'Audit Values'!$A$2:$AE$439,2,FALSE)),'Preliminary SO66'!L44,VLOOKUP($CZ47,'Audit Values'!$A$2:$AE$439,12,FALSE)) -> 73.7 | AH47: =ROUND(AG47*Weightings!$M$10,1) -> 18.4 | AI47: =IF(ISNA(VLOOKUP($CZ47,'Audit Values'!$A$2:$AE$439,2,FALSE)),'Preliminary SO66'!O44,VLOOKUP($CZ47,'Audit Values'!$A$2:$AE$439,15,FALSE)) -> 4936 | AJ47: 752.2 | AK47: =CC47/Weightings!$M$5 -> 2472.8 | AL47: =CD47/Weightings!$M$5 -> 0 | AM47: =CH47/Weightings!$M$5 -> 1459.8 | AN47: 0 | AO47: =IF(ISNA(VLOOKUP($CZ47,'Audit Values'!$A$2:$AE$439,2,FALSE)),'Preliminary SO66'!X44,VLOOKUP($CZ47,'Audit Values'!$A$2:$AE$439,24,FALSE)) -> 1 | AP47: 24774443 | AQ47: =AP47/Weightings!$M$5 -> 6455 | AR47: 36727 | AS47: 41722.2 | AT47: 43182 | AU47: 0 | AV47: =IF(ISNA(VLOOKUP($CZ47,'Audit Values'!$A$2:$AC$360,2,FALSE)),"",IF(AND(Weightings!H47>0,VLOOKUP($CZ47,'Audit Values'!$A$2:$AC$360,29,FALSE)<Weightings!H47),Weightings!H47,VLOOKUP($CZ47,'Audit Values'!$A$2:$AC$360,29,FALSE))) -> 26 | AW47: =IF(ISNA(VLOOKUP($CZ47,'Audit Values'!$A$2:$AD$360,2,FALSE)),"",VLOOKUP($CZ47,'Audit Values'!$A$2:$AD$360,30,FALSE)) -> A | AX47: =IF(Weightings!G47="","",IF(Weightings!I47="Pending","PX","R")) -> R | AY47: =AR47*Weightings!$M$5+AU47 -> 140958226 | AZ47: =AT47*Weightings!$M$5+AU47 -> 165732516 | BA47: =IF(Weightings!G47>0,Weightings!G47,'Preliminary SO66'!AB44) -> 165917124 | BB47: 165732516 | BD47: =Weightings!E47 -> -1150 | BE47: =Weightings!F47 -> 0 | BF47: -1150 | BG47: 165731366 | BH47: =MAX(ROUND(((AR47-AO47)*4433)+AP47,0),ROUND(((AR47-AO47)*4433)+Weightings!B47,0)) -> 190328530 | BI47: 0.31 | BJ47: 59001844 | BK47: 59193000 | BL47: 59001844 | BM47: 0.31 | BN47: 0 | BO47: FALSE | BP47: 0 | BQ47: 0 | BR47: 0 | BS47: FALSE | BT47: 0 | BU47: 0 | BV47: 0 | BW47: 960.6 | BX47: 75.3 | BY47: 65.55 | BZ47: =IF(ROUND((Weightings!$P$5*BY47^Weightings!$P$6*Weightings!$P$8 ),2)<Weightings!$P$7,Weightings!$P$7,ROUND((Weightings!$P$5*BY47^Weightings!$P$6*Weightings!$P$8 ),2)) -> 585 | CA47: =ROUND(BZ47/Weightings!$M$5,4) -> 0.1524 | CB47: 752.2 | CC47: 9490631 | CD47: 0 | CE47: 5602558 | CF47: 0.0351 | CG47: =AS47*Weightings!$M$5*CF47 -> 5620556 | CH47: 5602558 | CI47: 0.227 | CJ47: 364.1 | CK47: 0 | CL47: 0 | CM47: 0 | CN47: =IF(ISNA(VLOOKUP($CZ47,'Audit Values'!$A$2:$AE$439,2,FALSE)),'Preliminary SO66'!T44,VLOOKUP($CZ47,'Audit Values'!$A$2:$AE$439,20,FALSE)) -> 0 | CO47: 0 | CP47: 0 | CQ47: 0 | CR47: =IF(ISNA(VLOOKUP($CZ47,'Audit Values'!$A$2:$AE$439,2,FALSE)),'Preliminary SO66'!V44,VLOOKUP($CZ47,'Audit Values'!$A$2:$AE$439,22,FALSE)) -> 0 | CS47: 0 | CT47: =IF(ISNA(VLOOKUP($CZ47,'Audit Values'!$A$2:$AE$439,2,FALSE)),'Preliminary SO66'!W44,VLOOKUP($CZ47,'Audit Values'!$A$2:$AE$439,23,FALSE)) -> 0 | CU47: 0 | CV47: 0 | CW47: 0 | CX47: =IF(CW47>0,Weightings!$M$11*AR47,0) -> 0 | CY47: 0 | CZ47: D0233
A48: 234 | B48: Bourbon | C48: Fort Scott | D48: 1812.1 | E48: 0 | F48: 1812.1 | G48: 1791 | H48: 0 | I48: 1791 | J48: 1816.2 | K48: =IF(ISNA(VLOOKUP($CZ48,'Audit Values'!$A$2:$AE$439,2,FALSE)),'Preliminary SO66'!B45,VLOOKUP($CZ48,'Audit Values'!$A$2:$AE$439,31,FALSE)) -> 1816.2 | L48: 1816.2 | M48: =IF(ISNA(VLOOKUP($CZ48,'Audit Values'!$A$2:$AE$439,2,FALSE)),'Preliminary SO66'!Z45,VLOOKUP($CZ48,'Audit Values'!$A$2:$AE$439,26,FALSE)) -> 0 | N48: 1816.2 | O48: =IF(ISNA(VLOOKUP($CZ48,'Audit Values'!$A$2:$AE$439,2,FALSE)),'Preliminary SO66'!C45,IF(VLOOKUP($CZ48,'Audit Values'!$A$2:$AE$439,28,FALSE)="",VLOOKUP($CZ48,'Audit Values'!$A$2:$AE$439,3,FALSE),VLOOKUP($CZ48,'Audit Values'!$A$2:$AE$439,28,FALSE))) -> 18 | P48: 1834.2 | Q48: 1834.2 | R48: 1834.2 | S48: 1834.2 | T48: 0 | U48: 64.3 | V48: 0 | W48: 64.3 | X48: =IF(ISNA(VLOOKUP($CZ48,'Audit Values'!$A$2:$AE$439,2,FALSE)),'Preliminary SO66'!D45,VLOOKUP($CZ48,'Audit Values'!$A$2:$AE$439,4,FALSE)) -> 283.5 | Y48: =ROUND((X48/6)*Weightings!$M$6,1) -> 23.6 | Z48: =IF(ISNA(VLOOKUP($CZ48,'Audit Values'!$A$2:$AE$439,2,FALSE)),'Preliminary SO66'!F45,VLOOKUP($CZ48,'Audit Values'!$A$2:$AE$439,6,FALSE)) -> 24.2 | AA48: =ROUND((Z48/6)*Weightings!$M$7,1) -> 1.6 | AB48: =IF(ISNA(VLOOKUP($CZ48,'Audit Values'!$A$2:$AE$439,2,FALSE)),'Preliminary SO66'!H45,VLOOKUP($CZ48,'Audit Values'!$A$2:$AE$439,8,FALSE)) -> 1045 | AC48: =ROUND(AB48*Weightings!$M$8,1) -> 476.5 | AD48: 109.7 | AE48: 129 | AF48: =AE48*Weightings!$M$9 -> 6 | AG48: =IF(ISNA(VLOOKUP($CZ48,'Audit Values'!$A$2:$AE$439,2,FALSE)),'Preliminary SO66'!L45,VLOOKUP($CZ48,'Audit Values'!$A$2:$AE$439,12,FALSE)) -> 0 | AH48: =ROUND(AG48*Weightings!$M$10,1) -> 0 | AI48: =IF(ISNA(VLOOKUP($CZ48,'Audit Values'!$A$2:$AE$439,2,FALSE)),'Preliminary SO66'!O45,VLOOKUP($CZ48,'Audit Values'!$A$2:$AE$439,15,FALSE)) -> 574 | AJ48: 129.3 | AK48: =CC48/Weightings!$M$5 -> 0 | AL48: =CD48/Weightings!$M$5 -> 0 | AM48: =CH48/Weightings!$M$5 -> 0 | AN48: 0 | AO48: =IF(ISNA(VLOOKUP($CZ48,'Audit Values'!$A$2:$AE$439,2,FALSE)),'Preliminary SO66'!X45,VLOOKUP($CZ48,'Audit Values'!$A$2:$AE$439,24,FALSE)) -> 0 | AP48: 1026040 | AQ48: =AP48/Weightings!$M$5 -> 267.3 | AR48: 2645.2 | AS48: 2912.5 | AT48: 2912.5 | AU48: 0 | AV48: =IF(ISNA(VLOOKUP($CZ48,'Audit Values'!$A$2:$AC$360,2,FALSE)),"",IF(AND(Weightings!H48>0,VLOOKUP($CZ48,'Audit Values'!$A$2:$AC$360,29,FALSE)<Weightings!H48),Weightings!H48,VLOOKUP($CZ48,'Audit Values'!$A$2:$AC$360,29,FALSE))) -> 11 | AW48: =IF(ISNA(VLOOKUP($CZ48,'Audit Values'!$A$2:$AD$360,2,FALSE)),"",VLOOKUP($CZ48,'Audit Values'!$A$2:$AD$360,30,FALSE)) -> A | AX48: =IF(Weightings!G48="","",IF(Weightings!I48="Pending","PX","R")) ->  | AY48: =AR48*Weightings!$M$5+AU48 -> 10152278 | AZ48: =AT48*Weightings!$M$5+AU48 -> 11178175 | BA48: =IF(Weightings!G48>0,Weightings!G48,'Preliminary SO66'!AB45) -> 11230968 | BB48: 11178175 | BD48: =Weightings!E48 -> -6957 | BE48: =Weightings!F48 -> 0 | BF48: -6957 | BG48: 11171218 | BH48: =MAX(ROUND(((AR48-AO48)*4433)+AP48,0),ROUND(((AR48-AO48)*4433)+Weightings!B48,0)) -> 12876101 | BI48: 0.3 | BJ48: 3862830 | BK48: 2995000 | BL48: 2995000 | BM48: 0.2326 | BN48: 0 | BO48: FALSE | BP48: 0 | BQ48: 0 | BR48: 0 | BS48: FALSE | BT48: 0 | BU48: 0 | BV48: 0 | BW48: 64.3 | BX48: 300 | BY48: 1.91 | BZ48: =IF(ROUND((Weightings!$P$5*BY48^Weightings!$P$6*Weightings!$P$8 ),2)<Weightings!$P$7,Weightings!$P$7,ROUND((Weightings!$P$5*BY48^Weightings!$P$6*Weightings!$P$8 ),2)) -> 864.71 | CA48: =ROUND(BZ48/Weightings!$M$5,4) -> 0.2253 | CB48: 129.3 | CC48: 0 | CD48: 0 | CE48: 0 | CF48: 0 | CG48: =AS48*Weightings!$M$5*CF48 -> 0 | CH48: 0 | CI48: 0.57 | CJ48: 6.1 | CK48: 109.7 | CL48: 0 | CM48: 0 | CN48: =IF(ISNA(VLOOKUP($CZ48,'Audit Values'!$A$2:$AE$439,2,FALSE)),'Preliminary SO66'!T45,VLOOKUP($CZ48,'Audit Values'!$A$2:$AE$439,20,FALSE)) -> 0 | CO48: 0 | CP48: 0 | CQ48: 0 | CR48: =IF(ISNA(VLOOKUP($CZ48,'Audit Values'!$A$2:$AE$439,2,FALSE)),'Preliminary SO66'!V45,VLOOKUP($CZ48,'Audit Values'!$A$2:$AE$439,22,FALSE)) -> 0 | CS48: 0 | CT48: =IF(ISNA(VLOOKUP($CZ48,'Audit Values'!$A$2:$AE$439,2,FALSE)),'Preliminary SO66'!W45,VLOOKUP($CZ48,'Audit Values'!$A$2:$AE$439,23,FALSE)) -> 0 | CU48: 0 | CV48: 0 | CW48: 0 | CX48: =IF(CW48>0,Weightings!$M$11*AR48,0) -> 0 | CY48: 0 | CZ48: D0234
A49: 235 | B49: Bourbon | C49: Uniontown | D49: 442.5 | E49: 0 | F49: 442.5 | G49: 422.5 | H49: 0 | I49: 422.5 | J49: 429 | K49: =IF(ISNA(VLOOKUP($CZ49,'Audit Values'!$A$2:$AE$439,2,FALSE)),'Preliminary SO66'!B46,VLOOKUP($CZ49,'Audit Values'!$A$2:$AE$439,31,FALSE)) -> 429 | L49: 431.3 | M49: =IF(ISNA(VLOOKUP($CZ49,'Audit Values'!$A$2:$AE$439,2,FALSE)),'Preliminary SO66'!Z46,VLOOKUP($CZ49,'Audit Values'!$A$2:$AE$439,26,FALSE)) -> 0 | N49: 431.3 | O49: =IF(ISNA(VLOOKUP($CZ49,'Audit Values'!$A$2:$AE$439,2,FALSE)),'Preliminary SO66'!C46,IF(VLOOKUP($CZ49,'Audit Values'!$A$2:$AE$439,28,FALSE)="",VLOOKUP($CZ49,'Audit Values'!$A$2:$AE$439,3,FALSE),VLOOKUP($CZ49,'Audit Values'!$A$2:$AE$439,28,FALSE))) -> 4.5 | P49: 433.5 | Q49: 433.5 | R49: 433.5 | S49: 435.8 | T49: 0 | U49: 190.9 | V49: 190.9 | W49: 0 | X49: =IF(ISNA(VLOOKUP($CZ49,'Audit Values'!$A$2:$AE$439,2,FALSE)),'Preliminary SO66'!D46,VLOOKUP($CZ49,'Audit Values'!$A$2:$AE$439,4,FALSE)) -> 126.4 | Y49: =ROUND((X49/6)*Weightings!$M$6,1) -> 10.5 | Z49: =IF(ISNA(VLOOKUP($CZ49,'Audit Values'!$A$2:$AE$439,2,FALSE)),'Preliminary SO66'!F46,VLOOKUP($CZ49,'Audit Values'!$A$2:$AE$439,6,FALSE)) -> 0 | AA49: =ROUND((Z49/6)*Weightings!$M$7,1) -> 0 | AB49: =IF(ISNA(VLOOKUP($CZ49,'Audit Values'!$A$2:$AE$439,2,FALSE)),'Preliminary SO66'!H46,VLOOKUP($CZ49,'Audit Values'!$A$2:$AE$439,8,FALSE)) -> 245 | AC49: =ROUND(AB49*Weightings!$M$8,1) -> 111.7 | AD49: 25.7 | AE49: 14 | AF49: =AE49*Weightings!$M$9 -> 0.7 | AG49: =IF(ISNA(VLOOKUP($CZ49,'Audit Values'!$A$2:$AE$439,2,FALSE)),'Preliminary SO66'!L46,VLOOKUP($CZ49,'Audit Values'!$A$2:$AE$439,12,FALSE)) -> 0 | AH49: =ROUND(AG49*Weightings!$M$10,1) -> 0 | AI49: =IF(ISNA(VLOOKUP($CZ49,'Audit Values'!$A$2:$AE$439,2,FALSE)),'Preliminary SO66'!O46,VLOOKUP($CZ49,'Audit Values'!$A$2:$AE$439,15,FALSE)) -> 289 | AJ49: 76.5 | AK49: =CC49/Weightings!$M$5 -> 0 | AL49: =CD49/Weightings!$M$5 -> 0 | AM49: =CH49/Weightings!$M$5 -> 0 | AN49: 0 | AO49: =IF(ISNA(VLOOKUP($CZ49,'Audit Values'!$A$2:$AE$439,2,FALSE)),'Preliminary SO66'!X46,VLOOKUP($CZ49,'Audit Values'!$A$2:$AE$439,24,FALSE)) -> 0 | AP49: 366636 | AQ49: =AP49/Weightings!$M$5 -> 95.5 | AR49: 851.8 | AS49: 947.3 | AT49: 947.3 | AU49: 0 | AV49: =IF(ISNA(VLOOKUP($CZ49,'Audit Values'!$A$2:$AC$360,2,FALSE)),"",IF(AND(Weightings!H49>0,VLOOKUP($CZ49,'Audit Values'!$A$2:$AC$360,29,FALSE)<Weightings!H49),Weightings!H49,VLOOKUP($CZ49,'Audit Values'!$A$2:$AC$360,29,FALSE))) -> 1 | AW49: =IF(ISNA(VLOOKUP($CZ49,'Audit Values'!$A$2:$AD$360,2,FALSE)),"",VLOOKUP($CZ49,'Audit Values'!$A$2:$AD$360,30,FALSE)) -> A | AX49: =IF(Weightings!G49="","",IF(Weightings!I49="Pending","PX","R")) ->  | AY49: =AR49*Weightings!$M$5+AU49 -> 3269208 | AZ49: =AT49*Weightings!$M$5+AU49 -> 3635737 | BA49: =IF(Weightings!G49>0,Weightings!G49,'Preliminary SO66'!AB46) -> 3690237 | BB49: 3635737 | BD49: =Weightings!E49 -> 0 | BE49: =Weightings!F49 -> 0 | BF49: 0 | BG49: 3635737 | BH49: =MAX(ROUND(((AR49-AO49)*4433)+AP49,0),ROUND(((AR49-AO49)*4433)+Weightings!B49,0)) -> 4147698 | BI49: 0.3 | BJ49: 1244309 | BK49: 899900 | BL49: 899900 | BM49: 0.217 | BN49: 0 | BO49: FALSE | BP49: 0 | BQ49: 0 | BR49: 0 | BS49: TRUE | BT49: 168.0525 | BU49: 0.438048 | BV49: 190.9 | BW49: 0 | BX49: 309 | BY49: 0.94 | BZ49: =IF(ROUND((Weightings!$P$5*BY49^Weightings!$P$6*Weightings!$P$8 ),2)<Weightings!$P$7,Weightings!$P$7,ROUND((Weightings!$P$5*BY49^Weightings!$P$6*Weightings!$P$8 ),2)) -> 1016.49 | CA49: =ROUND(BZ49/Weightings!$M$5,4) -> 0.2648 | CB49: 76.5 | CC49: 0 | CD49: 0 | CE49: 0 | CF49: 0 | CG49: =AS49*Weightings!$M$5*CF49 -> 0 | CH49: 0 | CI49: 0.562 | CJ49: 1.4 | CK49: 25.7 | CL49: 0 | CM49: 0 | CN49: =IF(ISNA(VLOOKUP($CZ49,'Audit Values'!$A$2:$AE$439,2,FALSE)),'Preliminary SO66'!T46,VLOOKUP($CZ49,'Audit Values'!$A$2:$AE$439,20,FALSE)) -> 0 | CO49: 0 | CP49: 0 | CQ49: 0 | CR49: =IF(ISNA(VLOOKUP($CZ49,'Audit Values'!$A$2:$AE$439,2,FALSE)),'Preliminary SO66'!V46,VLOOKUP($CZ49,'Audit Values'!$A$2:$AE$439,22,FALSE)) -> 0 | CS49: 0 | CT49: =IF(ISNA(VLOOKUP($CZ49,'Audit Values'!$A$2:$AE$439,2,FALSE)),'Preliminary SO66'!W46,VLOOKUP($CZ49,'Audit Values'!$A$2:$AE$439,23,FALSE)) -> 0 | CU49: 0 | CV49: 0 | CW49: 0 | CX49: =IF(CW49>0,Weightings!$M$11*AR49,0) -> 0 | CY49: 0 | CZ49: D0235
A50: 237 | B50: Smith | C50: Smith Center | D50: 402.5 | E50: 0 | F50: 402.5 | G50: 391.5 | H50: 0 | I50: 391.5 | J50: 376.8 | K50: =IF(ISNA(VLOOKUP($CZ50,'Audit Values'!$A$2:$AE$439,2,FALSE)),'Preliminary SO66'!B47,VLOOKUP($CZ50,'Audit Values'!$A$2:$AE$439,31,FALSE)) -> 376.8 | L50: 391.5 | M50: =IF(ISNA(VLOOKUP($CZ50,'Audit Values'!$A$2:$AE$439,2,FALSE)),'Preliminary SO66'!Z47,VLOOKUP($CZ50,'Audit Values'!$A$2:$AE$439,26,FALSE)) -> 0 | N50: 391.5 | O50: =IF(ISNA(VLOOKUP($CZ50,'Audit Values'!$A$2:$AE$439,2,FALSE)),'Preliminary SO66'!C47,IF(VLOOKUP($CZ50,'Audit Values'!$A$2:$AE$439,28,FALSE)="",VLOOKUP($CZ50,'Audit Values'!$A$2:$AE$439,3,FALSE),VLOOKUP($CZ50,'Audit Values'!$A$2:$AE$439,28,FALSE))) -> 0 | P50: 376.8 | Q50: 376.8 | R50: 376.8 | S50: 391.5 | T50: 0 | U50: 177.4 | V50: 177.4 | W50: 0 | X50: =IF(ISNA(VLOOKUP($CZ50,'Audit Values'!$A$2:$AE$439,2,FALSE)),'Preliminary SO66'!D47,VLOOKUP($CZ50,'Audit Values'!$A$2:$AE$439,4,FALSE)) -> 141.3 | Y50: =ROUND((X50/6)*Weightings!$M$6,1) -> 11.8 | Z50: =IF(ISNA(VLOOKUP($CZ50,'Audit Values'!$A$2:$AE$439,2,FALSE)),'Preliminary SO66'!F47,VLOOKUP($CZ50,'Audit Values'!$A$2:$AE$439,6,FALSE)) -> 0 | AA50: =ROUND((Z50/6)*Weightings!$M$7,1) -> 0 | AB50: =IF(ISNA(VLOOKUP($CZ50,'Audit Values'!$A$2:$AE$439,2,FALSE)),'Preliminary SO66'!H47,VLOOKUP($CZ50,'Audit Values'!$A$2:$AE$439,8,FALSE)) -> 126 | AC50: =ROUND(AB50*Weightings!$M$8,1) -> 57.5 | AD50: 0 | AE50: 27 | AF50: =AE50*Weightings!$M$9 -> 1.3 | AG50: =IF(ISNA(VLOOKUP($CZ50,'Audit Values'!$A$2:$AE$439,2,FALSE)),'Preliminary SO66'!L47,VLOOKUP($CZ50,'Audit Values'!$A$2:$AE$439,12,FALSE)) -> 0 | AH50: =ROUND(AG50*Weightings!$M$10,1) -> 0 | AI50: =IF(ISNA(VLOOKUP($CZ50,'Audit Values'!$A$2:$AE$439,2,FALSE)),'Preliminary SO66'!O47,VLOOKUP($CZ50,'Audit Values'!$A$2:$AE$439,15,FALSE)) -> 121 | AJ50: 45.6 | AK50: =CC50/Weightings!$M$5 -> 0 | AL50: =CD50/Weightings!$M$5 -> 0 | AM50: =CH50/Weightings!$M$5 -> 0 | AN50: 0 | AO50: =IF(ISNA(VLOOKUP($CZ50,'Audit Values'!$A$2:$AE$439,2,FALSE)),'Preliminary SO66'!X47,VLOOKUP($CZ50,'Audit Values'!$A$2:$AE$439,24,FALSE)) -> 0 | AP50: 504615 | AQ50: =AP50/Weightings!$M$5 -> 131.5 | AR50: 685.1 | AS50: 816.6 | AT50: 816.6 | AU50: 0 | AV50: =IF(ISNA(VLOOKUP($CZ50,'Audit Values'!$A$2:$AC$360,2,FALSE)),"",IF(AND(Weightings!H50>0,VLOOKUP($CZ50,'Audit Values'!$A$2:$AC$360,29,FALSE)<Weightings!H50),Weightings!H50,VLOOKUP($CZ50,'Audit Values'!$A$2:$AC$360,29,FALSE))) -> 21 | AW50: =IF(ISNA(VLOOKUP($CZ50,'Audit Values'!$A$2:$AD$360,2,FALSE)),"",VLOOKUP($CZ50,'Audit Values'!$A$2:$AD$360,30,FALSE)) -> A | AX50: =IF(Weightings!G50="","",IF(Weightings!I50="Pending","PX","R")) -> R | AY50: =AR50*Weightings!$M$5+AU50 -> 2629414 | AZ50: =AT50*Weightings!$M$5+AU50 -> 3134111 | BA50: =IF(Weightings!G50>0,Weightings!G50,'Preliminary SO66'!AB47) -> 3226660 | BB50: 3134111 | BD50: =Weightings!E50 -> 0 | BE50: =Weightings!F50 -> 0 | BF50: 0 | BG50: 3134111 | BH50: =MAX(ROUND(((AR50-AO50)*4433)+AP50,0),ROUND(((AR50-AO50)*4433)+Weightings!B50,0)) -> 3623083 | BI50: 0.31 | BJ50: 1123156 | BK50: 1119858 | BL50: 1119858 | BM50: 0.3091 | BN50: 0 | BO50: FALSE | BP50: 0 | BQ50: 0 | BR50: 0 | BS50: TRUE | BT50: 113.2313 | BU50: 0.453099 | BV50: 177.4 | BW50: 0 | BX50: 599 | BY50: 0.2 | BZ50: =IF(ROUND((Weightings!$P$5*BY50^Weightings!$P$6*Weightings!$P$8 ),2)<Weightings!$P$7,Weightings!$P$7,ROUND((Weightings!$P$5*BY50^Weightings!$P$6*Weightings!$P$8 ),2)) -> 1446.8 | CA50: =ROUND(BZ50/Weightings!$M$5,4) -> 0.377 | CB50: 45.6 | CC50: 0 | CD50: 0 | CE50: 0 | CF50: 0 | CG50: =AS50*Weightings!$M$5*CF50 -> 0 | CH50: 0 | CI50: 0.322 | CJ50: 0.7 | CK50: 0 | CL50: 0 | CM50: 0 | CN50: =IF(ISNA(VLOOKUP($CZ50,'Audit Values'!$A$2:$AE$439,2,FALSE)),'Preliminary SO66'!T47,VLOOKUP($CZ50,'Audit Values'!$A$2:$AE$439,20,FALSE)) -> 0 | CO50: 0 | CP50: 0 | CQ50: 0 | CR50: =IF(ISNA(VLOOKUP($CZ50,'Audit Values'!$A$2:$AE$439,2,FALSE)),'Preliminary SO66'!V47,VLOOKUP($CZ50,'Audit Values'!$A$2:$AE$439,22,FALSE)) -> 0 | CS50: 0 | CT50: =IF(ISNA(VLOOKUP($CZ50,'Audit Values'!$A$2:$AE$439,2,FALSE)),'Preliminary SO66'!W47,VLOOKUP($CZ50,'Audit Values'!$A$2:$AE$439,23,FALSE)) -> 0 | CU50: 0 | CV50: 0 | CW50: 0 | CX50: =IF(CW50>0,Weightings!$M$11*AR50,0) -> 0 | CY50: 0 | CZ50: D0237
A51: 239 | B51: Ottawa | C51: North Ottawa County | D51: 590.9 | E51: 0 | F51: 590.9 | G51: 590.4 | H51: 0 | I51: 590.4 | J51: 618.3 | K51: =IF(ISNA(VLOOKUP($CZ51,'Audit Values'!$A$2:$AE$439,2,FALSE)),'Preliminary SO66'!B48,VLOOKUP($CZ51,'Audit Values'!$A$2:$AE$439,31,FALSE)) -> 618.3 | L51: 618.3 | M51: =IF(ISNA(VLOOKUP($CZ51,'Audit Values'!$A$2:$AE$439,2,FALSE)),'Preliminary SO66'!Z48,VLOOKUP($CZ51,'Audit Values'!$A$2:$AE$439,26,FALSE)) -> 0 | N51: 618.3 | O51: =IF(ISNA(VLOOKUP($CZ51,'Audit Values'!$A$2:$AE$439,2,FALSE)),'Preliminary SO66'!C48,IF(VLOOKUP($CZ51,'Audit Values'!$A$2:$AE$439,28,FALSE)="",VLOOKUP($CZ51,'Audit Values'!$A$2:$AE$439,3,FALSE),VLOOKUP($CZ51,'Audit Values'!$A$2:$AE$439,28,FALSE))) -> 0 | P51: 618.3 | Q51: 618.3 | R51: 618.3 | S51: 618.3 | T51: 0 | U51: 232.5 | V51: =MAX(BN51,BR51,BV51) -> 232.5 | W51: =BW51 -> 0 | X51: =IF(ISNA(VLOOKUP($CZ51,'Audit Values'!$A$2:$AE$439,2,FALSE)),'Preliminary SO66'!D48,VLOOKUP($CZ51,'Audit Values'!$A$2:$AE$439,4,FALSE)) -> 72.1 | Y51: =ROUND((X51/6)*Weightings!$M$6,1) -> 6 | Z51: =IF(ISNA(VLOOKUP($CZ51,'Audit Values'!$A$2:$AE$439,2,FALSE)),'Preliminary SO66'!F48,VLOOKUP($CZ51,'Audit Values'!$A$2:$AE$439,6,FALSE)) -> 0 | AA51: =ROUND((Z51/6)*Weightings!$M$7,1) -> 0 | AB51: =IF(ISNA(VLOOKUP($CZ51,'Audit Values'!$A$2:$AE$439,2,FALSE)),'Preliminary SO66'!H48,VLOOKUP($CZ51,'Audit Values'!$A$2:$AE$439,8,FALSE)) -> 202 | AC51: =ROUND(AB51*Weightings!$M$8,1) -> 92.1 | AD51: 0 | AE51: 42 | AF51: =AE51*Weightings!$M$9 -> 2 | AG51: =IF(ISNA(VLOOKUP($CZ51,'Audit Values'!$A$2:$AE$439,2,FALSE)),'Preliminary SO66'!L48,VLOOKUP($CZ51,'Audit Values'!$A$2:$AE$439,12,FALSE)) -> 0 | AH51: =ROUND(AG51*Weightings!$M$10,1) -> 0 | AI51: =IF(ISNA(VLOOKUP($CZ51,'Audit Values'!$A$2:$AE$439,2,FALSE)),'Preliminary SO66'!O48,VLOOKUP($CZ51,'Audit Values'!$A$2:$AE$439,15,FALSE)) -> 180 | AJ51: 57 | AK51: =CC51/Weightings!$M$5 -> 0 | AL51: =CD51/Weightings!$M$5 -> 0 | AM51: =CH51/Weightings!$M$5 -> 0 | AN51: 0 | AO51: =IF(ISNA(VLOOKUP($CZ51,'Audit Values'!$A$2:$AE$439,2,FALSE)),'Preliminary SO66'!X48,VLOOKUP($CZ51,'Audit Values'!$A$2:$AE$439,24,FALSE)) -> 0 | AP51: 633285 | AQ51: =AP51/Weightings!$M$5 -> 165 | AR51: 1007.9 | AS51: 1172.9 | AT51: 1172.9 | AU51: 0 | AV51: =IF(ISNA(VLOOKUP($CZ51,'Audit Values'!$A$2:$AC$360,2,FALSE)),"",IF(AND(Weightings!H51>0,VLOOKUP($CZ51,'Audit Values'!$A$2:$AC$360,29,FALSE)<Weightings!H51),Weightings!H51,VLOOKUP($CZ51,'Audit Values'!$A$2:$AC$360,29,FALSE))) -> 16 | AW51: =IF(ISNA(VLOOKUP($CZ51,'Audit Values'!$A$2:$AD$360,2,FALSE)),"",VLOOKUP($CZ51,'Audit Values'!$A$2:$AD$360,30,FALSE)) -> A | AX51: =IF(Weightings!G51="","",IF(Weightings!I51="Pending","PX","R")) -> R | AY51: =AR51*Weightings!$M$5+AU51 -> 3868320 | AZ51: =AT51*Weightings!$M$5+AU51 -> 4501590 | BA51: =IF(Weightings!G51>0,Weightings!G51,'Preliminary SO66'!AB48) -> 4660100 | BB51: 4501590 | BD51: =Weightings!E51 -> 0 | BE51: =Weightings!F51 -> 0 | BF51: 0 | BG51: 4501590 | BH51: =MAX(ROUND(((AR51-AO51)*4433)+AP51,0),ROUND(((AR51-AO51)*4433)+Weightings!B51,0)) -> 5101306 | BI51: 0.3 | BJ51: 1530392 | BK51: 1561379 | BL51: 1530392 | BM51: 0.3 | BN51: 0 | BO51: FALSE | BP51: 0 | BQ51: =IF(BO51=TRUE,ROUND(((7337-BP51)/3642.4)-1,6),0) -> 0 | BR51: 0 | BS51: TRUE | BT51: 393.8963 | BU51: =IF(BS51=TRUE,ROUND(((5406-BT51)/3642.4)-1,6),0) -> 0.376044 | BV51: 232.5 | BW51: 0 | BX51: 418.5 | BY51: 0.43 | BZ51: =IF(ROUND((Weightings!$P$5*BY51^Weightings!$P$6*Weightings!$P$8 ),2)<Weightings!$P$7,Weightings!$P$7,ROUND((Weightings!$P$5*BY51^Weightings!$P$6*Weightings!$P$8 ),2)) -> 1215.01 | CA51: =ROUND(BZ51/Weightings!$M$5,4) -> 0.3166 | CB51: 57 | CC51: 0 | CD51: 0 | CE51: 0 | CF51: 0 | CG51: =AS51*Weightings!$M$5*CF51 -> 0 | CH51: =IF(CE51>CG51,CG51,CE51) -> 0 | CI51: 0.327 | CJ51: 1.5 | CK51: 0 | CL51: 0 | CM51: 0 | CN51: =IF(ISNA(VLOOKUP($CZ51,'Audit Values'!$A$2:$AE$439,2,FALSE)),'Preliminary SO66'!T48,VLOOKUP($CZ51,'Audit Values'!$A$2:$AE$439,20,FALSE)) -> 0 | CO51: 0 | CP51: 0 | CQ51: 0 | CR51: =IF(ISNA(VLOOKUP($CZ51,'Audit Values'!$A$2:$AE$439,2,FALSE)),'Preliminary SO66'!V48,VLOOKUP($CZ51,'Audit Values'!$A$2:$AE$439,22,FALSE)) -> 0 | CS51: 0 | CT51: =IF(ISNA(VLOOKUP($CZ51,'Audit Values'!$A$2:$AE$439,2,FALSE)),'Preliminary SO66'!W48,VLOOKUP($CZ51,'Audit Values'!$A$2:$AE$439,23,FALSE)) -> 0 | CU51: =CT51*0.08 -> 0 | CV51: =CO51+CQ51+CS51+CU51 -> 0 | CW51: 0 | CX51: =IF(CW51>0,Weightings!$M$11*AR51,0) -> 0 | CY51: 0 | CZ51: D0239
A52: 240 | B52: Ottawa | C52: Twin Valley | D52: 576 | E52: 0 | F52: 576 | G52: 582.5 | H52: 0 | I52: 582.5 | J52: 587.8 | K52: =IF(ISNA(VLOOKUP($CZ52,'Audit Values'!$A$2:$AE$439,2,FALSE)),'Preliminary SO66'!B49,VLOOKUP($CZ52,'Audit Values'!$A$2:$AE$439,31,FALSE)) -> 578.5 | L52: 582.5 | M52: =IF(ISNA(VLOOKUP($CZ52,'Audit Values'!$A$2:$AE$439,2,FALSE)),'Preliminary SO66'!Z49,VLOOKUP($CZ52,'Audit Values'!$A$2:$AE$439,26,FALSE)) -> 0 | N52: 582.5 | O52: =IF(ISNA(VLOOKUP($CZ52,'Audit Values'!$A$2:$AE$439,2,FALSE)),'Preliminary SO66'!C49,IF(VLOOKUP($CZ52,'Audit Values'!$A$2:$AE$439,28,FALSE)="",VLOOKUP($CZ52,'Audit Values'!$A$2:$AE$439,3,FALSE),VLOOKUP($CZ52,'Audit Values'!$A$2:$AE$439,28,FALSE))) -> 12 | P52: 590.5 | Q52: 599.8 | R52: 599.8 | S52: 594.5 | T52: 9.3 | U52: 228.4 | V52: 228.4 | W52: 0 | X52: =IF(ISNA(VLOOKUP($CZ52,'Audit Values'!$A$2:$AE$439,2,FALSE)),'Preliminary SO66'!D49,VLOOKUP($CZ52,'Audit Values'!$A$2:$AE$439,4,FALSE)) -> 150.9 | Y52: =ROUND((X52/6)*Weightings!$M$6,1) -> 12.6 | Z52: =IF(ISNA(VLOOKUP($CZ52,'Audit Values'!$A$2:$AE$439,2,FALSE)),'Preliminary SO66'!F49,VLOOKUP($CZ52,'Audit Values'!$A$2:$AE$439,6,FALSE)) -> 0 | AA52: =ROUND((Z52/6)*Weightings!$M$7,1) -> 0 | AB52: =IF(ISNA(VLOOKUP($CZ52,'Audit Values'!$A$2:$AE$439,2,FALSE)),'Preliminary SO66'!H49,VLOOKUP($CZ52,'Audit Values'!$A$2:$AE$439,8,FALSE)) -> 211 | AC52: =ROUND(AB52*Weightings!$M$8,1) -> 96.2 | AD52: 0.7 | AE52: 66 | AF52: =AE52*Weightings!$M$9 -> 3.1 | AG52: =IF(ISNA(VLOOKUP($CZ52,'Audit Values'!$A$2:$AE$439,2,FALSE)),'Preliminary SO66'!L49,VLOOKUP($CZ52,'Audit Values'!$A$2:$AE$439,12,FALSE)) -> 0 | AH52: =ROUND(AG52*Weightings!$M$10,1) -> 0 | AI52: =IF(ISNA(VLOOKUP($CZ52,'Audit Values'!$A$2:$AE$439,2,FALSE)),'Preliminary SO66'!O49,VLOOKUP($CZ52,'Audit Values'!$A$2:$AE$439,15,FALSE)) -> 182 | AJ52: 51.9 | AK52: =CC52/Weightings!$M$5 -> 0 | AL52: =CD52/Weightings!$M$5 -> 0 | AM52: =CH52/Weightings!$M$5 -> 0 | AN52: 9.8 | AO52: =IF(ISNA(VLOOKUP($CZ52,'Audit Values'!$A$2:$AE$439,2,FALSE)),'Preliminary SO66'!X49,VLOOKUP($CZ52,'Audit Values'!$A$2:$AE$439,24,FALSE)) -> 0 | AP52: 558291 | AQ52: =AP52/Weightings!$M$5 -> 145.5 | AR52: 997.2 | AS52: 1142.7 | AT52: 1142.7 | AU52: 0 | AV52: =IF(ISNA(VLOOKUP($CZ52,'Audit Values'!$A$2:$AC$360,2,FALSE)),"",IF(AND(Weightings!H52>0,VLOOKUP($CZ52,'Audit Values'!$A$2:$AC$360,29,FALSE)<Weightings!H52),Weightings!H52,VLOOKUP($CZ52,'Audit Values'!$A$2:$AC$360,29,FALSE))) -> 10 | AW52: =IF(ISNA(VLOOKUP($CZ52,'Audit Values'!$A$2:$AD$360,2,FALSE)),"",VLOOKUP($CZ52,'Audit Values'!$A$2:$AD$360,30,FALSE)) -> A | AX52: =IF(Weightings!G52="","",IF(Weightings!I52="Pending","PX","R")) -> R | AY52: =AR52*Weightings!$M$5+AU52 -> 3827254 | AZ52: =AT52*Weightings!$M$5+AU52 -> 4385683 | BA52: =IF(Weightings!G52>0,Weightings!G52,'Preliminary SO66'!AB49) -> 4449091 | BB52: 4385683 | BD52: =Weightings!E52 -> -1096 | BE52: =Weightings!F52 -> 0 | BF52: -1096 | BG52: 4384587 | BH52: =MAX(ROUND(((AR52-AO52)*4433)+AP52,0),ROUND(((AR52-AO52)*4433)+Weightings!B52,0)) -> 5014672 | BI52: 0.3 | BJ52: 1504402 | BK52: 1492508 | BL52: 1492508 | BM52: 0.2976 | BN52: 0 | BO52: FALSE | BP52: 0 | BQ52: 0 | BR52: 0 | BS52: TRUE | BT52: 364.4438 | BU52: 0.38413 | BV52: 228.4 | BW52: 0 | BX52: 269.3 | BY52: 0.68 | BZ52: =IF(ROUND((Weightings!$P$5*BY52^Weightings!$P$6*Weightings!$P$8 ),2)<Weightings!$P$7,Weightings!$P$7,ROUND((Weightings!$P$5*BY52^Weightings!$P$6*Weightings!$P$8 ),2)) -> 1094.41 | CA52: =ROUND(BZ52/Weightings!$M$5,4) -> 0.2852 | CB52: 51.9 | CC52: 0 | CD52: 0 | CE52: 0 | CF52: 0 | CG52: =AS52*Weightings!$M$5*CF52 -> 0 | CH52: 0 | CI52: 0.355 | CJ52: 2.2 | CK52: 0 | CL52: 0 | CM52: 0.7 | CN52: =IF(ISNA(VLOOKUP($CZ52,'Audit Values'!$A$2:$AE$439,2,FALSE)),'Preliminary SO66'!T49,VLOOKUP($CZ52,'Audit Values'!$A$2:$AE$439,20,FALSE)) -> 9.3 | CO52: 9.8 | CP52: 0 | CQ52: 0 | CR52: =IF(ISNA(VLOOKUP($CZ52,'Audit Values'!$A$2:$AE$439,2,FALSE)),'Preliminary SO66'!V49,VLOOKUP($CZ52,'Audit Values'!$A$2:$AE$439,22,FALSE)) -> 0 | CS52: 0 | CT52: =IF(ISNA(VLOOKUP($CZ52,'Audit Values'!$A$2:$AE$439,2,FALSE)),'Preliminary SO66'!W49,VLOOKUP($CZ52,'Audit Values'!$A$2:$AE$439,23,FALSE)) -> 0 | CU52: 0 | CV52: 9.8 | CW52: 0 | CX52: =IF(CW52>0,Weightings!$M$11*AR52,0) -> 0 | CY52: 0 | CZ52: D0240
A53: 241 | B53: Wallace | C53: Wallace County Schools | D53: 206 | E53: 0 | F53: 206 | G53: 194.5 | H53: 0 | I53: 194.5 | J53: 190 | K53: =IF(ISNA(VLOOKUP($CZ53,'Audit Values'!$A$2:$AE$439,2,FALSE)),'Preliminary SO66'!B50,VLOOKUP($CZ53,'Audit Values'!$A$2:$AE$439,31,FALSE)) -> 190 | L53: 196.8 | M53: =IF(ISNA(VLOOKUP($CZ53,'Audit Values'!$A$2:$AE$439,2,FALSE)),'Preliminary SO66'!Z50,VLOOKUP($CZ53,'Audit Values'!$A$2:$AE$439,26,FALSE)) -> 0 | N53: 196.8 | O53: =IF(ISNA(VLOOKUP($CZ53,'Audit Values'!$A$2:$AE$439,2,FALSE)),'Preliminary SO66'!C50,IF(VLOOKUP($CZ53,'Audit Values'!$A$2:$AE$439,28,FALSE)="",VLOOKUP($CZ53,'Audit Values'!$A$2:$AE$439,3,FALSE),VLOOKUP($CZ53,'Audit Values'!$A$2:$AE$439,28,FALSE))) -> 0 | P53: 190 | Q53: 190 | R53: 190 | S53: 196.8 | T53: 0 | U53: 149.1 | V53: 149.1 | W53: 0 | X53: =IF(ISNA(VLOOKUP($CZ53,'Audit Values'!$A$2:$AE$439,2,FALSE)),'Preliminary SO66'!D50,VLOOKUP($CZ53,'Audit Values'!$A$2:$AE$439,4,FALSE)) -> 0 | Y53: =ROUND((X53/6)*Weightings!$M$6,1) -> 0 | Z53: =IF(ISNA(VLOOKUP($CZ53,'Audit Values'!$A$2:$AE$439,2,FALSE)),'Preliminary SO66'!F50,VLOOKUP($CZ53,'Audit Values'!$A$2:$AE$439,6,FALSE)) -> 0 | AA53: =ROUND((Z53/6)*Weightings!$M$7,1) -> 0 | AB53: =IF(ISNA(VLOOKUP($CZ53,'Audit Values'!$A$2:$AE$439,2,FALSE)),'Preliminary SO66'!H50,VLOOKUP($CZ53,'Audit Values'!$A$2:$AE$439,8,FALSE)) -> 48 | AC53: =ROUND(AB53*Weightings!$M$8,1) -> 21.9 | AD53: 0 | AE53: 4 | AF53: =AE53*Weightings!$M$9 -> 0.2 | AG53: =IF(ISNA(VLOOKUP($CZ53,'Audit Values'!$A$2:$AE$439,2,FALSE)),'Preliminary SO66'!L50,VLOOKUP($CZ53,'Audit Values'!$A$2:$AE$439,12,FALSE)) -> 0 | AH53: =ROUND(AG53*Weightings!$M$10,1) -> 0 | AI53: =IF(ISNA(VLOOKUP($CZ53,'Audit Values'!$A$2:$AE$439,2,FALSE)),'Preliminary SO66'!O50,VLOOKUP($CZ53,'Audit Values'!$A$2:$AE$439,15,FALSE)) -> 54 | AJ53: 25.1 | AK53: =CC53/Weightings!$M$5 -> 0 | AL53: =CD53/Weightings!$M$5 -> 0 | AM53: =CH53/Weightings!$M$5 -> 0 | AN53: 0 | AO53: =IF(ISNA(VLOOKUP($CZ53,'Audit Values'!$A$2:$AE$439,2,FALSE)),'Preliminary SO66'!X50,VLOOKUP($CZ53,'Audit Values'!$A$2:$AE$439,24,FALSE)) -> 0 | AP53: 158594 | AQ53: =AP53/Weightings!$M$5 -> 41.3 | AR53: 393.1 | AS53: 434.4 | AT53: 434.4 | AU53: 0 | AV53: =IF(ISNA(VLOOKUP($CZ53,'Audit Values'!$A$2:$AC$360,2,FALSE)),"",IF(AND(Weightings!H53>0,VLOOKUP($CZ53,'Audit Values'!$A$2:$AC$360,29,FALSE)<Weightings!H53),Weightings!H53,VLOOKUP($CZ53,'Audit Values'!$A$2:$AC$360,29,FALSE))) -> 18 | AW53: =IF(ISNA(VLOOKUP($CZ53,'Audit Values'!$A$2:$AD$360,2,FALSE)),"",VLOOKUP($CZ53,'Audit Values'!$A$2:$AD$360,30,FALSE)) -> A | AX53: =IF(Weightings!G53="","",IF(Weightings!I53="Pending","PX","R")) ->  | AY53: =AR53*Weightings!$M$5+AU53 -> 1508718 | AZ53: =AT53*Weightings!$M$5+AU53 -> 1667227 | BA53: =IF(Weightings!G53>0,Weightings!G53,'Preliminary SO66'!AB50) -> 1743987 | BB53: 1667227 | BD53: =Weightings!E53 -> 0 | BE53: =Weightings!F53 -> 0 | BF53: 0 | BG53: 1667227 | BH53: =MAX(ROUND(((AR53-AO53)*4433)+AP53,0),ROUND(((AR53-AO53)*4433)+Weightings!B53,0)) -> 1901206 | BI53: 0.3 | BJ53: 570362 | BK53: 596377 | BL53: 570362 | BM53: 0.3 | BN53: 0 | BO53: TRUE | BP53: 934.604 | BQ53: 0.757741 | BR53: 149.1 | BS53: FALSE | BT53: 0 | BU53: 0 | BV53: 0 | BW53: 0 | BX53: 681.5 | BY53: 0.08 | BZ53: =IF(ROUND((Weightings!$P$5*BY53^Weightings!$P$6*Weightings!$P$8 ),2)<Weightings!$P$7,Weightings!$P$7,ROUND((Weightings!$P$5*BY53^Weightings!$P$6*Weightings!$P$8 ),2)) -> 1783.12 | CA53: =ROUND(BZ53/Weightings!$M$5,4) -> 0.4646 | CB53: 25.1 | CC53: 0 | CD53: 0 | CE53: 0 | CF53: 0 | CG53: =AS53*Weightings!$M$5*CF53 -> 0 | CH53: 0 | CI53: 0.244 | CJ53: 0.3 | CK53: 0 | CL53: 0 | CM53: 0 | CN53: =IF(ISNA(VLOOKUP($CZ53,'Audit Values'!$A$2:$AE$439,2,FALSE)),'Preliminary SO66'!T50,VLOOKUP($CZ53,'Audit Values'!$A$2:$AE$439,20,FALSE)) -> 0 | CO53: 0 | CP53: 0 | CQ53: 0 | CR53: =IF(ISNA(VLOOKUP($CZ53,'Audit Values'!$A$2:$AE$439,2,FALSE)),'Preliminary SO66'!V50,VLOOKUP($CZ53,'Audit Values'!$A$2:$AE$439,22,FALSE)) -> 0 | CS53: 0 | CT53: =IF(ISNA(VLOOKUP($CZ53,'Audit Values'!$A$2:$AE$439,2,FALSE)),'Preliminary SO66'!W50,VLOOKUP($CZ53,'Audit Values'!$A$2:$AE$439,23,FALSE)) -> 0 | CU53: 0 | CV53: 0 | CW53: 0 | CX53: =IF(CW53>0,Weightings!$M$11*AR53,0) -> 0 | CY53: 0 | CZ53: D0241
A54: 242 | B54: Wallace | C54: Weskan | D54: 99.5 | E54: 0 | F54: 99.5 | G54: 100 | H54: 0 | I54: 100 | J54: 90.8 | K54: =IF(ISNA(VLOOKUP($CZ54,'Audit Values'!$A$2:$AE$439,2,FALSE)),'Preliminary SO66'!B51,VLOOKUP($CZ54,'Audit Values'!$A$2:$AE$439,31,FALSE)) -> 90.8 | L54: 100 | M54: =IF(ISNA(VLOOKUP($CZ54,'Audit Values'!$A$2:$AE$439,2,FALSE)),'Preliminary SO66'!Z51,VLOOKUP($CZ54,'Audit Values'!$A$2:$AE$439,26,FALSE)) -> 0 | N54: 100 | O54: =IF(ISNA(VLOOKUP($CZ54,'Audit Values'!$A$2:$AE$439,2,FALSE)),'Preliminary SO66'!C51,IF(VLOOKUP($CZ54,'Audit Values'!$A$2:$AE$439,28,FALSE)="",VLOOKUP($CZ54,'Audit Values'!$A$2:$AE$439,3,FALSE),VLOOKUP($CZ54,'Audit Values'!$A$2:$AE$439,28,FALSE))) -> 0 | P54: 90.8 | Q54: 90.8 | R54: 90.8 | S54: 100 | T54: 0 | U54: 101.4 | V54: 101.4 | W54: 0 | X54: =IF(ISNA(VLOOKUP($CZ54,'Audit Values'!$A$2:$AE$439,2,FALSE)),'Preliminary SO66'!D51,VLOOKUP($CZ54,'Audit Values'!$A$2:$AE$439,4,FALSE)) -> 0 | Y54: =ROUND((X54/6)*Weightings!$M$6,1) -> 0 | Z54: =IF(ISNA(VLOOKUP($CZ54,'Audit Values'!$A$2:$AE$439,2,FALSE)),'Preliminary SO66'!F51,VLOOKUP($CZ54,'Audit Values'!$A$2:$AE$439,6,FALSE)) -> 22.6 | AA54: =ROUND((Z54/6)*Weightings!$M$7,1) -> 1.5 | AB54: =IF(ISNA(VLOOKUP($CZ54,'Audit Values'!$A$2:$AE$439,2,FALSE)),'Preliminary SO66'!H51,VLOOKUP($CZ54,'Audit Values'!$A$2:$AE$439,8,FALSE)) -> 21 | AC54: =ROUND(AB54*Weightings!$M$8,1) -> 9.6 | AD54: 0 | AE54: 10 | AF54: =AE54*Weightings!$M$9 -> 0.5 | AG54: =IF(ISNA(VLOOKUP($CZ54,'Audit Values'!$A$2:$AE$439,2,FALSE)),'Preliminary SO66'!L51,VLOOKUP($CZ54,'Audit Values'!$A$2:$AE$439,12,FALSE)) -> 0 | AH54: =ROUND(AG54*Weightings!$M$10,1) -> 0 | AI54: =IF(ISNA(VLOOKUP($CZ54,'Audit Values'!$A$2:$AE$439,2,FALSE)),'Preliminary SO66'!O51,VLOOKUP($CZ54,'Audit Values'!$A$2:$AE$439,15,FALSE)) -> 34 | AJ54: 13.9 | AK54: =CC54/Weightings!$M$5 -> 0 | AL54: =CD54/Weightings!$M$5 -> 0 | AM54: =CH54/Weightings!$M$5 -> 0 | AN54: 0 | AO54: =IF(ISNA(VLOOKUP($CZ54,'Audit Values'!$A$2:$AE$439,2,FALSE)),'Preliminary SO66'!X51,VLOOKUP($CZ54,'Audit Values'!$A$2:$AE$439,24,FALSE)) -> 0 | AP54: 105177 | AQ54: =AP54/Weightings!$M$5 -> 27.4 | AR54: 226.9 | AS54: 254.3 | AT54: 254.3 | AU54: 0 | AV54: =IF(ISNA(VLOOKUP($CZ54,'Audit Values'!$A$2:$AC$360,2,FALSE)),"",IF(AND(Weightings!H54>0,VLOOKUP($CZ54,'Audit Values'!$A$2:$AC$360,29,FALSE)<Weightings!H54),Weightings!H54,VLOOKUP($CZ54,'Audit Values'!$A$2:$AC$360,29,FALSE))) -> 18 | AW54: =IF(ISNA(VLOOKUP($CZ54,'Audit Values'!$A$2:$AD$360,2,FALSE)),"",VLOOKUP($CZ54,'Audit Values'!$A$2:$AD$360,30,FALSE)) -> A | AX54: =IF(Weightings!G54="","",IF(Weightings!I54="Pending","PX","R")) ->  | AY54: =AR54*Weightings!$M$5+AU54 -> 870842 | AZ54: =AT54*Weightings!$M$5+AU54 -> 976003 | BA54: =IF(Weightings!G54>0,Weightings!G54,'Preliminary SO66'!AB51) -> 997112 | BB54: 976003 | BD54: =Weightings!E54 -> 0 | BE54: =Weightings!F54 -> 0 | BF54: 0 | BG54: 976003 | BH54: =MAX(ROUND(((AR54-AO54)*4433)+AP54,0),ROUND(((AR54-AO54)*4433)+Weightings!B54,0)) -> 1111025 | BI54: 0.3 | BJ54: 333308 | BK54: 340339 | BL54: 333308 | BM54: 0.3 | BN54: 0 | BO54: TRUE | BP54: 0 | BQ54: 1.014331 | BR54: 101.4 | BS54: FALSE | BT54: 0 | BU54: 0 | BV54: 0 | BW54: 0 | BX54: 243 | BY54: 0.14 | BZ54: =IF(ROUND((Weightings!$P$5*BY54^Weightings!$P$6*Weightings!$P$8 ),2)<Weightings!$P$7,Weightings!$P$7,ROUND((Weightings!$P$5*BY54^Weightings!$P$6*Weightings!$P$8 ),2)) -> 1569.43 | CA54: =ROUND(BZ54/Weightings!$M$5,4) -> 0.4089 | CB54: 13.9 | CC54: 0 | CD54: 0 | CE54: 0 | CF54: 0 | CG54: =AS54*Weightings!$M$5*CF54 -> 0 | CH54: 0 | CI54: 0.21 | CJ54: 0.4 | CK54: 0 | CL54: 0 | CM54: 0 | CN54: =IF(ISNA(VLOOKUP($CZ54,'Audit Values'!$A$2:$AE$439,2,FALSE)),'Preliminary SO66'!T51,VLOOKUP($CZ54,'Audit Values'!$A$2:$AE$439,20,FALSE)) -> 0 | CO54: 0 | CP54: 0 | CQ54: 0 | CR54: =IF(ISNA(VLOOKUP($CZ54,'Audit Values'!$A$2:$AE$439,2,FALSE)),'Preliminary SO66'!V51,VLOOKUP($CZ54,'Audit Values'!$A$2:$AE$439,22,FALSE)) -> 0 | CS54: 0 | CT54: =IF(ISNA(VLOOKUP($CZ54,'Audit Values'!$A$2:$AE$439,2,FALSE)),'Preliminary SO66'!W51,VLOOKUP($CZ54,'Audit Values'!$A$2:$AE$439,23,FALSE)) -> 0 | CU54: 0 | CV54: 0 | CW54: 0 | CX54: =IF(CW54>0,Weightings!$M$11*AR54,0) -> 0 | CY54: 0 | CZ54: D0242
A55: 243 | B55: Coffey | C55: Lebo-Waverly | D55: 495.7 | E55: 0 | F55: 495.7 | G55: 485.5 | H55: 0 | I55: 485.5 | J55: 492.7 | K55: =IF(ISNA(VLOOKUP($CZ55,'Audit Values'!$A$2:$AE$439,2,FALSE)),'Preliminary SO66'!B52,VLOOKUP($CZ55,'Audit Values'!$A$2:$AE$439,31,FALSE)) -> 491 | L55: 491 | M55: =IF(ISNA(VLOOKUP($CZ55,'Audit Values'!$A$2:$AE$439,2,FALSE)),'Preliminary SO66'!Z52,VLOOKUP($CZ55,'Audit Values'!$A$2:$AE$439,26,FALSE)) -> 0 | N55: 491 | O55: =IF(ISNA(VLOOKUP($CZ55,'Audit Values'!$A$2:$AE$439,2,FALSE)),'Preliminary SO66'!C52,IF(VLOOKUP($CZ55,'Audit Values'!$A$2:$AE$439,28,FALSE)="",VLOOKUP($CZ55,'Audit Values'!$A$2:$AE$439,3,FALSE),VLOOKUP($CZ55,'Audit Values'!$A$2:$AE$439,28,FALSE))) -> 0 | P55: 491 | Q55: 492.7 | R55: 492.7 | S55: 491 | T55: 1.7 | U55: 205.9 | V55: 205.9 | W55: 0 | X55: =IF(ISNA(VLOOKUP($CZ55,'Audit Values'!$A$2:$AE$439,2,FALSE)),'Preliminary SO66'!D52,VLOOKUP($CZ55,'Audit Values'!$A$2:$AE$439,4,FALSE)) -> 171.2 | Y55: =ROUND((X55/6)*Weightings!$M$6,1) -> 14.3 | Z55: =IF(ISNA(VLOOKUP($CZ55,'Audit Values'!$A$2:$AE$439,2,FALSE)),'Preliminary SO66'!F52,VLOOKUP($CZ55,'Audit Values'!$A$2:$AE$439,6,FALSE)) -> 0 | AA55: =ROUND((Z55/6)*Weightings!$M$7,1) -> 0 | AB55: =IF(ISNA(VLOOKUP($CZ55,'Audit Values'!$A$2:$AE$439,2,FALSE)),'Preliminary SO66'!H52,VLOOKUP($CZ55,'Audit Values'!$A$2:$AE$439,8,FALSE)) -> 170 | AC55: =ROUND(AB55*Weightings!$M$8,1) -> 77.5 | AD55: 0 | AE55: 36 | AF55: =AE55*Weightings!$M$9 -> 1.7 | AG55: =IF(ISNA(VLOOKUP($CZ55,'Audit Values'!$A$2:$AE$439,2,FALSE)),'Preliminary SO66'!L52,VLOOKUP($CZ55,'Audit Values'!$A$2:$AE$439,12,FALSE)) -> 0 | AH55: =ROUND(AG55*Weightings!$M$10,1) -> 0 | AI55: =IF(ISNA(VLOOKUP($CZ55,'Audit Values'!$A$2:$AE$439,2,FALSE)),'Preliminary SO66'!O52,VLOOKUP($CZ55,'Audit Values'!$A$2:$AE$439,15,FALSE)) -> 122 | AJ55: 37.5 | AK55: =CC55/Weightings!$M$5 -> 0 | AL55: =CD55/Weightings!$M$5 -> 0 | AM55: =CH55/Weightings!$M$5 -> 0 | AN55: 1.8 | AO55: =IF(ISNA(VLOOKUP($CZ55,'Audit Values'!$A$2:$AE$439,2,FALSE)),'Preliminary SO66'!X52,VLOOKUP($CZ55,'Audit Values'!$A$2:$AE$439,24,FALSE)) -> 0 | AP55: 598979 | AQ55: =AP55/Weightings!$M$5 -> 156.1 | AR55: 829.7 | AS55: 985.8 | AT55: 985.8 | AU55: 0 | AV55: =IF(ISNA(VLOOKUP($CZ55,'Audit Values'!$A$2:$AC$360,2,FALSE)),"",IF(AND(Weightings!H55>0,VLOOKUP($CZ55,'Audit Values'!$A$2:$AC$360,29,FALSE)<Weightings!H55),Weightings!H55,VLOOKUP($CZ55,'Audit Values'!$A$2:$AC$360,29,FALSE))) -> 11 | AW55: =IF(ISNA(VLOOKUP($CZ55,'Audit Values'!$A$2:$AD$360,2,FALSE)),"",VLOOKUP($CZ55,'Audit Values'!$A$2:$AD$360,30,FALSE)) -> A | AX55: =IF(Weightings!G55="","",IF(Weightings!I55="Pending","PX","R")) ->  | AY55: =AR55*Weightings!$M$5+AU55 -> 3184389 | AZ55: =AT55*Weightings!$M$5+AU55 -> 3783500 | BA55: =IF(Weightings!G55>0,Weightings!G55,'Preliminary SO66'!AB52) -> 3810750 | BB55: 3783500 | BD55: =Weightings!E55 -> -3481 | BE55: =Weightings!F55 -> 0 | BF55: -3481 | BG55: 3780019 | BH55: =MAX(ROUND(((AR55-AO55)*4433)+AP55,0),ROUND(((AR55-AO55)*4433)+Weightings!B55,0)) -> 4277039 | BI55: 0.3 | BJ55: 1283112 | BK55: 1165000 | BL55: 1165000 | BM55: 0.2724 | BN55: 0 | BO55: FALSE | BP55: 0 | BQ55: 0 | BR55: 0 | BS55: TRUE | BT55: 236.3625 | BU55: 0.419294 | BV55: 205.9 | BW55: 0 | BX55: 248 | BY55: 0.49 | BZ55: =IF(ROUND((Weightings!$P$5*BY55^Weightings!$P$6*Weightings!$P$8 ),2)<Weightings!$P$7,Weightings!$P$7,ROUND((Weightings!$P$5*BY55^Weightings!$P$6*Weightings!$P$8 ),2)) -> 1179.34 | CA55: =ROUND(BZ55/Weightings!$M$5,4) -> 0.3073 | CB55: 37.5 | CC55: 0 | CD55: 0 | CE55: 0 | CF55: 0 | CG55: =AS55*Weightings!$M$5*CF55 -> 0 | CH55: 0 | CI55: 0.346 | CJ55: 2 | CK55: 0 | CL55: 0 | CM55: 0 | CN55: =IF(ISNA(VLOOKUP($CZ55,'Audit Values'!$A$2:$AE$439,2,FALSE)),'Preliminary SO66'!T52,VLOOKUP($CZ55,'Audit Values'!$A$2:$AE$439,20,FALSE)) -> 1.7 | CO55: 1.8 | CP55: 0 | CQ55: 0 | CR55: =IF(ISNA(VLOOKUP($CZ55,'Audit Values'!$A$2:$AE$439,2,FALSE)),'Preliminary SO66'!V52,VLOOKUP($CZ55,'Audit Values'!$A$2:$AE$439,22,FALSE)) -> 0 | CS55: 0 | CT55: =IF(ISNA(VLOOKUP($CZ55,'Audit Values'!$A$2:$AE$439,2,FALSE)),'Preliminary SO66'!W52,VLOOKUP($CZ55,'Audit Values'!$A$2:$AE$439,23,FALSE)) -> 0 | CU55: 0 | CV55: 1.8 | CW55: 0 | CX55: =IF(CW55>0,Weightings!$M$11*AR55,0) -> 0 | CY55: 0 | CZ55: D0243
A56: 244 | B56: Coffey | C56: Burlington | D56: 819.7 | E56: 0 | F56: 819.7 | G56: 797.7 | H56: 0 | I56: 797.7 | J56: 810.7 | K56: =IF(ISNA(VLOOKUP($CZ56,'Audit Values'!$A$2:$AE$439,2,FALSE)),'Preliminary SO66'!B53,VLOOKUP($CZ56,'Audit Values'!$A$2:$AE$439,31,FALSE)) -> 810.7 | L56: 810.7 | M56: =IF(ISNA(VLOOKUP($CZ56,'Audit Values'!$A$2:$AE$439,2,FALSE)),'Preliminary SO66'!Z53,VLOOKUP($CZ56,'Audit Values'!$A$2:$AE$439,26,FALSE)) -> 0 | N56: 810.7 | O56: =IF(ISNA(VLOOKUP($CZ56,'Audit Values'!$A$2:$AE$439,2,FALSE)),'Preliminary SO66'!C53,IF(VLOOKUP($CZ56,'Audit Values'!$A$2:$AE$439,28,FALSE)="",VLOOKUP($CZ56,'Audit Values'!$A$2:$AE$439,3,FALSE),VLOOKUP($CZ56,'Audit Values'!$A$2:$AE$439,28,FALSE))) -> 4.5 | P56: 815.2 | Q56: 815.2 | R56: 815.2 | S56: 815.2 | T56: 0 | U56: 252 | V56: 252 | W56: 0 | X56: =IF(ISNA(VLOOKUP($CZ56,'Audit Values'!$A$2:$AE$439,2,FALSE)),'Preliminary SO66'!D53,VLOOKUP($CZ56,'Audit Values'!$A$2:$AE$439,4,FALSE)) -> 239.9 | Y56: =ROUND((X56/6)*Weightings!$M$6,1) -> 20 | Z56: =IF(ISNA(VLOOKUP($CZ56,'Audit Values'!$A$2:$AE$439,2,FALSE)),'Preliminary SO66'!F53,VLOOKUP($CZ56,'Audit Values'!$A$2:$AE$439,6,FALSE)) -> 2.5 | AA56: =ROUND((Z56/6)*Weightings!$M$7,1) -> 0.2 | AB56: =IF(ISNA(VLOOKUP($CZ56,'Audit Values'!$A$2:$AE$439,2,FALSE)),'Preliminary SO66'!H53,VLOOKUP($CZ56,'Audit Values'!$A$2:$AE$439,8,FALSE)) -> 221 | AC56: =ROUND(AB56*Weightings!$M$8,1) -> 100.8 | AD56: 0 | AE56: 44 | AF56: =AE56*Weightings!$M$9 -> 2 | AG56: =IF(ISNA(VLOOKUP($CZ56,'Audit Values'!$A$2:$AE$439,2,FALSE)),'Preliminary SO66'!L53,VLOOKUP($CZ56,'Audit Values'!$A$2:$AE$439,12,FALSE)) -> 0 | AH56: =ROUND(AG56*Weightings!$M$10,1) -> 0 | AI56: =IF(ISNA(VLOOKUP($CZ56,'Audit Values'!$A$2:$AE$439,2,FALSE)),'Preliminary SO66'!O53,VLOOKUP($CZ56,'Audit Values'!$A$2:$AE$439,15,FALSE)) -> 230 | AJ56: 54.3 | AK56: =CC56/Weightings!$M$5 -> 0 | AL56: =CD56/Weightings!$M$5 -> 0 | AM56: =CH56/Weightings!$M$5 -> 0 | AN56: 0 | AO56: =IF(ISNA(VLOOKUP($CZ56,'Audit Values'!$A$2:$AE$439,2,FALSE)),'Preliminary SO66'!X53,VLOOKUP($CZ56,'Audit Values'!$A$2:$AE$439,24,FALSE)) -> 0 | AP56: 1222580 | AQ56: =AP56/Weightings!$M$5 -> 318.5 | AR56: 1244.5 | AS56: 1563 | AT56: 1563 | AU56: 0 | AV56: =IF(ISNA(VLOOKUP($CZ56,'Audit Values'!$A$2:$AC$360,2,FALSE)),"",IF(AND(Weightings!H56>0,VLOOKUP($CZ56,'Audit Values'!$A$2:$AC$360,29,FALSE)<Weightings!H56),Weightings!H56,VLOOKUP($CZ56,'Audit Values'!$A$2:$AC$360,29,FALSE))) -> 11 | AW56: =IF(ISNA(VLOOKUP($CZ56,'Audit Values'!$A$2:$AD$360,2,FALSE)),"",VLOOKUP($CZ56,'Audit Values'!$A$2:$AD$360,30,FALSE)) -> A | AX56: =IF(Weightings!G56="","",IF(Weightings!I56="Pending","PX","R")) ->  | AY56: =AR56*Weightings!$M$5+AU56 -> 4776391 | AZ56: =AT56*Weightings!$M$5+AU56 -> 5998794 | BA56: =IF(Weightings!G56>0,Weightings!G56,'Preliminary SO66'!AB53) -> 6074786 | BB56: 5998794 | BD56: =Weightings!E56 -> 0 | BE56: =Weightings!F56 -> 0 | BF56: 0 | BG56: 5998794 | BH56: =MAX(ROUND(((AR56-AO56)*4433)+AP56,0),ROUND(((AR56-AO56)*4433)+Weightings!B56,0)) -> 6817219 | BI56: 0.3 | BJ56: 2045166 | BK56: 2056736 | BL56: 2045166 | BM56: 0.3 | BN56: 0 | BO56: FALSE | BP56: 0 | BQ56: 0 | BR56: 0 | BS56: TRUE | BT56: 637.56 | BU56: 0.309148 | BV56: 252 | BW56: 0 | BX56: 147 | BY56: 1.56 | BZ56: =IF(ROUND((Weightings!$P$5*BY56^Weightings!$P$6*Weightings!$P$8 ),2)<Weightings!$P$7,Weightings!$P$7,ROUND((Weightings!$P$5*BY56^Weightings!$P$6*Weightings!$P$8 ),2)) -> 905.57 | CA56: =ROUND(BZ56/Weightings!$M$5,4) -> 0.2359 | CB56: 54.3 | CC56: 0 | CD56: 0 | CE56: 0 | CF56: 0 | CG56: =AS56*Weightings!$M$5*CF56 -> 0 | CH56: 0 | CI56: 0.271 | CJ56: 5.5 | CK56: 0 | CL56: 0 | CM56: 0 | CN56: =IF(ISNA(VLOOKUP($CZ56,'Audit Values'!$A$2:$AE$439,2,FALSE)),'Preliminary SO66'!T53,VLOOKUP($CZ56,'Audit Values'!$A$2:$AE$439,20,FALSE)) -> 0 | CO56: 0 | CP56: 0 | CQ56: 0 | CR56: =IF(ISNA(VLOOKUP($CZ56,'Audit Values'!$A$2:$AE$439,2,FALSE)),'Preliminary SO66'!V53,VLOOKUP($CZ56,'Audit Values'!$A$2:$AE$439,22,FALSE)) -> 0 | CS56: 0 | CT56: =IF(ISNA(VLOOKUP($CZ56,'Audit Values'!$A$2:$AE$439,2,FALSE)),'Preliminary SO66'!W53,VLOOKUP($CZ56,'Audit Values'!$A$2:$AE$439,23,FALSE)) -> 0 | CU56: 0 | CV56: 0 | CW56: 0 | CX56: =IF(CW56>0,Weightings!$M$11*AR56,0) -> 0 | CY56: 0 | CZ56: D0244
A57: 245 | B57: Coffey | C57: LeRoy-Gridley | D57: 208 | E57: 0 | F57: 208 | G57: 213.9 | H57: 0 | I57: 213.9 | J57: 198 | K57: =IF(ISNA(VLOOKUP($CZ57,'Audit Values'!$A$2:$AE$439,2,FALSE)),'Preliminary SO66'!B54,VLOOKUP($CZ57,'Audit Values'!$A$2:$AE$439,31,FALSE)) -> 198 | L57: 213.9 | M57: =IF(ISNA(VLOOKUP($CZ57,'Audit Values'!$A$2:$AE$439,2,FALSE)),'Preliminary SO66'!Z54,VLOOKUP($CZ57,'Audit Values'!$A$2:$AE$439,26,FALSE)) -> 0 | N57: 213.9 | O57: =IF(ISNA(VLOOKUP($CZ57,'Audit Values'!$A$2:$AE$439,2,FALSE)),'Preliminary SO66'!C54,IF(VLOOKUP($CZ57,'Audit Values'!$A$2:$AE$439,28,FALSE)="",VLOOKUP($CZ57,'Audit Values'!$A$2:$AE$439,3,FALSE),VLOOKUP($CZ57,'Audit Values'!$A$2:$AE$439,28,FALSE))) -> 0 | P57: 198 | Q57: 198 | R57: 198 | S57: 213.9 | T57: 0 | U57: 152.4 | V57: 152.4 | W57: 0 | X57: =IF(ISNA(VLOOKUP($CZ57,'Audit Values'!$A$2:$AE$439,2,FALSE)),'Preliminary SO66'!D54,VLOOKUP($CZ57,'Audit Values'!$A$2:$AE$439,4,FALSE)) -> 18.4 | Y57: =ROUND((X57/6)*Weightings!$M$6,1) -> 1.5 | Z57: =IF(ISNA(VLOOKUP($CZ57,'Audit Values'!$A$2:$AE$439,2,FALSE)),'Preliminary SO66'!F54,VLOOKUP($CZ57,'Audit Values'!$A$2:$AE$439,6,FALSE)) -> 0 | AA57: =ROUND((Z57/6)*Weightings!$M$7,1) -> 0 | AB57: =IF(ISNA(VLOOKUP($CZ57,'Audit Values'!$A$2:$AE$439,2,FALSE)),'Preliminary SO66'!H54,VLOOKUP($CZ57,'Audit Values'!$A$2:$AE$439,8,FALSE)) -> 73 | AC57: =ROUND(AB57*Weightings!$M$8,1) -> 33.3 | AD57: 0 | AE57: 18 | AF57: =AE57*Weightings!$M$9 -> 0.8 | AG57: =IF(ISNA(VLOOKUP($CZ57,'Audit Values'!$A$2:$AE$439,2,FALSE)),'Preliminary SO66'!L54,VLOOKUP($CZ57,'Audit Values'!$A$2:$AE$439,12,FALSE)) -> 0 | AH57: =ROUND(AG57*Weightings!$M$10,1) -> 0 | AI57: =IF(ISNA(VLOOKUP($CZ57,'Audit Values'!$A$2:$AE$439,2,FALSE)),'Preliminary SO66'!O54,VLOOKUP($CZ57,'Audit Values'!$A$2:$AE$439,15,FALSE)) -> 105 | AJ57: 32 | AK57: =CC57/Weightings!$M$5 -> 0 | AL57: =CD57/Weightings!$M$5 -> 0 | AM57: =CH57/Weightings!$M$5 -> 0 | AN57: 0 | AO57: =IF(ISNA(VLOOKUP($CZ57,'Audit Values'!$A$2:$AE$439,2,FALSE)),'Preliminary SO66'!X54,VLOOKUP($CZ57,'Audit Values'!$A$2:$AE$439,24,FALSE)) -> 0 | AP57: 230302 | AQ57: =AP57/Weightings!$M$5 -> 60 | AR57: 433.9 | AS57: 493.9 | AT57: 493.9 | AU57: 0 | AV57: =IF(ISNA(VLOOKUP($CZ57,'Audit Values'!$A$2:$AC$360,2,FALSE)),"",IF(AND(Weightings!H57>0,VLOOKUP($CZ57,'Audit Values'!$A$2:$AC$360,29,FALSE)<Weightings!H57),Weightings!H57,VLOOKUP($CZ57,'Audit Values'!$A$2:$AC$360,29,FALSE))) -> 11 | AW57: =IF(ISNA(VLOOKUP($CZ57,'Audit Values'!$A$2:$AD$360,2,FALSE)),"",VLOOKUP($CZ57,'Audit Values'!$A$2:$AD$360,30,FALSE)) -> A | AX57: =IF(Weightings!G57="","",IF(Weightings!I57="Pending","PX","R")) ->  | AY57: =AR57*Weightings!$M$5+AU57 -> 1665308 | AZ57: =AT57*Weightings!$M$5+AU57 -> 1895588 | BA57: =IF(Weightings!G57>0,Weightings!G57,'Preliminary SO66'!AB54) -> 1938958 | BB57: 1895588 | BD57: =Weightings!E57 -> -2398 | BE57: =Weightings!F57 -> 0 | BF57: -2398 | BG57: 1893190 | BH57: =MAX(ROUND(((AR57-AO57)*4433)+AP57,0),ROUND(((AR57-AO57)*4433)+Weightings!B57,0)) -> 2224030 | BI57: 0.3 | BJ57: 667209 | BK57: 676119 | BL57: 667209 | BM57: 0.3 | BN57: 0 | BO57: TRUE | BP57: 1099.705 | BQ57: 0.712414 | BR57: 152.4 | BS57: FALSE | BT57: 0 | BU57: 0 | BV57: 0 | BW57: 0 | BX57: 207 | BY57: 0.51 | BZ57: =IF(ROUND((Weightings!$P$5*BY57^Weightings!$P$6*Weightings!$P$8 ),2)<Weightings!$P$7,Weightings!$P$7,ROUND((Weightings!$P$5*BY57^Weightings!$P$6*Weightings!$P$8 ),2)) -> 1168.63 | CA57: =ROUND(BZ57/Weightings!$M$5,4) -> 0.3045 | CB57: 32 | CC57: 0 | CD57: 0 | CE57: 0 | CF57: 0 | CG57: =AS57*Weightings!$M$5*CF57 -> 0 | CH57: 0 | CI57: 0.341 | CJ57: 1 | CK57: 0 | CL57: 0 | CM57: 0 | CN57: =IF(ISNA(VLOOKUP($CZ57,'Audit Values'!$A$2:$AE$439,2,FALSE)),'Preliminary SO66'!T54,VLOOKUP($CZ57,'Audit Values'!$A$2:$AE$439,20,FALSE)) -> 0 | CO57: 0 | CP57: 0 | CQ57: 0 | CR57: =IF(ISNA(VLOOKUP($CZ57,'Audit Values'!$A$2:$AE$439,2,FALSE)),'Preliminary SO66'!V54,VLOOKUP($CZ57,'Audit Values'!$A$2:$AE$439,22,FALSE)) -> 0 | CS57: 0 | CT57: =IF(ISNA(VLOOKUP($CZ57,'Audit Values'!$A$2:$AE$439,2,FALSE)),'Preliminary SO66'!W54,VLOOKUP($CZ57,'Audit Values'!$A$2:$AE$439,23,FALSE)) -> 0 | CU57: 0 | CV57: 0 | CW57: 0 | CX57: =IF(CW57>0,Weightings!$M$11*AR57,0) -> 0 | CY57: 0 | CZ57: D0245
A58: 246 | B58: Crawford | C58: Northeast | D58: 487.8 | E58: 0 | F58: 487.8 | G58: 462 | H58: 0 | I58: 462 | J58: 477.5 | K58: =IF(ISNA(VLOOKUP($CZ58,'Audit Values'!$A$2:$AE$439,2,FALSE)),'Preliminary SO66'!B55,VLOOKUP($CZ58,'Audit Values'!$A$2:$AE$439,31,FALSE)) -> 477.5 | L58: 477.5 | M58: =IF(ISNA(VLOOKUP($CZ58,'Audit Values'!$A$2:$AE$439,2,FALSE)),'Preliminary SO66'!Z55,VLOOKUP($CZ58,'Audit Values'!$A$2:$AE$439,26,FALSE)) -> 0 | N58: 477.5 | O58: =IF(ISNA(VLOOKUP($CZ58,'Audit Values'!$A$2:$AE$439,2,FALSE)),'Preliminary SO66'!C55,IF(VLOOKUP($CZ58,'Audit Values'!$A$2:$AE$439,28,FALSE)="",VLOOKUP($CZ58,'Audit Values'!$A$2:$AE$439,3,FALSE),VLOOKUP($CZ58,'Audit Values'!$A$2:$AE$439,28,FALSE))) -> 6 | P58: 483.5 | Q58: 483.5 | R58: 483.5 | S58: 483.5 | T58: 0 | U58: 204 | V58: 204 | W58: 0 | X58: =IF(ISNA(VLOOKUP($CZ58,'Audit Values'!$A$2:$AE$439,2,FALSE)),'Preliminary SO66'!D55,VLOOKUP($CZ58,'Audit Values'!$A$2:$AE$439,4,FALSE)) -> 0 | Y58: =ROUND((X58/6)*Weightings!$M$6,1) -> 0 | Z58: =IF(ISNA(VLOOKUP($CZ58,'Audit Values'!$A$2:$AE$439,2,FALSE)),'Preliminary SO66'!F55,VLOOKUP($CZ58,'Audit Values'!$A$2:$AE$439,6,FALSE)) -> 0 | AA58: =ROUND((Z58/6)*Weightings!$M$7,1) -> 0 | AB58: =IF(ISNA(VLOOKUP($CZ58,'Audit Values'!$A$2:$AE$439,2,FALSE)),'Preliminary SO66'!H55,VLOOKUP($CZ58,'Audit Values'!$A$2:$AE$439,8,FALSE)) -> 304 | AC58: =ROUND(AB58*Weightings!$M$8,1) -> 138.6 | AD58: 31.9 | AE58: 46 | AF58: =AE58*Weightings!$M$9 -> 2.1 | AG58: =IF(ISNA(VLOOKUP($CZ58,'Audit Values'!$A$2:$AE$439,2,FALSE)),'Preliminary SO66'!L55,VLOOKUP($CZ58,'Audit Values'!$A$2:$AE$439,12,FALSE)) -> 0 | AH58: =ROUND(AG58*Weightings!$M$10,1) -> 0 | AI58: =IF(ISNA(VLOOKUP($CZ58,'Audit Values'!$A$2:$AE$439,2,FALSE)),'Preliminary SO66'!O55,VLOOKUP($CZ58,'Audit Values'!$A$2:$AE$439,15,FALSE)) -> 205 | AJ58: 46.1 | AK58: =CC58/Weightings!$M$5 -> 0 | AL58: =CD58/Weightings!$M$5 -> 0 | AM58: =CH58/Weightings!$M$5 -> 0 | AN58: 0 | AO58: =IF(ISNA(VLOOKUP($CZ58,'Audit Values'!$A$2:$AE$439,2,FALSE)),'Preliminary SO66'!X55,VLOOKUP($CZ58,'Audit Values'!$A$2:$AE$439,24,FALSE)) -> 0 | AP58: 460544 | AQ58: =AP58/Weightings!$M$5 -> 120 | AR58: 906.2 | AS58: 1026.2 | AT58: 1026.2 | AU58: 0 | AV58: =IF(ISNA(VLOOKUP($CZ58,'Audit Values'!$A$2:$AC$360,2,FALSE)),"",IF(AND(Weightings!H58>0,VLOOKUP($CZ58,'Audit Values'!$A$2:$AC$360,29,FALSE)<Weightings!H58),Weightings!H58,VLOOKUP($CZ58,'Audit Values'!$A$2:$AC$360,29,FALSE))) -> 13 | AW58: =IF(ISNA(VLOOKUP($CZ58,'Audit Values'!$A$2:$AD$360,2,FALSE)),"",VLOOKUP($CZ58,'Audit Values'!$A$2:$AD$360,30,FALSE)) -> A | AX58: =IF(Weightings!G58="","",IF(Weightings!I58="Pending","PX","R")) ->  | AY58: =AR58*Weightings!$M$5+AU58 -> 3477996 | AZ58: =AT58*Weightings!$M$5+AU58 -> 3938556 | BA58: =IF(Weightings!G58>0,Weightings!G58,'Preliminary SO66'!AB55) -> 4077107 | BB58: 3938556 | BD58: =Weightings!E58 -> 0 | BE58: =Weightings!F58 -> 0 | BF58: 0 | BG58: 3938556 | BH58: =MAX(ROUND(((AR58-AO58)*4433)+AP58,0),ROUND(((AR58-AO58)*4433)+Weightings!B58,0)) -> 4538181 | BI58: 0.3 | BJ58: 1361454 | BK58: 1340000 | BL58: 1340000 | BM58: 0.2953 | BN58: 0 | BO58: FALSE | BP58: 0 | BQ58: 0 | BR58: 0 | BS58: TRUE | BT58: 227.0813 | BU58: 0.421842 | BV58: 204 | BW58: 0 | BX58: 106 | BY58: 1.93 | BZ58: =IF(ROUND((Weightings!$P$5*BY58^Weightings!$P$6*Weightings!$P$8 ),2)<Weightings!$P$7,Weightings!$P$7,ROUND((Weightings!$P$5*BY58^Weightings!$P$6*Weightings!$P$8 ),2)) -> 862.66 | CA58: =ROUND(BZ58/Weightings!$M$5,4) -> 0.2248 | CB58: 46.1 | CC58: 0 | CD58: 0 | CE58: 0 | CF58: 0 | CG58: =AS58*Weightings!$M$5*CF58 -> 0 | CH58: 0 | CI58: 0.629 | CJ58: 4.6 | CK58: 31.9 | CL58: 0 | CM58: 0 | CN58: =IF(ISNA(VLOOKUP($CZ58,'Audit Values'!$A$2:$AE$439,2,FALSE)),'Preliminary SO66'!T55,VLOOKUP($CZ58,'Audit Values'!$A$2:$AE$439,20,FALSE)) -> 0 | CO58: 0 | CP58: 0 | CQ58: 0 | CR58: =IF(ISNA(VLOOKUP($CZ58,'Audit Values'!$A$2:$AE$439,2,FALSE)),'Preliminary SO66'!V55,VLOOKUP($CZ58,'Audit Values'!$A$2:$AE$439,22,FALSE)) -> 0 | CS58: 0 | CT58: =IF(ISNA(VLOOKUP($CZ58,'Audit Values'!$A$2:$AE$439,2,FALSE)),'Preliminary SO66'!W55,VLOOKUP($CZ58,'Audit Values'!$A$2:$AE$439,23,FALSE)) -> 0 | CU58: 0 | CV58: 0 | CW58: 0 | CX58: =IF(CW58>0,Weightings!$M$11*AR58,0) -> 0 | CY58: 0 | CZ58: D0246
A59: 247 | B59: Crawford | C59: Cherokee | D59: 655 | E59: 0 | F59: 655 | G59: 652.6 | H59: 0 | I59: 652.6 | J59: 615.5 | K59: =IF(ISNA(VLOOKUP($CZ59,'Audit Values'!$A$2:$AE$439,2,FALSE)),'Preliminary SO66'!B56,VLOOKUP($CZ59,'Audit Values'!$A$2:$AE$439,31,FALSE)) -> 615.5 | L59: 652.6 | M59: =IF(ISNA(VLOOKUP($CZ59,'Audit Values'!$A$2:$AE$439,2,FALSE)),'Preliminary SO66'!Z56,VLOOKUP($CZ59,'Audit Values'!$A$2:$AE$439,26,FALSE)) -> 0 | N59: 652.6 | O59: =IF(ISNA(VLOOKUP($CZ59,'Audit Values'!$A$2:$AE$439,2,FALSE)),'Preliminary SO66'!C56,IF(VLOOKUP($CZ59,'Audit Values'!$A$2:$AE$439,28,FALSE)="",VLOOKUP($CZ59,'Audit Values'!$A$2:$AE$439,3,FALSE),VLOOKUP($CZ59,'Audit Values'!$A$2:$AE$439,28,FALSE))) -> 5.5 | P59: 621 | Q59: 621 | R59: 621 | S59: 658.1 | T59: 0 | U59: 238.6 | V59: 238.6 | W59: 0 | X59: =IF(ISNA(VLOOKUP($CZ59,'Audit Values'!$A$2:$AE$439,2,FALSE)),'Preliminary SO66'!D56,VLOOKUP($CZ59,'Audit Values'!$A$2:$AE$439,4,FALSE)) -> 133.3 | Y59: =ROUND((X59/6)*Weightings!$M$6,1) -> 11.1 | Z59: =IF(ISNA(VLOOKUP($CZ59,'Audit Values'!$A$2:$AE$439,2,FALSE)),'Preliminary SO66'!F56,VLOOKUP($CZ59,'Audit Values'!$A$2:$AE$439,6,FALSE)) -> 0 | AA59: =ROUND((Z59/6)*Weightings!$M$7,1) -> 0 | AB59: =IF(ISNA(VLOOKUP($CZ59,'Audit Values'!$A$2:$AE$439,2,FALSE)),'Preliminary SO66'!H56,VLOOKUP($CZ59,'Audit Values'!$A$2:$AE$439,8,FALSE)) -> 284 | AC59: =ROUND(AB59*Weightings!$M$8,1) -> 129.5 | AD59: 16.3 | AE59: 82 | AF59: =AE59*Weightings!$M$9 -> 3.8 | AG59: =IF(ISNA(VLOOKUP($CZ59,'Audit Values'!$A$2:$AE$439,2,FALSE)),'Preliminary SO66'!L56,VLOOKUP($CZ59,'Audit Values'!$A$2:$AE$439,12,FALSE)) -> 0 | AH59: =ROUND(AG59*Weightings!$M$10,1) -> 0 | AI59: =IF(ISNA(VLOOKUP($CZ59,'Audit Values'!$A$2:$AE$439,2,FALSE)),'Preliminary SO66'!O56,VLOOKUP($CZ59,'Audit Values'!$A$2:$AE$439,15,FALSE)) -> 342 | AJ59: 86.7 | AK59: =CC59/Weightings!$M$5 -> 0 | AL59: =CD59/Weightings!$M$5 -> 0 | AM59: =CH59/Weightings!$M$5 -> 0 | AN59: 0 | AO59: =IF(ISNA(VLOOKUP($CZ59,'Audit Values'!$A$2:$AE$439,2,FALSE)),'Preliminary SO66'!X56,VLOOKUP($CZ59,'Audit Values'!$A$2:$AE$439,24,FALSE)) -> 0 | AP59: 647966 | AQ59: =AP59/Weightings!$M$5 -> 168.8 | AR59: 1144.1 | AS59: 1312.9 | AT59: 1312.9 | AU59: 0 | AV59: =IF(ISNA(VLOOKUP($CZ59,'Audit Values'!$A$2:$AC$360,2,FALSE)),"",IF(AND(Weightings!H59>0,VLOOKUP($CZ59,'Audit Values'!$A$2:$AC$360,29,FALSE)<Weightings!H59),Weightings!H59,VLOOKUP($CZ59,'Audit Values'!$A$2:$AC$360,29,FALSE))) -> 3 | AW59: =IF(ISNA(VLOOKUP($CZ59,'Audit Values'!$A$2:$AD$360,2,FALSE)),"",VLOOKUP($CZ59,'Audit Values'!$A$2:$AD$360,30,FALSE)) -> A | AX59: =IF(Weightings!G59="","",IF(Weightings!I59="Pending","PX","R")) ->  | AY59: =AR59*Weightings!$M$5+AU59 -> 4391056 | AZ59: =AT59*Weightings!$M$5+AU59 -> 5038910 | BA59: =IF(Weightings!G59>0,Weightings!G59,'Preliminary SO66'!AB56) -> 5119124 | BB59: 5038910 | BD59: =Weightings!E59 -> 0 | BE59: =Weightings!F59 -> 0 | BF59: 0 | BG59: 5038910 | BH59: =MAX(ROUND(((AR59-AO59)*4433)+AP59,0),ROUND(((AR59-AO59)*4433)+Weightings!B59,0)) -> 5728435 | BI59: 0.3 | BJ59: 1718531 | BK59: 1747256 | BL59: 1718531 | BM59: 0.3 | BN59: 0 | BO59: FALSE | BP59: 0 | BQ59: 0 | BR59: 0 | BS59: TRUE | BT59: 443.1488 | BU59: 0.362522 | BV59: 238.6 | BW59: 0 | BX59: 300 | BY59: 1.14 | BZ59: =IF(ROUND((Weightings!$P$5*BY59^Weightings!$P$6*Weightings!$P$8 ),2)<Weightings!$P$7,Weightings!$P$7,ROUND((Weightings!$P$5*BY59^Weightings!$P$6*Weightings!$P$8 ),2)) -> 972.73 | CA59: =ROUND(BZ59/Weightings!$M$5,4) -> 0.2534 | CB59: 86.7 | CC59: 0 | CD59: 0 | CE59: 0 | CF59: 0 | CG59: =AS59*Weightings!$M$5*CF59 -> 0 | CH59: 0 | CI59: 0.432 | CJ59: 2.2 | CK59: 0 | CL59: 0 | CM59: 16.3 | CN59: =IF(ISNA(VLOOKUP($CZ59,'Audit Values'!$A$2:$AE$439,2,FALSE)),'Preliminary SO66'!T56,VLOOKUP($CZ59,'Audit Values'!$A$2:$AE$439,20,FALSE)) -> 0 | CO59: 0 | CP59: 0 | CQ59: 0 | CR59: =IF(ISNA(VLOOKUP($CZ59,'Audit Values'!$A$2:$AE$439,2,FALSE)),'Preliminary SO66'!V56,VLOOKUP($CZ59,'Audit Values'!$A$2:$AE$439,22,FALSE)) -> 0 | CS59: 0 | CT59: =IF(ISNA(VLOOKUP($CZ59,'Audit Values'!$A$2:$AE$439,2,FALSE)),'Preliminary SO66'!W56,VLOOKUP($CZ59,'Audit Values'!$A$2:$AE$439,23,FALSE)) -> 0 | CU59: 0 | CV59: 0 | CW59: 0 | CX59: =IF(CW59>0,Weightings!$M$11*AR59,0) -> 0 | CY59: 0 | CZ59: D0247
A60: 248 | B60: Crawford | C60: Girard | D60: 1011.5 | E60: 0 | F60: 1011.5 | G60: 1000 | H60: 0 | I60: 1000 | J60: 973.5 | K60: =IF(ISNA(VLOOKUP($CZ60,'Audit Values'!$A$2:$AE$439,2,FALSE)),'Preliminary SO66'!B57,VLOOKUP($CZ60,'Audit Values'!$A$2:$AE$439,31,FALSE)) -> 973.5 | L60: 1000 | M60: =IF(ISNA(VLOOKUP($CZ60,'Audit Values'!$A$2:$AE$439,2,FALSE)),'Preliminary SO66'!Z57,VLOOKUP($CZ60,'Audit Values'!$A$2:$AE$439,26,FALSE)) -> 0 | N60: 1000 | O60: =IF(ISNA(VLOOKUP($CZ60,'Audit Values'!$A$2:$AE$439,2,FALSE)),'Preliminary SO66'!C57,IF(VLOOKUP($CZ60,'Audit Values'!$A$2:$AE$439,28,FALSE)="",VLOOKUP($CZ60,'Audit Values'!$A$2:$AE$439,3,FALSE),VLOOKUP($CZ60,'Audit Values'!$A$2:$AE$439,28,FALSE))) -> 7 | P60: 980.5 | Q60: 980.5 | R60: 980.5 | S60: 1007 | T60: 0 | U60: 245.7 | V60: 245.7 | W60: 0 | X60: =IF(ISNA(VLOOKUP($CZ60,'Audit Values'!$A$2:$AE$439,2,FALSE)),'Preliminary SO66'!D57,VLOOKUP($CZ60,'Audit Values'!$A$2:$AE$439,4,FALSE)) -> 260.4 | Y60: =ROUND((X60/6)*Weightings!$M$6,1) -> 21.7 | Z60: =IF(ISNA(VLOOKUP($CZ60,'Audit Values'!$A$2:$AE$439,2,FALSE)),'Preliminary SO66'!F57,VLOOKUP($CZ60,'Audit Values'!$A$2:$AE$439,6,FALSE)) -> 23.3 | AA60: =ROUND((Z60/6)*Weightings!$M$7,1) -> 1.5 | AB60: =IF(ISNA(VLOOKUP($CZ60,'Audit Values'!$A$2:$AE$439,2,FALSE)),'Preliminary SO66'!H57,VLOOKUP($CZ60,'Audit Values'!$A$2:$AE$439,8,FALSE)) -> 403 | AC60: =ROUND(AB60*Weightings!$M$8,1) -> 183.8 | AD60: 14.1 | AE60: 38 | AF60: =AE60*Weightings!$M$9 -> 1.8 | AG60: =IF(ISNA(VLOOKUP($CZ60,'Audit Values'!$A$2:$AE$439,2,FALSE)),'Preliminary SO66'!L57,VLOOKUP($CZ60,'Audit Values'!$A$2:$AE$439,12,FALSE)) -> 0 | AH60: =ROUND(AG60*Weightings!$M$10,1) -> 0 | AI60: =IF(ISNA(VLOOKUP($CZ60,'Audit Values'!$A$2:$AE$439,2,FALSE)),'Preliminary SO66'!O57,VLOOKUP($CZ60,'Audit Values'!$A$2:$AE$439,15,FALSE)) -> 325 | AJ60: 80.8 | AK60: =CC60/Weightings!$M$5 -> 0 | AL60: =CD60/Weightings!$M$5 -> 0 | AM60: =CH60/Weightings!$M$5 -> 0 | AN60: 0 | AO60: =IF(ISNA(VLOOKUP($CZ60,'Audit Values'!$A$2:$AE$439,2,FALSE)),'Preliminary SO66'!X57,VLOOKUP($CZ60,'Audit Values'!$A$2:$AE$439,24,FALSE)) -> 0 | AP60: 913471 | AQ60: =AP60/Weightings!$M$5 -> 238 | AR60: 1556.4 | AS60: 1794.4 | AT60: 1794.4 | AU60: 0 | AV60: =IF(ISNA(VLOOKUP($CZ60,'Audit Values'!$A$2:$AC$360,2,FALSE)),"",IF(AND(Weightings!H60>0,VLOOKUP($CZ60,'Audit Values'!$A$2:$AC$360,29,FALSE)<Weightings!H60),Weightings!H60,VLOOKUP($CZ60,'Audit Values'!$A$2:$AC$360,29,FALSE))) -> 12 | AW60: =IF(ISNA(VLOOKUP($CZ60,'Audit Values'!$A$2:$AD$360,2,FALSE)),"",VLOOKUP($CZ60,'Audit Values'!$A$2:$AD$360,30,FALSE)) -> A | AX60: =IF(Weightings!G60="","",IF(Weightings!I60="Pending","PX","R")) ->  | AY60: =AR60*Weightings!$M$5+AU60 -> 5973463 | AZ60: =AT60*Weightings!$M$5+AU60 -> 6886907 | BA60: =IF(Weightings!G60>0,Weightings!G60,'Preliminary SO66'!AB57) -> 7145972 | BB60: 6886907 | BD60: =Weightings!E60 -> -3753 | BE60: =Weightings!F60 -> 0 | BF60: -3753 | BG60: 6883154 | BH60: =MAX(ROUND(((AR60-AO60)*4433)+AP60,0),ROUND(((AR60-AO60)*4433)+Weightings!B60,0)) -> 7812992 | BI60: 0.3 | BJ60: 2343898 | BK60: 2118500 | BL60: 2118500 | BM60: 0.2712 | BN60: 0 | BO60: FALSE | BP60: 0 | BQ60: 0 | BR60: 0 | BS60: TRUE | BT60: 874.9125 | BU60: 0.243984 | BV60: 245.7 | BW60: 0 | BX60: 263 | BY60: 1.24 | BZ60: =IF(ROUND((Weightings!$P$5*BY60^Weightings!$P$6*Weightings!$P$8 ),2)<Weightings!$P$7,Weightings!$P$7,ROUND((Weightings!$P$5*BY60^Weightings!$P$6*Weightings!$P$8 ),2)) -> 954.25 | CA60: =ROUND(BZ60/Weightings!$M$5,4) -> 0.2486 | CB60: 80.8 | CC60: 0 | CD60: 0 | CE60: 0 | CF60: 0 | CG60: =AS60*Weightings!$M$5*CF60 -> 0 | CH60: 0 | CI60: 0.4 | CJ60: 3.8 | CK60: 0 | CL60: 0 | CM60: 14.1 | CN60: =IF(ISNA(VLOOKUP($CZ60,'Audit Values'!$A$2:$AE$439,2,FALSE)),'Preliminary SO66'!T57,VLOOKUP($CZ60,'Audit Values'!$A$2:$AE$439,20,FALSE)) -> 0 | CO60: 0 | CP60: 0 | CQ60: 0 | CR60: =IF(ISNA(VLOOKUP($CZ60,'Audit Values'!$A$2:$AE$439,2,FALSE)),'Preliminary SO66'!V57,VLOOKUP($CZ60,'Audit Values'!$A$2:$AE$439,22,FALSE)) -> 0 | CS60: 0 | CT60: =IF(ISNA(VLOOKUP($CZ60,'Audit Values'!$A$2:$AE$439,2,FALSE)),'Preliminary SO66'!W57,VLOOKUP($CZ60,'Audit Values'!$A$2:$AE$439,23,FALSE)) -> 0 | CU60: 0 | CV60: 0 | CW60: 0 | CX60: =IF(CW60>0,Weightings!$M$11*AR60,0) -> 0 | CY60: 0 | CZ60: D0248
A61: 249 | B61: Crawford | C61: Frontenac Public Schools | D61: 867 | E61: 0 | F61: 867 | G61: 871 | H61: 0 | I61: 871 | J61: 881.5 | K61: =IF(ISNA(VLOOKUP($CZ61,'Audit Values'!$A$2:$AE$439,2,FALSE)),'Preliminary SO66'!B58,VLOOKUP($CZ61,'Audit Values'!$A$2:$AE$439,31,FALSE)) -> 881.5 | L61: 881.5 | M61: =IF(ISNA(VLOOKUP($CZ61,'Audit Values'!$A$2:$AE$439,2,FALSE)),'Preliminary SO66'!Z58,VLOOKUP($CZ61,'Audit Values'!$A$2:$AE$439,26,FALSE)) -> 0 | N61: 881.5 | O61: =IF(ISNA(VLOOKUP($CZ61,'Audit Values'!$A$2:$AE$439,2,FALSE)),'Preliminary SO66'!C58,IF(VLOOKUP($CZ61,'Audit Values'!$A$2:$AE$439,28,FALSE)="",VLOOKUP($CZ61,'Audit Values'!$A$2:$AE$439,3,FALSE),VLOOKUP($CZ61,'Audit Values'!$A$2:$AE$439,28,FALSE))) -> 7 | P61: 888.5 | Q61: 888.5 | R61: 888.5 | S61: 888.5 | T61: 0 | U61: 252.6 | V61: 252.6 | W61: 0 | X61: =IF(ISNA(VLOOKUP($CZ61,'Audit Values'!$A$2:$AE$439,2,FALSE)),'Preliminary SO66'!D58,VLOOKUP($CZ61,'Audit Values'!$A$2:$AE$439,4,FALSE)) -> 178.7 | Y61: =ROUND((X61/6)*Weightings!$M$6,1) -> 14.9 | Z61: =IF(ISNA(VLOOKUP($CZ61,'Audit Values'!$A$2:$AE$439,2,FALSE)),'Preliminary SO66'!F58,VLOOKUP($CZ61,'Audit Values'!$A$2:$AE$439,6,FALSE)) -> 9.6 | AA61: =ROUND((Z61/6)*Weightings!$M$7,1) -> 0.6 | AB61: =IF(ISNA(VLOOKUP($CZ61,'Audit Values'!$A$2:$AE$439,2,FALSE)),'Preliminary SO66'!H58,VLOOKUP($CZ61,'Audit Values'!$A$2:$AE$439,8,FALSE)) -> 325 | AC61: =ROUND(AB61*Weightings!$M$8,1) -> 148.2 | AD61: 3.6 | AE61: 58 | AF61: =AE61*Weightings!$M$9 -> 2.7 | AG61: =IF(ISNA(VLOOKUP($CZ61,'Audit Values'!$A$2:$AE$439,2,FALSE)),'Preliminary SO66'!L58,VLOOKUP($CZ61,'Audit Values'!$A$2:$AE$439,12,FALSE)) -> 0 | AH61: =ROUND(AG61*Weightings!$M$10,1) -> 0 | AI61: =IF(ISNA(VLOOKUP($CZ61,'Audit Values'!$A$2:$AE$439,2,FALSE)),'Preliminary SO66'!O58,VLOOKUP($CZ61,'Audit Values'!$A$2:$AE$439,15,FALSE)) -> 94 | AJ61: 17.6 | AK61: =CC61/Weightings!$M$5 -> 0 | AL61: =CD61/Weightings!$M$5 -> 0 | AM61: =CH61/Weightings!$M$5 -> 0 | AN61: 0 | AO61: =IF(ISNA(VLOOKUP($CZ61,'Audit Values'!$A$2:$AE$439,2,FALSE)),'Preliminary SO66'!X58,VLOOKUP($CZ61,'Audit Values'!$A$2:$AE$439,24,FALSE)) -> 0 | AP61: 781511 | AQ61: =AP61/Weightings!$M$5 -> 203.6 | AR61: 1328.7 | AS61: 1532.3 | AT61: 1532.3 | AU61: 0 | AV61: =IF(ISNA(VLOOKUP($CZ61,'Audit Values'!$A$2:$AC$360,2,FALSE)),"",IF(AND(Weightings!H61>0,VLOOKUP($CZ61,'Audit Values'!$A$2:$AC$360,29,FALSE)<Weightings!H61),Weightings!H61,VLOOKUP($CZ61,'Audit Values'!$A$2:$AC$360,29,FALSE))) -> 25 | AW61: =IF(ISNA(VLOOKUP($CZ61,'Audit Values'!$A$2:$AD$360,2,FALSE)),"",VLOOKUP($CZ61,'Audit Values'!$A$2:$AD$360,30,FALSE)) -> A | AX61: =IF(Weightings!G61="","",IF(Weightings!I61="Pending","PX","R")) -> R | AY61: =AR61*Weightings!$M$5+AU61 -> 5099551 | AZ61: =AT61*Weightings!$M$5+AU61 -> 5880967 | BA61: =IF(Weightings!G61>0,Weightings!G61,'Preliminary SO66'!AB58) -> 5957344 | BB61: 5880967 | BD61: =Weightings!E61 -> -817 | BE61: =Weightings!F61 -> 0 | BF61: -817 | BG61: 5880150 | BH61: =MAX(ROUND(((AR61-AO61)*4433)+AP61,0),ROUND(((AR61-AO61)*4433)+Weightings!B61,0)) -> 6671638 | BI61: 0.3 | BJ61: 2001491 | BK61: 1536000 | BL61: 1536000 | BM61: 0.2302 | BN61: 0 | BO61: FALSE | BP61: 0 | BQ61: 0 | BR61: 0 | BS61: TRUE | BT61: 728.2688 | BU61: 0.284244 | BV61: 252.6 | BW61: 0 | BX61: 22 | BY61: 4.27 | BZ61: =IF(ROUND((Weightings!$P$5*BY61^Weightings!$P$6*Weightings!$P$8 ),2)<Weightings!$P$7,Weightings!$P$7,ROUND((Weightings!$P$5*BY61^Weightings!$P$6*Weightings!$P$8 ),2)) -> 719.74 | CA61: =ROUND(BZ61/Weightings!$M$5,4) -> 0.1875 | CB61: 17.6 | CC61: 0 | CD61: 0 | CE61: 0 | CF61: 0 | CG61: =AS61*Weightings!$M$5*CF61 -> 0 | CH61: 0 | CI61: 0.366 | CJ61: 40.4 | CK61: 0 | CL61: 0 | CM61: 3.6 | CN61: =IF(ISNA(VLOOKUP($CZ61,'Audit Values'!$A$2:$AE$439,2,FALSE)),'Preliminary SO66'!T58,VLOOKUP($CZ61,'Audit Values'!$A$2:$AE$439,20,FALSE)) -> 0 | CO61: 0 | CP61: 0 | CQ61: 0 | CR61: =IF(ISNA(VLOOKUP($CZ61,'Audit Values'!$A$2:$AE$439,2,FALSE)),'Preliminary SO66'!V58,VLOOKUP($CZ61,'Audit Values'!$A$2:$AE$439,22,FALSE)) -> 0 | CS61: 0 | CT61: =IF(ISNA(VLOOKUP($CZ61,'Audit Values'!$A$2:$AE$439,2,FALSE)),'Preliminary SO66'!W58,VLOOKUP($CZ61,'Audit Values'!$A$2:$AE$439,23,FALSE)) -> 0 | CU61: 0 | CV61: 0 | CW61: 0 | CX61: =IF(CW61>0,Weightings!$M$11*AR61,0) -> 0 | CY61: 0 | CZ61: D0249
A62: 250 | B62: Crawford | C62: Pittsburg | D62: 2686.4 | E62: 0 | F62: 2686.4 | G62: 2716.8 | H62: 0 | I62: 2716.8 | J62: 2808.8 | K62: =IF(ISNA(VLOOKUP($CZ62,'Audit Values'!$A$2:$AE$439,2,FALSE)),'Preliminary SO66'!B59,VLOOKUP($CZ62,'Audit Values'!$A$2:$AE$439,31,FALSE)) -> 2806.8 | L62: 2806.8 | M62: =IF(ISNA(VLOOKUP($CZ62,'Audit Values'!$A$2:$AE$439,2,FALSE)),'Preliminary SO66'!Z59,VLOOKUP($CZ62,'Audit Values'!$A$2:$AE$439,26,FALSE)) -> 0 | N62: 2806.8 | O62: =IF(ISNA(VLOOKUP($CZ62,'Audit Values'!$A$2:$AE$439,2,FALSE)),'Preliminary SO66'!C59,IF(VLOOKUP($CZ62,'Audit Values'!$A$2:$AE$439,28,FALSE)="",VLOOKUP($CZ62,'Audit Values'!$A$2:$AE$439,3,FALSE),VLOOKUP($CZ62,'Audit Values'!$A$2:$AE$439,28,FALSE))) -> 20 | P62: 2826.8 | Q62: 2828.8 | R62: 2828.8 | S62: 2826.8 | T62: 2 | U62: 99.1 | V62: 0 | W62: 99.1 | X62: =IF(ISNA(VLOOKUP($CZ62,'Audit Values'!$A$2:$AE$439,2,FALSE)),'Preliminary SO66'!D59,VLOOKUP($CZ62,'Audit Values'!$A$2:$AE$439,4,FALSE)) -> 370.3 | Y62: =ROUND((X62/6)*Weightings!$M$6,1) -> 30.9 | Z62: =IF(ISNA(VLOOKUP($CZ62,'Audit Values'!$A$2:$AE$439,2,FALSE)),'Preliminary SO66'!F59,VLOOKUP($CZ62,'Audit Values'!$A$2:$AE$439,6,FALSE)) -> 735.4 | AA62: =ROUND((Z62/6)*Weightings!$M$7,1) -> 48.4 | AB62: =IF(ISNA(VLOOKUP($CZ62,'Audit Values'!$A$2:$AE$439,2,FALSE)),'Preliminary SO66'!H59,VLOOKUP($CZ62,'Audit Values'!$A$2:$AE$439,8,FALSE)) -> 1727 | AC62: =ROUND(AB62*Weightings!$M$8,1) -> 787.5 | AD62: 181.3 | AE62: 188 | AF62: =AE62*Weightings!$M$9 -> 8.7 | AG62: =IF(ISNA(VLOOKUP($CZ62,'Audit Values'!$A$2:$AE$439,2,FALSE)),'Preliminary SO66'!L59,VLOOKUP($CZ62,'Audit Values'!$A$2:$AE$439,12,FALSE)) -> 0 | AH62: =ROUND(AG62*Weightings!$M$10,1) -> 0 | AI62: =IF(ISNA(VLOOKUP($CZ62,'Audit Values'!$A$2:$AE$439,2,FALSE)),'Preliminary SO66'!O59,VLOOKUP($CZ62,'Audit Values'!$A$2:$AE$439,15,FALSE)) -> 427.3 | AJ62: 66.1 | AK62: =CC62/Weightings!$M$5 -> 0 | AL62: =CD62/Weightings!$M$5 -> 0 | AM62: =CH62/Weightings!$M$5 -> 0 | AN62: 2.1 | AO62: =IF(ISNA(VLOOKUP($CZ62,'Audit Values'!$A$2:$AE$439,2,FALSE)),'Preliminary SO66'!X59,VLOOKUP($CZ62,'Audit Values'!$A$2:$AE$439,24,FALSE)) -> 0 | AP62: 2511013 | AQ62: =AP62/Weightings!$M$5 -> 654.3 | AR62: 4050.9 | AS62: 4705.2 | AT62: 4705.2 | AU62: 0 | AV62: =IF(ISNA(VLOOKUP($CZ62,'Audit Values'!$A$2:$AC$360,2,FALSE)),"",IF(AND(Weightings!H62>0,VLOOKUP($CZ62,'Audit Values'!$A$2:$AC$360,29,FALSE)<Weightings!H62),Weightings!H62,VLOOKUP($CZ62,'Audit Values'!$A$2:$AC$360,29,FALSE))) -> 28 | AW62: =IF(ISNA(VLOOKUP($CZ62,'Audit Values'!$A$2:$AD$360,2,FALSE)),"",VLOOKUP($CZ62,'Audit Values'!$A$2:$AD$360,30,FALSE)) -> A | AX62: =IF(Weightings!G62="","",IF(Weightings!I62="Pending","PX","R")) -> R | AY62: =AR62*Weightings!$M$5+AU62 -> 15547354 | AZ62: =AT62*Weightings!$M$5+AU62 -> 18058558 | BA62: =IF(Weightings!G62>0,Weightings!G62,'Preliminary SO66'!AB59) -> 18360608 | BB62: 18058558 | BD62: =Weightings!E62 -> -1794 | BE62: =Weightings!F62 -> 0 | BF62: -1794 | BG62: 18056764 | BH62: =MAX(ROUND(((AR62-AO62)*4433)+AP62,0),ROUND(((AR62-AO62)*4433)+Weightings!B62,0)) -> 20468653 | BI62: 0.3 | BJ62: 6140596 | BK62: 6056200 | BL62: 6056200 | BM62: 0.2959 | BN62: 0 | BO62: FALSE | BP62: 0 | BQ62: 0 | BR62: 0 | BS62: FALSE | BT62: 0 | BU62: 0 | BV62: 0 | BW62: 99.1 | BX62: 43 | BY62: 9.94 | BZ62: =IF(ROUND((Weightings!$P$5*BY62^Weightings!$P$6*Weightings!$P$8 ),2)<Weightings!$P$7,Weightings!$P$7,ROUND((Weightings!$P$5*BY62^Weightings!$P$6*Weightings!$P$8 ),2)) -> 593.57 | CA62: =ROUND(BZ62/Weightings!$M$5,4) -> 0.1547 | CB62: 66.1 | CC62: 0 | CD62: 0 | CE62: 0 | CF62: 0 | CG62: =AS62*Weightings!$M$5*CF62 -> 0 | CH62: 0 | CI62: 0.611 | CJ62: 65.7 | CK62: 181.3 | CL62: 0 | CM62: 0 | CN62: =IF(ISNA(VLOOKUP($CZ62,'Audit Values'!$A$2:$AE$439,2,FALSE)),'Preliminary SO66'!T59,VLOOKUP($CZ62,'Audit Values'!$A$2:$AE$439,20,FALSE)) -> 2 | CO62: 2.1 | CP62: 0 | CQ62: 0 | CR62: =IF(ISNA(VLOOKUP($CZ62,'Audit Values'!$A$2:$AE$439,2,FALSE)),'Preliminary SO66'!V59,VLOOKUP($CZ62,'Audit Values'!$A$2:$AE$439,22,FALSE)) -> 0 | CS62: 0 | CT62: =IF(ISNA(VLOOKUP($CZ62,'Audit Values'!$A$2:$AE$439,2,FALSE)),'Preliminary SO66'!W59,VLOOKUP($CZ62,'Audit Values'!$A$2:$AE$439,23,FALSE)) -> 0 | CU62: 0 | CV62: 2.1 | CW62: 0 | CX62: =IF(CW62>0,Weightings!$M$11*AR62,0) -> 0 | CY62: 0 | CZ62: D0250
A63: 251 | B63: Lyon | C63: North Lyon County | D63: 418 | E63: 0 | F63: 418 | G63: 428 | H63: 0 | I63: 428 | J63: 432.8 | K63: =IF(ISNA(VLOOKUP($CZ63,'Audit Values'!$A$2:$AE$439,2,FALSE)),'Preliminary SO66'!B60,VLOOKUP($CZ63,'Audit Values'!$A$2:$AE$439,31,FALSE)) -> 432.8 | L63: 432.8 | M63: =IF(ISNA(VLOOKUP($CZ63,'Audit Values'!$A$2:$AE$439,2,FALSE)),'Preliminary SO66'!Z60,VLOOKUP($CZ63,'Audit Values'!$A$2:$AE$439,26,FALSE)) -> 0 | N63: 432.8 | O63: =IF(ISNA(VLOOKUP($CZ63,'Audit Values'!$A$2:$AE$439,2,FALSE)),'Preliminary SO66'!C60,IF(VLOOKUP($CZ63,'Audit Values'!$A$2:$AE$439,28,FALSE)="",VLOOKUP($CZ63,'Audit Values'!$A$2:$AE$439,3,FALSE),VLOOKUP($CZ63,'Audit Values'!$A$2:$AE$439,28,FALSE))) -> 0 | P63: 432.8 | Q63: 432.8 | R63: 432.8 | S63: 432.8 | T63: 0 | U63: 190 | V63: 190 | W63: 0 | X63: =IF(ISNA(VLOOKUP($CZ63,'Audit Values'!$A$2:$AE$439,2,FALSE)),'Preliminary SO66'!D60,VLOOKUP($CZ63,'Audit Values'!$A$2:$AE$439,4,FALSE)) -> 74.3 | Y63: =ROUND((X63/6)*Weightings!$M$6,1) -> 6.2 | Z63: =IF(ISNA(VLOOKUP($CZ63,'Audit Values'!$A$2:$AE$439,2,FALSE)),'Preliminary SO66'!F60,VLOOKUP($CZ63,'Audit Values'!$A$2:$AE$439,6,FALSE)) -> 0 | AA63: =ROUND((Z63/6)*Weightings!$M$7,1) -> 0 | AB63: =IF(ISNA(VLOOKUP($CZ63,'Audit Values'!$A$2:$AE$439,2,FALSE)),'Preliminary SO66'!H60,VLOOKUP($CZ63,'Audit Values'!$A$2:$AE$439,8,FALSE)) -> 203 | AC63: =ROUND(AB63*Weightings!$M$8,1) -> 92.6 | AD63: 16.9 | AE63: 27 | AF63: =AE63*Weightings!$M$9 -> 1.3 | AG63: =IF(ISNA(VLOOKUP($CZ63,'Audit Values'!$A$2:$AE$439,2,FALSE)),'Preliminary SO66'!L60,VLOOKUP($CZ63,'Audit Values'!$A$2:$AE$439,12,FALSE)) -> 0 | AH63: =ROUND(AG63*Weightings!$M$10,1) -> 0 | AI63: =IF(ISNA(VLOOKUP($CZ63,'Audit Values'!$A$2:$AE$439,2,FALSE)),'Preliminary SO66'!O60,VLOOKUP($CZ63,'Audit Values'!$A$2:$AE$439,15,FALSE)) -> 261.1 | AJ63: 76.6 | AK63: =CC63/Weightings!$M$5 -> 0 | AL63: =CD63/Weightings!$M$5 -> 0 | AM63: =CH63/Weightings!$M$5 -> 0 | AN63: 0 | AO63: =IF(ISNA(VLOOKUP($CZ63,'Audit Values'!$A$2:$AE$439,2,FALSE)),'Preliminary SO66'!X60,VLOOKUP($CZ63,'Audit Values'!$A$2:$AE$439,24,FALSE)) -> 0 | AP63: 473478 | AQ63: =AP63/Weightings!$M$5 -> 123.4 | AR63: 816.4 | AS63: 939.8 | AT63: 939.8 | AU63: 0 | AV63: =IF(ISNA(VLOOKUP($CZ63,'Audit Values'!$A$2:$AC$360,2,FALSE)),"",IF(AND(Weightings!H63>0,VLOOKUP($CZ63,'Audit Values'!$A$2:$AC$360,29,FALSE)<Weightings!H63),Weightings!H63,VLOOKUP($CZ63,'Audit Values'!$A$2:$AC$360,29,FALSE))) -> 13 | AW63: =IF(ISNA(VLOOKUP($CZ63,'Audit Values'!$A$2:$AD$360,2,FALSE)),"",VLOOKUP($CZ63,'Audit Values'!$A$2:$AD$360,30,FALSE)) -> A | AX63: =IF(Weightings!G63="","",IF(Weightings!I63="Pending","PX","R")) ->  | AY63: =AR63*Weightings!$M$5+AU63 -> 3133343 | AZ63: =AT63*Weightings!$M$5+AU63 -> 3606952 | BA63: =IF(Weightings!G63>0,Weightings!G63,'Preliminary SO66'!AB60) -> 3666441 | BB63: 3606952 | BD63: =Weightings!E63 -> -2205 | BE63: =Weightings!F63 -> 0 | BF63: -2205 | BG63: 3604747 | BH63: =MAX(ROUND(((AR63-AO63)*4433)+AP63,0),ROUND(((AR63-AO63)*4433)+Weightings!B63,0)) -> 4092579 | BI63: 0.3 | BJ63: 1227774 | BK63: 1248312 | BL63: 1227774 | BM63: 0.3 | BN63: 0 | BO63: FALSE | BP63: 0 | BQ63: 0 | BR63: 0 | BS63: TRUE | BT63: 164.34 | BU63: 0.439068 | BV63: 190 | BW63: 0 | BX63: 434 | BY63: 0.6 | BZ63: =IF(ROUND((Weightings!$P$5*BY63^Weightings!$P$6*Weightings!$P$8 ),2)<Weightings!$P$7,Weightings!$P$7,ROUND((Weightings!$P$5*BY63^Weightings!$P$6*Weightings!$P$8 ),2)) -> 1126.1 | CA63: =ROUND(BZ63/Weightings!$M$5,4) -> 0.2934 | CB63: 76.6 | CC63: 0 | CD63: 0 | CE63: 0 | CF63: 0 | CG63: =AS63*Weightings!$M$5*CF63 -> 0 | CH63: 0 | CI63: 0.469 | CJ63: 1 | CK63: 0 | CL63: 0 | CM63: 16.9 | CN63: =IF(ISNA(VLOOKUP($CZ63,'Audit Values'!$A$2:$AE$439,2,FALSE)),'Preliminary SO66'!T60,VLOOKUP($CZ63,'Audit Values'!$A$2:$AE$439,20,FALSE)) -> 0 | CO63: 0 | CP63: 0 | CQ63: 0 | CR63: =IF(ISNA(VLOOKUP($CZ63,'Audit Values'!$A$2:$AE$439,2,FALSE)),'Preliminary SO66'!V60,VLOOKUP($CZ63,'Audit Values'!$A$2:$AE$439,22,FALSE)) -> 0 | CS63: 0 | CT63: =IF(ISNA(VLOOKUP($CZ63,'Audit Values'!$A$2:$AE$439,2,FALSE)),'Preliminary SO66'!W60,VLOOKUP($CZ63,'Audit Values'!$A$2:$AE$439,23,FALSE)) -> 0 | CU63: 0 | CV63: 0 | CW63: 0 | CX63: =IF(CW63>0,Weightings!$M$11*AR63,0) -> 0 | CY63: 0 | CZ63: D0251
A64: 252 | B64: Lyon | C64: Southern Lyon County | D64: 499.5 | E64: 0 | F64: 499.5 | G64: 508.2 | H64: 0 | I64: 508.2 | J64: 514.5 | K64: =IF(ISNA(VLOOKUP($CZ64,'Audit Values'!$A$2:$AE$439,2,FALSE)),'Preliminary SO66'!B61,VLOOKUP($CZ64,'Audit Values'!$A$2:$AE$439,31,FALSE)) -> 514.5 | L64: 514.5 | M64: =IF(ISNA(VLOOKUP($CZ64,'Audit Values'!$A$2:$AE$439,2,FALSE)),'Preliminary SO66'!Z61,VLOOKUP($CZ64,'Audit Values'!$A$2:$AE$439,26,FALSE)) -> 0 | N64: 514.5 | O64: =IF(ISNA(VLOOKUP($CZ64,'Audit Values'!$A$2:$AE$439,2,FALSE)),'Preliminary SO66'!C61,IF(VLOOKUP($CZ64,'Audit Values'!$A$2:$AE$439,28,FALSE)="",VLOOKUP($CZ64,'Audit Values'!$A$2:$AE$439,3,FALSE),VLOOKUP($CZ64,'Audit Values'!$A$2:$AE$439,28,FALSE))) -> 4 | P64: 518.5 | Q64: 518.5 | R64: 518.5 | S64: 518.5 | T64: 0 | U64: 212.6 | V64: 212.6 | W64: 0 | X64: =IF(ISNA(VLOOKUP($CZ64,'Audit Values'!$A$2:$AE$439,2,FALSE)),'Preliminary SO66'!D61,VLOOKUP($CZ64,'Audit Values'!$A$2:$AE$439,4,FALSE)) -> 191.5 | Y64: =ROUND((X64/6)*Weightings!$M$6,1) -> 16 | Z64: =IF(ISNA(VLOOKUP($CZ64,'Audit Values'!$A$2:$AE$439,2,FALSE)),'Preliminary SO66'!F61,VLOOKUP($CZ64,'Audit Values'!$A$2:$AE$439,6,FALSE)) -> 0 | AA64: =ROUND((Z64/6)*Weightings!$M$7,1) -> 0 | AB64: =IF(ISNA(VLOOKUP($CZ64,'Audit Values'!$A$2:$AE$439,2,FALSE)),'Preliminary SO66'!H61,VLOOKUP($CZ64,'Audit Values'!$A$2:$AE$439,8,FALSE)) -> 186 | AC64: =ROUND(AB64*Weightings!$M$8,1) -> 84.8 | AD64: 1.2 | AE64: 28 | AF64: =AE64*Weightings!$M$9 -> 1.3 | AG64: =IF(ISNA(VLOOKUP($CZ64,'Audit Values'!$A$2:$AE$439,2,FALSE)),'Preliminary SO66'!L61,VLOOKUP($CZ64,'Audit Values'!$A$2:$AE$439,12,FALSE)) -> 0 | AH64: =ROUND(AG64*Weightings!$M$10,1) -> 0 | AI64: =IF(ISNA(VLOOKUP($CZ64,'Audit Values'!$A$2:$AE$439,2,FALSE)),'Preliminary SO66'!O61,VLOOKUP($CZ64,'Audit Values'!$A$2:$AE$439,15,FALSE)) -> 233 | AJ64: 64.2 | AK64: =CC64/Weightings!$M$5 -> 0 | AL64: =CD64/Weightings!$M$5 -> 0 | AM64: =CH64/Weightings!$M$5 -> 0 | AN64: 0 | AO64: =IF(ISNA(VLOOKUP($CZ64,'Audit Values'!$A$2:$AE$439,2,FALSE)),'Preliminary SO66'!X61,VLOOKUP($CZ64,'Audit Values'!$A$2:$AE$439,24,FALSE)) -> 0 | AP64: 579667 | AQ64: =AP64/Weightings!$M$5 -> 151 | AR64: 898.6 | AS64: 1049.6 | AT64: 1049.6 | AU64: 0 | AV64: =IF(ISNA(VLOOKUP($CZ64,'Audit Values'!$A$2:$AC$360,2,FALSE)),"",IF(AND(Weightings!H64>0,VLOOKUP($CZ64,'Audit Values'!$A$2:$AC$360,29,FALSE)<Weightings!H64),Weightings!H64,VLOOKUP($CZ64,'Audit Values'!$A$2:$AC$360,29,FALSE))) -> 26 | AW64: =IF(ISNA(VLOOKUP($CZ64,'Audit Values'!$A$2:$AD$360,2,FALSE)),"",VLOOKUP($CZ64,'Audit Values'!$A$2:$AD$360,30,FALSE)) -> A | AX64: =IF(Weightings!G64="","",IF(Weightings!I64="Pending","PX","R")) ->  | AY64: =AR64*Weightings!$M$5+AU64 -> 3448827 | AZ64: =AT64*Weightings!$M$5+AU64 -> 4028365 | BA64: =IF(Weightings!G64>0,Weightings!G64,'Preliminary SO66'!AB61) -> 4147343 | BB64: 4028365 | BD64: =Weightings!E64 -> -3187 | BE64: =Weightings!F64 -> 0 | BF64: -3187 | BG64: 4025178 | BH64: =MAX(ROUND(((AR64-AO64)*4433)+AP64,0),ROUND(((AR64-AO64)*4433)+Weightings!B64,0)) -> 4563161 | BI64: 0.3 | BJ64: 1368948 | BK64: 1409791 | BL64: 1368948 | BM64: 0.3 | BN64: 0 | BO64: FALSE | BP64: 0 | BQ64: 0 | BR64: 0 | BS64: TRUE | BT64: 270.3938 | BU64: 0.409951 | BV64: 212.6 | BW64: 0 | BX64: 295 | BY64: 0.79 | BZ64: =IF(ROUND((Weightings!$P$5*BY64^Weightings!$P$6*Weightings!$P$8 ),2)<Weightings!$P$7,Weightings!$P$7,ROUND((Weightings!$P$5*BY64^Weightings!$P$6*Weightings!$P$8 ),2)) -> 1057.61 | CA64: =ROUND(BZ64/Weightings!$M$5,4) -> 0.2756 | CB64: 64.2 | CC64: 0 | CD64: 0 | CE64: 0 | CF64: 0 | CG64: =AS64*Weightings!$M$5*CF64 -> 0 | CH64: 0 | CI64: 0.359 | CJ64: 1.8 | CK64: 0 | CL64: 0 | CM64: 1.2 | CN64: =IF(ISNA(VLOOKUP($CZ64,'Audit Values'!$A$2:$AE$439,2,FALSE)),'Preliminary SO66'!T61,VLOOKUP($CZ64,'Audit Values'!$A$2:$AE$439,20,FALSE)) -> 0 | CO64: 0 | CP64: 0 | CQ64: 0 | CR64: =IF(ISNA(VLOOKUP($CZ64,'Audit Values'!$A$2:$AE$439,2,FALSE)),'Preliminary SO66'!V61,VLOOKUP($CZ64,'Audit Values'!$A$2:$AE$439,22,FALSE)) -> 0 | CS64: 0 | CT64: =IF(ISNA(VLOOKUP($CZ64,'Audit Values'!$A$2:$AE$439,2,FALSE)),'Preliminary SO66'!W61,VLOOKUP($CZ64,'Audit Values'!$A$2:$AE$439,23,FALSE)) -> 0 | CU64: 0 | CV64: 0 | CW64: 0 | CX64: =IF(CW64>0,Weightings!$M$11*AR64,0) -> 0 | CY64: 0 | CZ64: D0252
A65: 253 | B65: Lyon | C65: Emporia | D65: 4191.1 | E65: 0 | F65: 4191.1 | G65: 4179.6 | H65: 0 | I65: 4179.6 | J65: 4213.8 | K65: =IF(ISNA(VLOOKUP($CZ65,'Audit Values'!$A$2:$AE$439,2,FALSE)),'Preliminary SO66'!B62,VLOOKUP($CZ65,'Audit Values'!$A$2:$AE$439,31,FALSE)) -> 4210.1 | L65: 4210.1 | M65: =IF(ISNA(VLOOKUP($CZ65,'Audit Values'!$A$2:$AE$439,2,FALSE)),'Preliminary SO66'!Z62,VLOOKUP($CZ65,'Audit Values'!$A$2:$AE$439,26,FALSE)) -> 0 | N65: 4210.1 | O65: =IF(ISNA(VLOOKUP($CZ65,'Audit Values'!$A$2:$AE$439,2,FALSE)),'Preliminary SO66'!C62,IF(VLOOKUP($CZ65,'Audit Values'!$A$2:$AE$439,28,FALSE)="",VLOOKUP($CZ65,'Audit Values'!$A$2:$AE$439,3,FALSE),VLOOKUP($CZ65,'Audit Values'!$A$2:$AE$439,28,FALSE))) -> 66 | P65: 4276.1 | Q65: 4279.8 | R65: 4279.8 | S65: 4276.1 | T65: 3.7 | U65: 149.8 | V65: =MAX(BN65,BR65,BV65) -> 0 | W65: =BW65 -> 149.8 | X65: =IF(ISNA(VLOOKUP($CZ65,'Audit Values'!$A$2:$AE$439,2,FALSE)),'Preliminary SO66'!D62,VLOOKUP($CZ65,'Audit Values'!$A$2:$AE$439,4,FALSE)) -> 781.9 | Y65: =ROUND((X65/6)*Weightings!$M$6,1) -> 65.2 | Z65: =IF(ISNA(VLOOKUP($CZ65,'Audit Values'!$A$2:$AE$439,2,FALSE)),'Preliminary SO66'!F62,VLOOKUP($CZ65,'Audit Values'!$A$2:$AE$439,6,FALSE)) -> 5809 | AA65: =ROUND((Z65/6)*Weightings!$M$7,1) -> 382.4 | AB65: =IF(ISNA(VLOOKUP($CZ65,'Audit Values'!$A$2:$AE$439,2,FALSE)),'Preliminary SO66'!H62,VLOOKUP($CZ65,'Audit Values'!$A$2:$AE$439,8,FALSE)) -> 2647 | AC65: =ROUND(AB65*Weightings!$M$8,1) -> 1207 | AD65: 277.9 | AE65: 224 | AF65: =AE65*Weightings!$M$9 -> 10.4 | AG65: =IF(ISNA(VLOOKUP($CZ65,'Audit Values'!$A$2:$AE$439,2,FALSE)),'Preliminary SO66'!L62,VLOOKUP($CZ65,'Audit Values'!$A$2:$AE$439,12,FALSE)) -> 250 | AH65: =ROUND(AG65*Weightings!$M$10,1) -> 62.5 | AI65: =IF(ISNA(VLOOKUP($CZ65,'Audit Values'!$A$2:$AE$439,2,FALSE)),'Preliminary SO66'!O62,VLOOKUP($CZ65,'Audit Values'!$A$2:$AE$439,15,FALSE)) -> 1625 | AJ65: 247.7 | AK65: =CC65/Weightings!$M$5 -> 0 | AL65: =CD65/Weightings!$M$5 -> 0 | AM65: =CH65/Weightings!$M$5 -> 0 | AN65: 3.9 | AO65: =IF(ISNA(VLOOKUP($CZ65,'Audit Values'!$A$2:$AE$439,2,FALSE)),'Preliminary SO66'!X62,VLOOKUP($CZ65,'Audit Values'!$A$2:$AE$439,24,FALSE)) -> 1 | AP65: 3109437 | AQ65: =AP65/Weightings!$M$5 -> 810.2 | AR65: 6683.9 | AS65: 7494.1 | AT65: 7494.1 | AU65: 0 | AV65: =IF(ISNA(VLOOKUP($CZ65,'Audit Values'!$A$2:$AC$360,2,FALSE)),"",IF(AND(Weightings!H65>0,VLOOKUP($CZ65,'Audit Values'!$A$2:$AC$360,29,FALSE)<Weightings!H65),Weightings!H65,VLOOKUP($CZ65,'Audit Values'!$A$2:$AC$360,29,FALSE))) -> 18 | AW65: =IF(ISNA(VLOOKUP($CZ65,'Audit Values'!$A$2:$AD$360,2,FALSE)),"",VLOOKUP($CZ65,'Audit Values'!$A$2:$AD$360,30,FALSE)) -> A | AX65: =IF(Weightings!G65="","",IF(Weightings!I65="Pending","PX","R")) ->  | AY65: =AR65*Weightings!$M$5+AU65 -> 25652808 | AZ65: =AT65*Weightings!$M$5+AU65 -> 28762356 | BA65: =IF(Weightings!G65>0,Weightings!G65,'Preliminary SO66'!AB62) -> 29227521 | BB65: 28762356 | BD65: =Weightings!E65 -> 0 | BE65: =Weightings!F65 -> 0 | BF65: 0 | BG65: 28762356 | BH65: =MAX(ROUND(((AR65-AO65)*4433)+AP65,0),ROUND(((AR65-AO65)*4433)+Weightings!B65,0)) -> 32734733 | BI65: 0.3 | BJ65: 9820420 | BK65: 8855060 | BL65: 8855060 | BM65: 0.2705 | BN65: 0 | BO65: FALSE | BP65: 0 | BQ65: =IF(BO65=TRUE,ROUND(((7337-BP65)/3642.4)-1,6),0) -> 0 | BR65: 0 | BS65: FALSE | BT65: 0 | BU65: =IF(BS65=TRUE,ROUND(((5406-BT65)/3642.4)-1,6),0) -> 0 | BV65: 0 | BW65: 149.8 | BX65: 135 | BY65: 12.04 | BZ65: =IF(ROUND((Weightings!$P$5*BY65^Weightings!$P$6*Weightings!$P$8 ),2)<Weightings!$P$7,Weightings!$P$7,ROUND((Weightings!$P$5*BY65^Weightings!$P$6*Weightings!$P$8 ),2)) -> 585 | CA65: =ROUND(BZ65/Weightings!$M$5,4) -> 0.1524 | CB65: 247.7 | CC65: 0 | CD65: 0 | CE65: 0 | CF65: 0 | CG65: =AS65*Weightings!$M$5*CF65 -> 0 | CH65: 0 | CI65: 0.619 | CJ65: 31.7 | CK65: 277.9 | CL65: 0 | CM65: 0 | CN65: =IF(ISNA(VLOOKUP($CZ65,'Audit Values'!$A$2:$AE$439,2,FALSE)),'Preliminary SO66'!T62,VLOOKUP($CZ65,'Audit Values'!$A$2:$AE$439,20,FALSE)) -> 3.7 | CO65: 3.9 | CP65: 0 | CQ65: 0 | CR65: =IF(ISNA(VLOOKUP($CZ65,'Audit Values'!$A$2:$AE$439,2,FALSE)),'Preliminary SO66'!V62,VLOOKUP($CZ65,'Audit Values'!$A$2:$AE$439,22,FALSE)) -> 0 | CS65: 0 | CT65: =IF(ISNA(VLOOKUP($CZ65,'Audit Values'!$A$2:$AE$439,2,FALSE)),'Preliminary SO66'!W62,VLOOKUP($CZ65,'Audit Values'!$A$2:$AE$439,23,FALSE)) -> 0 | CU65: 0 | CV65: 3.9 | CW65: 0 | CX65: =IF(CW65>0,Weightings!$M$11*AR65,0) -> 0 | CY65: 0 | CZ65: D0253
A66: 254 | B66: Barber | C66: Barber County North | D66: 424.5 | E66: 0 | F66: 424.5 | G66: 444 | H66: 0 | I66: 444 | J66: 446.5 | K66: =IF(ISNA(VLOOKUP($CZ66,'Audit Values'!$A$2:$AE$439,2,FALSE)),'Preliminary SO66'!B63,VLOOKUP($CZ66,'Audit Values'!$A$2:$AE$439,31,FALSE)) -> 446.5 | L66: 446.5 | M66: =IF(ISNA(VLOOKUP($CZ66,'Audit Values'!$A$2:$AE$439,2,FALSE)),'Preliminary SO66'!Z63,VLOOKUP($CZ66,'Audit Values'!$A$2:$AE$439,26,FALSE)) -> 0 | N66: 446.5 | O66: =IF(ISNA(VLOOKUP($CZ66,'Audit Values'!$A$2:$AE$439,2,FALSE)),'Preliminary SO66'!C63,IF(VLOOKUP($CZ66,'Audit Values'!$A$2:$AE$439,28,FALSE)="",VLOOKUP($CZ66,'Audit Values'!$A$2:$AE$439,3,FALSE),VLOOKUP($CZ66,'Audit Values'!$A$2:$AE$439,28,FALSE))) -> 2.5 | P66: 449 | Q66: 449 | R66: 449 | S66: 449 | T66: 0 | U66: 194.7 | V66: 194.7 | W66: 0 | X66: =IF(ISNA(VLOOKUP($CZ66,'Audit Values'!$A$2:$AE$439,2,FALSE)),'Preliminary SO66'!D63,VLOOKUP($CZ66,'Audit Values'!$A$2:$AE$439,4,FALSE)) -> 65.2 | Y66: =ROUND((X66/6)*Weightings!$M$6,1) -> 5.4 | Z66: =IF(ISNA(VLOOKUP($CZ66,'Audit Values'!$A$2:$AE$439,2,FALSE)),'Preliminary SO66'!F63,VLOOKUP($CZ66,'Audit Values'!$A$2:$AE$439,6,FALSE)) -> 0 | AA66: =ROUND((Z66/6)*Weightings!$M$7,1) -> 0 | AB66: =IF(ISNA(VLOOKUP($CZ66,'Audit Values'!$A$2:$AE$439,2,FALSE)),'Preliminary SO66'!H63,VLOOKUP($CZ66,'Audit Values'!$A$2:$AE$439,8,FALSE)) -> 159 | AC66: =ROUND(AB66*Weightings!$M$8,1) -> 72.5 | AD66: 0.4 | AE66: 13 | AF66: =AE66*Weightings!$M$9 -> 0.6 | AG66: =IF(ISNA(VLOOKUP($CZ66,'Audit Values'!$A$2:$AE$439,2,FALSE)),'Preliminary SO66'!L63,VLOOKUP($CZ66,'Audit Values'!$A$2:$AE$439,12,FALSE)) -> 0 | AH66: =ROUND(AG66*Weightings!$M$10,1) -> 0 | AI66: =IF(ISNA(VLOOKUP($CZ66,'Audit Values'!$A$2:$AE$439,2,FALSE)),'Preliminary SO66'!O63,VLOOKUP($CZ66,'Audit Values'!$A$2:$AE$439,15,FALSE)) -> 124 | AJ66: 48.5 | AK66: =CC66/Weightings!$M$5 -> 0 | AL66: =CD66/Weightings!$M$5 -> 0 | AM66: =CH66/Weightings!$M$5 -> 0 | AN66: =CV66 -> 0 | AO66: =IF(ISNA(VLOOKUP($CZ66,'Audit Values'!$A$2:$AE$439,2,FALSE)),'Preliminary SO66'!X63,VLOOKUP($CZ66,'Audit Values'!$A$2:$AE$439,24,FALSE)) -> 0 | AP66: 535174 | AQ66: =AP66/Weightings!$M$5 -> 139.4 | AR66: 771.1 | AS66: 910.5 | AT66: 910.5 | AU66: 0 | AV66: =IF(ISNA(VLOOKUP($CZ66,'Audit Values'!$A$2:$AC$360,2,FALSE)),"",IF(AND(Weightings!H66>0,VLOOKUP($CZ66,'Audit Values'!$A$2:$AC$360,29,FALSE)<Weightings!H66),Weightings!H66,VLOOKUP($CZ66,'Audit Values'!$A$2:$AC$360,29,FALSE))) -> 2 | AW66: =IF(ISNA(VLOOKUP($CZ66,'Audit Values'!$A$2:$AD$360,2,FALSE)),"",VLOOKUP($CZ66,'Audit Values'!$A$2:$AD$360,30,FALSE)) -> A | AX66: =IF(Weightings!G66="","",IF(Weightings!I66="Pending","PX","R")) ->  | AY66: =AR66*Weightings!$M$5+AU66 -> 2959482 | AZ66: =AT66*Weightings!$M$5+AU66 -> 3494499 | BA66: =IF(Weightings!G66>0,Weightings!G66,'Preliminary SO66'!AB63) -> 3630748 | BB66: 3494499 | BD66: =Weightings!E66 -> 0 | BE66: =Weightings!F66 -> 0 | BF66: 0 | BG66: 3494499 | BH66: =MAX(ROUND(((AR66-AO66)*4433)+AP66,0),ROUND(((AR66-AO66)*4433)+Weightings!B66,0)) -> 4004976 | BI66: 0.3 | BJ66: 1201493 | BK66: 1228435 | BL66: 1201493 | BM66: 0.3 | BN66: 0 | BO66: FALSE | BP66: 0 | BQ66: =IF(BO66=TRUE,ROUND(((7337-BP66)/3642.4)-1,6),0) -> 0 | BR66: 0 | BS66: TRUE | BT66: 184.3875 | BU66: =IF(BS66=TRUE,ROUND(((5406-BT66)/3642.4)-1,6),0) -> 0.433564 | BV66: 194.7 | BW66: 0 | BX66: 718 | BY66: 0.17 | BZ66: =IF(ROUND((Weightings!$P$5*BY66^Weightings!$P$6*Weightings!$P$8 ),2)<Weightings!$P$7,Weightings!$P$7,ROUND((Weightings!$P$5*BY66^Weightings!$P$6*Weightings!$P$8 ),2)) -> 1501.44 | CA66: =ROUND(BZ66/Weightings!$M$5,4) -> 0.3912 | CB66: 48.5 | CC66: 0 | CD66: 0 | CE66: 0 | CF66: 0 | CG66: =AS66*Weightings!$M$5*CF66 -> 0 | CH66: 0 | CI66: 0.354 | CJ66: 0.6 | CK66: 0 | CL66: 0 | CM66: 0.4 | CN66: =IF(ISNA(VLOOKUP($CZ66,'Audit Values'!$A$2:$AE$439,2,FALSE)),'Preliminary SO66'!T63,VLOOKUP($CZ66,'Audit Values'!$A$2:$AE$439,20,FALSE)) -> 0 | CO66: 0 | CP66: 0 | CQ66: 0 | CR66: =IF(ISNA(VLOOKUP($CZ66,'Audit Values'!$A$2:$AE$439,2,FALSE)),'Preliminary SO66'!V63,VLOOKUP($CZ66,'Audit Values'!$A$2:$AE$439,22,FALSE)) -> 0 | CS66: 0 | CT66: =IF(ISNA(VLOOKUP($CZ66,'Audit Values'!$A$2:$AE$439,2,FALSE)),'Preliminary SO66'!W63,VLOOKUP($CZ66,'Audit Values'!$A$2:$AE$439,23,FALSE)) -> 0 | CU66: 0 | CV66: 0 | CW66: 0 | CX66: =IF(CW66>0,Weightings!$M$11*AR66,0) -> 0 | CY66: 0 | CZ66: D0254
A67: 255 | B67: Barber | C67: South Barber | D67: 215 | E67: 0 | F67: 215 | G67: 220.5 | H67: 0 | I67: 220.5 | J67: 235 | K67: =IF(ISNA(VLOOKUP($CZ67,'Audit Values'!$A$2:$AE$439,2,FALSE)),'Preliminary SO66'!B64,VLOOKUP($CZ67,'Audit Values'!$A$2:$AE$439,31,FALSE)) -> 235 | L67: 235 | M67: =IF(ISNA(VLOOKUP($CZ67,'Audit Values'!$A$2:$AE$439,2,FALSE)),'Preliminary SO66'!Z64,VLOOKUP($CZ67,'Audit Values'!$A$2:$AE$439,26,FALSE)) -> 0 | N67: 235 | O67: =IF(ISNA(VLOOKUP($CZ67,'Audit Values'!$A$2:$AE$439,2,FALSE)),'Preliminary SO66'!C64,IF(VLOOKUP($CZ67,'Audit Values'!$A$2:$AE$439,28,FALSE)="",VLOOKUP($CZ67,'Audit Values'!$A$2:$AE$439,3,FALSE),VLOOKUP($CZ67,'Audit Values'!$A$2:$AE$439,28,FALSE))) -> 2 | P67: 237 | Q67: 237 | R67: 237 | S67: 237 | T67: 0 | U67: 154.3 | V67: 154.3 | W67: 0 | X67: =IF(ISNA(VLOOKUP($CZ67,'Audit Values'!$A$2:$AE$439,2,FALSE)),'Preliminary SO66'!D64,VLOOKUP($CZ67,'Audit Values'!$A$2:$AE$439,4,FALSE)) -> 76.4 | Y67: =ROUND((X67/6)*Weightings!$M$6,1) -> 6.4 | Z67: =IF(ISNA(VLOOKUP($CZ67,'Audit Values'!$A$2:$AE$439,2,FALSE)),'Preliminary SO66'!F64,VLOOKUP($CZ67,'Audit Values'!$A$2:$AE$439,6,FALSE)) -> 0 | AA67: =ROUND((Z67/6)*Weightings!$M$7,1) -> 0 | AB67: =IF(ISNA(VLOOKUP($CZ67,'Audit Values'!$A$2:$AE$439,2,FALSE)),'Preliminary SO66'!H64,VLOOKUP($CZ67,'Audit Values'!$A$2:$AE$439,8,FALSE)) -> 80 | AC67: =ROUND(AB67*Weightings!$M$8,1) -> 36.5 | AD67: 0 | AE67: 25 | AF67: =AE67*Weightings!$M$9 -> 1.2 | AG67: =IF(ISNA(VLOOKUP($CZ67,'Audit Values'!$A$2:$AE$439,2,FALSE)),'Preliminary SO66'!L64,VLOOKUP($CZ67,'Audit Values'!$A$2:$AE$439,12,FALSE)) -> 0 | AH67: =ROUND(AG67*Weightings!$M$10,1) -> 0 | AI67: =IF(ISNA(VLOOKUP($CZ67,'Audit Values'!$A$2:$AE$439,2,FALSE)),'Preliminary SO66'!O64,VLOOKUP($CZ67,'Audit Values'!$A$2:$AE$439,15,FALSE)) -> 51 | AJ67: 21.6 | AK67: =CC67/Weightings!$M$5 -> 0 | AL67: =CD67/Weightings!$M$5 -> 0 | AM67: =CH67/Weightings!$M$5 -> 0 | AN67: 0 | AO67: =IF(ISNA(VLOOKUP($CZ67,'Audit Values'!$A$2:$AE$439,2,FALSE)),'Preliminary SO66'!X64,VLOOKUP($CZ67,'Audit Values'!$A$2:$AE$439,24,FALSE)) -> 0 | AP67: 268965 | AQ67: =AP67/Weightings!$M$5 -> 70.1 | AR67: 457 | AS67: 527.1 | AT67: 527.1 | AU67: 0 | AV67: =IF(ISNA(VLOOKUP($CZ67,'Audit Values'!$A$2:$AC$360,2,FALSE)),"",IF(AND(Weightings!H67>0,VLOOKUP($CZ67,'Audit Values'!$A$2:$AC$360,29,FALSE)<Weightings!H67),Weightings!H67,VLOOKUP($CZ67,'Audit Values'!$A$2:$AC$360,29,FALSE))) -> 1 | AW67: =IF(ISNA(VLOOKUP($CZ67,'Audit Values'!$A$2:$AD$360,2,FALSE)),"",VLOOKUP($CZ67,'Audit Values'!$A$2:$AD$360,30,FALSE)) -> A | AX67: =IF(Weightings!G67="","",IF(Weightings!I67="Pending","PX","R")) -> R | AY67: =AR67*Weightings!$M$5+AU67 -> 1753966 | AZ67: =AT67*Weightings!$M$5+AU67 -> 2023010 | BA67: =IF(Weightings!G67>0,Weightings!G67,'Preliminary SO66'!AB64) -> 2059087 | BB67: 2023010 | BD67: =Weightings!E67 -> 0 | BE67: =Weightings!F67 -> 0 | BF67: 0 | BG67: 2023010 | BH67: =MAX(ROUND(((AR67-AO67)*4433)+AP67,0),ROUND(((AR67-AO67)*4433)+Weightings!B67,0)) -> 2294846 | BI67: 0.3 | BJ67: 688454 | BK67: 670408 | BL67: 670408 | BM67: 0.2921 | BN67: 0 | BO67: TRUE | BP67: 1322.735 | BQ67: 0.651182 | BR67: 154.3 | BS67: FALSE | BT67: 0 | BU67: 0 | BV67: 0 | BW67: 0 | BX67: 425.5 | BY67: 0.12 | BZ67: =IF(ROUND((Weightings!$P$5*BY67^Weightings!$P$6*Weightings!$P$8 ),2)<Weightings!$P$7,Weightings!$P$7,ROUND((Weightings!$P$5*BY67^Weightings!$P$6*Weightings!$P$8 ),2)) -> 1625.6 | CA67: =ROUND(BZ67/Weightings!$M$5,4) -> 0.4236 | CB67: 21.6 | CC67: 0 | CD67: 0 | CE67: 0 | CF67: 0 | CG67: =AS67*Weightings!$M$5*CF67 -> 0 | CH67: 0 | CI67: 0.338 | CJ67: 0.6 | CK67: 0 | CL67: 0 | CM67: 0 | CN67: =IF(ISNA(VLOOKUP($CZ67,'Audit Values'!$A$2:$AE$439,2,FALSE)),'Preliminary SO66'!T64,VLOOKUP($CZ67,'Audit Values'!$A$2:$AE$439,20,FALSE)) -> 0 | CO67: 0 | CP67: 0 | CQ67: 0 | CR67: =IF(ISNA(VLOOKUP($CZ67,'Audit Values'!$A$2:$AE$439,2,FALSE)),'Preliminary SO66'!V64,VLOOKUP($CZ67,'Audit Values'!$A$2:$AE$439,22,FALSE)) -> 0 | CS67: 0 | CT67: =IF(ISNA(VLOOKUP($CZ67,'Audit Values'!$A$2:$AE$439,2,FALSE)),'Preliminary SO66'!W64,VLOOKUP($CZ67,'Audit Values'!$A$2:$AE$439,23,FALSE)) -> 0 | CU67: 0 | CV67: 0 | CW67: 0 | CX67: =IF(CW67>0,Weightings!$M$11*AR67,0) -> 0 | CY67: 0 | CZ67: D0255
A68: 256 | B68: Allen | C68: Marmaton Valley | D68: 308 | E68: 0 | F68: 308 | G68: 288 | H68: 0 | I68: 288 | J68: 277 | K68: =IF(ISNA(VLOOKUP($CZ68,'Audit Values'!$A$2:$AE$439,2,FALSE)),'Preliminary SO66'!B65,VLOOKUP($CZ68,'Audit Values'!$A$2:$AE$439,31,FALSE)) -> 277 | L68: 291 | M68: =IF(ISNA(VLOOKUP($CZ68,'Audit Values'!$A$2:$AE$439,2,FALSE)),'Preliminary SO66'!Z65,VLOOKUP($CZ68,'Audit Values'!$A$2:$AE$439,26,FALSE)) -> 0 | N68: 291 | O68: =IF(ISNA(VLOOKUP($CZ68,'Audit Values'!$A$2:$AE$439,2,FALSE)),'Preliminary SO66'!C65,IF(VLOOKUP($CZ68,'Audit Values'!$A$2:$AE$439,28,FALSE)="",VLOOKUP($CZ68,'Audit Values'!$A$2:$AE$439,3,FALSE),VLOOKUP($CZ68,'Audit Values'!$A$2:$AE$439,28,FALSE))) -> 4.5 | P68: 281.5 | Q68: 281.5 | R68: 281.5 | S68: 295.5 | T68: 0 | U68: 146.6 | V68: 146.6 | W68: 0 | X68: =IF(ISNA(VLOOKUP($CZ68,'Audit Values'!$A$2:$AE$439,2,FALSE)),'Preliminary SO66'!D65,VLOOKUP($CZ68,'Audit Values'!$A$2:$AE$439,4,FALSE)) -> 93.6 | Y68: =ROUND((X68/6)*Weightings!$M$6,1) -> 7.8 | Z68: =IF(ISNA(VLOOKUP($CZ68,'Audit Values'!$A$2:$AE$439,2,FALSE)),'Preliminary SO66'!F65,VLOOKUP($CZ68,'Audit Values'!$A$2:$AE$439,6,FALSE)) -> 0 | AA68: =ROUND((Z68/6)*Weightings!$M$7,1) -> 0 | AB68: =IF(ISNA(VLOOKUP($CZ68,'Audit Values'!$A$2:$AE$439,2,FALSE)),'Preliminary SO66'!H65,VLOOKUP($CZ68,'Audit Values'!$A$2:$AE$439,8,FALSE)) -> 135 | AC68: =ROUND(AB68*Weightings!$M$8,1) -> 61.6 | AD68: 10.1 | AE68: 14 | AF68: =AE68*Weightings!$M$9 -> 0.7 | AG68: =IF(ISNA(VLOOKUP($CZ68,'Audit Values'!$A$2:$AE$439,2,FALSE)),'Preliminary SO66'!L65,VLOOKUP($CZ68,'Audit Values'!$A$2:$AE$439,12,FALSE)) -> 0 | AH68: =ROUND(AG68*Weightings!$M$10,1) -> 0 | AI68: =IF(ISNA(VLOOKUP($CZ68,'Audit Values'!$A$2:$AE$439,2,FALSE)),'Preliminary SO66'!O65,VLOOKUP($CZ68,'Audit Values'!$A$2:$AE$439,15,FALSE)) -> 125 | AJ68: 37.3 | AK68: =CC68/Weightings!$M$5 -> 0 | AL68: =CD68/Weightings!$M$5 -> 0 | AM68: =CH68/Weightings!$M$5 -> 0 | AN68: 0 | AO68: =IF(ISNA(VLOOKUP($CZ68,'Audit Values'!$A$2:$AE$439,2,FALSE)),'Preliminary SO66'!X65,VLOOKUP($CZ68,'Audit Values'!$A$2:$AE$439,24,FALSE)) -> 0 | AP68: 392356 | AQ68: =AP68/Weightings!$M$5 -> 102.2 | AR68: 559.6 | AS68: 661.8 | AT68: 661.8 | AU68: 0 | AV68: =IF(ISNA(VLOOKUP($CZ68,'Audit Values'!$A$2:$AC$360,2,FALSE)),"",IF(AND(Weightings!H68>0,VLOOKUP($CZ68,'Audit Values'!$A$2:$AC$360,29,FALSE)<Weightings!H68),Weightings!H68,VLOOKUP($CZ68,'Audit Values'!$A$2:$AC$360,29,FALSE))) -> 1 | AW68: =IF(ISNA(VLOOKUP($CZ68,'Audit Values'!$A$2:$AD$360,2,FALSE)),"",VLOOKUP($CZ68,'Audit Values'!$A$2:$AD$360,30,FALSE)) -> A | AX68: =IF(Weightings!G68="","",IF(Weightings!I68="Pending","PX","R")) ->  | AY68: =AR68*Weightings!$M$5+AU68 -> 2147745 | AZ68: =AT68*Weightings!$M$5+AU68 -> 2539988 | BA68: =IF(Weightings!G68>0,Weightings!G68,'Preliminary SO66'!AB65) -> 2870056 | BB68: 2539988 | BD68: =Weightings!E68 -> 0 | BE68: =Weightings!F68 -> 0 | BF68: 0 | BG68: 2539988 | BH68: =MAX(ROUND(((AR68-AO68)*4433)+AP68,0),ROUND(((AR68-AO68)*4433)+Weightings!B68,0)) -> 2923395 | BI68: 0.3 | BJ68: 877019 | BK68: 643800 | BL68: 643800 | BM68: 0.2202 | BN68: 0 | BO68: TRUE | BP68: 1887.553 | BQ68: 0.496114 | BR68: 146.6 | BS68: FALSE | BT68: 0 | BU68: 0 | BV68: 0 | BW68: 0 | BX68: 225 | BY68: 0.56 | BZ68: =IF(ROUND((Weightings!$P$5*BY68^Weightings!$P$6*Weightings!$P$8 ),2)<Weightings!$P$7,Weightings!$P$7,ROUND((Weightings!$P$5*BY68^Weightings!$P$6*Weightings!$P$8 ),2)) -> 1143.96 | CA68: =ROUND(BZ68/Weightings!$M$5,4) -> 0.2981 | CB68: 37.3 | CC68: 0 | CD68: 0 | CE68: 0 | CF68: 0 | CG68: =AS68*Weightings!$M$5*CF68 -> 0 | CH68: 0 | CI68: 0.457 | CJ68: 1.3 | CK68: 0 | CL68: 0 | CM68: 10.1 | CN68: =IF(ISNA(VLOOKUP($CZ68,'Audit Values'!$A$2:$AE$439,2,FALSE)),'Preliminary SO66'!T65,VLOOKUP($CZ68,'Audit Values'!$A$2:$AE$439,20,FALSE)) -> 0 | CO68: 0 | CP68: 0 | CQ68: 0 | CR68: =IF(ISNA(VLOOKUP($CZ68,'Audit Values'!$A$2:$AE$439,2,FALSE)),'Preliminary SO66'!V65,VLOOKUP($CZ68,'Audit Values'!$A$2:$AE$439,22,FALSE)) -> 0 | CS68: 0 | CT68: =IF(ISNA(VLOOKUP($CZ68,'Audit Values'!$A$2:$AE$439,2,FALSE)),'Preliminary SO66'!W65,VLOOKUP($CZ68,'Audit Values'!$A$2:$AE$439,23,FALSE)) -> 0 | CU68: 0 | CV68: 0 | CW68: 0 | CX68: =IF(CW68>0,Weightings!$M$11*AR68,0) -> 0 | CY68: 0 | CZ68: D0256
A69: 257 | B69: Allen | C69: Iola | D69: 1288.5 | E69: 0 | F69: 1288.5 | G69: 1257 | H69: 0 | I69: =G69+H69 -> 1257 | J69: =K69+T69 -> 1258.5 | K69: =IF(ISNA(VLOOKUP($CZ69,'Audit Values'!$A$2:$AE$439,2,FALSE)),'Preliminary SO66'!B66,VLOOKUP($CZ69,'Audit Values'!$A$2:$AE$439,31,FALSE)) -> 1258.5 | L69: =MAX(K69, I69,AVERAGE(F69, I69, K69)) -> 1268 | M69: =IF(ISNA(VLOOKUP($CZ69,'Audit Values'!$A$2:$AE$439,2,FALSE)),'Preliminary SO66'!Z66,VLOOKUP($CZ69,'Audit Values'!$A$2:$AE$439,26,FALSE)) -> 0 | N69: =L69+M69 -> 1268 | O69: =IF(ISNA(VLOOKUP($CZ69,'Audit Values'!$A$2:$AE$439,2,FALSE)),'Preliminary SO66'!C66,IF(VLOOKUP($CZ69,'Audit Values'!$A$2:$AE$439,28,FALSE)="",VLOOKUP($CZ69,'Audit Values'!$A$2:$AE$439,3,FALSE),VLOOKUP($CZ69,'Audit Values'!$A$2:$AE$439,28,FALSE))) -> 14 | P69: =K69+O69 -> 1272.5 | Q69: =J69+O69 -> 1272.5 | R69: =J69+O69+M69 -> 1272.5 | S69: =L69+M69+O69 -> 1282 | T69: 0 | U69: =IF(L69>0,MAX(BN69,BR69,BV69,BW69),0) -> 193 | V69: 193 | W69: 0 | X69: =IF(ISNA(VLOOKUP($CZ69,'Audit Values'!$A$2:$AE$439,2,FALSE)),'Preliminary SO66'!D66,VLOOKUP($CZ69,'Audit Values'!$A$2:$AE$439,4,FALSE)) -> 253 | Y69: =ROUND((X69/6)*Weightings!$M$6,1) -> 21.1 | Z69: =IF(ISNA(VLOOKUP($CZ69,'Audit Values'!$A$2:$AE$439,2,FALSE)),'Preliminary SO66'!F66,VLOOKUP($CZ69,'Audit Values'!$A$2:$AE$439,6,FALSE)) -> 0 | AA69: =ROUND((Z69/6)*Weightings!$M$7,1) -> 0 | AB69: =IF(ISNA(VLOOKUP($CZ69,'Audit Values'!$A$2:$AE$439,2,FALSE)),'Preliminary SO66'!H66,VLOOKUP($CZ69,'Audit Values'!$A$2:$AE$439,8,FALSE)) -> 706 | AC69: =ROUND(AB69*Weightings!$M$8,1) -> 321.9 | AD69: 74.1 | AE69: 75 | AF69: =AE69*Weightings!$M$9 -> 3.5 | AG69: =IF(ISNA(VLOOKUP($CZ69,'Audit Values'!$A$2:$AE$439,2,FALSE)),'Preliminary SO66'!L66,VLOOKUP($CZ69,'Audit Values'!$A$2:$AE$439,12,FALSE)) -> 0 | AH69: =ROUND(AG69*Weightings!$M$10,1) -> 0 | AI69: =IF(ISNA(VLOOKUP($CZ69,'Audit Values'!$A$2:$AE$439,2,FALSE)),'Preliminary SO66'!O66,VLOOKUP($CZ69,'Audit Values'!$A$2:$AE$439,15,FALSE)) -> 348 | AJ69: =CB69 -> 73.9 | AK69: =CC69/Weightings!$M$5 -> 0 | AL69: =CD69/Weightings!$M$5 -> 0 | AM69: =CH69/Weightings!$M$5 -> 0 | AN69: 0 | AO69: =IF(ISNA(VLOOKUP($CZ69,'Audit Values'!$A$2:$AE$439,2,FALSE)),'Preliminary SO66'!X66,VLOOKUP($CZ69,'Audit Values'!$A$2:$AE$439,24,FALSE)) -> 0 | AP69: 1653321 | AQ69: =AP69/Weightings!$M$5 -> 430.8 | AR69: =SUM(S69+ U69+ Y69+ AA69+ AC69+ AH69+ AJ69+ AK69+ AL69+ AD69+AF69+AM69+AN69+AO69) -> 1969.5 | AS69: =SUM(S69+U69+Y69+AA69+AC69+AH69+AJ69+AK69+AL69+AD69+AF69+AQ69+AN69+AO69) -> 2400.3 | AT69: =SUM(S69+U69+Y69+AA69+AC69+AH69+AJ69+AK69+AL69+AQ69+AD69+AF69+AM69+AN69+AO69) -> 2400.3 | AU69: 0 | AV69: =IF(ISNA(VLOOKUP($CZ69,'Audit Values'!$A$2:$AC$360,2,FALSE)),"",IF(AND(Weightings!H69>0,VLOOKUP($CZ69,'Audit Values'!$A$2:$AC$360,29,FALSE)<Weightings!H69),Weightings!H69,VLOOKUP($CZ69,'Audit Values'!$A$2:$AC$360,29,FALSE))) -> 10 | AW69: =IF(ISNA(VLOOKUP($CZ69,'Audit Values'!$A$2:$AD$360,2,FALSE)),"",VLOOKUP($CZ69,'Audit Values'!$A$2:$AD$360,30,FALSE)) -> A | AX69: =IF(Weightings!G69="","",IF(Weightings!I69="Pending","PX","R")) ->  | AY69: =AR69*Weightings!$M$5+AU69 -> 7558941 | AZ69: =AT69*Weightings!$M$5+AU69 -> 9212351 | BA69: =IF(Weightings!G69>0,Weightings!G69,'Preliminary SO66'!AB66) -> 9380840 | BB69: =MIN(AZ69,BA69) -> 9212351 | BD69: =Weightings!E69 -> -3286 | BE69: =Weightings!F69 -> 0 | BF69: =SUM(BC69:BE69) -> -3286 | BG69: =BB69+BF69 -> 9209065 | BH69: =MAX(ROUND(((AR69-AO69)*4433)+AP69,0),ROUND(((AR69-AO69)*4433)+Weightings!B69,0)) -> 10479131 | BI69: 0.3 | BJ69: 3143739 | BK69: 3167336 | BL69: =MIN(BJ69,BK69) -> 3143739 | BM69: 0.3 | BN69: =ROUND(IF(S69<=99.9,(S69*1.014331),0),1) -> 0 | BO69: =AND(S69>99.9,S69<=299.9) -> FALSE | BP69: =IF(BO69=TRUE,ROUND((S69-100)*9.655,3),0) -> 0 | BQ69: 0 | BR69: =ROUND(S69*BQ69,1) -> 0 | BS69: =AND(S69>299.9,S69<=1621.9) -> TRUE | BT69: =IF(BS69=TRUE,ROUND((S69-300)*1.2375,4),0) -> 1215.225 | BU69: 0.150553 | BV69: =ROUND(BU69*S69,1) -> 193 | BW69: =ROUND(IF(S69>=1622,(S69*0.03504),0),1) -> 0 | BX69: 140.5 | BY69: 2.48 | BZ69: =IF(ROUND((Weightings!$P$5*BY69^Weightings!$P$6*Weightings!$P$8 ),2)<Weightings!$P$7,Weightings!$P$7,ROUND((Weightings!$P$5*BY69^Weightings!$P$6*Weightings!$P$8 ),2)) -> 814.7 | CA69: =ROUND(BZ69/Weightings!$M$5,4) -> 0.2123 | CB69: 73.9 | CC69: 0 | CD69: 0 | CE69: 0 | CF69: 0 | CG69: =AS69*Weightings!$M$5*CF69 -> 0 | CH69: 0 | CI69: =ROUND(AB69/S69,3) -> 0.551 | CJ69: =ROUND(S69/BX69,1) -> 9.1 | CK69: 74.1 | CL69: 0 | CM69: 0 | CN69: =IF(ISNA(VLOOKUP($CZ69,'Audit Values'!$A$2:$AE$439,2,FALSE)),'Preliminary SO66'!T66,VLOOKUP($CZ69,'Audit Values'!$A$2:$AE$439,20,FALSE)) -> 0 | CO69: 0 | CP69: 0 | CQ69: 0 | CR69: =IF(ISNA(VLOOKUP($CZ69,'Audit Values'!$A$2:$AE$439,2,FALSE)),'Preliminary SO66'!V66,VLOOKUP($CZ69,'Audit Values'!$A$2:$AE$439,22,FALSE)) -> 0 | CS69: 0 | CT69: =IF(ISNA(VLOOKUP($CZ69,'Audit Values'!$A$2:$AE$439,2,FALSE)),'Preliminary SO66'!W66,VLOOKUP($CZ69,'Audit Values'!$A$2:$AE$439,23,FALSE)) -> 0 | CU69: 0 | CV69: 0 | CW69: 0 | CX69: =IF(CW69>0,Weightings!$M$11*AR69,0) -> 0 | CY69: 0 | CZ69: D0257
A70: 258 | B70: Allen | C70: Humboldt | D70: 536 | E70: 0 | F70: 536 | G70: 555.5 | H70: 0 | I70: 555.5 | J70: 734.5 | K70: =IF(ISNA(VLOOKUP($CZ70,'Audit Values'!$A$2:$AE$439,2,FALSE)),'Preliminary SO66'!B67,VLOOKUP($CZ70,'Audit Values'!$A$2:$AE$439,31,FALSE)) -> 586.6 | L70: 586.6 | M70: =IF(ISNA(VLOOKUP($CZ70,'Audit Values'!$A$2:$AE$439,2,FALSE)),'Preliminary SO66'!Z67,VLOOKUP($CZ70,'Audit Values'!$A$2:$AE$439,26,FALSE)) -> 0 | N70: 586.6 | O70: =IF(ISNA(VLOOKUP($CZ70,'Audit Values'!$A$2:$AE$439,2,FALSE)),'Preliminary SO66'!C67,IF(VLOOKUP($CZ70,'Audit Values'!$A$2:$AE$439,28,FALSE)="",VLOOKUP($CZ70,'Audit Values'!$A$2:$AE$439,3,FALSE),VLOOKUP($CZ70,'Audit Values'!$A$2:$AE$439,28,FALSE))) -> 5 | P70: 591.6 | Q70: 739.5 | R70: 739.5 | S70: 591.6 | T70: 147.9 | U70: 227.8 | V70: 227.8 | W70: 0 | X70: =IF(ISNA(VLOOKUP($CZ70,'Audit Values'!$A$2:$AE$439,2,FALSE)),'Preliminary SO66'!D67,VLOOKUP($CZ70,'Audit Values'!$A$2:$AE$439,4,FALSE)) -> 262.1 | Y70: =ROUND((X70/6)*Weightings!$M$6,1) -> 21.8 | Z70: =IF(ISNA(VLOOKUP($CZ70,'Audit Values'!$A$2:$AE$439,2,FALSE)),'Preliminary SO66'!F67,VLOOKUP($CZ70,'Audit Values'!$A$2:$AE$439,6,FALSE)) -> 0 | AA70: =ROUND((Z70/6)*Weightings!$M$7,1) -> 0 | AB70: =IF(ISNA(VLOOKUP($CZ70,'Audit Values'!$A$2:$AE$439,2,FALSE)),'Preliminary SO66'!H67,VLOOKUP($CZ70,'Audit Values'!$A$2:$AE$439,8,FALSE)) -> 262 | AC70: =ROUND(AB70*Weightings!$M$8,1) -> 119.5 | AD70: =MAX(CK70,CL70,CM70) -> 17.1 | AE70: 31 | AF70: =AE70*Weightings!$M$9 -> 1.4 | AG70: =IF(ISNA(VLOOKUP($CZ70,'Audit Values'!$A$2:$AE$439,2,FALSE)),'Preliminary SO66'!L67,VLOOKUP($CZ70,'Audit Values'!$A$2:$AE$439,12,FALSE)) -> 0 | AH70: =ROUND(AG70*Weightings!$M$10,1) -> 0 | AI70: =IF(ISNA(VLOOKUP($CZ70,'Audit Values'!$A$2:$AE$439,2,FALSE)),'Preliminary SO66'!O67,VLOOKUP($CZ70,'Audit Values'!$A$2:$AE$439,15,FALSE)) -> 86 | AJ70: 24.5 | AK70: =CC70/Weightings!$M$5 -> 0 | AL70: =CD70/Weightings!$M$5 -> 0 | AM70: =CH70/Weightings!$M$5 -> 0 | AN70: 156.3 | AO70: =IF(ISNA(VLOOKUP($CZ70,'Audit Values'!$A$2:$AE$439,2,FALSE)),'Preliminary SO66'!X67,VLOOKUP($CZ70,'Audit Values'!$A$2:$AE$439,24,FALSE)) -> 0 | AP70: 665778 | AQ70: =AP70/Weightings!$M$5 -> 173.5 | AR70: 1160 | AS70: 1333.5 | AT70: 1333.5 | AU70: =CY70 -> 0 | AV70: =IF(ISNA(VLOOKUP($CZ70,'Audit Values'!$A$2:$AC$360,2,FALSE)),"",IF(AND(Weightings!H70>0,VLOOKUP($CZ70,'Audit Values'!$A$2:$AC$360,29,FALSE)<Weightings!H70),Weightings!H70,VLOOKUP($CZ70,'Audit Values'!$A$2:$AC$360,29,FALSE))) -> 31 | AW70: =IF(ISNA(VLOOKUP($CZ70,'Audit Values'!$A$2:$AD$360,2,FALSE)),"",VLOOKUP($CZ70,'Audit Values'!$A$2:$AD$360,30,FALSE)) -> A | AX70: =IF(Weightings!G70="","",IF(Weightings!I70="Pending","PX","R")) -> R | AY70: =AR70*Weightings!$M$5+AU70 -> 4452080 | AZ70: =AT70*Weightings!$M$5+AU70 -> 5117973 | BA70: =IF(Weightings!G70>0,Weightings!G70,'Preliminary SO66'!AB67) -> 5231578 | BB70: 5117973 | BD70: =Weightings!E70 -> 0 | BE70: =Weightings!F70 -> 0 | BF70: 0 | BG70: 5117973 | BH70: =MAX(ROUND(((AR70-AO70)*4433)+AP70,0),ROUND(((AR70-AO70)*4433)+Weightings!B70,0)) -> 5808058 | BI70: 0.3 | BJ70: 1742417 | BK70: 1644637 | BL70: 1644637 | BM70: =BL70/BH70 -> 0.2832 | BN70: 0 | BO70: FALSE | BP70: 0 | BQ70: 0 | BR70: 0 | BS70: TRUE | BT70: 360.855 | BU70: 0.385116 | BV70: 227.8 | BW70: 0 | BX70: 126 | BY70: =AI70/BX70 -> 0.68 | BZ70: =IF(ROUND((Weightings!$P$5*BY70^Weightings!$P$6*Weightings!$P$8 ),2)<Weightings!$P$7,Weightings!$P$7,ROUND((Weightings!$P$5*BY70^Weightings!$P$6*Weightings!$P$8 ),2)) -> 1094.41 | CA70: =ROUND(BZ70/Weightings!$M$5,4) -> 0.2852 | CB70: =ROUND(IF(AI70>0,CA70*AI70,0),1) -> 24.5 | CC70: 0 | CD70: 0 | CE70: 0 | CF70: 0 | CG70: =AS70*Weightings!$M$5*CF70 -> 0 | CH70: =IF(CE70>CG70,CG70,CE70) -> 0 | CI70: 0.443 | CJ70: 4.7 | CK70: =IF(CI70>=50%,AB70*10.5%,0) -> 0 | CL70: =IF(AND(CI70>=35.1%,CJ70>212),AB70*0.105,0) -> 0 | CM70: =IF(AND((CI70-0.35)>0,CI70<0.5),AB70*(CI70-0.35)*0.7,0) -> 17.1 | CN70: =IF(ISNA(VLOOKUP($CZ70,'Audit Values'!$A$2:$AE$439,2,FALSE)),'Preliminary SO66'!T67,VLOOKUP($CZ70,'Audit Values'!$A$2:$AE$439,20,FALSE)) -> 147.9 | CO70: 155.3 | CP70: 4 | CQ70: 1 | CR70: =IF(ISNA(VLOOKUP($CZ70,'Audit Values'!$A$2:$AE$439,2,FALSE)),'Preliminary SO66'!V67,VLOOKUP($CZ70,'Audit Values'!$A$2:$AE$439,22,FALSE)) -> 0 | CS70: 0 | CT70: =IF(ISNA(VLOOKUP($CZ70,'Audit Values'!$A$2:$AE$439,2,FALSE)),'Preliminary SO66'!W67,VLOOKUP($CZ70,'Audit Values'!$A$2:$AE$439,23,FALSE)) -> 0 | CU70: 0 | CV70: 156.3 | CW70: 0 | CX70: =IF(CW70>0,Weightings!$M$11*AR70,0) -> 0 | CY70: =MIN(CW70,CX70) -> 0 | CZ70: D0258
A71: 259 | B71: Sedgwick | C71: Wichita | D71: 44797.8 | E71: 0 | F71: 44797.8 | G71: 45287.9 | H71: 0 | I71: 45287.9 | J71: 46082.3 | K71: =IF(ISNA(VLOOKUP($CZ71,'Audit Values'!$A$2:$AE$439,2,FALSE)),'Preliminary SO66'!B68,VLOOKUP($CZ71,'Audit Values'!$A$2:$AE$439,31,FALSE)) -> 45888.3 | L71: 45888.3 | M71: =IF(ISNA(VLOOKUP($CZ71,'Audit Values'!$A$2:$AE$439,2,FALSE)),'Preliminary SO66'!Z68,VLOOKUP($CZ71,'Audit Values'!$A$2:$AE$439,26,FALSE)) -> 0 | N71: 45888.3 | O71: =IF(ISNA(VLOOKUP($CZ71,'Audit Values'!$A$2:$AE$439,2,FALSE)),'Preliminary SO66'!C68,IF(VLOOKUP($CZ71,'Audit Values'!$A$2:$AE$439,28,FALSE)="",VLOOKUP($CZ71,'Audit Values'!$A$2:$AE$439,3,FALSE),VLOOKUP($CZ71,'Audit Values'!$A$2:$AE$439,28,FALSE))) -> 956 | P71: 46844.3 | Q71: 47038.3 | R71: 47038.3 | S71: 46844.3 | T71: 194 | U71: 1641.4 | V71: 0 | W71: 1641.4 | X71: =IF(ISNA(VLOOKUP($CZ71,'Audit Values'!$A$2:$AE$439,2,FALSE)),'Preliminary SO66'!D68,VLOOKUP($CZ71,'Audit Values'!$A$2:$AE$439,4,FALSE)) -> 9513.7 | Y71: =ROUND((X71/6)*Weightings!$M$6,1) -> 792.8 | Z71: =IF(ISNA(VLOOKUP($CZ71,'Audit Values'!$A$2:$AE$439,2,FALSE)),'Preliminary SO66'!F68,VLOOKUP($CZ71,'Audit Values'!$A$2:$AE$439,6,FALSE)) -> 35462.9 | AA71: =ROUND((Z71/6)*Weightings!$M$7,1) -> 2334.6 | AB71: =IF(ISNA(VLOOKUP($CZ71,'Audit Values'!$A$2:$AE$439,2,FALSE)),'Preliminary SO66'!H68,VLOOKUP($CZ71,'Audit Values'!$A$2:$AE$439,8,FALSE)) -> 34402 | AC71: =ROUND(AB71*Weightings!$M$8,1) -> 15687.3 | AD71: 3612.2 | AE71: 2180 | AF71: =AE71*Weightings!$M$9 -> 101.4 | AG71: =IF(ISNA(VLOOKUP($CZ71,'Audit Values'!$A$2:$AE$439,2,FALSE)),'Preliminary SO66'!L68,VLOOKUP($CZ71,'Audit Values'!$A$2:$AE$439,12,FALSE)) -> 5511.5 | AH71: =ROUND(AG71*Weightings!$M$10,1) -> 1377.9 | AI71: =IF(ISNA(VLOOKUP($CZ71,'Audit Values'!$A$2:$AE$439,2,FALSE)),'Preliminary SO66'!O68,VLOOKUP($CZ71,'Audit Values'!$A$2:$AE$439,15,FALSE)) -> 14383 | AJ71: 2192 | AK71: =CC71/Weightings!$M$5 -> 0 | AL71: =CD71/Weightings!$M$5 -> 0 | AM71: =CH71/Weightings!$M$5 -> 0 | AN71: 226 | AO71: =IF(ISNA(VLOOKUP($CZ71,'Audit Values'!$A$2:$AE$439,2,FALSE)),'Preliminary SO66'!X68,VLOOKUP($CZ71,'Audit Values'!$A$2:$AE$439,24,FALSE)) -> 0 | AP71: 42147885 | AQ71: =AP71/Weightings!$M$5 -> 10981.7 | AR71: 74809.9 | AS71: 85791.6 | AT71: 85791.6 | AU71: 0 | AV71: =IF(ISNA(VLOOKUP($CZ71,'Audit Values'!$A$2:$AC$360,2,FALSE)),"",IF(AND(Weightings!H71>0,VLOOKUP($CZ71,'Audit Values'!$A$2:$AC$360,29,FALSE)<Weightings!H71),Weightings!H71,VLOOKUP($CZ71,'Audit Values'!$A$2:$AC$360,29,FALSE))) -> 26 | AW71: =IF(ISNA(VLOOKUP($CZ71,'Audit Values'!$A$2:$AD$360,2,FALSE)),"",VLOOKUP($CZ71,'Audit Values'!$A$2:$AD$360,30,FALSE)) -> A | AX71: =IF(Weightings!G71="","",IF(Weightings!I71="Pending","PX","R")) -> R | AY71: =AR71*Weightings!$M$5+AU71 -> 287120396 | AZ71: =AT71*Weightings!$M$5+AU71 -> 329268161 | BA71: =IF(Weightings!G71>0,Weightings!G71,'Preliminary SO66'!AB68) -> 329428205 | BB71: 329268161 | BD71: =Weightings!E71 -> -5749 | BE71: =Weightings!F71 -> 0 | BF71: -5749 | BG71: 329262412 | BH71: =MAX(ROUND(((AR71-AO71)*4433)+AP71,0),ROUND(((AR71-AO71)*4433)+Weightings!B71,0)) -> 373780172 | BI71: 0.3 | BJ71: 112134052 | BK71: 110870767 | BL71: 110870767 | BM71: 0.2966 | BN71: 0 | BO71: FALSE | BP71: 0 | BQ71: 0 | BR71: 0 | BS71: FALSE | BT71: 0 | BU71: 0 | BV71: 0 | BW71: 1641.4 | BX71: 151 | BY71: 95.25 | BZ71: =IF(ROUND((Weightings!$P$5*BY71^Weightings!$P$6*Weightings!$P$8 ),2)<Weightings!$P$7,Weightings!$P$7,ROUND((Weightings!$P$5*BY71^Weightings!$P$6*Weightings!$P$8 ),2)) -> 585 | CA71: =ROUND(BZ71/Weightings!$M$5,4) -> 0.1524 | CB71: 2192 | CC71: 0 | CD71: 0 | CE71: 0 | CF71: 0 | CG71: =AS71*Weightings!$M$5*CF71 -> 0 | CH71: 0 | CI71: 0.734 | CJ71: 310.2 | CK71: 3612.2 | CL71: 3612.2 | CM71: 0 | CN71: =IF(ISNA(VLOOKUP($CZ71,'Audit Values'!$A$2:$AE$439,2,FALSE)),'Preliminary SO66'!T68,VLOOKUP($CZ71,'Audit Values'!$A$2:$AE$439,20,FALSE)) -> 194 | CO71: 203.7 | CP71: 86 | CQ71: 21.5 | CR71: =IF(ISNA(VLOOKUP($CZ71,'Audit Values'!$A$2:$AE$439,2,FALSE)),'Preliminary SO66'!V68,VLOOKUP($CZ71,'Audit Values'!$A$2:$AE$439,22,FALSE)) -> 8 | CS71: 0.6 | CT71: =IF(ISNA(VLOOKUP($CZ71,'Audit Values'!$A$2:$AE$439,2,FALSE)),'Preliminary SO66'!W68,VLOOKUP($CZ71,'Audit Values'!$A$2:$AE$439,23,FALSE)) -> 3 | CU71: 0.2 | CV71: 226 | CW71: 0 | CX71: =IF(CW71>0,Weightings!$M$11*AR71,0) -> 0 | CY71: 0 | CZ71: D0259
A72: 260 | B72: Sedgwick | C72: Derby | D72: 6212.6 | E72: 48.8 | F72: 6261.4 | G72: 6253.4 | H72: 43 | I72: 6296.4 | J72: 6354.8 | K72: =IF(ISNA(VLOOKUP($CZ72,'Audit Values'!$A$2:$AE$439,2,FALSE)),'Preliminary SO66'!B69,VLOOKUP($CZ72,'Audit Values'!$A$2:$AE$439,31,FALSE)) -> 6335.1 | L72: 6335.1 | M72: =IF(ISNA(VLOOKUP($CZ72,'Audit Values'!$A$2:$AE$439,2,FALSE)),'Preliminary SO66'!Z69,VLOOKUP($CZ72,'Audit Values'!$A$2:$AE$439,26,FALSE)) -> 47 | N72: 6382.1 | O72: =IF(ISNA(VLOOKUP($CZ72,'Audit Values'!$A$2:$AE$439,2,FALSE)),'Preliminary SO66'!C69,IF(VLOOKUP($CZ72,'Audit Values'!$A$2:$AE$439,28,FALSE)="",VLOOKUP($CZ72,'Audit Values'!$A$2:$AE$439,3,FALSE),VLOOKUP($CZ72,'Audit Values'!$A$2:$AE$439,28,FALSE))) -> 24.5 | P72: 6359.6 | Q72: 6379.3 | R72: 6426.3 | S72: 6406.6 | T72: 19.7 | U72: 224.5 | V72: =MAX(BN72,BR72,BV72) -> 0 | W72: =BW72 -> 224.5 | X72: =IF(ISNA(VLOOKUP($CZ72,'Audit Values'!$A$2:$AE$439,2,FALSE)),'Preliminary SO66'!D69,VLOOKUP($CZ72,'Audit Values'!$A$2:$AE$439,4,FALSE)) -> 1280.6 | Y72: =ROUND((X72/6)*Weightings!$M$6,1) -> 106.7 | Z72: =IF(ISNA(VLOOKUP($CZ72,'Audit Values'!$A$2:$AE$439,2,FALSE)),'Preliminary SO66'!F69,VLOOKUP($CZ72,'Audit Values'!$A$2:$AE$439,6,FALSE)) -> 1433.6 | AA72: =ROUND((Z72/6)*Weightings!$M$7,1) -> 94.4 | AB72: =IF(ISNA(VLOOKUP($CZ72,'Audit Values'!$A$2:$AE$439,2,FALSE)),'Preliminary SO66'!H69,VLOOKUP($CZ72,'Audit Values'!$A$2:$AE$439,8,FALSE)) -> 2497 | AC72: =ROUND(AB72*Weightings!$M$8,1) -> 1138.6 | AD72: 69.9 | AE72: 385 | AF72: =AE72*Weightings!$M$9 -> 17.9 | AG72: =IF(ISNA(VLOOKUP($CZ72,'Audit Values'!$A$2:$AE$439,2,FALSE)),'Preliminary SO66'!L69,VLOOKUP($CZ72,'Audit Values'!$A$2:$AE$439,12,FALSE)) -> 0 | AH72: =ROUND(AG72*Weightings!$M$10,1) -> 0 | AI72: =IF(ISNA(VLOOKUP($CZ72,'Audit Values'!$A$2:$AE$439,2,FALSE)),'Preliminary SO66'!O69,VLOOKUP($CZ72,'Audit Values'!$A$2:$AE$439,15,FALSE)) -> 1508 | AJ72: 229.8 | AK72: =CC72/Weightings!$M$5 -> 0 | AL72: =CD72/Weightings!$M$5 -> 0 | AM72: =CH72/Weightings!$M$5 -> 0 | AN72: =CV72 -> 20.7 | AO72: =IF(ISNA(VLOOKUP($CZ72,'Audit Values'!$A$2:$AE$439,2,FALSE)),'Preliminary SO66'!X69,VLOOKUP($CZ72,'Audit Values'!$A$2:$AE$439,24,FALSE)) -> 1 | AP72: 4877371 | AQ72: =AP72/Weightings!$M$5 -> 1270.8 | AR72: 8310.1 | AS72: 9580.9 | AT72: 9580.9 | AU72: 0 | AV72: =IF(ISNA(VLOOKUP($CZ72,'Audit Values'!$A$2:$AC$360,2,FALSE)),"",IF(AND(Weightings!H72>0,VLOOKUP($CZ72,'Audit Values'!$A$2:$AC$360,29,FALSE)<Weightings!H72),Weightings!H72,VLOOKUP($CZ72,'Audit Values'!$A$2:$AC$360,29,FALSE))) -> 21 | AW72: =IF(ISNA(VLOOKUP($CZ72,'Audit Values'!$A$2:$AD$360,2,FALSE)),"",VLOOKUP($CZ72,'Audit Values'!$A$2:$AD$360,30,FALSE)) -> AM | AX72: =IF(Weightings!G72="","",IF(Weightings!I72="Pending","PX","R")) ->  | AY72: =AR72*Weightings!$M$5+AU72 -> 31894164 | AZ72: =AT72*Weightings!$M$5+AU72 -> 36771494 | BA72: =IF(Weightings!G72>0,Weightings!G72,'Preliminary SO66'!AB69) -> 36899683 | BB72: 36771494 | BD72: =Weightings!E72 -> -1150 | BE72: =Weightings!F72 -> 0 | BF72: -1150 | BG72: 36770344 | BH72: =MAX(ROUND(((AR72-AO72)*4433)+AP72,0),ROUND(((AR72-AO72)*4433)+Weightings!B72,0)) -> 41926509 | BI72: 0.3 | BJ72: 12577953 | BK72: 12619579 | BL72: 12577953 | BM72: 0.3 | BN72: 0 | BO72: FALSE | BP72: 0 | BQ72: 0 | BR72: 0 | BS72: FALSE | BT72: 0 | BU72: 0 | BV72: 0 | BW72: 224.5 | BX72: 50 | BY72: 30.16 | BZ72: =IF(ROUND((Weightings!$P$5*BY72^Weightings!$P$6*Weightings!$P$8 ),2)<Weightings!$P$7,Weightings!$P$7,ROUND((Weightings!$P$5*BY72^Weightings!$P$6*Weightings!$P$8 ),2)) -> 585 | CA72: =ROUND(BZ72/Weightings!$M$5,4) -> 0.1524 | CB72: 229.8 | CC72: 0 | CD72: 0 | CE72: 0 | CF72: 0 | CG72: =AS72*Weightings!$M$5*CF72 -> 0 | CH72: 0 | CI72: 0.39 | CJ72: 128.1 | CK72: 0 | CL72: 0 | CM72: 69.9 | CN72: =IF(ISNA(VLOOKUP($CZ72,'Audit Values'!$A$2:$AE$439,2,FALSE)),'Preliminary SO66'!T69,VLOOKUP($CZ72,'Audit Values'!$A$2:$AE$439,20,FALSE)) -> 19.7 | CO72: =CN72*1.05 -> 20.7 | CP72: 0 | CQ72: =CP72*0.25 -> 0 | CR72: =IF(ISNA(VLOOKUP($CZ72,'Audit Values'!$A$2:$AE$439,2,FALSE)),'Preliminary SO66'!V69,VLOOKUP($CZ72,'Audit Values'!$A$2:$AE$439,22,FALSE)) -> 0 | CS72: =CR72*0.08 -> 0 | CT72: =IF(ISNA(VLOOKUP($CZ72,'Audit Values'!$A$2:$AE$439,2,FALSE)),'Preliminary SO66'!W69,VLOOKUP($CZ72,'Audit Values'!$A$2:$AE$439,23,FALSE)) -> 0 | CU72: 0 | CV72: 20.7 | CW72: 0 | CX72: =IF(CW72>0,Weightings!$M$11*AR72,0) -> 0 | CY72: 0 | CZ72: D0260
